Workbook

Sheet Overview
D3: Key Action 2: Cooperation for innovation and the exchange of good practices
D4: Capacity building in the field of higher education
B7: Before completing this table please read carefully the instructions available on
B8: CALL FOR PROPOSALS 2015 – EAC/A04/2014 - Erasmus+ Programme
B9: Programme guide and instructions for applicants
B11: Action | E11: =IF(D11="","Please select Action Type",IF(OR(D11="Joint Project",D11="Structural Project"),"","Error Type of Action")) -> Please select Action Type
B12: Duration number of months | E12: =IF(D12="","Please select duration",IF(OR(D12=24,D12=36),"","Error duration")) -> Please select duration
B13: Project Acronym | E13: =IF(D13="","Please fill in Project Acronym","") -> Please fill in Project Acronym
B14: Project Title
B16: EU GRANT REQUESTED FROM THE EUROPEAN UNION (in EUR)
B17: 1. Staff Costs | D17: ='1. Staff costs'!E9 -> 0 | E17: ="Cannot exceed 40% of total A." -> Cannot exceed 40% of total A.
B18: 2. Travel Costs | D18: ='2-3. Travel Costs&Costs of Stay'!C4 -> 0
B19: 3. Costs of Stay | D19: ='2-3. Travel Costs&Costs of Stay'!C6 -> 0
B20: 4. Equipment Costs | D20: ='4. Equipment Costs'!C4 -> 0 | E20: ="Cannot exceed 30% of total A." -> Cannot exceed 30% of total A.
B21: 5. Subcontracting Costs | D21: ='5. Subcontracting Costs'!C4 -> 0 | E21: ="Cannot exceed 10% of total A." -> Cannot exceed 10% of total A.
B22: A. Grant for Project Activities | D22: =SUM(D17:D21) -> 0 | E22: ="Should be equal or above EUR 500.000,00 and cannot exceed EUR 1.000.000,00" -> Should be equal or above EUR 500.000,00 and cannot exceed EUR 1.000.000,00
E23: =IF(OR(IF(AND(D22>0,D22<500000),1,0)=1,IF(AND(D22>0,D22>1000000),1,0)=1),1,0) -> 0
B24: B. Additional Grant for Special Mobility Strand | D24: ='B. Special Mob Strand - Student'!C8+'B. Special Mob Strand - Staff'!C8 -> 0 | E24: Value cannot exceed 80% of total A
B26: Total Grant requested from the European Union (A + B) | D26: =D22+D24 -> 0
B28: DISTRIBUTION OF THE GRANT BY ORGANISATION (in EUR)
B29: Partner N° | C29: Name of Partner | D29: Country | E29: PR/PA | F29: 1. Staff Costs | G29: 2. Travel Costs | H29: 3. Costs of Stay | I29: 4. Equipment Costs | J29: 5. Subcontracting Costs | K29: B. Special Mobility Strand | L29: Total Costs
B30: P1 | E30: =IFERROR(IF(D30<>"",VLOOKUP(D30,Rates!$B$5:$H$105,3,FALSE),""),"Country not found") ->  | F30: =SUMIF('1. Staff costs'!C:C,B30,'1. Staff costs'!I:I)+SUMIF('1. Staff costs'!C:C,B30,'1. Staff costs'!M:M)+SUMIF('1. Staff costs'!C:C,B30,'1. Staff costs'!Q:Q)+SUMIF('1. Staff costs'!C:C,B30,'1. Staff costs'!U:U) -> 0 | G30: =SUMIF('2-3. Travel Costs&Costs of Stay'!C:C,B30,'2-3. Travel Costs&Costs of Stay'!L:L) -> 0 | H30: =SUMIF('2-3. Travel Costs&Costs of Stay'!C:C,B30,'2-3. Travel Costs&Costs of Stay'!M:M) -> 0 | I30: =SUMIF('4. Equipment Costs'!C:C,B30,'4. Equipment Costs'!H:H) -> 0 | J30: =SUMIF('5. Subcontracting Costs'!C:C,B30,'5. Subcontracting Costs'!H:H) -> 0 | K30: =SUMIF('B. Special Mob Strand - Student'!B:B,B30,'B. Special Mob Strand - Student'!L:L)+SUMIF('B. Special Mob Strand - Student'!B:B,B30,'B. Special Mob Strand - Student'!M:M)+SUMIF('B. Special Mob Strand - Staff'!B:B,B30,'B. Special Mob Strand - Staff'!L:L)+SUMIF('B. Special Mob Strand - Staff'!B:B,B30,'B. Special Mob Strand - Staff'!M:M) -> 0 | L30: =SUM(F30:K30) -> 0
B31: P2 | E31: =IFERROR(IF(D31<>"",VLOOKUP(D31,Rates!$B$5:$H$105,3,FALSE),""),"Country not found") ->  | F31: =SUMIF('1. Staff costs'!C:C,B31,'1. Staff costs'!I:I)+SUMIF('1. Staff costs'!C:C,B31,'1. Staff costs'!M:M)+SUMIF('1. Staff costs'!C:C,B31,'1. Staff costs'!Q:Q)+SUMIF('1. Staff costs'!C:C,B31,'1. Staff costs'!U:U) -> 0 | G31: =SUMIF('2-3. Travel Costs&Costs of Stay'!C:C,B31,'2-3. Travel Costs&Costs of Stay'!L:L) -> 0 | H31: =SUMIF('2-3. Travel Costs&Costs of Stay'!C:C,B31,'2-3. Travel Costs&Costs of Stay'!M:M) -> 0 | I31: =SUMIF('4. Equipment Costs'!C:C,B31,'4. Equipment Costs'!H:H) -> 0 | J31: =SUMIF('5. Subcontracting Costs'!C:C,B31,'5. Subcontracting Costs'!H:H) -> 0 | K31: =SUMIF('B. Special Mob Strand - Student'!B:B,B31,'B. Special Mob Strand - Student'!L:L)+SUMIF('B. Special Mob Strand - Student'!B:B,B31,'B. Special Mob Strand - Student'!M:M)+SUMIF('B. Special Mob Strand - Staff'!B:B,B31,'B. Special Mob Strand - Staff'!L:L)+SUMIF('B. Special Mob Strand - Staff'!B:B,B31,'B. Special Mob Strand - Staff'!M:M) -> 0 | L31: =SUM(F31:K31) -> 0
B32: P3 | E32: =IFERROR(IF(D32<>"",VLOOKUP(D32,Rates!$B$5:$H$105,3,FALSE),""),"Country not found") ->  | F32: =SUMIF('1. Staff costs'!C:C,B32,'1. Staff costs'!I:I)+SUMIF('1. Staff costs'!C:C,B32,'1. Staff costs'!M:M)+SUMIF('1. Staff costs'!C:C,B32,'1. Staff costs'!Q:Q)+SUMIF('1. Staff costs'!C:C,B32,'1. Staff costs'!U:U) -> 0 | G32: =SUMIF('2-3. Travel Costs&Costs of Stay'!C:C,B32,'2-3. Travel Costs&Costs of Stay'!L:L) -> 0 | H32: =SUMIF('2-3. Travel Costs&Costs of Stay'!C:C,B32,'2-3. Travel Costs&Costs of Stay'!M:M) -> 0 | I32: =SUMIF('4. Equipment Costs'!C:C,B32,'4. Equipment Costs'!H:H) -> 0 | J32: =SUMIF('5. Subcontracting Costs'!C:C,B32,'5. Subcontracting Costs'!H:H) -> 0 | K32: =SUMIF('B. Special Mob Strand - Student'!B:B,B32,'B. Special Mob Strand - Student'!L:L)+SUMIF('B. Special Mob Strand - Student'!B:B,B32,'B. Special Mob Strand - Student'!M:M)+SUMIF('B. Special Mob Strand - Staff'!B:B,B32,'B. Special Mob Strand - Staff'!L:L)+SUMIF('B. Special Mob Strand - Staff'!B:B,B32,'B. Special Mob Strand - Staff'!M:M) -> 0 | L32: 0
B33: P4 | E33: =IFERROR(IF(D33<>"",VLOOKUP(D33,Rates!$B$5:$H$105,3,FALSE),""),"Country not found") ->  | F33: =SUMIF('1. Staff costs'!C:C,B33,'1. Staff costs'!I:I)+SUMIF('1. Staff costs'!C:C,B33,'1. Staff costs'!M:M)+SUMIF('1. Staff costs'!C:C,B33,'1. Staff costs'!Q:Q)+SUMIF('1. Staff costs'!C:C,B33,'1. Staff costs'!U:U) -> 0 | G33: =SUMIF('2-3. Travel Costs&Costs of Stay'!C:C,B33,'2-3. Travel Costs&Costs of Stay'!L:L) -> 0 | H33: =SUMIF('2-3. Travel Costs&Costs of Stay'!C:C,B33,'2-3. Travel Costs&Costs of Stay'!M:M) -> 0 | I33: =SUMIF('4. Equipment Costs'!C:C,B33,'4. Equipment Costs'!H:H) -> 0 | J33: =SUMIF('5. Subcontracting Costs'!C:C,B33,'5. Subcontracting Costs'!H:H) -> 0 | K33: =SUMIF('B. Special Mob Strand - Student'!B:B,B33,'B. Special Mob Strand - Student'!L:L)+SUMIF('B. Special Mob Strand - Student'!B:B,B33,'B. Special Mob Strand - Student'!M:M)+SUMIF('B. Special Mob Strand - Staff'!B:B,B33,'B. Special Mob Strand - Staff'!L:L)+SUMIF('B. Special Mob Strand - Staff'!B:B,B33,'B. Special Mob Strand - Staff'!M:M) -> 0 | L33: 0
B34: P5 | E34: =IFERROR(IF(D34<>"",VLOOKUP(D34,Rates!$B$5:$H$105,3,FALSE),""),"Country not found") ->  | F34: =SUMIF('1. Staff costs'!C:C,B34,'1. Staff costs'!I:I)+SUMIF('1. Staff costs'!C:C,B34,'1. Staff costs'!M:M)+SUMIF('1. Staff costs'!C:C,B34,'1. Staff costs'!Q:Q)+SUMIF('1. Staff costs'!C:C,B34,'1. Staff costs'!U:U) -> 0 | G34: =SUMIF('2-3. Travel Costs&Costs of Stay'!C:C,B34,'2-3. Travel Costs&Costs of Stay'!L:L) -> 0 | H34: =SUMIF('2-3. Travel Costs&Costs of Stay'!C:C,B34,'2-3. Travel Costs&Costs of Stay'!M:M) -> 0 | I34: =SUMIF('4. Equipment Costs'!C:C,B34,'4. Equipment Costs'!H:H) -> 0 | J34: =SUMIF('5. Subcontracting Costs'!C:C,B34,'5. Subcontracting Costs'!H:H) -> 0 | K34: =SUMIF('B. Special Mob Strand - Student'!B:B,B34,'B. Special Mob Strand - Student'!L:L)+SUMIF('B. Special Mob Strand - Student'!B:B,B34,'B. Special Mob Strand - Student'!M:M)+SUMIF('B. Special Mob Strand - Staff'!B:B,B34,'B. Special Mob Strand - Staff'!L:L)+SUMIF('B. Special Mob Strand - Staff'!B:B,B34,'B. Special Mob Strand - Staff'!M:M) -> 0 | L34: 0
B35: P6 | E35: =IFERROR(IF(D35<>"",VLOOKUP(D35,Rates!$B$5:$H$105,3,FALSE),""),"Country not found") ->  | F35: =SUMIF('1. Staff costs'!C:C,B35,'1. Staff costs'!I:I)+SUMIF('1. Staff costs'!C:C,B35,'1. Staff costs'!M:M)+SUMIF('1. Staff costs'!C:C,B35,'1. Staff costs'!Q:Q)+SUMIF('1. Staff costs'!C:C,B35,'1. Staff costs'!U:U) -> 0 | G35: =SUMIF('2-3. Travel Costs&Costs of Stay'!C:C,B35,'2-3. Travel Costs&Costs of Stay'!L:L) -> 0 | H35: =SUMIF('2-3. Travel Costs&Costs of Stay'!C:C,B35,'2-3. Travel Costs&Costs of Stay'!M:M) -> 0 | I35: =SUMIF('4. Equipment Costs'!C:C,B35,'4. Equipment Costs'!H:H) -> 0 | J35: =SUMIF('5. Subcontracting Costs'!C:C,B35,'5. Subcontracting Costs'!H:H) -> 0 | K35: =SUMIF('B. Special Mob Strand - Student'!B:B,B35,'B. Special Mob Strand - Student'!L:L)+SUMIF('B. Special Mob Strand - Student'!B:B,B35,'B. Special Mob Strand - Student'!M:M)+SUMIF('B. Special Mob Strand - Staff'!B:B,B35,'B. Special Mob Strand - Staff'!L:L)+SUMIF('B. Special Mob Strand - Staff'!B:B,B35,'B. Special Mob Strand - Staff'!M:M) -> 0 | L35: 0
B36: P7 | E36: =IFERROR(IF(D36<>"",VLOOKUP(D36,Rates!$B$5:$H$105,3,FALSE),""),"Country not found") ->  | F36: =SUMIF('1. Staff costs'!C:C,B36,'1. Staff costs'!I:I)+SUMIF('1. Staff costs'!C:C,B36,'1. Staff costs'!M:M)+SUMIF('1. Staff costs'!C:C,B36,'1. Staff costs'!Q:Q)+SUMIF('1. Staff costs'!C:C,B36,'1. Staff costs'!U:U) -> 0 | G36: =SUMIF('2-3. Travel Costs&Costs of Stay'!C:C,B36,'2-3. Travel Costs&Costs of Stay'!L:L) -> 0 | H36: =SUMIF('2-3. Travel Costs&Costs of Stay'!C:C,B36,'2-3. Travel Costs&Costs of Stay'!M:M) -> 0 | I36: =SUMIF('4. Equipment Costs'!C:C,B36,'4. Equipment Costs'!H:H) -> 0 | J36: =SUMIF('5. Subcontracting Costs'!C:C,B36,'5. Subcontracting Costs'!H:H) -> 0 | K36: =SUMIF('B. Special Mob Strand - Student'!B:B,B36,'B. Special Mob Strand - Student'!L:L)+SUMIF('B. Special Mob Strand - Student'!B:B,B36,'B. Special Mob Strand - Student'!M:M)+SUMIF('B. Special Mob Strand - Staff'!B:B,B36,'B. Special Mob Strand - Staff'!L:L)+SUMIF('B. Special Mob Strand - Staff'!B:B,B36,'B. Special Mob Strand - Staff'!M:M) -> 0 | L36: 0
B37: P8 | E37: =IFERROR(IF(D37<>"",VLOOKUP(D37,Rates!$B$5:$H$105,3,FALSE),""),"Country not found") ->  | F37: =SUMIF('1. Staff costs'!C:C,B37,'1. Staff costs'!I:I)+SUMIF('1. Staff costs'!C:C,B37,'1. Staff costs'!M:M)+SUMIF('1. Staff costs'!C:C,B37,'1. Staff costs'!Q:Q)+SUMIF('1. Staff costs'!C:C,B37,'1. Staff costs'!U:U) -> 0 | G37: =SUMIF('2-3. Travel Costs&Costs of Stay'!C:C,B37,'2-3. Travel Costs&Costs of Stay'!L:L) -> 0 | H37: =SUMIF('2-3. Travel Costs&Costs of Stay'!C:C,B37,'2-3. Travel Costs&Costs of Stay'!M:M) -> 0 | I37: =SUMIF('4. Equipment Costs'!C:C,B37,'4. Equipment Costs'!H:H) -> 0 | J37: =SUMIF('5. Subcontracting Costs'!C:C,B37,'5. Subcontracting Costs'!H:H) -> 0 | K37: =SUMIF('B. Special Mob Strand - Student'!B:B,B37,'B. Special Mob Strand - Student'!L:L)+SUMIF('B. Special Mob Strand - Student'!B:B,B37,'B. Special Mob Strand - Student'!M:M)+SUMIF('B. Special Mob Strand - Staff'!B:B,B37,'B. Special Mob Strand - Staff'!L:L)+SUMIF('B. Special Mob Strand - Staff'!B:B,B37,'B. Special Mob Strand - Staff'!M:M) -> 0 | L37: 0
B38: P9 | E38: =IFERROR(IF(D38<>"",VLOOKUP(D38,Rates!$B$5:$H$105,3,FALSE),""),"Country not found") ->  | F38: =SUMIF('1. Staff costs'!C:C,B38,'1. Staff costs'!I:I)+SUMIF('1. Staff costs'!C:C,B38,'1. Staff costs'!M:M)+SUMIF('1. Staff costs'!C:C,B38,'1. Staff costs'!Q:Q)+SUMIF('1. Staff costs'!C:C,B38,'1. Staff costs'!U:U) -> 0 | G38: =SUMIF('2-3. Travel Costs&Costs of Stay'!C:C,B38,'2-3. Travel Costs&Costs of Stay'!L:L) -> 0 | H38: =SUMIF('2-3. Travel Costs&Costs of Stay'!C:C,B38,'2-3. Travel Costs&Costs of Stay'!M:M) -> 0 | I38: =SUMIF('4. Equipment Costs'!C:C,B38,'4. Equipment Costs'!H:H) -> 0 | J38: =SUMIF('5. Subcontracting Costs'!C:C,B38,'5. Subcontracting Costs'!H:H) -> 0 | K38: =SUMIF('B. Special Mob Strand - Student'!B:B,B38,'B. Special Mob Strand - Student'!L:L)+SUMIF('B. Special Mob Strand - Student'!B:B,B38,'B. Special Mob Strand - Student'!M:M)+SUMIF('B. Special Mob Strand - Staff'!B:B,B38,'B. Special Mob Strand - Staff'!L:L)+SUMIF('B. Special Mob Strand - Staff'!B:B,B38,'B. Special Mob Strand - Staff'!M:M) -> 0 | L38: 0
B39: P10 | E39: =IFERROR(IF(D39<>"",VLOOKUP(D39,Rates!$B$5:$H$105,3,FALSE),""),"Country not found") ->  | F39: =SUMIF('1. Staff costs'!C:C,B39,'1. Staff costs'!I:I)+SUMIF('1. Staff costs'!C:C,B39,'1. Staff costs'!M:M)+SUMIF('1. Staff costs'!C:C,B39,'1. Staff costs'!Q:Q)+SUMIF('1. Staff costs'!C:C,B39,'1. Staff costs'!U:U) -> 0 | G39: =SUMIF('2-3. Travel Costs&Costs of Stay'!C:C,B39,'2-3. Travel Costs&Costs of Stay'!L:L) -> 0 | H39: =SUMIF('2-3. Travel Costs&Costs of Stay'!C:C,B39,'2-3. Travel Costs&Costs of Stay'!M:M) -> 0 | I39: =SUMIF('4. Equipment Costs'!C:C,B39,'4. Equipment Costs'!H:H) -> 0 | J39: =SUMIF('5. Subcontracting Costs'!C:C,B39,'5. Subcontracting Costs'!H:H) -> 0 | K39: =SUMIF('B. Special Mob Strand - Student'!B:B,B39,'B. Special Mob Strand - Student'!L:L)+SUMIF('B. Special Mob Strand - Student'!B:B,B39,'B. Special Mob Strand - Student'!M:M)+SUMIF('B. Special Mob Strand - Staff'!B:B,B39,'B. Special Mob Strand - Staff'!L:L)+SUMIF('B. Special Mob Strand - Staff'!B:B,B39,'B. Special Mob Strand - Staff'!M:M) -> 0 | L39: 0
B40: P11 | E40: =IFERROR(IF(D40<>"",VLOOKUP(D40,Rates!$B$5:$H$105,3,FALSE),""),"Country not found") ->  | F40: =SUMIF('1. Staff costs'!C:C,B40,'1. Staff costs'!I:I)+SUMIF('1. Staff costs'!C:C,B40,'1. Staff costs'!M:M)+SUMIF('1. Staff costs'!C:C,B40,'1. Staff costs'!Q:Q)+SUMIF('1. Staff costs'!C:C,B40,'1. Staff costs'!U:U) -> 0 | G40: =SUMIF('2-3. Travel Costs&Costs of Stay'!C:C,B40,'2-3. Travel Costs&Costs of Stay'!L:L) -> 0 | H40: =SUMIF('2-3. Travel Costs&Costs of Stay'!C:C,B40,'2-3. Travel Costs&Costs of Stay'!M:M) -> 0 | I40: =SUMIF('4. Equipment Costs'!C:C,B40,'4. Equipment Costs'!H:H) -> 0 | J40: =SUMIF('5. Subcontracting Costs'!C:C,B40,'5. Subcontracting Costs'!H:H) -> 0 | K40: =SUMIF('B. Special Mob Strand - Student'!B:B,B40,'B. Special Mob Strand - Student'!L:L)+SUMIF('B. Special Mob Strand - Student'!B:B,B40,'B. Special Mob Strand - Student'!M:M)+SUMIF('B. Special Mob Strand - Staff'!B:B,B40,'B. Special Mob Strand - Staff'!L:L)+SUMIF('B. Special Mob Strand - Staff'!B:B,B40,'B. Special Mob Strand - Staff'!M:M) -> 0 | L40: 0
B41: P12 | E41: =IFERROR(IF(D41<>"",VLOOKUP(D41,Rates!$B$5:$H$105,3,FALSE),""),"Country not found") ->  | F41: =SUMIF('1. Staff costs'!C:C,B41,'1. Staff costs'!I:I)+SUMIF('1. Staff costs'!C:C,B41,'1. Staff costs'!M:M)+SUMIF('1. Staff costs'!C:C,B41,'1. Staff costs'!Q:Q)+SUMIF('1. Staff costs'!C:C,B41,'1. Staff costs'!U:U) -> 0 | G41: =SUMIF('2-3. Travel Costs&Costs of Stay'!C:C,B41,'2-3. Travel Costs&Costs of Stay'!L:L) -> 0 | H41: =SUMIF('2-3. Travel Costs&Costs of Stay'!C:C,B41,'2-3. Travel Costs&Costs of Stay'!M:M) -> 0 | I41: =SUMIF('4. Equipment Costs'!C:C,B41,'4. Equipment Costs'!H:H) -> 0 | J41: =SUMIF('5. Subcontracting Costs'!C:C,B41,'5. Subcontracting Costs'!H:H) -> 0 | K41: =SUMIF('B. Special Mob Strand - Student'!B:B,B41,'B. Special Mob Strand - Student'!L:L)+SUMIF('B. Special Mob Strand - Student'!B:B,B41,'B. Special Mob Strand - Student'!M:M)+SUMIF('B. Special Mob Strand - Staff'!B:B,B41,'B. Special Mob Strand - Staff'!L:L)+SUMIF('B. Special Mob Strand - Staff'!B:B,B41,'B. Special Mob Strand - Staff'!M:M) -> 0 | L41: 0
B42: P13 | E42: =IFERROR(IF(D42<>"",VLOOKUP(D42,Rates!$B$5:$H$105,3,FALSE),""),"Country not found") ->  | F42: =SUMIF('1. Staff costs'!C:C,B42,'1. Staff costs'!I:I)+SUMIF('1. Staff costs'!C:C,B42,'1. Staff costs'!M:M)+SUMIF('1. Staff costs'!C:C,B42,'1. Staff costs'!Q:Q)+SUMIF('1. Staff costs'!C:C,B42,'1. Staff costs'!U:U) -> 0 | G42: =SUMIF('2-3. Travel Costs&Costs of Stay'!C:C,B42,'2-3. Travel Costs&Costs of Stay'!L:L) -> 0 | H42: =SUMIF('2-3. Travel Costs&Costs of Stay'!C:C,B42,'2-3. Travel Costs&Costs of Stay'!M:M) -> 0 | I42: =SUMIF('4. Equipment Costs'!C:C,B42,'4. Equipment Costs'!H:H) -> 0 | J42: =SUMIF('5. Subcontracting Costs'!C:C,B42,'5. Subcontracting Costs'!H:H) -> 0 | K42: =SUMIF('B. Special Mob Strand - Student'!B:B,B42,'B. Special Mob Strand - Student'!L:L)+SUMIF('B. Special Mob Strand - Student'!B:B,B42,'B. Special Mob Strand - Student'!M:M)+SUMIF('B. Special Mob Strand - Staff'!B:B,B42,'B. Special Mob Strand - Staff'!L:L)+SUMIF('B. Special Mob Strand - Staff'!B:B,B42,'B. Special Mob Strand - Staff'!M:M) -> 0 | L42: 0
B43: P14 | E43: =IFERROR(IF(D43<>"",VLOOKUP(D43,Rates!$B$5:$H$105,3,FALSE),""),"Country not found") ->  | F43: =SUMIF('1. Staff costs'!C:C,B43,'1. Staff costs'!I:I)+SUMIF('1. Staff costs'!C:C,B43,'1. Staff costs'!M:M)+SUMIF('1. Staff costs'!C:C,B43,'1. Staff costs'!Q:Q)+SUMIF('1. Staff costs'!C:C,B43,'1. Staff costs'!U:U) -> 0 | G43: =SUMIF('2-3. Travel Costs&Costs of Stay'!C:C,B43,'2-3. Travel Costs&Costs of Stay'!L:L) -> 0 | H43: =SUMIF('2-3. Travel Costs&Costs of Stay'!C:C,B43,'2-3. Travel Costs&Costs of Stay'!M:M) -> 0 | I43: =SUMIF('4. Equipment Costs'!C:C,B43,'4. Equipment Costs'!H:H) -> 0 | J43: =SUMIF('5. Subcontracting Costs'!C:C,B43,'5. Subcontracting Costs'!H:H) -> 0 | K43: =SUMIF('B. Special Mob Strand - Student'!B:B,B43,'B. Special Mob Strand - Student'!L:L)+SUMIF('B. Special Mob Strand - Student'!B:B,B43,'B. Special Mob Strand - Student'!M:M)+SUMIF('B. Special Mob Strand - Staff'!B:B,B43,'B. Special Mob Strand - Staff'!L:L)+SUMIF('B. Special Mob Strand - Staff'!B:B,B43,'B. Special Mob Strand - Staff'!M:M) -> 0 | L43: 0
B44: P15 | E44: =IFERROR(IF(D44<>"",VLOOKUP(D44,Rates!$B$5:$H$105,3,FALSE),""),"Country not found") ->  | F44: =SUMIF('1. Staff costs'!C:C,B44,'1. Staff costs'!I:I)+SUMIF('1. Staff costs'!C:C,B44,'1. Staff costs'!M:M)+SUMIF('1. Staff costs'!C:C,B44,'1. Staff costs'!Q:Q)+SUMIF('1. Staff costs'!C:C,B44,'1. Staff costs'!U:U) -> 0 | G44: =SUMIF('2-3. Travel Costs&Costs of Stay'!C:C,B44,'2-3. Travel Costs&Costs of Stay'!L:L) -> 0 | H44: =SUMIF('2-3. Travel Costs&Costs of Stay'!C:C,B44,'2-3. Travel Costs&Costs of Stay'!M:M) -> 0 | I44: =SUMIF('4. Equipment Costs'!C:C,B44,'4. Equipment Costs'!H:H) -> 0 | J44: =SUMIF('5. Subcontracting Costs'!C:C,B44,'5. Subcontracting Costs'!H:H) -> 0 | K44: =SUMIF('B. Special Mob Strand - Student'!B:B,B44,'B. Special Mob Strand - Student'!L:L)+SUMIF('B. Special Mob Strand - Student'!B:B,B44,'B. Special Mob Strand - Student'!M:M)+SUMIF('B. Special Mob Strand - Staff'!B:B,B44,'B. Special Mob Strand - Staff'!L:L)+SUMIF('B. Special Mob Strand - Staff'!B:B,B44,'B. Special Mob Strand - Staff'!M:M) -> 0 | L44: 0
B45: P16 | E45: =IFERROR(IF(D45<>"",VLOOKUP(D45,Rates!$B$5:$H$105,3,FALSE),""),"Country not found") ->  | F45: =SUMIF('1. Staff costs'!C:C,B45,'1. Staff costs'!I:I)+SUMIF('1. Staff costs'!C:C,B45,'1. Staff costs'!M:M)+SUMIF('1. Staff costs'!C:C,B45,'1. Staff costs'!Q:Q)+SUMIF('1. Staff costs'!C:C,B45,'1. Staff costs'!U:U) -> 0 | G45: =SUMIF('2-3. Travel Costs&Costs of Stay'!C:C,B45,'2-3. Travel Costs&Costs of Stay'!L:L) -> 0 | H45: =SUMIF('2-3. Travel Costs&Costs of Stay'!C:C,B45,'2-3. Travel Costs&Costs of Stay'!M:M) -> 0 | I45: =SUMIF('4. Equipment Costs'!C:C,B45,'4. Equipment Costs'!H:H) -> 0 | J45: =SUMIF('5. Subcontracting Costs'!C:C,B45,'5. Subcontracting Costs'!H:H) -> 0 | K45: =SUMIF('B. Special Mob Strand - Student'!B:B,B45,'B. Special Mob Strand - Student'!L:L)+SUMIF('B. Special Mob Strand - Student'!B:B,B45,'B. Special Mob Strand - Student'!M:M)+SUMIF('B. Special Mob Strand - Staff'!B:B,B45,'B. Special Mob Strand - Staff'!L:L)+SUMIF('B. Special Mob Strand - Staff'!B:B,B45,'B. Special Mob Strand - Staff'!M:M) -> 0 | L45: 0
B46: P17 | E46: =IFERROR(IF(D46<>"",VLOOKUP(D46,Rates!$B$5:$H$105,3,FALSE),""),"Country not found") ->  | F46: =SUMIF('1. Staff costs'!C:C,B46,'1. Staff costs'!I:I)+SUMIF('1. Staff costs'!C:C,B46,'1. Staff costs'!M:M)+SUMIF('1. Staff costs'!C:C,B46,'1. Staff costs'!Q:Q)+SUMIF('1. Staff costs'!C:C,B46,'1. Staff costs'!U:U) -> 0 | G46: =SUMIF('2-3. Travel Costs&Costs of Stay'!C:C,B46,'2-3. Travel Costs&Costs of Stay'!L:L) -> 0 | H46: =SUMIF('2-3. Travel Costs&Costs of Stay'!C:C,B46,'2-3. Travel Costs&Costs of Stay'!M:M) -> 0 | I46: =SUMIF('4. Equipment Costs'!C:C,B46,'4. Equipment Costs'!H:H) -> 0 | J46: =SUMIF('5. Subcontracting Costs'!C:C,B46,'5. Subcontracting Costs'!H:H) -> 0 | K46: =SUMIF('B. Special Mob Strand - Student'!B:B,B46,'B. Special Mob Strand - Student'!L:L)+SUMIF('B. Special Mob Strand - Student'!B:B,B46,'B. Special Mob Strand - Student'!M:M)+SUMIF('B. Special Mob Strand - Staff'!B:B,B46,'B. Special Mob Strand - Staff'!L:L)+SUMIF('B. Special Mob Strand - Staff'!B:B,B46,'B. Special Mob Strand - Staff'!M:M) -> 0 | L46: 0
B47: P18 | E47: =IFERROR(IF(D47<>"",VLOOKUP(D47,Rates!$B$5:$H$105,3,FALSE),""),"Country not found") ->  | F47: =SUMIF('1. Staff costs'!C:C,B47,'1. Staff costs'!I:I)+SUMIF('1. Staff costs'!C:C,B47,'1. Staff costs'!M:M)+SUMIF('1. Staff costs'!C:C,B47,'1. Staff costs'!Q:Q)+SUMIF('1. Staff costs'!C:C,B47,'1. Staff costs'!U:U) -> 0 | G47: =SUMIF('2-3. Travel Costs&Costs of Stay'!C:C,B47,'2-3. Travel Costs&Costs of Stay'!L:L) -> 0 | H47: =SUMIF('2-3. Travel Costs&Costs of Stay'!C:C,B47,'2-3. Travel Costs&Costs of Stay'!M:M) -> 0 | I47: =SUMIF('4. Equipment Costs'!C:C,B47,'4. Equipment Costs'!H:H) -> 0 | J47: =SUMIF('5. Subcontracting Costs'!C:C,B47,'5. Subcontracting Costs'!H:H) -> 0 | K47: =SUMIF('B. Special Mob Strand - Student'!B:B,B47,'B. Special Mob Strand - Student'!L:L)+SUMIF('B. Special Mob Strand - Student'!B:B,B47,'B. Special Mob Strand - Student'!M:M)+SUMIF('B. Special Mob Strand - Staff'!B:B,B47,'B. Special Mob Strand - Staff'!L:L)+SUMIF('B. Special Mob Strand - Staff'!B:B,B47,'B. Special Mob Strand - Staff'!M:M) -> 0 | L47: 0
B48: P19 | E48: =IFERROR(IF(D48<>"",VLOOKUP(D48,Rates!$B$5:$H$105,3,FALSE),""),"Country not found") ->  | F48: =SUMIF('1. Staff costs'!C:C,B48,'1. Staff costs'!I:I)+SUMIF('1. Staff costs'!C:C,B48,'1. Staff costs'!M:M)+SUMIF('1. Staff costs'!C:C,B48,'1. Staff costs'!Q:Q)+SUMIF('1. Staff costs'!C:C,B48,'1. Staff costs'!U:U) -> 0 | G48: =SUMIF('2-3. Travel Costs&Costs of Stay'!C:C,B48,'2-3. Travel Costs&Costs of Stay'!L:L) -> 0 | H48: =SUMIF('2-3. Travel Costs&Costs of Stay'!C:C,B48,'2-3. Travel Costs&Costs of Stay'!M:M) -> 0 | I48: =SUMIF('4. Equipment Costs'!C:C,B48,'4. Equipment Costs'!H:H) -> 0 | J48: =SUMIF('5. Subcontracting Costs'!C:C,B48,'5. Subcontracting Costs'!H:H) -> 0 | K48: =SUMIF('B. Special Mob Strand - Student'!B:B,B48,'B. Special Mob Strand - Student'!L:L)+SUMIF('B. Special Mob Strand - Student'!B:B,B48,'B. Special Mob Strand - Student'!M:M)+SUMIF('B. Special Mob Strand - Staff'!B:B,B48,'B. Special Mob Strand - Staff'!L:L)+SUMIF('B. Special Mob Strand - Staff'!B:B,B48,'B. Special Mob Strand - Staff'!M:M) -> 0 | L48: 0
B49: P20 | E49: =IFERROR(IF(D49<>"",VLOOKUP(D49,Rates!$B$5:$H$105,3,FALSE),""),"Country not found") ->  | F49: =SUMIF('1. Staff costs'!C:C,B49,'1. Staff costs'!I:I)+SUMIF('1. Staff costs'!C:C,B49,'1. Staff costs'!M:M)+SUMIF('1. Staff costs'!C:C,B49,'1. Staff costs'!Q:Q)+SUMIF('1. Staff costs'!C:C,B49,'1. Staff costs'!U:U) -> 0 | G49: =SUMIF('2-3. Travel Costs&Costs of Stay'!C:C,B49,'2-3. Travel Costs&Costs of Stay'!L:L) -> 0 | H49: =SUMIF('2-3. Travel Costs&Costs of Stay'!C:C,B49,'2-3. Travel Costs&Costs of Stay'!M:M) -> 0 | I49: =SUMIF('4. Equipment Costs'!C:C,B49,'4. Equipment Costs'!H:H) -> 0 | J49: =SUMIF('5. Subcontracting Costs'!C:C,B49,'5. Subcontracting Costs'!H:H) -> 0 | K49: =SUMIF('B. Special Mob Strand - Student'!B:B,B49,'B. Special Mob Strand - Student'!L:L)+SUMIF('B. Special Mob Strand - Student'!B:B,B49,'B. Special Mob Strand - Student'!M:M)+SUMIF('B. Special Mob Strand - Staff'!B:B,B49,'B. Special Mob Strand - Staff'!L:L)+SUMIF('B. Special Mob Strand - Staff'!B:B,B49,'B. Special Mob Strand - Staff'!M:M) -> 0 | L49: 0
B50: P21 | E50: =IFERROR(IF(D50<>"",VLOOKUP(D50,Rates!$B$5:$H$105,3,FALSE),""),"Country not found") ->  | F50: =SUMIF('1. Staff costs'!C:C,B50,'1. Staff costs'!I:I)+SUMIF('1. Staff costs'!C:C,B50,'1. Staff costs'!M:M)+SUMIF('1. Staff costs'!C:C,B50,'1. Staff costs'!Q:Q)+SUMIF('1. Staff costs'!C:C,B50,'1. Staff costs'!U:U) -> 0 | G50: =SUMIF('2-3. Travel Costs&Costs of Stay'!C:C,B50,'2-3. Travel Costs&Costs of Stay'!L:L) -> 0 | H50: =SUMIF('2-3. Travel Costs&Costs of Stay'!C:C,B50,'2-3. Travel Costs&Costs of Stay'!M:M) -> 0 | I50: =SUMIF('4. Equipment Costs'!C:C,B50,'4. Equipment Costs'!H:H) -> 0 | J50: =SUMIF('5. Subcontracting Costs'!C:C,B50,'5. Subcontracting Costs'!H:H) -> 0 | K50: =SUMIF('B. Special Mob Strand - Student'!B:B,B50,'B. Special Mob Strand - Student'!L:L)+SUMIF('B. Special Mob Strand - Student'!B:B,B50,'B. Special Mob Strand - Student'!M:M)+SUMIF('B. Special Mob Strand - Staff'!B:B,B50,'B. Special Mob Strand - Staff'!L:L)+SUMIF('B. Special Mob Strand - Staff'!B:B,B50,'B. Special Mob Strand - Staff'!M:M) -> 0 | L50: 0
B51: P22 | E51: =IFERROR(IF(D51<>"",VLOOKUP(D51,Rates!$B$5:$H$105,3,FALSE),""),"Country not found") ->  | F51: =SUMIF('1. Staff costs'!C:C,B51,'1. Staff costs'!I:I)+SUMIF('1. Staff costs'!C:C,B51,'1. Staff costs'!M:M)+SUMIF('1. Staff costs'!C:C,B51,'1. Staff costs'!Q:Q)+SUMIF('1. Staff costs'!C:C,B51,'1. Staff costs'!U:U) -> 0 | G51: =SUMIF('2-3. Travel Costs&Costs of Stay'!C:C,B51,'2-3. Travel Costs&Costs of Stay'!L:L) -> 0 | H51: =SUMIF('2-3. Travel Costs&Costs of Stay'!C:C,B51,'2-3. Travel Costs&Costs of Stay'!M:M) -> 0 | I51: =SUMIF('4. Equipment Costs'!C:C,B51,'4. Equipment Costs'!H:H) -> 0 | J51: =SUMIF('5. Subcontracting Costs'!C:C,B51,'5. Subcontracting Costs'!H:H) -> 0 | K51: =SUMIF('B. Special Mob Strand - Student'!B:B,B51,'B. Special Mob Strand - Student'!L:L)+SUMIF('B. Special Mob Strand - Student'!B:B,B51,'B. Special Mob Strand - Student'!M:M)+SUMIF('B. Special Mob Strand - Staff'!B:B,B51,'B. Special Mob Strand - Staff'!L:L)+SUMIF('B. Special Mob Strand - Staff'!B:B,B51,'B. Special Mob Strand - Staff'!M:M) -> 0 | L51: 0
B52: P23 | E52: =IFERROR(IF(D52<>"",VLOOKUP(D52,Rates!$B$5:$H$105,3,FALSE),""),"Country not found") ->  | F52: =SUMIF('1. Staff costs'!C:C,B52,'1. Staff costs'!I:I)+SUMIF('1. Staff costs'!C:C,B52,'1. Staff costs'!M:M)+SUMIF('1. Staff costs'!C:C,B52,'1. Staff costs'!Q:Q)+SUMIF('1. Staff costs'!C:C,B52,'1. Staff costs'!U:U) -> 0 | G52: =SUMIF('2-3. Travel Costs&Costs of Stay'!C:C,B52,'2-3. Travel Costs&Costs of Stay'!L:L) -> 0 | H52: =SUMIF('2-3. Travel Costs&Costs of Stay'!C:C,B52,'2-3. Travel Costs&Costs of Stay'!M:M) -> 0 | I52: =SUMIF('4. Equipment Costs'!C:C,B52,'4. Equipment Costs'!H:H) -> 0 | J52: =SUMIF('5. Subcontracting Costs'!C:C,B52,'5. Subcontracting Costs'!H:H) -> 0 | K52: =SUMIF('B. Special Mob Strand - Student'!B:B,B52,'B. Special Mob Strand - Student'!L:L)+SUMIF('B. Special Mob Strand - Student'!B:B,B52,'B. Special Mob Strand - Student'!M:M)+SUMIF('B. Special Mob Strand - Staff'!B:B,B52,'B. Special Mob Strand - Staff'!L:L)+SUMIF('B. Special Mob Strand - Staff'!B:B,B52,'B. Special Mob Strand - Staff'!M:M) -> 0 | L52: 0
B53: P24 | E53: =IFERROR(IF(D53<>"",VLOOKUP(D53,Rates!$B$5:$H$105,3,FALSE),""),"Country not found") ->  | F53: =SUMIF('1. Staff costs'!C:C,B53,'1. Staff costs'!I:I)+SUMIF('1. Staff costs'!C:C,B53,'1. Staff costs'!M:M)+SUMIF('1. Staff costs'!C:C,B53,'1. Staff costs'!Q:Q)+SUMIF('1. Staff costs'!C:C,B53,'1. Staff costs'!U:U) -> 0 | G53: =SUMIF('2-3. Travel Costs&Costs of Stay'!C:C,B53,'2-3. Travel Costs&Costs of Stay'!L:L) -> 0 | H53: =SUMIF('2-3. Travel Costs&Costs of Stay'!C:C,B53,'2-3. Travel Costs&Costs of Stay'!M:M) -> 0 | I53: =SUMIF('4. Equipment Costs'!C:C,B53,'4. Equipment Costs'!H:H) -> 0 | J53: =SUMIF('5. Subcontracting Costs'!C:C,B53,'5. Subcontracting Costs'!H:H) -> 0 | K53: =SUMIF('B. Special Mob Strand - Student'!B:B,B53,'B. Special Mob Strand - Student'!L:L)+SUMIF('B. Special Mob Strand - Student'!B:B,B53,'B. Special Mob Strand - Student'!M:M)+SUMIF('B. Special Mob Strand - Staff'!B:B,B53,'B. Special Mob Strand - Staff'!L:L)+SUMIF('B. Special Mob Strand - Staff'!B:B,B53,'B. Special Mob Strand - Staff'!M:M) -> 0 | L53: 0
B54: P25 | E54: =IFERROR(IF(D54<>"",VLOOKUP(D54,Rates!$B$5:$H$105,3,FALSE),""),"Country not found") ->  | F54: =SUMIF('1. Staff costs'!C:C,B54,'1. Staff costs'!I:I)+SUMIF('1. Staff costs'!C:C,B54,'1. Staff costs'!M:M)+SUMIF('1. Staff costs'!C:C,B54,'1. Staff costs'!Q:Q)+SUMIF('1. Staff costs'!C:C,B54,'1. Staff costs'!U:U) -> 0 | G54: =SUMIF('2-3. Travel Costs&Costs of Stay'!C:C,B54,'2-3. Travel Costs&Costs of Stay'!L:L) -> 0 | H54: =SUMIF('2-3. Travel Costs&Costs of Stay'!C:C,B54,'2-3. Travel Costs&Costs of Stay'!M:M) -> 0 | I54: =SUMIF('4. Equipment Costs'!C:C,B54,'4. Equipment Costs'!H:H) -> 0 | J54: =SUMIF('5. Subcontracting Costs'!C:C,B54,'5. Subcontracting Costs'!H:H) -> 0 | K54: =SUMIF('B. Special Mob Strand - Student'!B:B,B54,'B. Special Mob Strand - Student'!L:L)+SUMIF('B. Special Mob Strand - Student'!B:B,B54,'B. Special Mob Strand - Student'!M:M)+SUMIF('B. Special Mob Strand - Staff'!B:B,B54,'B. Special Mob Strand - Staff'!L:L)+SUMIF('B. Special Mob Strand - Staff'!B:B,B54,'B. Special Mob Strand - Staff'!M:M) -> 0 | L54: 0
B55: P26 | E55: =IFERROR(IF(D55<>"",VLOOKUP(D55,Rates!$B$5:$H$105,3,FALSE),""),"Country not found") ->  | F55: =SUMIF('1. Staff costs'!C:C,B55,'1. Staff costs'!I:I)+SUMIF('1. Staff costs'!C:C,B55,'1. Staff costs'!M:M)+SUMIF('1. Staff costs'!C:C,B55,'1. Staff costs'!Q:Q)+SUMIF('1. Staff costs'!C:C,B55,'1. Staff costs'!U:U) -> 0 | G55: =SUMIF('2-3. Travel Costs&Costs of Stay'!C:C,B55,'2-3. Travel Costs&Costs of Stay'!L:L) -> 0 | H55: =SUMIF('2-3. Travel Costs&Costs of Stay'!C:C,B55,'2-3. Travel Costs&Costs of Stay'!M:M) -> 0 | I55: =SUMIF('4. Equipment Costs'!C:C,B55,'4. Equipment Costs'!H:H) -> 0 | J55: =SUMIF('5. Subcontracting Costs'!C:C,B55,'5. Subcontracting Costs'!H:H) -> 0 | K55: =SUMIF('B. Special Mob Strand - Student'!B:B,B55,'B. Special Mob Strand - Student'!L:L)+SUMIF('B. Special Mob Strand - Student'!B:B,B55,'B. Special Mob Strand - Student'!M:M)+SUMIF('B. Special Mob Strand - Staff'!B:B,B55,'B. Special Mob Strand - Staff'!L:L)+SUMIF('B. Special Mob Strand - Staff'!B:B,B55,'B. Special Mob Strand - Staff'!M:M) -> 0 | L55: 0
B56: P27 | E56: =IFERROR(IF(D56<>"",VLOOKUP(D56,Rates!$B$5:$H$105,3,FALSE),""),"Country not found") ->  | F56: =SUMIF('1. Staff costs'!C:C,B56,'1. Staff costs'!I:I)+SUMIF('1. Staff costs'!C:C,B56,'1. Staff costs'!M:M)+SUMIF('1. Staff costs'!C:C,B56,'1. Staff costs'!Q:Q)+SUMIF('1. Staff costs'!C:C,B56,'1. Staff costs'!U:U) -> 0 | G56: =SUMIF('2-3. Travel Costs&Costs of Stay'!C:C,B56,'2-3. Travel Costs&Costs of Stay'!L:L) -> 0 | H56: =SUMIF('2-3. Travel Costs&Costs of Stay'!C:C,B56,'2-3. Travel Costs&Costs of Stay'!M:M) -> 0 | I56: =SUMIF('4. Equipment Costs'!C:C,B56,'4. Equipment Costs'!H:H) -> 0 | J56: =SUMIF('5. Subcontracting Costs'!C:C,B56,'5. Subcontracting Costs'!H:H) -> 0 | K56: =SUMIF('B. Special Mob Strand - Student'!B:B,B56,'B. Special Mob Strand - Student'!L:L)+SUMIF('B. Special Mob Strand - Student'!B:B,B56,'B. Special Mob Strand - Student'!M:M)+SUMIF('B. Special Mob Strand - Staff'!B:B,B56,'B. Special Mob Strand - Staff'!L:L)+SUMIF('B. Special Mob Strand - Staff'!B:B,B56,'B. Special Mob Strand - Staff'!M:M) -> 0 | L56: 0
B57: P28 | E57: =IFERROR(IF(D57<>"",VLOOKUP(D57,Rates!$B$5:$H$105,3,FALSE),""),"Country not found") ->  | F57: =SUMIF('1. Staff costs'!C:C,B57,'1. Staff costs'!I:I)+SUMIF('1. Staff costs'!C:C,B57,'1. Staff costs'!M:M)+SUMIF('1. Staff costs'!C:C,B57,'1. Staff costs'!Q:Q)+SUMIF('1. Staff costs'!C:C,B57,'1. Staff costs'!U:U) -> 0 | G57: =SUMIF('2-3. Travel Costs&Costs of Stay'!C:C,B57,'2-3. Travel Costs&Costs of Stay'!L:L) -> 0 | H57: =SUMIF('2-3. Travel Costs&Costs of Stay'!C:C,B57,'2-3. Travel Costs&Costs of Stay'!M:M) -> 0 | I57: =SUMIF('4. Equipment Costs'!C:C,B57,'4. Equipment Costs'!H:H) -> 0 | J57: =SUMIF('5. Subcontracting Costs'!C:C,B57,'5. Subcontracting Costs'!H:H) -> 0 | K57: =SUMIF('B. Special Mob Strand - Student'!B:B,B57,'B. Special Mob Strand - Student'!L:L)+SUMIF('B. Special Mob Strand - Student'!B:B,B57,'B. Special Mob Strand - Student'!M:M)+SUMIF('B. Special Mob Strand - Staff'!B:B,B57,'B. Special Mob Strand - Staff'!L:L)+SUMIF('B. Special Mob Strand - Staff'!B:B,B57,'B. Special Mob Strand - Staff'!M:M) -> 0 | L57: 0
B58: P29 | E58: =IFERROR(IF(D58<>"",VLOOKUP(D58,Rates!$B$5:$H$105,3,FALSE),""),"Country not found") ->  | F58: =SUMIF('1. Staff costs'!C:C,B58,'1. Staff costs'!I:I)+SUMIF('1. Staff costs'!C:C,B58,'1. Staff costs'!M:M)+SUMIF('1. Staff costs'!C:C,B58,'1. Staff costs'!Q:Q)+SUMIF('1. Staff costs'!C:C,B58,'1. Staff costs'!U:U) -> 0 | G58: =SUMIF('2-3. Travel Costs&Costs of Stay'!C:C,B58,'2-3. Travel Costs&Costs of Stay'!L:L) -> 0 | H58: =SUMIF('2-3. Travel Costs&Costs of Stay'!C:C,B58,'2-3. Travel Costs&Costs of Stay'!M:M) -> 0 | I58: =SUMIF('4. Equipment Costs'!C:C,B58,'4. Equipment Costs'!H:H) -> 0 | J58: =SUMIF('5. Subcontracting Costs'!C:C,B58,'5. Subcontracting Costs'!H:H) -> 0 | K58: =SUMIF('B. Special Mob Strand - Student'!B:B,B58,'B. Special Mob Strand - Student'!L:L)+SUMIF('B. Special Mob Strand - Student'!B:B,B58,'B. Special Mob Strand - Student'!M:M)+SUMIF('B. Special Mob Strand - Staff'!B:B,B58,'B. Special Mob Strand - Staff'!L:L)+SUMIF('B. Special Mob Strand - Staff'!B:B,B58,'B. Special Mob Strand - Staff'!M:M) -> 0 | L58: 0
B59: P30 | E59: =IFERROR(IF(D59<>"",VLOOKUP(D59,Rates!$B$5:$H$105,3,FALSE),""),"Country not found") ->  | F59: =SUMIF('1. Staff costs'!C:C,B59,'1. Staff costs'!I:I)+SUMIF('1. Staff costs'!C:C,B59,'1. Staff costs'!M:M)+SUMIF('1. Staff costs'!C:C,B59,'1. Staff costs'!Q:Q)+SUMIF('1. Staff costs'!C:C,B59,'1. Staff costs'!U:U) -> 0 | G59: =SUMIF('2-3. Travel Costs&Costs of Stay'!C:C,B59,'2-3. Travel Costs&Costs of Stay'!L:L) -> 0 | H59: =SUMIF('2-3. Travel Costs&Costs of Stay'!C:C,B59,'2-3. Travel Costs&Costs of Stay'!M:M) -> 0 | I59: =SUMIF('4. Equipment Costs'!C:C,B59,'4. Equipment Costs'!H:H) -> 0 | J59: =SUMIF('5. Subcontracting Costs'!C:C,B59,'5. Subcontracting Costs'!H:H) -> 0 | K59: =SUMIF('B. Special Mob Strand - Student'!B:B,B59,'B. Special Mob Strand - Student'!L:L)+SUMIF('B. Special Mob Strand - Student'!B:B,B59,'B. Special Mob Strand - Student'!M:M)+SUMIF('B. Special Mob Strand - Staff'!B:B,B59,'B. Special Mob Strand - Staff'!L:L)+SUMIF('B. Special Mob Strand - Staff'!B:B,B59,'B. Special Mob Strand - Staff'!M:M) -> 0 | L59: 0
B60: P31 | E60: =IFERROR(IF(D60<>"",VLOOKUP(D60,Rates!$B$5:$H$105,3,FALSE),""),"Country not found") ->  | F60: =SUMIF('1. Staff costs'!C:C,B60,'1. Staff costs'!I:I)+SUMIF('1. Staff costs'!C:C,B60,'1. Staff costs'!M:M)+SUMIF('1. Staff costs'!C:C,B60,'1. Staff costs'!Q:Q)+SUMIF('1. Staff costs'!C:C,B60,'1. Staff costs'!U:U) -> 0 | G60: =SUMIF('2-3. Travel Costs&Costs of Stay'!C:C,B60,'2-3. Travel Costs&Costs of Stay'!L:L) -> 0 | H60: =SUMIF('2-3. Travel Costs&Costs of Stay'!C:C,B60,'2-3. Travel Costs&Costs of Stay'!M:M) -> 0 | I60: =SUMIF('4. Equipment Costs'!C:C,B60,'4. Equipment Costs'!H:H) -> 0 | J60: =SUMIF('5. Subcontracting Costs'!C:C,B60,'5. Subcontracting Costs'!H:H) -> 0 | K60: =SUMIF('B. Special Mob Strand - Student'!B:B,B60,'B. Special Mob Strand - Student'!L:L)+SUMIF('B. Special Mob Strand - Student'!B:B,B60,'B. Special Mob Strand - Student'!M:M)+SUMIF('B. Special Mob Strand - Staff'!B:B,B60,'B. Special Mob Strand - Staff'!L:L)+SUMIF('B. Special Mob Strand - Staff'!B:B,B60,'B. Special Mob Strand - Staff'!M:M) -> 0 | L60: 0
B61: P32 | E61: =IFERROR(IF(D61<>"",VLOOKUP(D61,Rates!$B$5:$H$105,3,FALSE),""),"Country not found") ->  | F61: =SUMIF('1. Staff costs'!C:C,B61,'1. Staff costs'!I:I)+SUMIF('1. Staff costs'!C:C,B61,'1. Staff costs'!M:M)+SUMIF('1. Staff costs'!C:C,B61,'1. Staff costs'!Q:Q)+SUMIF('1. Staff costs'!C:C,B61,'1. Staff costs'!U:U) -> 0 | G61: =SUMIF('2-3. Travel Costs&Costs of Stay'!C:C,B61,'2-3. Travel Costs&Costs of Stay'!L:L) -> 0 | H61: =SUMIF('2-3. Travel Costs&Costs of Stay'!C:C,B61,'2-3. Travel Costs&Costs of Stay'!M:M) -> 0 | I61: =SUMIF('4. Equipment Costs'!C:C,B61,'4. Equipment Costs'!H:H) -> 0 | J61: =SUMIF('5. Subcontracting Costs'!C:C,B61,'5. Subcontracting Costs'!H:H) -> 0 | K61: =SUMIF('B. Special Mob Strand - Student'!B:B,B61,'B. Special Mob Strand - Student'!L:L)+SUMIF('B. Special Mob Strand - Student'!B:B,B61,'B. Special Mob Strand - Student'!M:M)+SUMIF('B. Special Mob Strand - Staff'!B:B,B61,'B. Special Mob Strand - Staff'!L:L)+SUMIF('B. Special Mob Strand - Staff'!B:B,B61,'B. Special Mob Strand - Staff'!M:M) -> 0 | L61: 0
B62: P33 | E62: =IFERROR(IF(D62<>"",VLOOKUP(D62,Rates!$B$5:$H$105,3,FALSE),""),"Country not found") ->  | F62: =SUMIF('1. Staff costs'!C:C,B62,'1. Staff costs'!I:I)+SUMIF('1. Staff costs'!C:C,B62,'1. Staff costs'!M:M)+SUMIF('1. Staff costs'!C:C,B62,'1. Staff costs'!Q:Q)+SUMIF('1. Staff costs'!C:C,B62,'1. Staff costs'!U:U) -> 0 | G62: =SUMIF('2-3. Travel Costs&Costs of Stay'!C:C,B62,'2-3. Travel Costs&Costs of Stay'!L:L) -> 0 | H62: =SUMIF('2-3. Travel Costs&Costs of Stay'!C:C,B62,'2-3. Travel Costs&Costs of Stay'!M:M) -> 0 | I62: =SUMIF('4. Equipment Costs'!C:C,B62,'4. Equipment Costs'!H:H) -> 0 | J62: =SUMIF('5. Subcontracting Costs'!C:C,B62,'5. Subcontracting Costs'!H:H) -> 0 | K62: =SUMIF('B. Special Mob Strand - Student'!B:B,B62,'B. Special Mob Strand - Student'!L:L)+SUMIF('B. Special Mob Strand - Student'!B:B,B62,'B. Special Mob Strand - Student'!M:M)+SUMIF('B. Special Mob Strand - Staff'!B:B,B62,'B. Special Mob Strand - Staff'!L:L)+SUMIF('B. Special Mob Strand - Staff'!B:B,B62,'B. Special Mob Strand - Staff'!M:M) -> 0 | L62: 0
B63: P34 | E63: =IFERROR(IF(D63<>"",VLOOKUP(D63,Rates!$B$5:$H$105,3,FALSE),""),"Country not found") ->  | F63: =SUMIF('1. Staff costs'!C:C,B63,'1. Staff costs'!I:I)+SUMIF('1. Staff costs'!C:C,B63,'1. Staff costs'!M:M)+SUMIF('1. Staff costs'!C:C,B63,'1. Staff costs'!Q:Q)+SUMIF('1. Staff costs'!C:C,B63,'1. Staff costs'!U:U) -> 0 | G63: =SUMIF('2-3. Travel Costs&Costs of Stay'!C:C,B63,'2-3. Travel Costs&Costs of Stay'!L:L) -> 0 | H63: =SUMIF('2-3. Travel Costs&Costs of Stay'!C:C,B63,'2-3. Travel Costs&Costs of Stay'!M:M) -> 0 | I63: =SUMIF('4. Equipment Costs'!C:C,B63,'4. Equipment Costs'!H:H) -> 0 | J63: =SUMIF('5. Subcontracting Costs'!C:C,B63,'5. Subcontracting Costs'!H:H) -> 0 | K63: =SUMIF('B. Special Mob Strand - Student'!B:B,B63,'B. Special Mob Strand - Student'!L:L)+SUMIF('B. Special Mob Strand - Student'!B:B,B63,'B. Special Mob Strand - Student'!M:M)+SUMIF('B. Special Mob Strand - Staff'!B:B,B63,'B. Special Mob Strand - Staff'!L:L)+SUMIF('B. Special Mob Strand - Staff'!B:B,B63,'B. Special Mob Strand - Staff'!M:M) -> 0 | L63: 0
B64: P35 | E64: =IFERROR(IF(D64<>"",VLOOKUP(D64,Rates!$B$5:$H$105,3,FALSE),""),"Country not found") ->  | F64: =SUMIF('1. Staff costs'!C:C,B64,'1. Staff costs'!I:I)+SUMIF('1. Staff costs'!C:C,B64,'1. Staff costs'!M:M)+SUMIF('1. Staff costs'!C:C,B64,'1. Staff costs'!Q:Q)+SUMIF('1. Staff costs'!C:C,B64,'1. Staff costs'!U:U) -> 0 | G64: =SUMIF('2-3. Travel Costs&Costs of Stay'!C:C,B64,'2-3. Travel Costs&Costs of Stay'!L:L) -> 0 | H64: =SUMIF('2-3. Travel Costs&Costs of Stay'!C:C,B64,'2-3. Travel Costs&Costs of Stay'!M:M) -> 0 | I64: =SUMIF('4. Equipment Costs'!C:C,B64,'4. Equipment Costs'!H:H) -> 0 | J64: =SUMIF('5. Subcontracting Costs'!C:C,B64,'5. Subcontracting Costs'!H:H) -> 0 | K64: =SUMIF('B. Special Mob Strand - Student'!B:B,B64,'B. Special Mob Strand - Student'!L:L)+SUMIF('B. Special Mob Strand - Student'!B:B,B64,'B. Special Mob Strand - Student'!M:M)+SUMIF('B. Special Mob Strand - Staff'!B:B,B64,'B. Special Mob Strand - Staff'!L:L)+SUMIF('B. Special Mob Strand - Staff'!B:B,B64,'B. Special Mob Strand - Staff'!M:M) -> 0 | L64: 0
B65: P36 | E65: =IFERROR(IF(D65<>"",VLOOKUP(D65,Rates!$B$5:$H$105,3,FALSE),""),"Country not found") ->  | F65: =SUMIF('1. Staff costs'!C:C,B65,'1. Staff costs'!I:I)+SUMIF('1. Staff costs'!C:C,B65,'1. Staff costs'!M:M)+SUMIF('1. Staff costs'!C:C,B65,'1. Staff costs'!Q:Q)+SUMIF('1. Staff costs'!C:C,B65,'1. Staff costs'!U:U) -> 0 | G65: =SUMIF('2-3. Travel Costs&Costs of Stay'!C:C,B65,'2-3. Travel Costs&Costs of Stay'!L:L) -> 0 | H65: =SUMIF('2-3. Travel Costs&Costs of Stay'!C:C,B65,'2-3. Travel Costs&Costs of Stay'!M:M) -> 0 | I65: =SUMIF('4. Equipment Costs'!C:C,B65,'4. Equipment Costs'!H:H) -> 0 | J65: =SUMIF('5. Subcontracting Costs'!C:C,B65,'5. Subcontracting Costs'!H:H) -> 0 | K65: =SUMIF('B. Special Mob Strand - Student'!B:B,B65,'B. Special Mob Strand - Student'!L:L)+SUMIF('B. Special Mob Strand - Student'!B:B,B65,'B. Special Mob Strand - Student'!M:M)+SUMIF('B. Special Mob Strand - Staff'!B:B,B65,'B. Special Mob Strand - Staff'!L:L)+SUMIF('B. Special Mob Strand - Staff'!B:B,B65,'B. Special Mob Strand - Staff'!M:M) -> 0 | L65: 0
B66: P37 | E66: =IFERROR(IF(D66<>"",VLOOKUP(D66,Rates!$B$5:$H$105,3,FALSE),""),"Country not found") ->  | F66: =SUMIF('1. Staff costs'!C:C,B66,'1. Staff costs'!I:I)+SUMIF('1. Staff costs'!C:C,B66,'1. Staff costs'!M:M)+SUMIF('1. Staff costs'!C:C,B66,'1. Staff costs'!Q:Q)+SUMIF('1. Staff costs'!C:C,B66,'1. Staff costs'!U:U) -> 0 | G66: =SUMIF('2-3. Travel Costs&Costs of Stay'!C:C,B66,'2-3. Travel Costs&Costs of Stay'!L:L) -> 0 | H66: =SUMIF('2-3. Travel Costs&Costs of Stay'!C:C,B66,'2-3. Travel Costs&Costs of Stay'!M:M) -> 0 | I66: =SUMIF('4. Equipment Costs'!C:C,B66,'4. Equipment Costs'!H:H) -> 0 | J66: =SUMIF('5. Subcontracting Costs'!C:C,B66,'5. Subcontracting Costs'!H:H) -> 0 | K66: =SUMIF('B. Special Mob Strand - Student'!B:B,B66,'B. Special Mob Strand - Student'!L:L)+SUMIF('B. Special Mob Strand - Student'!B:B,B66,'B. Special Mob Strand - Student'!M:M)+SUMIF('B. Special Mob Strand - Staff'!B:B,B66,'B. Special Mob Strand - Staff'!L:L)+SUMIF('B. Special Mob Strand - Staff'!B:B,B66,'B. Special Mob Strand - Staff'!M:M) -> 0 | L66: 0
B67: P38 | E67: =IFERROR(IF(D67<>"",VLOOKUP(D67,Rates!$B$5:$H$105,3,FALSE),""),"Country not found") ->  | F67: =SUMIF('1. Staff costs'!C:C,B67,'1. Staff costs'!I:I)+SUMIF('1. Staff costs'!C:C,B67,'1. Staff costs'!M:M)+SUMIF('1. Staff costs'!C:C,B67,'1. Staff costs'!Q:Q)+SUMIF('1. Staff costs'!C:C,B67,'1. Staff costs'!U:U) -> 0 | G67: =SUMIF('2-3. Travel Costs&Costs of Stay'!C:C,B67,'2-3. Travel Costs&Costs of Stay'!L:L) -> 0 | H67: =SUMIF('2-3. Travel Costs&Costs of Stay'!C:C,B67,'2-3. Travel Costs&Costs of Stay'!M:M) -> 0 | I67: =SUMIF('4. Equipment Costs'!C:C,B67,'4. Equipment Costs'!H:H) -> 0 | J67: =SUMIF('5. Subcontracting Costs'!C:C,B67,'5. Subcontracting Costs'!H:H) -> 0 | K67: =SUMIF('B. Special Mob Strand - Student'!B:B,B67,'B. Special Mob Strand - Student'!L:L)+SUMIF('B. Special Mob Strand - Student'!B:B,B67,'B. Special Mob Strand - Student'!M:M)+SUMIF('B. Special Mob Strand - Staff'!B:B,B67,'B. Special Mob Strand - Staff'!L:L)+SUMIF('B. Special Mob Strand - Staff'!B:B,B67,'B. Special Mob Strand - Staff'!M:M) -> 0 | L67: 0
B68: P39 | E68: =IFERROR(IF(D68<>"",VLOOKUP(D68,Rates!$B$5:$H$105,3,FALSE),""),"Country not found") ->  | F68: =SUMIF('1. Staff costs'!C:C,B68,'1. Staff costs'!I:I)+SUMIF('1. Staff costs'!C:C,B68,'1. Staff costs'!M:M)+SUMIF('1. Staff costs'!C:C,B68,'1. Staff costs'!Q:Q)+SUMIF('1. Staff costs'!C:C,B68,'1. Staff costs'!U:U) -> 0 | G68: =SUMIF('2-3. Travel Costs&Costs of Stay'!C:C,B68,'2-3. Travel Costs&Costs of Stay'!L:L) -> 0 | H68: =SUMIF('2-3. Travel Costs&Costs of Stay'!C:C,B68,'2-3. Travel Costs&Costs of Stay'!M:M) -> 0 | I68: =SUMIF('4. Equipment Costs'!C:C,B68,'4. Equipment Costs'!H:H) -> 0 | J68: =SUMIF('5. Subcontracting Costs'!C:C,B68,'5. Subcontracting Costs'!H:H) -> 0 | K68: =SUMIF('B. Special Mob Strand - Student'!B:B,B68,'B. Special Mob Strand - Student'!L:L)+SUMIF('B. Special Mob Strand - Student'!B:B,B68,'B. Special Mob Strand - Student'!M:M)+SUMIF('B. Special Mob Strand - Staff'!B:B,B68,'B. Special Mob Strand - Staff'!L:L)+SUMIF('B. Special Mob Strand - Staff'!B:B,B68,'B. Special Mob Strand - Staff'!M:M) -> 0 | L68: 0
B69: P40 | E69: =IFERROR(IF(D69<>"",VLOOKUP(D69,Rates!$B$5:$H$105,3,FALSE),""),"Country not found") ->  | F69: =SUMIF('1. Staff costs'!C:C,B69,'1. Staff costs'!I:I)+SUMIF('1. Staff costs'!C:C,B69,'1. Staff costs'!M:M)+SUMIF('1. Staff costs'!C:C,B69,'1. Staff costs'!Q:Q)+SUMIF('1. Staff costs'!C:C,B69,'1. Staff costs'!U:U) -> 0 | G69: =SUMIF('2-3. Travel Costs&Costs of Stay'!C:C,B69,'2-3. Travel Costs&Costs of Stay'!L:L) -> 0 | H69: =SUMIF('2-3. Travel Costs&Costs of Stay'!C:C,B69,'2-3. Travel Costs&Costs of Stay'!M:M) -> 0 | I69: =SUMIF('4. Equipment Costs'!C:C,B69,'4. Equipment Costs'!H:H) -> 0 | J69: =SUMIF('5. Subcontracting Costs'!C:C,B69,'5. Subcontracting Costs'!H:H) -> 0 | K69: =SUMIF('B. Special Mob Strand - Student'!B:B,B69,'B. Special Mob Strand - Student'!L:L)+SUMIF('B. Special Mob Strand - Student'!B:B,B69,'B. Special Mob Strand - Student'!M:M)+SUMIF('B. Special Mob Strand - Staff'!B:B,B69,'B. Special Mob Strand - Staff'!L:L)+SUMIF('B. Special Mob Strand - Staff'!B:B,B69,'B. Special Mob Strand - Staff'!M:M) -> 0 | L69: 0
B70: P41 | E70: =IFERROR(IF(D70<>"",VLOOKUP(D70,Rates!$B$5:$H$105,3,FALSE),""),"Country not found") ->  | F70: =SUMIF('1. Staff costs'!C:C,B70,'1. Staff costs'!I:I)+SUMIF('1. Staff costs'!C:C,B70,'1. Staff costs'!M:M)+SUMIF('1. Staff costs'!C:C,B70,'1. Staff costs'!Q:Q)+SUMIF('1. Staff costs'!C:C,B70,'1. Staff costs'!U:U) -> 0 | G70: =SUMIF('2-3. Travel Costs&Costs of Stay'!C:C,B70,'2-3. Travel Costs&Costs of Stay'!L:L) -> 0 | H70: =SUMIF('2-3. Travel Costs&Costs of Stay'!C:C,B70,'2-3. Travel Costs&Costs of Stay'!M:M) -> 0 | I70: =SUMIF('4. Equipment Costs'!C:C,B70,'4. Equipment Costs'!H:H) -> 0 | J70: =SUMIF('5. Subcontracting Costs'!C:C,B70,'5. Subcontracting Costs'!H:H) -> 0 | K70: =SUMIF('B. Special Mob Strand - Student'!B:B,B70,'B. Special Mob Strand - Student'!L:L)+SUMIF('B. Special Mob Strand - Student'!B:B,B70,'B. Special Mob Strand - Student'!M:M)+SUMIF('B. Special Mob Strand - Staff'!B:B,B70,'B. Special Mob Strand - Staff'!L:L)+SUMIF('B. Special Mob Strand - Staff'!B:B,B70,'B. Special Mob Strand - Staff'!M:M) -> 0 | L70: 0
B71: P42 | E71: =IFERROR(IF(D71<>"",VLOOKUP(D71,Rates!$B$5:$H$105,3,FALSE),""),"Country not found") ->  | F71: =SUMIF('1. Staff costs'!C:C,B71,'1. Staff costs'!I:I)+SUMIF('1. Staff costs'!C:C,B71,'1. Staff costs'!M:M)+SUMIF('1. Staff costs'!C:C,B71,'1. Staff costs'!Q:Q)+SUMIF('1. Staff costs'!C:C,B71,'1. Staff costs'!U:U) -> 0 | G71: =SUMIF('2-3. Travel Costs&Costs of Stay'!C:C,B71,'2-3. Travel Costs&Costs of Stay'!L:L) -> 0 | H71: =SUMIF('2-3. Travel Costs&Costs of Stay'!C:C,B71,'2-3. Travel Costs&Costs of Stay'!M:M) -> 0 | I71: =SUMIF('4. Equipment Costs'!C:C,B71,'4. Equipment Costs'!H:H) -> 0 | J71: =SUMIF('5. Subcontracting Costs'!C:C,B71,'5. Subcontracting Costs'!H:H) -> 0 | K71: =SUMIF('B. Special Mob Strand - Student'!B:B,B71,'B. Special Mob Strand - Student'!L:L)+SUMIF('B. Special Mob Strand - Student'!B:B,B71,'B. Special Mob Strand - Student'!M:M)+SUMIF('B. Special Mob Strand - Staff'!B:B,B71,'B. Special Mob Strand - Staff'!L:L)+SUMIF('B. Special Mob Strand - Staff'!B:B,B71,'B. Special Mob Strand - Staff'!M:M) -> 0 | L71: 0
B72: P43 | E72: =IFERROR(IF(D72<>"",VLOOKUP(D72,Rates!$B$5:$H$105,3,FALSE),""),"Country not found") ->  | F72: =SUMIF('1. Staff costs'!C:C,B72,'1. Staff costs'!I:I)+SUMIF('1. Staff costs'!C:C,B72,'1. Staff costs'!M:M)+SUMIF('1. Staff costs'!C:C,B72,'1. Staff costs'!Q:Q)+SUMIF('1. Staff costs'!C:C,B72,'1. Staff costs'!U:U) -> 0 | G72: =SUMIF('2-3. Travel Costs&Costs of Stay'!C:C,B72,'2-3. Travel Costs&Costs of Stay'!L:L) -> 0 | H72: =SUMIF('2-3. Travel Costs&Costs of Stay'!C:C,B72,'2-3. Travel Costs&Costs of Stay'!M:M) -> 0 | I72: =SUMIF('4. Equipment Costs'!C:C,B72,'4. Equipment Costs'!H:H) -> 0 | J72: =SUMIF('5. Subcontracting Costs'!C:C,B72,'5. Subcontracting Costs'!H:H) -> 0 | K72: =SUMIF('B. Special Mob Strand - Student'!B:B,B72,'B. Special Mob Strand - Student'!L:L)+SUMIF('B. Special Mob Strand - Student'!B:B,B72,'B. Special Mob Strand - Student'!M:M)+SUMIF('B. Special Mob Strand - Staff'!B:B,B72,'B. Special Mob Strand - Staff'!L:L)+SUMIF('B. Special Mob Strand - Staff'!B:B,B72,'B. Special Mob Strand - Staff'!M:M) -> 0 | L72: 0
B73: P44 | E73: =IFERROR(IF(D73<>"",VLOOKUP(D73,Rates!$B$5:$H$105,3,FALSE),""),"Country not found") ->  | F73: =SUMIF('1. Staff costs'!C:C,B73,'1. Staff costs'!I:I)+SUMIF('1. Staff costs'!C:C,B73,'1. Staff costs'!M:M)+SUMIF('1. Staff costs'!C:C,B73,'1. Staff costs'!Q:Q)+SUMIF('1. Staff costs'!C:C,B73,'1. Staff costs'!U:U) -> 0 | G73: =SUMIF('2-3. Travel Costs&Costs of Stay'!C:C,B73,'2-3. Travel Costs&Costs of Stay'!L:L) -> 0 | H73: =SUMIF('2-3. Travel Costs&Costs of Stay'!C:C,B73,'2-3. Travel Costs&Costs of Stay'!M:M) -> 0 | I73: =SUMIF('4. Equipment Costs'!C:C,B73,'4. Equipment Costs'!H:H) -> 0 | J73: =SUMIF('5. Subcontracting Costs'!C:C,B73,'5. Subcontracting Costs'!H:H) -> 0 | K73: =SUMIF('B. Special Mob Strand - Student'!B:B,B73,'B. Special Mob Strand - Student'!L:L)+SUMIF('B. Special Mob Strand - Student'!B:B,B73,'B. Special Mob Strand - Student'!M:M)+SUMIF('B. Special Mob Strand - Staff'!B:B,B73,'B. Special Mob Strand - Staff'!L:L)+SUMIF('B. Special Mob Strand - Staff'!B:B,B73,'B. Special Mob Strand - Staff'!M:M) -> 0 | L73: 0
B74: P45 | E74: =IFERROR(IF(D74<>"",VLOOKUP(D74,Rates!$B$5:$H$105,3,FALSE),""),"Country not found") ->  | F74: =SUMIF('1. Staff costs'!C:C,B74,'1. Staff costs'!I:I)+SUMIF('1. Staff costs'!C:C,B74,'1. Staff costs'!M:M)+SUMIF('1. Staff costs'!C:C,B74,'1. Staff costs'!Q:Q)+SUMIF('1. Staff costs'!C:C,B74,'1. Staff costs'!U:U) -> 0 | G74: =SUMIF('2-3. Travel Costs&Costs of Stay'!C:C,B74,'2-3. Travel Costs&Costs of Stay'!L:L) -> 0 | H74: =SUMIF('2-3. Travel Costs&Costs of Stay'!C:C,B74,'2-3. Travel Costs&Costs of Stay'!M:M) -> 0 | I74: =SUMIF('4. Equipment Costs'!C:C,B74,'4. Equipment Costs'!H:H) -> 0 | J74: =SUMIF('5. Subcontracting Costs'!C:C,B74,'5. Subcontracting Costs'!H:H) -> 0 | K74: =SUMIF('B. Special Mob Strand - Student'!B:B,B74,'B. Special Mob Strand - Student'!L:L)+SUMIF('B. Special Mob Strand - Student'!B:B,B74,'B. Special Mob Strand - Student'!M:M)+SUMIF('B. Special Mob Strand - Staff'!B:B,B74,'B. Special Mob Strand - Staff'!L:L)+SUMIF('B. Special Mob Strand - Staff'!B:B,B74,'B. Special Mob Strand - Staff'!M:M) -> 0 | L74: 0
B75: P46 | E75: =IFERROR(IF(D75<>"",VLOOKUP(D75,Rates!$B$5:$H$105,3,FALSE),""),"Country not found") ->  | F75: =SUMIF('1. Staff costs'!C:C,B75,'1. Staff costs'!I:I)+SUMIF('1. Staff costs'!C:C,B75,'1. Staff costs'!M:M)+SUMIF('1. Staff costs'!C:C,B75,'1. Staff costs'!Q:Q)+SUMIF('1. Staff costs'!C:C,B75,'1. Staff costs'!U:U) -> 0 | G75: =SUMIF('2-3. Travel Costs&Costs of Stay'!C:C,B75,'2-3. Travel Costs&Costs of Stay'!L:L) -> 0 | H75: =SUMIF('2-3. Travel Costs&Costs of Stay'!C:C,B75,'2-3. Travel Costs&Costs of Stay'!M:M) -> 0 | I75: =SUMIF('4. Equipment Costs'!C:C,B75,'4. Equipment Costs'!H:H) -> 0 | J75: =SUMIF('5. Subcontracting Costs'!C:C,B75,'5. Subcontracting Costs'!H:H) -> 0 | K75: =SUMIF('B. Special Mob Strand - Student'!B:B,B75,'B. Special Mob Strand - Student'!L:L)+SUMIF('B. Special Mob Strand - Student'!B:B,B75,'B. Special Mob Strand - Student'!M:M)+SUMIF('B. Special Mob Strand - Staff'!B:B,B75,'B. Special Mob Strand - Staff'!L:L)+SUMIF('B. Special Mob Strand - Staff'!B:B,B75,'B. Special Mob Strand - Staff'!M:M) -> 0 | L75: 0
B76: P47 | E76: =IFERROR(IF(D76<>"",VLOOKUP(D76,Rates!$B$5:$H$105,3,FALSE),""),"Country not found") ->  | F76: =SUMIF('1. Staff costs'!C:C,B76,'1. Staff costs'!I:I)+SUMIF('1. Staff costs'!C:C,B76,'1. Staff costs'!M:M)+SUMIF('1. Staff costs'!C:C,B76,'1. Staff costs'!Q:Q)+SUMIF('1. Staff costs'!C:C,B76,'1. Staff costs'!U:U) -> 0 | G76: =SUMIF('2-3. Travel Costs&Costs of Stay'!C:C,B76,'2-3. Travel Costs&Costs of Stay'!L:L) -> 0 | H76: =SUMIF('2-3. Travel Costs&Costs of Stay'!C:C,B76,'2-3. Travel Costs&Costs of Stay'!M:M) -> 0 | I76: =SUMIF('4. Equipment Costs'!C:C,B76,'4. Equipment Costs'!H:H) -> 0 | J76: =SUMIF('5. Subcontracting Costs'!C:C,B76,'5. Subcontracting Costs'!H:H) -> 0 | K76: =SUMIF('B. Special Mob Strand - Student'!B:B,B76,'B. Special Mob Strand - Student'!L:L)+SUMIF('B. Special Mob Strand - Student'!B:B,B76,'B. Special Mob Strand - Student'!M:M)+SUMIF('B. Special Mob Strand - Staff'!B:B,B76,'B. Special Mob Strand - Staff'!L:L)+SUMIF('B. Special Mob Strand - Staff'!B:B,B76,'B. Special Mob Strand - Staff'!M:M) -> 0 | L76: 0
B77: P48 | E77: =IFERROR(IF(D77<>"",VLOOKUP(D77,Rates!$B$5:$H$105,3,FALSE),""),"Country not found") ->  | F77: =SUMIF('1. Staff costs'!C:C,B77,'1. Staff costs'!I:I)+SUMIF('1. Staff costs'!C:C,B77,'1. Staff costs'!M:M)+SUMIF('1. Staff costs'!C:C,B77,'1. Staff costs'!Q:Q)+SUMIF('1. Staff costs'!C:C,B77,'1. Staff costs'!U:U) -> 0 | G77: =SUMIF('2-3. Travel Costs&Costs of Stay'!C:C,B77,'2-3. Travel Costs&Costs of Stay'!L:L) -> 0 | H77: =SUMIF('2-3. Travel Costs&Costs of Stay'!C:C,B77,'2-3. Travel Costs&Costs of Stay'!M:M) -> 0 | I77: =SUMIF('4. Equipment Costs'!C:C,B77,'4. Equipment Costs'!H:H) -> 0 | J77: =SUMIF('5. Subcontracting Costs'!C:C,B77,'5. Subcontracting Costs'!H:H) -> 0 | K77: =SUMIF('B. Special Mob Strand - Student'!B:B,B77,'B. Special Mob Strand - Student'!L:L)+SUMIF('B. Special Mob Strand - Student'!B:B,B77,'B. Special Mob Strand - Student'!M:M)+SUMIF('B. Special Mob Strand - Staff'!B:B,B77,'B. Special Mob Strand - Staff'!L:L)+SUMIF('B. Special Mob Strand - Staff'!B:B,B77,'B. Special Mob Strand - Staff'!M:M) -> 0 | L77: 0
B78: P49 | E78: =IFERROR(IF(D78<>"",VLOOKUP(D78,Rates!$B$5:$H$105,3,FALSE),""),"Country not found") ->  | F78: =SUMIF('1. Staff costs'!C:C,B78,'1. Staff costs'!I:I)+SUMIF('1. Staff costs'!C:C,B78,'1. Staff costs'!M:M)+SUMIF('1. Staff costs'!C:C,B78,'1. Staff costs'!Q:Q)+SUMIF('1. Staff costs'!C:C,B78,'1. Staff costs'!U:U) -> 0 | G78: =SUMIF('2-3. Travel Costs&Costs of Stay'!C:C,B78,'2-3. Travel Costs&Costs of Stay'!L:L) -> 0 | H78: =SUMIF('2-3. Travel Costs&Costs of Stay'!C:C,B78,'2-3. Travel Costs&Costs of Stay'!M:M) -> 0 | I78: =SUMIF('4. Equipment Costs'!C:C,B78,'4. Equipment Costs'!H:H) -> 0 | J78: =SUMIF('5. Subcontracting Costs'!C:C,B78,'5. Subcontracting Costs'!H:H) -> 0 | K78: =SUMIF('B. Special Mob Strand - Student'!B:B,B78,'B. Special Mob Strand - Student'!L:L)+SUMIF('B. Special Mob Strand - Student'!B:B,B78,'B. Special Mob Strand - Student'!M:M)+SUMIF('B. Special Mob Strand - Staff'!B:B,B78,'B. Special Mob Strand - Staff'!L:L)+SUMIF('B. Special Mob Strand - Staff'!B:B,B78,'B. Special Mob Strand - Staff'!M:M) -> 0 | L78: 0
B79: P50 | E79: =IFERROR(IF(D79<>"",VLOOKUP(D79,Rates!$B$5:$H$105,3,FALSE),""),"Country not found") ->  | F79: =SUMIF('1. Staff costs'!C:C,B79,'1. Staff costs'!I:I)+SUMIF('1. Staff costs'!C:C,B79,'1. Staff costs'!M:M)+SUMIF('1. Staff costs'!C:C,B79,'1. Staff costs'!Q:Q)+SUMIF('1. Staff costs'!C:C,B79,'1. Staff costs'!U:U) -> 0 | G79: =SUMIF('2-3. Travel Costs&Costs of Stay'!C:C,B79,'2-3. Travel Costs&Costs of Stay'!L:L) -> 0 | H79: =SUMIF('2-3. Travel Costs&Costs of Stay'!C:C,B79,'2-3. Travel Costs&Costs of Stay'!M:M) -> 0 | I79: =SUMIF('4. Equipment Costs'!C:C,B79,'4. Equipment Costs'!H:H) -> 0 | J79: =SUMIF('5. Subcontracting Costs'!C:C,B79,'5. Subcontracting Costs'!H:H) -> 0 | K79: =SUMIF('B. Special Mob Strand - Student'!B:B,B79,'B. Special Mob Strand - Student'!L:L)+SUMIF('B. Special Mob Strand - Student'!B:B,B79,'B. Special Mob Strand - Student'!M:M)+SUMIF('B. Special Mob Strand - Staff'!B:B,B79,'B. Special Mob Strand - Staff'!L:L)+SUMIF('B. Special Mob Strand - Staff'!B:B,B79,'B. Special Mob Strand - Staff'!M:M) -> 0 | L79: 0
B80: P51 | E80: =IFERROR(IF(D80<>"",VLOOKUP(D80,Rates!$B$5:$H$105,3,FALSE),""),"Country not found") ->  | F80: =SUMIF('1. Staff costs'!C:C,B80,'1. Staff costs'!I:I)+SUMIF('1. Staff costs'!C:C,B80,'1. Staff costs'!M:M)+SUMIF('1. Staff costs'!C:C,B80,'1. Staff costs'!Q:Q)+SUMIF('1. Staff costs'!C:C,B80,'1. Staff costs'!U:U) -> 0 | G80: =SUMIF('2-3. Travel Costs&Costs of Stay'!C:C,B80,'2-3. Travel Costs&Costs of Stay'!L:L) -> 0 | H80: =SUMIF('2-3. Travel Costs&Costs of Stay'!C:C,B80,'2-3. Travel Costs&Costs of Stay'!M:M) -> 0 | I80: =SUMIF('4. Equipment Costs'!C:C,B80,'4. Equipment Costs'!H:H) -> 0 | J80: =SUMIF('5. Subcontracting Costs'!C:C,B80,'5. Subcontracting Costs'!H:H) -> 0 | K80: =SUMIF('B. Special Mob Strand - Student'!B:B,B80,'B. Special Mob Strand - Student'!L:L)+SUMIF('B. Special Mob Strand - Student'!B:B,B80,'B. Special Mob Strand - Student'!M:M)+SUMIF('B. Special Mob Strand - Staff'!B:B,B80,'B. Special Mob Strand - Staff'!L:L)+SUMIF('B. Special Mob Strand - Staff'!B:B,B80,'B. Special Mob Strand - Staff'!M:M) -> 0 | L80: 0
B81: P52 | E81: =IFERROR(IF(D81<>"",VLOOKUP(D81,Rates!$B$5:$H$105,3,FALSE),""),"Country not found") ->  | F81: =SUMIF('1. Staff costs'!C:C,B81,'1. Staff costs'!I:I)+SUMIF('1. Staff costs'!C:C,B81,'1. Staff costs'!M:M)+SUMIF('1. Staff costs'!C:C,B81,'1. Staff costs'!Q:Q)+SUMIF('1. Staff costs'!C:C,B81,'1. Staff costs'!U:U) -> 0 | G81: =SUMIF('2-3. Travel Costs&Costs of Stay'!C:C,B81,'2-3. Travel Costs&Costs of Stay'!L:L) -> 0 | H81: =SUMIF('2-3. Travel Costs&Costs of Stay'!C:C,B81,'2-3. Travel Costs&Costs of Stay'!M:M) -> 0 | I81: =SUMIF('4. Equipment Costs'!C:C,B81,'4. Equipment Costs'!H:H) -> 0 | J81: =SUMIF('5. Subcontracting Costs'!C:C,B81,'5. Subcontracting Costs'!H:H) -> 0 | K81: =SUMIF('B. Special Mob Strand - Student'!B:B,B81,'B. Special Mob Strand - Student'!L:L)+SUMIF('B. Special Mob Strand - Student'!B:B,B81,'B. Special Mob Strand - Student'!M:M)+SUMIF('B. Special Mob Strand - Staff'!B:B,B81,'B. Special Mob Strand - Staff'!L:L)+SUMIF('B. Special Mob Strand - Staff'!B:B,B81,'B. Special Mob Strand - Staff'!M:M) -> 0 | L81: 0
B82: P53 | E82: =IFERROR(IF(D82<>"",VLOOKUP(D82,Rates!$B$5:$H$105,3,FALSE),""),"Country not found") ->  | F82: =SUMIF('1. Staff costs'!C:C,B82,'1. Staff costs'!I:I)+SUMIF('1. Staff costs'!C:C,B82,'1. Staff costs'!M:M)+SUMIF('1. Staff costs'!C:C,B82,'1. Staff costs'!Q:Q)+SUMIF('1. Staff costs'!C:C,B82,'1. Staff costs'!U:U) -> 0 | G82: =SUMIF('2-3. Travel Costs&Costs of Stay'!C:C,B82,'2-3. Travel Costs&Costs of Stay'!L:L) -> 0 | H82: =SUMIF('2-3. Travel Costs&Costs of Stay'!C:C,B82,'2-3. Travel Costs&Costs of Stay'!M:M) -> 0 | I82: =SUMIF('4. Equipment Costs'!C:C,B82,'4. Equipment Costs'!H:H) -> 0 | J82: =SUMIF('5. Subcontracting Costs'!C:C,B82,'5. Subcontracting Costs'!H:H) -> 0 | K82: =SUMIF('B. Special Mob Strand - Student'!B:B,B82,'B. Special Mob Strand - Student'!L:L)+SUMIF('B. Special Mob Strand - Student'!B:B,B82,'B. Special Mob Strand - Student'!M:M)+SUMIF('B. Special Mob Strand - Staff'!B:B,B82,'B. Special Mob Strand - Staff'!L:L)+SUMIF('B. Special Mob Strand - Staff'!B:B,B82,'B. Special Mob Strand - Staff'!M:M) -> 0 | L82: 0
B83: P54 | E83: =IFERROR(IF(D83<>"",VLOOKUP(D83,Rates!$B$5:$H$105,3,FALSE),""),"Country not found") ->  | F83: =SUMIF('1. Staff costs'!C:C,B83,'1. Staff costs'!I:I)+SUMIF('1. Staff costs'!C:C,B83,'1. Staff costs'!M:M)+SUMIF('1. Staff costs'!C:C,B83,'1. Staff costs'!Q:Q)+SUMIF('1. Staff costs'!C:C,B83,'1. Staff costs'!U:U) -> 0 | G83: =SUMIF('2-3. Travel Costs&Costs of Stay'!C:C,B83,'2-3. Travel Costs&Costs of Stay'!L:L) -> 0 | H83: =SUMIF('2-3. Travel Costs&Costs of Stay'!C:C,B83,'2-3. Travel Costs&Costs of Stay'!M:M) -> 0 | I83: =SUMIF('4. Equipment Costs'!C:C,B83,'4. Equipment Costs'!H:H) -> 0 | J83: =SUMIF('5. Subcontracting Costs'!C:C,B83,'5. Subcontracting Costs'!H:H) -> 0 | K83: =SUMIF('B. Special Mob Strand - Student'!B:B,B83,'B. Special Mob Strand - Student'!L:L)+SUMIF('B. Special Mob Strand - Student'!B:B,B83,'B. Special Mob Strand - Student'!M:M)+SUMIF('B. Special Mob Strand - Staff'!B:B,B83,'B. Special Mob Strand - Staff'!L:L)+SUMIF('B. Special Mob Strand - Staff'!B:B,B83,'B. Special Mob Strand - Staff'!M:M) -> 0 | L83: 0
B84: P55 | E84: =IFERROR(IF(D84<>"",VLOOKUP(D84,Rates!$B$5:$H$105,3,FALSE),""),"Country not found") ->  | F84: =SUMIF('1. Staff costs'!C:C,B84,'1. Staff costs'!I:I)+SUMIF('1. Staff costs'!C:C,B84,'1. Staff costs'!M:M)+SUMIF('1. Staff costs'!C:C,B84,'1. Staff costs'!Q:Q)+SUMIF('1. Staff costs'!C:C,B84,'1. Staff costs'!U:U) -> 0 | G84: =SUMIF('2-3. Travel Costs&Costs of Stay'!C:C,B84,'2-3. Travel Costs&Costs of Stay'!L:L) -> 0 | H84: =SUMIF('2-3. Travel Costs&Costs of Stay'!C:C,B84,'2-3. Travel Costs&Costs of Stay'!M:M) -> 0 | I84: =SUMIF('4. Equipment Costs'!C:C,B84,'4. Equipment Costs'!H:H) -> 0 | J84: =SUMIF('5. Subcontracting Costs'!C:C,B84,'5. Subcontracting Costs'!H:H) -> 0 | K84: =SUMIF('B. Special Mob Strand - Student'!B:B,B84,'B. Special Mob Strand - Student'!L:L)+SUMIF('B. Special Mob Strand - Student'!B:B,B84,'B. Special Mob Strand - Student'!M:M)+SUMIF('B. Special Mob Strand - Staff'!B:B,B84,'B. Special Mob Strand - Staff'!L:L)+SUMIF('B. Special Mob Strand - Staff'!B:B,B84,'B. Special Mob Strand - Staff'!M:M) -> 0 | L84: 0

Sheet Translation (hidden)
A1: English | B1: Français | C1: Deutsch
A2: (OPTIONAL) | B2: (OPTION) | C2: (fakultativ)
A3: 1. Staff costs | B3: Frais de Personnel | C3: Personalkosten
A4: 2. Travel costs | B4: Frais de voyage | C4: Reisekosten
A5: 24 months | B5: 24 mois | C5: 24 monate
A6: 3. Costs of stay | B6: Frais de séjour | C6: Aufenthaltskosten
A7: 36 months | B7: 36 mois | C7: 36 monate
A8: 4. Equipment
A9: 5. Subcontracting
A10: A – EU Grant requested for the project activities | B10: Soutien à la mise en œuvre du projet | C10: Unterstützung der Projektumsetzung
A11: Action | B11: Action | C11: Aktion/Maßnahme | D11: x
A12: Action to be selected | B12: Action a choisir | C12: Auszuwählende aktion
A13: Activities targeting learners between the 15th and 60th day | B13: Activités ciblant les apprenants entre le 15ème et le 60ème jour | C13: Aktivitäten, die auf Lernende zwischen dem 15. und 60.Tag abzielen
A14: Activities targeting learners up to the 14th day | B14: Activités ciblant les apprenants jusqu'au 14ème jour | C14: Aktivitäten, die auf Lernende bis zum 14.Tag abzielen
A15: Activities targeting staff between the 15th and 60th day | B15: Activités ciblant le personnel entre le 15ème et le 60ème jour | C15: Aktivitäten, die auf Personal zwischen dem 15. und 60.Tag abzielen
A16: Activities targeting staff up to the 14th day | B16: Activités ciblant le personnel jusqu'au 14ème jour | C16: Aktivitäten, die auf Personal bis zum 14.Tag abzielen
A17: Activity type | B17: Type d'activité | C17: Art der Aktivität
A18: Additional funding for mobility activities realised within an Alliance | B18: Financement supplémentaire pour des activités de mobilité réalisées au sein d'une Alliance | C18: Zusätzliche Finanzmittel für Mobilitätsaktivitäten innerhalb einer Allianz
A19: Administrative | B19: Administratif | C19: Verwaltungspersonal
A20: B – Additional grant for mobility strand | B20: Activités de mobilité (Optionnel) | C20: Mobilitätsaktivitäten (fakultativ)
A21: Before completing this table please read carefully the instructions available on | B21: Avant de compléter ce tableau merci de lire attentivement les instructions disponible à | C21: Bevor Sie diese Tabelle ausfüllen, lesen Sie bitte sorgfältig die Hinweise verfügbar unter | D21: x
A22: CALL FOR PROPOSAL 2015 - EAC/XXX/14 - Erasmus+ programme - (2014/C XXX/XX) | B22: APPEL A PROPOSITION 2014 – EAC/S11/13 – Programme Erasmus+ (2013/C362/04) | C22: Aufforderung zur Einreichung von Vorschlägen 2014 - EAC/S11/13 - Erasmus+ Programm - (2013/C 362/04) | D22: x
A23: Capacity building in the field of higher education | B23: Alliances sectorielles pour les compétences | C23: Allianzen für branchenspezifische Fertigkeiten | D23: x
A24: Cost per participant | B24: Frais par participant | C24: Kosten pro Teilnehmer
A25: COUNTRY | B25: PAYS | C25: LAND
A26: Country | B26: Pays | C26: Land
A27: Distance | B27: Distance | C27: Entfernung
A28: Distribution of grant by organisation | B28: Distribution de la subvention par organisation | C28: Verteilung der Finanzhilfe nach Organisation
A29: Duration | B29: Durée | C29: Dauer
A30: Duration number of months | B30: Durée en nombre de mois | C30: Dauer (Anzahl der Monate) | D30: x
A31: Duration to be completed | B31: Durée à compléter | C31: Anzugebene Dauer
A32: Equipment Costs | B32: Frais d'équipement
A33: EU grant | B33: Subvention de l'UE | C33: EU-Finanzhilfe
A34: Grant requested | B34: Subvention demandée | C34: Beantragte Finanzhilfe
A35: Joint Project | B35: Alliances de la connaissance | C35: Wissensallianzen
A36: Key Action 2: Cooperation for innovation and the exchange of good practices | B36: Alliances de la connaissance | C36: Wissensallianzen | D36: x
A37: Language | B37: Langue | C37: Sprache | D37: x
A38: LIST OF PARTNERS | B38: LISTE DES PARTENAIRES | C38: PARTNER LIST
A39: Manager | B39: Manager | C39: Manager
A40: Maximum EU contribution awarded : 1 000 000 EUR | B40: Montant maximal de la subvention de l'UE pour un projet Alliance de 3 ans: 1.000.000EUR | C40: Maximal gewährte EU- Finanzhilfe für eine 3-jährige: 1 000 000 EUR
A41: Minimum EU contribution awarded : 500 000 EUR | B41: Montant maximal de la subvention de l'UE pour un projet Alliance de 2 ans: 700.000EUR | C41: Maximal gewährte EU- Finanzhilfe für eine 2-jährige: 700 000 EUR
A42: Mobility strand | B42: Partie I – Chiffres consolidés | C42: Teil I – Konsolidierte Zahlen
A43: months | B43: mois | C43: monate
A44: Name | B44: Nom | C44: Name
A45: NAME OF PARTNER | B45: NOM DU PARTENAIRE | C45: NAME OF PARTNER
A46: Number of days | B46: Nombre de jours | C46: Anzahl der Tage
A47: Number of travels (from their place of location to the venue of the activity and return) | B47: Nombre de voyages (A/R entre lieu d'origine et la destination de l'activité) | C47: Anzahl der Reisen (vom Ausgangsort zum Ort der Aktivität und zurück)
A48: Part IV - | B48: Partie IV - | C48: Teil IV -
A49: Partner | B49: Partenaire | C49: Partner
A50: Programme guide and instructions for applicants | B50: Guide du Programme et instructions pour les candidats | C50: Programmleitfaden und Hinweise für Antragsteller
A51: Project acronym | B51: Acronyme du projet | C51: Projektakronym | D51: x
A52: Project title | B52: Titre du projet | C52: Projekttitel | D52: x
A53: Select your country | B53: Choisissez votre pays | C53: Wählen Sie Ihr Land aus
A54: Staff costs | B54: Frais de personnel | C54: Personalkosten
A55: Structural project | B55: Alliances sectorielles pour les competences | C55: Allianzen für branchenspezifische fertigkeiten
A56: Subsistence costs | B56: Frais de séjour | C56: Aufenthaltskosten
A57: Teacher/Trainer/Researcher | B57: Professeur/Formateur/Chercheur | C57: Lehrende/r; Ausbildner/in; Forscher/in
A58: Technician | B58: Technicien | C58: Techniker/in
A59: TOTAL | B59: TOTAL | C59: Gesamt
A60: Total | B60: Total | C60: Gesamt
A61: Total cost by category | B61: Coût total par catégorie | C61: Gesamtkosten pro Kategorie
A62: Total number of days | B62: Nombre total de jours | C62: Gesamte Anzahl der Tage
A63: Total Part III | B63: Total Partie III | C63: Gesamter Teil III
A64: Total Part IV | B64: Total Partie IV | C64: Gesamter Teil IV
A65: Travel costs | B65: Frais de voyage | C65: Reisekosten
A66: Unit cost per day | B66: Coût unitaire par jour | C66: Kosten pro Einheit pro Tag
A67: Unit cost per participant | B67: Coût unitaire par participant | C67: Kosten pro Einheit pro Teilnehmer
A68: Warning messages | B68: Messages d'alerte | C68: Warnmeldung
A69: Work Package Number | B69: Numéro du lot de travail | C69: Arbeitspaket Nummer

Sheet 1. Staff costs
B2: 1. Staff Costs
D4: Number of Days | E4: Total (EUR)
B5: Manager | D5: =SUM(G:G) -> 0 | E5: =SUM(I:I) -> 0
B6: Teacher/Trainer/Researcher | D6: =SUM(K:K) -> 0 | E6: =SUM(M:M) -> 0
B7: Technician | D7: =SUM(O:O) -> 0 | E7: =SUM(Q:Q) -> 0
B8: Administrative | D8: =SUM(S:S) -> 0 | E8: =SUM(U:U) -> 0
D9: =SUM(D5:D8) -> 0 | E9: =SUM(E5:E8) -> 0
B11: Work Package | C11: Partner N° | D11: Name of Partner (to encode in overview sheet) | E11: Country (to encode in overview sheet) | F11: Manager | J11: Teacher/Trainer/Researcher | N11: Technician | R11: Administrative | V11: Total Number of Days | W11: Total (EUR) | X11: Check Data Encoding
F12: Number of days | G12: Number of days | H12: Unit cost per day | I12: Total (EUR) | J12: Number of days | K12: Number of days | L12: Unit cost per day | M12: Total (EUR) | N12: Number of days | O12: Number of days | P12: Unit cost per day | Q12: Total (EUR) | R12: Number of days | S12: Number of days | T12: Unit cost per day | U12: Total (EUR)
D13: =IFERROR(IF(VLOOKUP(C13,Overview!$B$30:$E$84,2,FALSE)=0,"",VLOOKUP(C13,Overview!$B$30:$E$84,2,FALSE)),"") ->  | E13: =IFERROR(IF(OR(VLOOKUP(C13,Overview!$B$30:$E$84,4,FALSE)="Country not found",VLOOKUP(C13,Overview!$B$30:$E$84,3,FALSE)=0),"",VLOOKUP(C13,Overview!$B$30:$E$84,3,FALSE)),"") ->  | G13: =IF(X13="Error",0,ROUND(F13,1)) -> 0 | H13: =IF(X13="Error",0,VLOOKUP(E13,Rates!$B$5:$H$105,4,FALSE)) -> 0 | I13: =ROUND(G13*H13,2) -> 0 | K13: =IF(X13="Error",0,ROUND(J13,1)) -> 0 | L13: =IF(X13="Error",0,VLOOKUP(E13,Rates!$B$5:$H$105,5,FALSE)) -> 0 | M13: =ROUND(K13*L13,2) -> 0 | O13: =IF(X13="Error",0,ROUND(N13,1)) -> 0 | P13: =IF(X13="Error",0,VLOOKUP(E13,Rates!$B$5:$H$105,6,FALSE)) -> 0 | Q13: =ROUND(O13*P13,2) -> 0 | S13: =IF(X13="Error",0,ROUND(R13,1)) -> 0 | T13: =IF(X13="Error",0,VLOOKUP(E13,Rates!$B$5:$H$105,7,FALSE)) -> 0 | U13: =ROUND(S13*T13,2) -> 0 | V13: =IF(X13="Error",0,G13+K13+O13+S13) -> 0 | W13: =IF(X13="Error",0,I13+M13+Q13+U13) -> 0 | X13: =IF(OR(COUNTIF(Rates!$J$13:$J$17,B13)=0,COUNTIF(Overview!$B$30:$B$84,C13)=0,D13="",E13="",ISNUMBER(F13)=FALSE,ISNUMBER(J13)=FALSE,ISNUMBER(N13)=FALSE,ISNUMBER(R13)=FALSE,IF(ISNUMBER(F13)=TRUE,F13=INT(F13*10)/10=FALSE),IF(ISNUMBER(J13)=TRUE,J13=INT(J13*10)/10=FALSE),IF(ISNUMBER(N13)=TRUE,N13=INT(N13*10)/10=FALSE),IF(ISNUMBER(R13)=TRUE,R13=INT(R13*10)/10=FALSE)),"Error","") -> Error
D14: =IFERROR(IF(VLOOKUP(C14,Overview!$B$30:$E$84,2,FALSE)=0,"",VLOOKUP(C14,Overview!$B$30:$E$84,2,FALSE)),"") ->  | E14: =IFERROR(IF(OR(VLOOKUP(C14,Overview!$B$30:$E$84,4,FALSE)="Country not found",VLOOKUP(C14,Overview!$B$30:$E$84,3,FALSE)=0),"",VLOOKUP(C14,Overview!$B$30:$E$84,3,FALSE)),"") ->  | G14: =IF(X14="Error",0,ROUND(F14,1)) -> 0 | H14: =IF(X14="Error",0,VLOOKUP(E14,Rates!$B$5:$H$105,4,FALSE)) -> 0 | I14: =ROUND(G14*H14,2) -> 0 | K14: =IF(X14="Error",0,ROUND(J14,1)) -> 0 | L14: =IF(X14="Error",0,VLOOKUP(E14,Rates!$B$5:$H$105,5,FALSE)) -> 0 | M14: =ROUND(K14*L14,2) -> 0 | O14: =IF(X14="Error",0,ROUND(N14,1)) -> 0 | P14: =IF(X14="Error",0,VLOOKUP(E14,Rates!$B$5:$H$105,6,FALSE)) -> 0 | Q14: =ROUND(O14*P14,2) -> 0 | S14: =IF(X14="Error",0,ROUND(R14,1)) -> 0 | T14: =IF(X14="Error",0,VLOOKUP(E14,Rates!$B$5:$H$105,7,FALSE)) -> 0 | U14: =ROUND(S14*T14,2) -> 0 | V14: =IF(X14="Error",0,G14+K14+O14+S14) -> 0 | W14: =IF(X14="Error",0,I14+M14+Q14+U14) -> 0 | X14: =IF(OR(COUNTIF(Rates!$J$13:$J$17,B14)=0,COUNTIF(Overview!$B$30:$B$84,C14)=0,D14="",E14="",ISNUMBER(F14)=FALSE,ISNUMBER(J14)=FALSE,ISNUMBER(N14)=FALSE,ISNUMBER(R14)=FALSE,IF(ISNUMBER(F14)=TRUE,F14=INT(F14*10)/10=FALSE),IF(ISNUMBER(J14)=TRUE,J14=INT(J14*10)/10=FALSE),IF(ISNUMBER(N14)=TRUE,N14=INT(N14*10)/10=FALSE),IF(ISNUMBER(R14)=TRUE,R14=INT(R14*10)/10=FALSE)),"Error","") -> Error

Sheet 2-3. Travel Costs&Costs of Stay
B2: 2-3. Travel Costs & Costs of Stay
B4: Travel Costs | C4: =SUM(L:L) -> 0
B6: Costs of Stay | C6: =SUM(M:M) -> 0
B8: Total (EUR) | C8: =C4+C6 -> 0
B11: Work Package | C11: Partner N° | D11: Name of Partner (to encode in overview sheet) | E11: Country (to encode in overview sheet) | F11: City of Departure | G11: Student/ Staff | H11: Number of Participants | I11: City of Destination | J11: Travel Distance | K11: Number of days (per participant) | L11: Travel Costs (EUR) | M11: Costs of Stay (EUR) | N11: Total (EUR) | O11: Check Data Encoding
D13: =IFERROR(IF(VLOOKUP(C13,Overview!$B$30:$E$84,2,FALSE)=0,"",VLOOKUP(C13,Overview!$B$30:$E$84,2,FALSE)),"") ->  | E13: =IFERROR(IF(OR(VLOOKUP(C13,Overview!$B$30:$E$84,4,FALSE)="Country not found",VLOOKUP(C13,Overview!$B$30:$E$84,3,FALSE)=0),"",VLOOKUP(C13,Overview!$B$30:$E$84,3,FALSE)),"") ->  | L13: =IF(O13="Error",0,ROUND(ROUND(H13,0)*(VLOOKUP(J13,Rates!$J$5:$K$10,2,FALSE)),2)) -> 0 | M13: =IF(O13="Error",0,ROUND(ROUND(H13,0)*INDEX(CostRates,MATCH(ROUND(K13,0),CostDays,0),MATCH(G13,CostCat,0)),2)) -> 0 | N13: =L13+M13 -> 0 | O13: =IF(OR(COUNTIF(Rates!$J$13:$J$17,B13)=0,COUNTIF(Overview!$B$30:$B$84,C13)=0,D13="",E13="",F13="",COUNTIF(Rates!$Y$4:$Z$4,G13)=0,ISNUMBER(H13)=FALSE,I13="",COUNTIF(Rates!$J$5:$J$10,J13)=0,ISNUMBER(K13)=FALSE,IF(OR(IF(AND(G13="Staff",K13>365),1,0)=1,IF(AND(G13="Student",K13>60),1,0)=1),1,0)=1,IF(ISNUMBER(H13)=TRUE,H13=INT(H13*1)/1=FALSE),IF(ISNUMBER(K13)=TRUE,K13=INT(K13*1)/1=FALSE)),"Error","") -> Error
D14: =IFERROR(IF(VLOOKUP(C14,Overview!$B$30:$E$84,2,FALSE)=0,"",VLOOKUP(C14,Overview!$B$30:$E$84,2,FALSE)),"") ->  | E14: =IFERROR(IF(OR(VLOOKUP(C14,Overview!$B$30:$E$84,4,FALSE)="Country not found",VLOOKUP(C14,Overview!$B$30:$E$84,3,FALSE)=0),"",VLOOKUP(C14,Overview!$B$30:$E$84,3,FALSE)),"") ->  | L14: =IF(O14="Error",0,ROUND(ROUND(H14,0)*(VLOOKUP(J14,Rates!$J$5:$K$10,2,FALSE)),2)) -> 0 | M14: =IF(O14="Error",0,ROUND(ROUND(H14,0)*INDEX(CostRates,MATCH(ROUND(K14,0),CostDays,0),MATCH(G14,CostCat,0)),2)) -> 0 | N14: =L14+M14 -> 0 | O14: =IF(OR(COUNTIF(Rates!$J$13:$J$17,B14)=0,COUNTIF(Overview!$B$30:$B$84,C14)=0,D14="",E14="",F14="",COUNTIF(Rates!$Y$4:$Z$4,G14)=0,ISNUMBER(H14)=FALSE,I14="",COUNTIF(Rates!$J$5:$J$10,J14)=0,ISNUMBER(K14)=FALSE,IF(OR(IF(AND(G14="Staff",K14>365),1,0)=1,IF(AND(G14="Student",K14>60),1,0)=1),1,0)=1,IF(ISNUMBER(H14)=TRUE,H14=INT(H14*1)/1=FALSE),IF(ISNUMBER(K14)=TRUE,K14=INT(K14*1)/1=FALSE)),"Error","") -> Error

Sheet 4. Equipment Costs
B2: 4. Equipment Costs
B4: Total (EUR) | C4: =SUM(H:H) -> 0
B11: Work Package | C11: Partner N° | D11: Name of Partner (to encode in overview sheet) | E11: Country (to encode in overview sheet) | F11: Nature, type and specifications of the item | G11: Amount Excluding VAT (EUR) | H11: Total (EUR) | I11: Check Data Encoding
D13: =IFERROR(IF(VLOOKUP(C13,Overview!$B$30:$E$84,2,FALSE)=0,"",VLOOKUP(C13,Overview!$B$30:$E$84,2,FALSE)),"") ->  | E13: =IFERROR(IF(OR(VLOOKUP(C13,Overview!$B$30:$E$84,4,FALSE)="Country not found",VLOOKUP(C13,Overview!$B$30:$E$84,3,FALSE)=0),"",VLOOKUP(C13,Overview!$B$30:$E$84,3,FALSE)),"") ->  | H13: =IF(I13="Error",0,ROUND(G13,2)) -> 0 | I13: =IF(OR(COUNTIF(Rates!$J$13:$J$17,B13)=0,COUNTIF(Overview!$B$30:$B$84,C13)=0,D13="",E13="",F13="",ISNUMBER(G13)=FALSE,J13=1,IF(ISNUMBER(G13)=TRUE,G13=INT(G13*100)/100=FALSE)),"Error","") -> Error | J13: =COUNTIF(Rates!$B$5:$B$37,E13) -> 0
D14: =IFERROR(IF(VLOOKUP(C14,Overview!$B$30:$E$84,2,FALSE)=0,"",VLOOKUP(C14,Overview!$B$30:$E$84,2,FALSE)),"") ->  | E14: =IFERROR(IF(OR(VLOOKUP(C14,Overview!$B$30:$E$84,4,FALSE)="Country not found",VLOOKUP(C14,Overview!$B$30:$E$84,3,FALSE)=0),"",VLOOKUP(C14,Overview!$B$30:$E$84,3,FALSE)),"") ->  | H14: =IF(I14="Error",0,ROUND(G14,2)) -> 0 | I14: =IF(OR(COUNTIF(Rates!$J$13:$J$17,B14)=0,COUNTIF(Overview!$B$30:$B$84,C14)=0,D14="",E14="",F14="",ISNUMBER(G14)=FALSE,J14=1,IF(ISNUMBER(G14)=TRUE,G14=INT(G14*100)/100=FALSE)),"Error","") -> Error | J14: =COUNTIF(Rates!$B$5:$B$37,E14) -> 0

Sheet 5. Subcontracting Costs
B2: 5. Subcontracting Costs
B4: Total (EUR) | C4: =SUM(H:H) -> 0
B11: Work Package | C11: Partner N° | D11: Name of Partner (to encode in overview sheet) | E11: Country (to encode in overview sheet) | F11: Nature, type and specifications of the item | G11: Amount Excluding VAT (EUR) | H11: Total (EUR) | I11: Check Data Encoding
D13: =IFERROR(IF(VLOOKUP(C13,Overview!$B$30:$E$84,2,FALSE)=0,"",VLOOKUP(C13,Overview!$B$30:$E$84,2,FALSE)),"") ->  | E13: =IFERROR(IF(OR(VLOOKUP(C13,Overview!$B$30:$E$84,4,FALSE)="Country not found",VLOOKUP(C13,Overview!$B$30:$E$84,3,FALSE)=0),"",VLOOKUP(C13,Overview!$B$30:$E$84,3,FALSE)),"") ->  | H13: =IF(I13="Error",0,ROUND(G13,2)) -> 0 | I13: =IF(OR(COUNTIF(Rates!$J$13:$J$17,B13)=0,COUNTIF(Overview!$B$30:$B$84,C13)=0,D13="",E13="",F13="",ISNUMBER(G13)=FALSE,IF(ISNUMBER(G13)=TRUE,G13=INT(G13*100)/100=FALSE)),"Error","") -> Error
D14: =IFERROR(IF(VLOOKUP(C14,Overview!$B$30:$E$84,2,FALSE)=0,"",VLOOKUP(C14,Overview!$B$30:$E$84,2,FALSE)),"") ->  | E14: =IFERROR(IF(OR(VLOOKUP(C14,Overview!$B$30:$E$84,4,FALSE)="Country not found",VLOOKUP(C14,Overview!$B$30:$E$84,3,FALSE)=0),"",VLOOKUP(C14,Overview!$B$30:$E$84,3,FALSE)),"") ->  | H14: =IF(I14="Error",0,ROUND(G14,2)) -> 0 | I14: =IF(OR(COUNTIF(Rates!$J$13:$J$17,B14)=0,COUNTIF(Overview!$B$30:$B$84,C14)=0,D14="",E14="",F14="",ISNUMBER(G14)=FALSE,IF(ISNUMBER(G14)=TRUE,G14=INT(G14*100)/100=FALSE)),"Error","") -> Error

Sheet B. Special Mob Strand - Student
B2: B. Special Mobility Strand - Student
B4: Travel Costs | C4: =SUM(L:L) -> 0
B6: Subsistence Costs | C6: =SUM(M:M) -> 0
B8: Total (EUR) | C8: =C4+C6 -> 0
B11: Partner N° | C11: Name of Partner (to encode in overview sheet) | D11: Country (to encode in overview sheet) | E11: Category | F11: City of Departure | G11: Number of Participants | H11: Receiving country | I11: City of Destination | J11: Travel Distance | K11: Number of months (per participant) | L11: Travel Costs (EUR) | M11: Subsistence Costs (EUR) | N11: Total (EUR) | O11: Check Data Encoding
C13: =IFERROR(IF(VLOOKUP(B13,Overview!$B$30:$E$84,2,FALSE)=0,"",VLOOKUP(B13,Overview!$B$30:$E$84,2,FALSE)),"") ->  | D13: =IFERROR(IF(OR(VLOOKUP(B13,Overview!$B$30:$E$84,4,FALSE)="Country not found",VLOOKUP(B13,Overview!$B$30:$E$84,3,FALSE)=0),"",VLOOKUP(B13,Overview!$B$30:$E$84,3,FALSE)),"") ->  | E13: =IF(D13="","",CONCATENATE("Students from"," ",VLOOKUP(D13,Rates!$B$5:$D$105,3,FALSE))) ->  | L13: =IF(O13="Error",0,ROUND(ROUND(G13,0)*(VLOOKUP(J13,Rates!$J$5:$K$10,2,FALSE)),2)) -> 0 | M13: =IF(O13="Error",0,ROUND(ROUND(G13,0)*(ROUND(K13,0)*(INDEX(SubRates,MATCH(H13,SubCountry,0),MATCH(E13,SubCat,0)))),2)) -> 0 | N13: =L13+M13 -> 0 | O13: =IF(OR(COUNTIF(Overview!$B$30:$B$84,B13)=0,C13="",D13="",COUNTIF(SubCountry,D13)=0,E13="",F13="",ISNUMBER(G13)=FALSE,COUNTIF(SubCountry,H13)=0,I13="",COUNTIF(Rates!$J$5:$J$10,J13)=0,ISNUMBER(K13)=FALSE,OR(K13<2,K13>12),P13=1,IF(ISNUMBER(G13)=TRUE,G13=INT(G13*1)/1=FALSE),IF(ISNUMBER(K13)=TRUE,K13=INT(K13*1)/1=FALSE)),"Error","") -> Error | P13: =IF(AND(COUNTIF(Rates!$M$5:$M$37,D13)=1,COUNTIF(Rates!$M$5:$M$37,H13)=1),1,0) -> 0 | Q13: =IF(AND(D13<>"",COUNTIF(SubCountry,D13)=0),1,0) -> 0 | R13: =IF(AND(H13<>"",COUNTIF(SubCountry,H13)=0),1,0) -> 0
C14: =IFERROR(IF(VLOOKUP(B14,Overview!$B$30:$E$84,2,FALSE)=0,"",VLOOKUP(B14,Overview!$B$30:$E$84,2,FALSE)),"") ->  | D14: =IFERROR(IF(OR(VLOOKUP(B14,Overview!$B$30:$E$84,4,FALSE)="Country not found",VLOOKUP(B14,Overview!$B$30:$E$84,3,FALSE)=0),"",VLOOKUP(B14,Overview!$B$30:$E$84,3,FALSE)),"") ->  | E14: =IF(D14="","",CONCATENATE("Students from"," ",VLOOKUP(D14,Rates!$B$5:$D$105,3,FALSE))) ->  | L14: =IF(O14="Error",0,ROUND(ROUND(G14,0)*(VLOOKUP(J14,Rates!$J$5:$K$10,2,FALSE)),2)) -> 0 | M14: =IF(O14="Error",0,ROUND(ROUND(G14,0)*(ROUND(K14,0)*(INDEX(SubRates,MATCH(H14,SubCountry,0),MATCH(E14,SubCat,0)))),2)) -> 0 | N14: =L14+M14 -> 0 | O14: =IF(OR(COUNTIF(Overview!$B$30:$B$84,B14)=0,C14="",D14="",COUNTIF(SubCountry,D14)=0,E14="",F14="",ISNUMBER(G14)=FALSE,COUNTIF(SubCountry,H14)=0,I14="",COUNTIF(Rates!$J$5:$J$10,J14)=0,ISNUMBER(K14)=FALSE,OR(K14<2,K14>12),P14=1,IF(ISNUMBER(G14)=TRUE,G14=INT(G14*1)/1=FALSE),IF(ISNUMBER(K14)=TRUE,K14=INT(K14*1)/1=FALSE)),"Error","") -> Error | P14: =IF(AND(COUNTIF(Rates!$M$5:$M$37,D14)=1,COUNTIF(Rates!$M$5:$M$37,H14)=1),1,0) -> 0 | Q14: =IF(AND(D14<>"",COUNTIF(SubCountry,D14)=0),1,0) -> 0 | R14: =IF(AND(H14<>"",COUNTIF(SubCountry,H14)=0),1,0) -> 0

Sheet B. Special Mob Strand - Staff
B2: B. Special Mobility Strand - Staff
B4: Travel Costs | C4: =SUM(L:L) -> 0
B6: Subsistence Costs | C6: =SUM(M:M) -> 0
B8: Total (EUR) | C8: =C4+C6 -> 0
B11: Partner N° | C11: Name of Partner (to encode in overview sheet) | D11: Country (to encode in overview sheet) | E11: Category | F11: City of Departure | G11: Number of Participants | H11: Receiving country | I11: City of Destination | J11: Travel Distance | K11: Number of days (per participant) | L11: Travel Costs (EUR) | M11: Subsistence Costs (EUR) | N11: Total (EUR) | O11: Check Data Encoding
C13: =IFERROR(IF(VLOOKUP(B13,Overview!$B$30:$E$84,2,FALSE)=0,"",VLOOKUP(B13,Overview!$B$30:$E$84,2,FALSE)),"") ->  | D13: =IFERROR(IF(OR(VLOOKUP(B13,Overview!$B$30:$E$84,4,FALSE)="Country not found",VLOOKUP(B13,Overview!$B$30:$E$84,3,FALSE)=0),"",VLOOKUP(B13,Overview!$B$30:$E$84,3,FALSE)),"") ->  | E13: =IF(D13="","",CONCATENATE("Staff from"," ",VLOOKUP(D13,Rates!$B$5:$D$105,3,FALSE))) ->  | L13: =IF(O13="Error",0,ROUND(ROUND(G13,0)*(VLOOKUP(J13,Rates!$J$5:$K$10,2,FALSE)),2)) -> 0 | M13: =IF(O13="Error",0,ROUND(IF(AND(ROUND(K13,0)>0,ROUND(K13,0)<=14),ROUND(G13,0)*(ROUND(K13,0)*(INDEX(SubRates,MATCH(H13,SubCountry,0),MATCH(E13,SubCat,0)))),IF(AND(ROUND(K13,0)>14,ROUND(K13,0)<=60),ROUND(G13,0)*((14*(INDEX(SubRates,MATCH(H13,SubCountry,0),MATCH(E13,SubCat,0)))))+ROUND(G13,0)*(((ROUND(K13,0)-14)*(0.7*INDEX(SubRates,MATCH(H13,SubCountry,0),MATCH(E13,SubCat,0))))),IF(ROUND(K13,0)>60,0))),2)) -> 0 | N13: =L13+M13 -> 0 | O13: =IF(OR(COUNTIF(Overview!$B$30:$B$84,B13)=0,C13="",D13="",COUNTIF(SubCountry,D13)=0,E13="",F13="",ISNUMBER(G13)=FALSE,COUNTIF(SubCountry,H13)=0,I13="",COUNTIF(Rates!$J$5:$J$10,J13)=0,ISNUMBER(K13)=FALSE,OR(K13<5,K13>60),P13=1,IF(ISNUMBER(G13)=TRUE,G13=INT(G13*1)/1=FALSE),IF(ISNUMBER(K13)=TRUE,K13=INT(K13*1)/1=FALSE)),"Error","") -> Error | P13: =IF(AND(COUNTIF(Rates!$M$5:$M$37,D13)=1,COUNTIF(Rates!$M$5:$M$37,H13)=1),1,0) -> 0 | Q13: =IF(AND(D13<>"",COUNTIF(SubCountry,D13)=0),1,0) -> 0 | R13: =IF(AND(H13<>"",COUNTIF(SubCountry,H13)=0),1,0) -> 0
C14: =IFERROR(IF(VLOOKUP(B14,Overview!$B$30:$E$84,2,FALSE)=0,"",VLOOKUP(B14,Overview!$B$30:$E$84,2,FALSE)),"") ->  | D14: =IFERROR(IF(OR(VLOOKUP(B14,Overview!$B$30:$E$84,4,FALSE)="Country not found",VLOOKUP(B14,Overview!$B$30:$E$84,3,FALSE)=0),"",VLOOKUP(B14,Overview!$B$30:$E$84,3,FALSE)),"") ->  | E14: =IF(D14="","",CONCATENATE("Staff from"," ",VLOOKUP(D14,Rates!$B$5:$D$105,3,FALSE))) ->  | L14: =IF(O14="Error",0,ROUND(ROUND(G14,0)*(VLOOKUP(J14,Rates!$J$5:$K$10,2,FALSE)),2)) -> 0 | M14: =IF(O14="Error",0,ROUND(IF(AND(ROUND(K14,0)>0,ROUND(K14,0)<=14),ROUND(G14,0)*(ROUND(K14,0)*(INDEX(SubRates,MATCH(H14,SubCountry,0),MATCH(E14,SubCat,0)))),IF(AND(ROUND(K14,0)>14,ROUND(K14,0)<=60),ROUND(G14,0)*((14*(INDEX(SubRates,MATCH(H14,SubCountry,0),MATCH(E14,SubCat,0)))))+ROUND(G14,0)*(((ROUND(K14,0)-14)*(0.7*INDEX(SubRates,MATCH(H14,SubCountry,0),MATCH(E14,SubCat,0))))),IF(ROUND(K14,0)>60,0))),2)) -> 0 | N14: 0 | O14: =IF(OR(COUNTIF(Overview!$B$30:$B$84,B14)=0,C14="",D14="",COUNTIF(SubCountry,D14)=0,E14="",F14="",ISNUMBER(G14)=FALSE,COUNTIF(SubCountry,H14)=0,I14="",COUNTIF(Rates!$J$5:$J$10,J14)=0,ISNUMBER(K14)=FALSE,OR(K14<5,K14>60),P14=1,IF(ISNUMBER(G14)=TRUE,G14=INT(G14*1)/1=FALSE),IF(ISNUMBER(K14)=TRUE,K14=INT(K14*1)/1=FALSE)),"Error","") -> Error | P14: =IF(AND(COUNTIF(Rates!$M$5:$M$37,D14)=1,COUNTIF(Rates!$M$5:$M$37,H14)=1),1,0) -> 0 | Q14: =IF(AND(D14<>"",COUNTIF(SubCountry,D14)=0),1,0) -> 0 | R14: =IF(AND(H14<>"",COUNTIF(SubCountry,H14)=0),1,0) -> 0

Sheet Co-financing
B2: Information for the Co-financing
B4: Total (EUR) | C4: =SUM(I:I) -> 0
B11: Partner N° | C11: Name of Partner (to encode in overview sheet) | D11: Country (to encode in overview sheet) | E11: Item* | F11: Source of Co-financing** | G11: Justification*** | H11: Amount Excluding VAT (EUR) | I11: Total (EUR) | J11: Check Data Encoding
C13: =IFERROR(IF(VLOOKUP(B13,Overview!$B$30:$E$84,2,FALSE)=0,"",VLOOKUP(B13,Overview!$B$30:$E$84,2,FALSE)),"") ->  | D13: =IFERROR(IF(OR(VLOOKUP(B13,Overview!$B$30:$E$84,4,FALSE)="Country not found",VLOOKUP(B13,Overview!$B$30:$E$84,3,FALSE)=0),"",VLOOKUP(B13,Overview!$B$30:$E$84,3,FALSE)),"") ->  | I13: =IF(J13="Error",0,ROUND(H13,2)) -> 0 | J13: =IF(OR(COUNTIF(Overview!$B$30:$B$84,B13)=0,C13="",D13="",E13="",F13="",G13="",ISNUMBER(H13)=FALSE,IF(ISNUMBER(H13)=TRUE,H13=INT(H13*100)/100=FALSE)),"Error","") -> Error
C14: =IFERROR(IF(VLOOKUP(B14,Overview!$B$30:$E$84,2,FALSE)=0,"",VLOOKUP(B14,Overview!$B$30:$E$84,2,FALSE)),"") ->  | D14: =IFERROR(IF(OR(VLOOKUP(B14,Overview!$B$30:$E$84,4,FALSE)="Country not found",VLOOKUP(B14,Overview!$B$30:$E$84,3,FALSE)=0),"",VLOOKUP(B14,Overview!$B$30:$E$84,3,FALSE)),"") ->  | I14: =IF(J14="Error",0,ROUND(H14,2)) -> 0 | J14: =IF(OR(COUNTIF(Overview!$B$30:$B$84,B14)=0,C14="",D14="",E14="",F14="",G14="",ISNUMBER(H14)=FALSE,IF(ISNUMBER(H14)=TRUE,H14=INT(H14*100)/100=FALSE)),"Error","") -> Error
B16: * e.g.: Equipment, Staff costs, travel costs and/or costs of stay, printing & publishing
B17: ** e.g.: governmental grant, organisation/institution's own resources
B18: *** e.g.: Preparation of training materials - 2 days x 7,5 hours x 3 persons x € 25

Sheet Breakdown & Project Funding
B2: Budget Breakdown by Workpackage / Budget Headings
B4: Work Package | C4: 1. Staff Costs | D4: 2. Travel Costs | E4: 3. Costs of Stay | F4: 4. Equipment Costs | G4: 5. Subcontracting Costs | H4: B. Special Mobility Strand | I4: Total (EUR)
B5: Preparation | C5: =SUMIF('1. Staff costs'!B:B,B5,'1. Staff costs'!W:W) -> 0 | D5: =SUMIF('2-3. Travel Costs&Costs of Stay'!B:B,B5,'2-3. Travel Costs&Costs of Stay'!L:L) -> 0 | E5: =SUMIF('2-3. Travel Costs&Costs of Stay'!B:B,B5,'2-3. Travel Costs&Costs of Stay'!M:M) -> 0 | F5: =SUMIF('4. Equipment Costs'!B:B,B5,'4. Equipment Costs'!H:H) -> 0 | G5: =SUMIF('5. Subcontracting Costs'!B:B,B5,'5. Subcontracting Costs'!H:H) -> 0 | I5: =SUM(C5:G5) -> 0
B6: Development | C6: =SUMIF('1. Staff costs'!B:B,B6,'1. Staff costs'!W:W) -> 0 | D6: =SUMIF('2-3. Travel Costs&Costs of Stay'!B:B,B6,'2-3. Travel Costs&Costs of Stay'!L:L) -> 0 | E6: =SUMIF('2-3. Travel Costs&Costs of Stay'!B:B,B6,'2-3. Travel Costs&Costs of Stay'!M:M) -> 0 | F6: =SUMIF('4. Equipment Costs'!B:B,B6,'4. Equipment Costs'!H:H) -> 0 | G6: =SUMIF('5. Subcontracting Costs'!B:B,B6,'5. Subcontracting Costs'!H:H) -> 0 | I6: =SUM(C6:G6) -> 0
B7: Quality | C7: =SUMIF('1. Staff costs'!B:B,B7,'1. Staff costs'!W:W) -> 0 | D7: =SUMIF('2-3. Travel Costs&Costs of Stay'!B:B,B7,'2-3. Travel Costs&Costs of Stay'!L:L) -> 0 | E7: =SUMIF('2-3. Travel Costs&Costs of Stay'!B:B,B7,'2-3. Travel Costs&Costs of Stay'!M:M) -> 0 | F7: =SUMIF('4. Equipment Costs'!B:B,B7,'4. Equipment Costs'!H:H) -> 0 | G7: =SUMIF('5. Subcontracting Costs'!B:B,B7,'5. Subcontracting Costs'!H:H) -> 0 | I7: 0
B8: Dissemination/Exploitation | C8: =SUMIF('1. Staff costs'!B:B,B8,'1. Staff costs'!W:W) -> 0 | D8: =SUMIF('2-3. Travel Costs&Costs of Stay'!B:B,B8,'2-3. Travel Costs&Costs of Stay'!L:L) -> 0 | E8: =SUMIF('2-3. Travel Costs&Costs of Stay'!B:B,B8,'2-3. Travel Costs&Costs of Stay'!M:M) -> 0 | F8: =SUMIF('4. Equipment Costs'!B:B,B8,'4. Equipment Costs'!H:H) -> 0 | G8: =SUMIF('5. Subcontracting Costs'!B:B,B8,'5. Subcontracting Costs'!H:H) -> 0 | I8: 0
B9: Management | C9: =SUMIF('1. Staff costs'!B:B,B9,'1. Staff costs'!W:W) -> 0 | D9: =SUMIF('2-3. Travel Costs&Costs of Stay'!B:B,B9,'2-3. Travel Costs&Costs of Stay'!L:L) -> 0 | E9: =SUMIF('2-3. Travel Costs&Costs of Stay'!B:B,B9,'2-3. Travel Costs&Costs of Stay'!M:M) -> 0 | F9: =SUMIF('4. Equipment Costs'!B:B,B9,'4. Equipment Costs'!H:H) -> 0 | G9: =SUMIF('5. Subcontracting Costs'!B:B,B9,'5. Subcontracting Costs'!H:H) -> 0 | I9: 0
B10: Total | C10: =SUM(C5:C9) -> 0 | D10: 0 | E10: 0 | F10: 0 | G10: =SUM(G5:G9) -> 0 | H10: ='B. Special Mob Strand - Student'!C8+'B. Special Mob Strand - Staff'!C8 -> 0 | I10: =SUM(C10:H10) -> 0
B14: Budget Breakdown by Programme or Partner Countries / Budget Headings
B16: Countries | C16: 1. Staff Costs | D16: 2. Travel Costs | E16: 3. Costs of Stay | F16: 4. Equipment Costs | G16: 5. Subcontracting Costs | H16: B. Special Mobility Strand | I16: Total (EUR)
B17: Programme Countries | C17: =SUMIF(Overview!$E$30:$E$84,B17,Overview!$F$30:$F$84) -> 0 | D17: =SUMIF(Overview!$E$30:$E$84,B17,Overview!$G$30:$G$84) -> 0 | E17: =SUMIF(Overview!$E$30:$E$84,B17,Overview!$H$30:$H$84) -> 0 | F17: =SUMIF(Overview!$E$30:$E$84,B17,Overview!$I$30:$I$84) -> 0 | G17: =SUMIF(Overview!$E$30:$E$84,B17,Overview!$J$30:$J$84) -> 0 | H17: =SUMIF(Overview!$E$30:$E$84,B17,Overview!$K$30:$K$84) -> 0 | I17: =SUM(C17:H17) -> 0
B18: Partner Countries | C18: =SUMIF(Overview!$E$30:$E$84,B18,Overview!$F$30:$F$84) -> 0 | D18: =SUMIF(Overview!$E$30:$E$84,B18,Overview!$G$30:$G$84) -> 0 | E18: =SUMIF(Overview!$E$30:$E$84,B18,Overview!$H$30:$H$84) -> 0 | F18: =SUMIF(Overview!$E$30:$E$84,B18,Overview!$I$30:$I$84) -> 0 | G18: =SUMIF(Overview!$E$30:$E$84,B18,Overview!$J$30:$J$84) -> 0 | H18: =SUMIF(Overview!$E$30:$E$84,B18,Overview!$K$30:$K$84) -> 0 | I18: =SUM(C18:H18) -> 0
B19: Total | C19: =SUM(C17:C18) -> 0 | D19: 0 | E19: 0 | F19: 0 | G19: 0 | H19: 0 | I19: =SUM(C19:H19) -> 0
B23: Budget Breakdown by Partner / Work Package
B25: Partner N° | C25: Preparation | D25: Development | E25: Quality | F25: Dissemination/ Exploitation | G25: Management | H25: B. Special Mobility Strand | I25: Total (EUR)
B26: P1 | C26: =SUMIFS('1. Staff costs'!W:W,'1. Staff costs'!C:C,B26,'1. Staff costs'!B:B,$C$25)+SUMIFS('2-3. Travel Costs&Costs of Stay'!N:N,'2-3. Travel Costs&Costs of Stay'!C:C,B26,'2-3. Travel Costs&Costs of Stay'!B:B,$C$25)+SUMIFS('4. Equipment Costs'!H:H,'4. Equipment Costs'!C:C,B26,'4. Equipment Costs'!B:B,$C$25)+SUMIFS('5. Subcontracting Costs'!H:H,'5. Subcontracting Costs'!C:C,B26,'5. Subcontracting Costs'!B:B,$C$25) -> 0 | D26: =SUMIFS('1. Staff costs'!W:W,'1. Staff costs'!C:C,B26,'1. Staff costs'!B:B,$D$25)+SUMIFS('2-3. Travel Costs&Costs of Stay'!N:N,'2-3. Travel Costs&Costs of Stay'!C:C,B26,'2-3. Travel Costs&Costs of Stay'!B:B,$D$25)+SUMIFS('4. Equipment Costs'!H:H,'4. Equipment Costs'!C:C,B26,'4. Equipment Costs'!B:B,$D$25)+SUMIFS('5. Subcontracting Costs'!H:H,'5. Subcontracting Costs'!C:C,B26,'5. Subcontracting Costs'!B:B,$D$25) -> 0 | E26: =SUMIFS('1. Staff costs'!W:W,'1. Staff costs'!C:C,B26,'1. Staff costs'!B:B,$E$25)+SUMIFS('2-3. Travel Costs&Costs of Stay'!N:N,'2-3. Travel Costs&Costs of Stay'!C:C,B26,'2-3. Travel Costs&Costs of Stay'!B:B,$E$25)+SUMIFS('4. Equipment Costs'!H:H,'4. Equipment Costs'!C:C,B26,'4. Equipment Costs'!B:B,$E$25)+SUMIFS('5. Subcontracting Costs'!H:H,'5. Subcontracting Costs'!C:C,B26,'5. Subcontracting Costs'!B:B,$E$25) -> 0 | F26: =SUMIFS('1. Staff costs'!W:W,'1. Staff costs'!C:C,B26,'1. Staff costs'!B:B,$B$8)+SUMIFS('2-3. Travel Costs&Costs of Stay'!N:N,'2-3. Travel Costs&Costs of Stay'!C:C,B26,'2-3. Travel Costs&Costs of Stay'!B:B,$B$8)+SUMIFS('4. Equipment Costs'!H:H,'4. Equipment Costs'!C:C,B26,'4. Equipment Costs'!B:B,$B$8)+SUMIFS('5. Subcontracting Costs'!H:H,'5. Subcontracting Costs'!C:C,B26,'5. Subcontracting Costs'!B:B,$B$8) -> 0 | G26: =SUMIFS('1. Staff costs'!W:W,'1. Staff costs'!C:C,B26,'1. Staff costs'!B:B,$G$25)+SUMIFS('2-3. Travel Costs&Costs of Stay'!N:N,'2-3. Travel Costs&Costs of Stay'!C:C,B26,'2-3. Travel Costs&Costs of Stay'!B:B,$G$25)+SUMIFS('4. Equipment Costs'!H:H,'4. Equipment Costs'!C:C,B26,'4. Equipment Costs'!B:B,$G$25)+SUMIFS('5. Subcontracting Costs'!H:H,'5. Subcontracting Costs'!C:C,B26,'5. Subcontracting Costs'!B:B,$G$25) -> 0 | H26: =SUMIF('B. Special Mob Strand - Student'!B:B,B26,'B. Special Mob Strand - Student'!N:N)+SUMIF('B. Special Mob Strand - Staff'!B:B,B26,'B. Special Mob Strand - Staff'!N:N) -> 0 | I26: =SUM(C26:H26) -> 0
B27: P2 | C27: =SUMIFS('1. Staff costs'!W:W,'1. Staff costs'!C:C,B27,'1. Staff costs'!B:B,$C$25)+SUMIFS('2-3. Travel Costs&Costs of Stay'!N:N,'2-3. Travel Costs&Costs of Stay'!C:C,B27,'2-3. Travel Costs&Costs of Stay'!B:B,$C$25)+SUMIFS('4. Equipment Costs'!H:H,'4. Equipment Costs'!C:C,B27,'4. Equipment Costs'!B:B,$C$25)+SUMIFS('5. Subcontracting Costs'!H:H,'5. Subcontracting Costs'!C:C,B27,'5. Subcontracting Costs'!B:B,$C$25) -> 0 | D27: =SUMIFS('1. Staff costs'!W:W,'1. Staff costs'!C:C,B27,'1. Staff costs'!B:B,$D$25)+SUMIFS('2-3. Travel Costs&Costs of Stay'!N:N,'2-3. Travel Costs&Costs of Stay'!C:C,B27,'2-3. Travel Costs&Costs of Stay'!B:B,$D$25)+SUMIFS('4. Equipment Costs'!H:H,'4. Equipment Costs'!C:C,B27,'4. Equipment Costs'!B:B,$D$25)+SUMIFS('5. Subcontracting Costs'!H:H,'5. Subcontracting Costs'!C:C,B27,'5. Subcontracting Costs'!B:B,$D$25) -> 0 | E27: =SUMIFS('1. Staff costs'!W:W,'1. Staff costs'!C:C,B27,'1. Staff costs'!B:B,$E$25)+SUMIFS('2-3. Travel Costs&Costs of Stay'!N:N,'2-3. Travel Costs&Costs of Stay'!C:C,B27,'2-3. Travel Costs&Costs of Stay'!B:B,$E$25)+SUMIFS('4. Equipment Costs'!H:H,'4. Equipment Costs'!C:C,B27,'4. Equipment Costs'!B:B,$E$25)+SUMIFS('5. Subcontracting Costs'!H:H,'5. Subcontracting Costs'!C:C,B27,'5. Subcontracting Costs'!B:B,$E$25) -> 0 | F27: =SUMIFS('1. Staff costs'!W:W,'1. Staff costs'!C:C,B27,'1. Staff costs'!B:B,$B$8)+SUMIFS('2-3. Travel Costs&Costs of Stay'!N:N,'2-3. Travel Costs&Costs of Stay'!C:C,B27,'2-3. Travel Costs&Costs of Stay'!B:B,$B$8)+SUMIFS('4. Equipment Costs'!H:H,'4. Equipment Costs'!C:C,B27,'4. Equipment Costs'!B:B,$B$8)+SUMIFS('5. Subcontracting Costs'!H:H,'5. Subcontracting Costs'!C:C,B27,'5. Subcontracting Costs'!B:B,$B$8) -> 0 | G27: =SUMIFS('1. Staff costs'!W:W,'1. Staff costs'!C:C,B27,'1. Staff costs'!B:B,$G$25)+SUMIFS('2-3. Travel Costs&Costs of Stay'!N:N,'2-3. Travel Costs&Costs of Stay'!C:C,B27,'2-3. Travel Costs&Costs of Stay'!B:B,$G$25)+SUMIFS('4. Equipment Costs'!H:H,'4. Equipment Costs'!C:C,B27,'4. Equipment Costs'!B:B,$G$25)+SUMIFS('5. Subcontracting Costs'!H:H,'5. Subcontracting Costs'!C:C,B27,'5. Subcontracting Costs'!B:B,$G$25) -> 0 | H27: =SUMIF('B. Special Mob Strand - Student'!B:B,B27,'B. Special Mob Strand - Student'!N:N)+SUMIF('B. Special Mob Strand - Staff'!B:B,B27,'B. Special Mob Strand - Staff'!N:N) -> 0 | I27: =SUM(C27:H27) -> 0
B28: P3 | C28: =SUMIFS('1. Staff costs'!W:W,'1. Staff costs'!C:C,B28,'1. Staff costs'!B:B,$C$25)+SUMIFS('2-3. Travel Costs&Costs of Stay'!N:N,'2-3. Travel Costs&Costs of Stay'!C:C,B28,'2-3. Travel Costs&Costs of Stay'!B:B,$C$25)+SUMIFS('4. Equipment Costs'!H:H,'4. Equipment Costs'!C:C,B28,'4. Equipment Costs'!B:B,$C$25)+SUMIFS('5. Subcontracting Costs'!H:H,'5. Subcontracting Costs'!C:C,B28,'5. Subcontracting Costs'!B:B,$C$25) -> 0 | D28: =SUMIFS('1. Staff costs'!W:W,'1. Staff costs'!C:C,B28,'1. Staff costs'!B:B,$D$25)+SUMIFS('2-3. Travel Costs&Costs of Stay'!N:N,'2-3. Travel Costs&Costs of Stay'!C:C,B28,'2-3. Travel Costs&Costs of Stay'!B:B,$D$25)+SUMIFS('4. Equipment Costs'!H:H,'4. Equipment Costs'!C:C,B28,'4. Equipment Costs'!B:B,$D$25)+SUMIFS('5. Subcontracting Costs'!H:H,'5. Subcontracting Costs'!C:C,B28,'5. Subcontracting Costs'!B:B,$D$25) -> 0 | E28: =SUMIFS('1. Staff costs'!W:W,'1. Staff costs'!C:C,B28,'1. Staff costs'!B:B,$E$25)+SUMIFS('2-3. Travel Costs&Costs of Stay'!N:N,'2-3. Travel Costs&Costs of Stay'!C:C,B28,'2-3. Travel Costs&Costs of Stay'!B:B,$E$25)+SUMIFS('4. Equipment Costs'!H:H,'4. Equipment Costs'!C:C,B28,'4. Equipment Costs'!B:B,$E$25)+SUMIFS('5. Subcontracting Costs'!H:H,'5. Subcontracting Costs'!C:C,B28,'5. Subcontracting Costs'!B:B,$E$25) -> 0 | F28: =SUMIFS('1. Staff costs'!W:W,'1. Staff costs'!C:C,B28,'1. Staff costs'!B:B,$B$8)+SUMIFS('2-3. Travel Costs&Costs of Stay'!N:N,'2-3. Travel Costs&Costs of Stay'!C:C,B28,'2-3. Travel Costs&Costs of Stay'!B:B,$B$8)+SUMIFS('4. Equipment Costs'!H:H,'4. Equipment Costs'!C:C,B28,'4. Equipment Costs'!B:B,$B$8)+SUMIFS('5. Subcontracting Costs'!H:H,'5. Subcontracting Costs'!C:C,B28,'5. Subcontracting Costs'!B:B,$B$8) -> 0 | G28: =SUMIFS('1. Staff costs'!W:W,'1. Staff costs'!C:C,B28,'1. Staff costs'!B:B,$G$25)+SUMIFS('2-3. Travel Costs&Costs of Stay'!N:N,'2-3. Travel Costs&Costs of Stay'!C:C,B28,'2-3. Travel Costs&Costs of Stay'!B:B,$G$25)+SUMIFS('4. Equipment Costs'!H:H,'4. Equipment Costs'!C:C,B28,'4. Equipment Costs'!B:B,$G$25)+SUMIFS('5. Subcontracting Costs'!H:H,'5. Subcontracting Costs'!C:C,B28,'5. Subcontracting Costs'!B:B,$G$25) -> 0 | H28: =SUMIF('B. Special Mob Strand - Student'!B:B,B28,'B. Special Mob Strand - Student'!N:N)+SUMIF('B. Special Mob Strand - Staff'!B:B,B28,'B. Special Mob Strand - Staff'!N:N) -> 0 | I28: 0
B29: P4 | C29: =SUMIFS('1. Staff costs'!W:W,'1. Staff costs'!C:C,B29,'1. Staff costs'!B:B,$C$25)+SUMIFS('2-3. Travel Costs&Costs of Stay'!N:N,'2-3. Travel Costs&Costs of Stay'!C:C,B29,'2-3. Travel Costs&Costs of Stay'!B:B,$C$25)+SUMIFS('4. Equipment Costs'!H:H,'4. Equipment Costs'!C:C,B29,'4. Equipment Costs'!B:B,$C$25)+SUMIFS('5. Subcontracting Costs'!H:H,'5. Subcontracting Costs'!C:C,B29,'5. Subcontracting Costs'!B:B,$C$25) -> 0 | D29: =SUMIFS('1. Staff costs'!W:W,'1. Staff costs'!C:C,B29,'1. Staff costs'!B:B,$D$25)+SUMIFS('2-3. Travel Costs&Costs of Stay'!N:N,'2-3. Travel Costs&Costs of Stay'!C:C,B29,'2-3. Travel Costs&Costs of Stay'!B:B,$D$25)+SUMIFS('4. Equipment Costs'!H:H,'4. Equipment Costs'!C:C,B29,'4. Equipment Costs'!B:B,$D$25)+SUMIFS('5. Subcontracting Costs'!H:H,'5. Subcontracting Costs'!C:C,B29,'5. Subcontracting Costs'!B:B,$D$25) -> 0 | E29: =SUMIFS('1. Staff costs'!W:W,'1. Staff costs'!C:C,B29,'1. Staff costs'!B:B,$E$25)+SUMIFS('2-3. Travel Costs&Costs of Stay'!N:N,'2-3. Travel Costs&Costs of Stay'!C:C,B29,'2-3. Travel Costs&Costs of Stay'!B:B,$E$25)+SUMIFS('4. Equipment Costs'!H:H,'4. Equipment Costs'!C:C,B29,'4. Equipment Costs'!B:B,$E$25)+SUMIFS('5. Subcontracting Costs'!H:H,'5. Subcontracting Costs'!C:C,B29,'5. Subcontracting Costs'!B:B,$E$25) -> 0 | F29: =SUMIFS('1. Staff costs'!W:W,'1. Staff costs'!C:C,B29,'1. Staff costs'!B:B,$B$8)+SUMIFS('2-3. Travel Costs&Costs of Stay'!N:N,'2-3. Travel Costs&Costs of Stay'!C:C,B29,'2-3. Travel Costs&Costs of Stay'!B:B,$B$8)+SUMIFS('4. Equipment Costs'!H:H,'4. Equipment Costs'!C:C,B29,'4. Equipment Costs'!B:B,$B$8)+SUMIFS('5. Subcontracting Costs'!H:H,'5. Subcontracting Costs'!C:C,B29,'5. Subcontracting Costs'!B:B,$B$8) -> 0 | G29: =SUMIFS('1. Staff costs'!W:W,'1. Staff costs'!C:C,B29,'1. Staff costs'!B:B,$G$25)+SUMIFS('2-3. Travel Costs&Costs of Stay'!N:N,'2-3. Travel Costs&Costs of Stay'!C:C,B29,'2-3. Travel Costs&Costs of Stay'!B:B,$G$25)+SUMIFS('4. Equipment Costs'!H:H,'4. Equipment Costs'!C:C,B29,'4. Equipment Costs'!B:B,$G$25)+SUMIFS('5. Subcontracting Costs'!H:H,'5. Subcontracting Costs'!C:C,B29,'5. Subcontracting Costs'!B:B,$G$25) -> 0 | H29: =SUMIF('B. Special Mob Strand - Student'!B:B,B29,'B. Special Mob Strand - Student'!N:N)+SUMIF('B. Special Mob Strand - Staff'!B:B,B29,'B. Special Mob Strand - Staff'!N:N) -> 0 | I29: 0
B30: P5 | C30: =SUMIFS('1. Staff costs'!W:W,'1. Staff costs'!C:C,B30,'1. Staff costs'!B:B,$C$25)+SUMIFS('2-3. Travel Costs&Costs of Stay'!N:N,'2-3. Travel Costs&Costs of Stay'!C:C,B30,'2-3. Travel Costs&Costs of Stay'!B:B,$C$25)+SUMIFS('4. Equipment Costs'!H:H,'4. Equipment Costs'!C:C,B30,'4. Equipment Costs'!B:B,$C$25)+SUMIFS('5. Subcontracting Costs'!H:H,'5. Subcontracting Costs'!C:C,B30,'5. Subcontracting Costs'!B:B,$C$25) -> 0 | D30: =SUMIFS('1. Staff costs'!W:W,'1. Staff costs'!C:C,B30,'1. Staff costs'!B:B,$D$25)+SUMIFS('2-3. Travel Costs&Costs of Stay'!N:N,'2-3. Travel Costs&Costs of Stay'!C:C,B30,'2-3. Travel Costs&Costs of Stay'!B:B,$D$25)+SUMIFS('4. Equipment Costs'!H:H,'4. Equipment Costs'!C:C,B30,'4. Equipment Costs'!B:B,$D$25)+SUMIFS('5. Subcontracting Costs'!H:H,'5. Subcontracting Costs'!C:C,B30,'5. Subcontracting Costs'!B:B,$D$25) -> 0 | E30: =SUMIFS('1. Staff costs'!W:W,'1. Staff costs'!C:C,B30,'1. Staff costs'!B:B,$E$25)+SUMIFS('2-3. Travel Costs&Costs of Stay'!N:N,'2-3. Travel Costs&Costs of Stay'!C:C,B30,'2-3. Travel Costs&Costs of Stay'!B:B,$E$25)+SUMIFS('4. Equipment Costs'!H:H,'4. Equipment Costs'!C:C,B30,'4. Equipment Costs'!B:B,$E$25)+SUMIFS('5. Subcontracting Costs'!H:H,'5. Subcontracting Costs'!C:C,B30,'5. Subcontracting Costs'!B:B,$E$25) -> 0 | F30: =SUMIFS('1. Staff costs'!W:W,'1. Staff costs'!C:C,B30,'1. Staff costs'!B:B,$B$8)+SUMIFS('2-3. Travel Costs&Costs of Stay'!N:N,'2-3. Travel Costs&Costs of Stay'!C:C,B30,'2-3. Travel Costs&Costs of Stay'!B:B,$B$8)+SUMIFS('4. Equipment Costs'!H:H,'4. Equipment Costs'!C:C,B30,'4. Equipment Costs'!B:B,$B$8)+SUMIFS('5. Subcontracting Costs'!H:H,'5. Subcontracting Costs'!C:C,B30,'5. Subcontracting Costs'!B:B,$B$8) -> 0 | G30: =SUMIFS('1. Staff costs'!W:W,'1. Staff costs'!C:C,B30,'1. Staff costs'!B:B,$G$25)+SUMIFS('2-3. Travel Costs&Costs of Stay'!N:N,'2-3. Travel Costs&Costs of Stay'!C:C,B30,'2-3. Travel Costs&Costs of Stay'!B:B,$G$25)+SUMIFS('4. Equipment Costs'!H:H,'4. Equipment Costs'!C:C,B30,'4. Equipment Costs'!B:B,$G$25)+SUMIFS('5. Subcontracting Costs'!H:H,'5. Subcontracting Costs'!C:C,B30,'5. Subcontracting Costs'!B:B,$G$25) -> 0 | H30: =SUMIF('B. Special Mob Strand - Student'!B:B,B30,'B. Special Mob Strand - Student'!N:N)+SUMIF('B. Special Mob Strand - Staff'!B:B,B30,'B. Special Mob Strand - Staff'!N:N) -> 0 | I30: 0
B31: P6 | C31: =SUMIFS('1. Staff costs'!W:W,'1. Staff costs'!C:C,B31,'1. Staff costs'!B:B,$C$25)+SUMIFS('2-3. Travel Costs&Costs of Stay'!N:N,'2-3. Travel Costs&Costs of Stay'!C:C,B31,'2-3. Travel Costs&Costs of Stay'!B:B,$C$25)+SUMIFS('4. Equipment Costs'!H:H,'4. Equipment Costs'!C:C,B31,'4. Equipment Costs'!B:B,$C$25)+SUMIFS('5. Subcontracting Costs'!H:H,'5. Subcontracting Costs'!C:C,B31,'5. Subcontracting Costs'!B:B,$C$25) -> 0 | D31: =SUMIFS('1. Staff costs'!W:W,'1. Staff costs'!C:C,B31,'1. Staff costs'!B:B,$D$25)+SUMIFS('2-3. Travel Costs&Costs of Stay'!N:N,'2-3. Travel Costs&Costs of Stay'!C:C,B31,'2-3. Travel Costs&Costs of Stay'!B:B,$D$25)+SUMIFS('4. Equipment Costs'!H:H,'4. Equipment Costs'!C:C,B31,'4. Equipment Costs'!B:B,$D$25)+SUMIFS('5. Subcontracting Costs'!H:H,'5. Subcontracting Costs'!C:C,B31,'5. Subcontracting Costs'!B:B,$D$25) -> 0 | E31: =SUMIFS('1. Staff costs'!W:W,'1. Staff costs'!C:C,B31,'1. Staff costs'!B:B,$E$25)+SUMIFS('2-3. Travel Costs&Costs of Stay'!N:N,'2-3. Travel Costs&Costs of Stay'!C:C,B31,'2-3. Travel Costs&Costs of Stay'!B:B,$E$25)+SUMIFS('4. Equipment Costs'!H:H,'4. Equipment Costs'!C:C,B31,'4. Equipment Costs'!B:B,$E$25)+SUMIFS('5. Subcontracting Costs'!H:H,'5. Subcontracting Costs'!C:C,B31,'5. Subcontracting Costs'!B:B,$E$25) -> 0 | F31: =SUMIFS('1. Staff costs'!W:W,'1. Staff costs'!C:C,B31,'1. Staff costs'!B:B,$B$8)+SUMIFS('2-3. Travel Costs&Costs of Stay'!N:N,'2-3. Travel Costs&Costs of Stay'!C:C,B31,'2-3. Travel Costs&Costs of Stay'!B:B,$B$8)+SUMIFS('4. Equipment Costs'!H:H,'4. Equipment Costs'!C:C,B31,'4. Equipment Costs'!B:B,$B$8)+SUMIFS('5. Subcontracting Costs'!H:H,'5. Subcontracting Costs'!C:C,B31,'5. Subcontracting Costs'!B:B,$B$8) -> 0 | G31: =SUMIFS('1. Staff costs'!W:W,'1. Staff costs'!C:C,B31,'1. Staff costs'!B:B,$G$25)+SUMIFS('2-3. Travel Costs&Costs of Stay'!N:N,'2-3. Travel Costs&Costs of Stay'!C:C,B31,'2-3. Travel Costs&Costs of Stay'!B:B,$G$25)+SUMIFS('4. Equipment Costs'!H:H,'4. Equipment Costs'!C:C,B31,'4. Equipment Costs'!B:B,$G$25)+SUMIFS('5. Subcontracting Costs'!H:H,'5. Subcontracting Costs'!C:C,B31,'5. Subcontracting Costs'!B:B,$G$25) -> 0 | H31: =SUMIF('B. Special Mob Strand - Student'!B:B,B31,'B. Special Mob Strand - Student'!N:N)+SUMIF('B. Special Mob Strand - Staff'!B:B,B31,'B. Special Mob Strand - Staff'!N:N) -> 0 | I31: 0
B32: P7 | C32: =SUMIFS('1. Staff costs'!W:W,'1. Staff costs'!C:C,B32,'1. Staff costs'!B:B,$C$25)+SUMIFS('2-3. Travel Costs&Costs of Stay'!N:N,'2-3. Travel Costs&Costs of Stay'!C:C,B32,'2-3. Travel Costs&Costs of Stay'!B:B,$C$25)+SUMIFS('4. Equipment Costs'!H:H,'4. Equipment Costs'!C:C,B32,'4. Equipment Costs'!B:B,$C$25)+SUMIFS('5. Subcontracting Costs'!H:H,'5. Subcontracting Costs'!C:C,B32,'5. Subcontracting Costs'!B:B,$C$25) -> 0 | D32: =SUMIFS('1. Staff costs'!W:W,'1. Staff costs'!C:C,B32,'1. Staff costs'!B:B,$D$25)+SUMIFS('2-3. Travel Costs&Costs of Stay'!N:N,'2-3. Travel Costs&Costs of Stay'!C:C,B32,'2-3. Travel Costs&Costs of Stay'!B:B,$D$25)+SUMIFS('4. Equipment Costs'!H:H,'4. Equipment Costs'!C:C,B32,'4. Equipment Costs'!B:B,$D$25)+SUMIFS('5. Subcontracting Costs'!H:H,'5. Subcontracting Costs'!C:C,B32,'5. Subcontracting Costs'!B:B,$D$25) -> 0 | E32: =SUMIFS('1. Staff costs'!W:W,'1. Staff costs'!C:C,B32,'1. Staff costs'!B:B,$E$25)+SUMIFS('2-3. Travel Costs&Costs of Stay'!N:N,'2-3. Travel Costs&Costs of Stay'!C:C,B32,'2-3. Travel Costs&Costs of Stay'!B:B,$E$25)+SUMIFS('4. Equipment Costs'!H:H,'4. Equipment Costs'!C:C,B32,'4. Equipment Costs'!B:B,$E$25)+SUMIFS('5. Subcontracting Costs'!H:H,'5. Subcontracting Costs'!C:C,B32,'5. Subcontracting Costs'!B:B,$E$25) -> 0 | F32: =SUMIFS('1. Staff costs'!W:W,'1. Staff costs'!C:C,B32,'1. Staff costs'!B:B,$B$8)+SUMIFS('2-3. Travel Costs&Costs of Stay'!N:N,'2-3. Travel Costs&Costs of Stay'!C:C,B32,'2-3. Travel Costs&Costs of Stay'!B:B,$B$8)+SUMIFS('4. Equipment Costs'!H:H,'4. Equipment Costs'!C:C,B32,'4. Equipment Costs'!B:B,$B$8)+SUMIFS('5. Subcontracting Costs'!H:H,'5. Subcontracting Costs'!C:C,B32,'5. Subcontracting Costs'!B:B,$B$8) -> 0 | G32: =SUMIFS('1. Staff costs'!W:W,'1. Staff costs'!C:C,B32,'1. Staff costs'!B:B,$G$25)+SUMIFS('2-3. Travel Costs&Costs of Stay'!N:N,'2-3. Travel Costs&Costs of Stay'!C:C,B32,'2-3. Travel Costs&Costs of Stay'!B:B,$G$25)+SUMIFS('4. Equipment Costs'!H:H,'4. Equipment Costs'!C:C,B32,'4. Equipment Costs'!B:B,$G$25)+SUMIFS('5. Subcontracting Costs'!H:H,'5. Subcontracting Costs'!C:C,B32,'5. Subcontracting Costs'!B:B,$G$25) -> 0 | H32: =SUMIF('B. Special Mob Strand - Student'!B:B,B32,'B. Special Mob Strand - Student'!N:N)+SUMIF('B. Special Mob Strand - Staff'!B:B,B32,'B. Special Mob Strand - Staff'!N:N) -> 0 | I32: 0
B33: P8 | C33: =SUMIFS('1. Staff costs'!W:W,'1. Staff costs'!C:C,B33,'1. Staff costs'!B:B,$C$25)+SUMIFS('2-3. Travel Costs&Costs of Stay'!N:N,'2-3. Travel Costs&Costs of Stay'!C:C,B33,'2-3. Travel Costs&Costs of Stay'!B:B,$C$25)+SUMIFS('4. Equipment Costs'!H:H,'4. Equipment Costs'!C:C,B33,'4. Equipment Costs'!B:B,$C$25)+SUMIFS('5. Subcontracting Costs'!H:H,'5. Subcontracting Costs'!C:C,B33,'5. Subcontracting Costs'!B:B,$C$25) -> 0 | D33: =SUMIFS('1. Staff costs'!W:W,'1. Staff costs'!C:C,B33,'1. Staff costs'!B:B,$D$25)+SUMIFS('2-3. Travel Costs&Costs of Stay'!N:N,'2-3. Travel Costs&Costs of Stay'!C:C,B33,'2-3. Travel Costs&Costs of Stay'!B:B,$D$25)+SUMIFS('4. Equipment Costs'!H:H,'4. Equipment Costs'!C:C,B33,'4. Equipment Costs'!B:B,$D$25)+SUMIFS('5. Subcontracting Costs'!H:H,'5. Subcontracting Costs'!C:C,B33,'5. Subcontracting Costs'!B:B,$D$25) -> 0 | E33: =SUMIFS('1. Staff costs'!W:W,'1. Staff costs'!C:C,B33,'1. Staff costs'!B:B,$E$25)+SUMIFS('2-3. Travel Costs&Costs of Stay'!N:N,'2-3. Travel Costs&Costs of Stay'!C:C,B33,'2-3. Travel Costs&Costs of Stay'!B:B,$E$25)+SUMIFS('4. Equipment Costs'!H:H,'4. Equipment Costs'!C:C,B33,'4. Equipment Costs'!B:B,$E$25)+SUMIFS('5. Subcontracting Costs'!H:H,'5. Subcontracting Costs'!C:C,B33,'5. Subcontracting Costs'!B:B,$E$25) -> 0 | F33: =SUMIFS('1. Staff costs'!W:W,'1. Staff costs'!C:C,B33,'1. Staff costs'!B:B,$B$8)+SUMIFS('2-3. Travel Costs&Costs of Stay'!N:N,'2-3. Travel Costs&Costs of Stay'!C:C,B33,'2-3. Travel Costs&Costs of Stay'!B:B,$B$8)+SUMIFS('4. Equipment Costs'!H:H,'4. Equipment Costs'!C:C,B33,'4. Equipment Costs'!B:B,$B$8)+SUMIFS('5. Subcontracting Costs'!H:H,'5. Subcontracting Costs'!C:C,B33,'5. Subcontracting Costs'!B:B,$B$8) -> 0 | G33: =SUMIFS('1. Staff costs'!W:W,'1. Staff costs'!C:C,B33,'1. Staff costs'!B:B,$G$25)+SUMIFS('2-3. Travel Costs&Costs of Stay'!N:N,'2-3. Travel Costs&Costs of Stay'!C:C,B33,'2-3. Travel Costs&Costs of Stay'!B:B,$G$25)+SUMIFS('4. Equipment Costs'!H:H,'4. Equipment Costs'!C:C,B33,'4. Equipment Costs'!B:B,$G$25)+SUMIFS('5. Subcontracting Costs'!H:H,'5. Subcontracting Costs'!C:C,B33,'5. Subcontracting Costs'!B:B,$G$25) -> 0 | H33: =SUMIF('B. Special Mob Strand - Student'!B:B,B33,'B. Special Mob Strand - Student'!N:N)+SUMIF('B. Special Mob Strand - Staff'!B:B,B33,'B. Special Mob Strand - Staff'!N:N) -> 0 | I33: 0
B34: P9 | C34: =SUMIFS('1. Staff costs'!W:W,'1. Staff costs'!C:C,B34,'1. Staff costs'!B:B,$C$25)+SUMIFS('2-3. Travel Costs&Costs of Stay'!N:N,'2-3. Travel Costs&Costs of Stay'!C:C,B34,'2-3. Travel Costs&Costs of Stay'!B:B,$C$25)+SUMIFS('4. Equipment Costs'!H:H,'4. Equipment Costs'!C:C,B34,'4. Equipment Costs'!B:B,$C$25)+SUMIFS('5. Subcontracting Costs'!H:H,'5. Subcontracting Costs'!C:C,B34,'5. Subcontracting Costs'!B:B,$C$25) -> 0 | D34: =SUMIFS('1. Staff costs'!W:W,'1. Staff costs'!C:C,B34,'1. Staff costs'!B:B,$D$25)+SUMIFS('2-3. Travel Costs&Costs of Stay'!N:N,'2-3. Travel Costs&Costs of Stay'!C:C,B34,'2-3. Travel Costs&Costs of Stay'!B:B,$D$25)+SUMIFS('4. Equipment Costs'!H:H,'4. Equipment Costs'!C:C,B34,'4. Equipment Costs'!B:B,$D$25)+SUMIFS('5. Subcontracting Costs'!H:H,'5. Subcontracting Costs'!C:C,B34,'5. Subcontracting Costs'!B:B,$D$25) -> 0 | E34: =SUMIFS('1. Staff costs'!W:W,'1. Staff costs'!C:C,B34,'1. Staff costs'!B:B,$E$25)+SUMIFS('2-3. Travel Costs&Costs of Stay'!N:N,'2-3. Travel Costs&Costs of Stay'!C:C,B34,'2-3. Travel Costs&Costs of Stay'!B:B,$E$25)+SUMIFS('4. Equipment Costs'!H:H,'4. Equipment Costs'!C:C,B34,'4. Equipment Costs'!B:B,$E$25)+SUMIFS('5. Subcontracting Costs'!H:H,'5. Subcontracting Costs'!C:C,B34,'5. Subcontracting Costs'!B:B,$E$25) -> 0 | F34: =SUMIFS('1. Staff costs'!W:W,'1. Staff costs'!C:C,B34,'1. Staff costs'!B:B,$B$8)+SUMIFS('2-3. Travel Costs&Costs of Stay'!N:N,'2-3. Travel Costs&Costs of Stay'!C:C,B34,'2-3. Travel Costs&Costs of Stay'!B:B,$B$8)+SUMIFS('4. Equipment Costs'!H:H,'4. Equipment Costs'!C:C,B34,'4. Equipment Costs'!B:B,$B$8)+SUMIFS('5. Subcontracting Costs'!H:H,'5. Subcontracting Costs'!C:C,B34,'5. Subcontracting Costs'!B:B,$B$8) -> 0 | G34: =SUMIFS('1. Staff costs'!W:W,'1. Staff costs'!C:C,B34,'1. Staff costs'!B:B,$G$25)+SUMIFS('2-3. Travel Costs&Costs of Stay'!N:N,'2-3. Travel Costs&Costs of Stay'!C:C,B34,'2-3. Travel Costs&Costs of Stay'!B:B,$G$25)+SUMIFS('4. Equipment Costs'!H:H,'4. Equipment Costs'!C:C,B34,'4. Equipment Costs'!B:B,$G$25)+SUMIFS('5. Subcontracting Costs'!H:H,'5. Subcontracting Costs'!C:C,B34,'5. Subcontracting Costs'!B:B,$G$25) -> 0 | H34: =SUMIF('B. Special Mob Strand - Student'!B:B,B34,'B. Special Mob Strand - Student'!N:N)+SUMIF('B. Special Mob Strand - Staff'!B:B,B34,'B. Special Mob Strand - Staff'!N:N) -> 0 | I34: 0
B35: P10 | C35: =SUMIFS('1. Staff costs'!W:W,'1. Staff costs'!C:C,B35,'1. Staff costs'!B:B,$C$25)+SUMIFS('2-3. Travel Costs&Costs of Stay'!N:N,'2-3. Travel Costs&Costs of Stay'!C:C,B35,'2-3. Travel Costs&Costs of Stay'!B:B,$C$25)+SUMIFS('4. Equipment Costs'!H:H,'4. Equipment Costs'!C:C,B35,'4. Equipment Costs'!B:B,$C$25)+SUMIFS('5. Subcontracting Costs'!H:H,'5. Subcontracting Costs'!C:C,B35,'5. Subcontracting Costs'!B:B,$C$25) -> 0 | D35: =SUMIFS('1. Staff costs'!W:W,'1. Staff costs'!C:C,B35,'1. Staff costs'!B:B,$D$25)+SUMIFS('2-3. Travel Costs&Costs of Stay'!N:N,'2-3. Travel Costs&Costs of Stay'!C:C,B35,'2-3. Travel Costs&Costs of Stay'!B:B,$D$25)+SUMIFS('4. Equipment Costs'!H:H,'4. Equipment Costs'!C:C,B35,'4. Equipment Costs'!B:B,$D$25)+SUMIFS('5. Subcontracting Costs'!H:H,'5. Subcontracting Costs'!C:C,B35,'5. Subcontracting Costs'!B:B,$D$25) -> 0 | E35: =SUMIFS('1. Staff costs'!W:W,'1. Staff costs'!C:C,B35,'1. Staff costs'!B:B,$E$25)+SUMIFS('2-3. Travel Costs&Costs of Stay'!N:N,'2-3. Travel Costs&Costs of Stay'!C:C,B35,'2-3. Travel Costs&Costs of Stay'!B:B,$E$25)+SUMIFS('4. Equipment Costs'!H:H,'4. Equipment Costs'!C:C,B35,'4. Equipment Costs'!B:B,$E$25)+SUMIFS('5. Subcontracting Costs'!H:H,'5. Subcontracting Costs'!C:C,B35,'5. Subcontracting Costs'!B:B,$E$25) -> 0 | F35: =SUMIFS('1. Staff costs'!W:W,'1. Staff costs'!C:C,B35,'1. Staff costs'!B:B,$B$8)+SUMIFS('2-3. Travel Costs&Costs of Stay'!N:N,'2-3. Travel Costs&Costs of Stay'!C:C,B35,'2-3. Travel Costs&Costs of Stay'!B:B,$B$8)+SUMIFS('4. Equipment Costs'!H:H,'4. Equipment Costs'!C:C,B35,'4. Equipment Costs'!B:B,$B$8)+SUMIFS('5. Subcontracting Costs'!H:H,'5. Subcontracting Costs'!C:C,B35,'5. Subcontracting Costs'!B:B,$B$8) -> 0 | G35: =SUMIFS('1. Staff costs'!W:W,'1. Staff costs'!C:C,B35,'1. Staff costs'!B:B,$G$25)+SUMIFS('2-3. Travel Costs&Costs of Stay'!N:N,'2-3. Travel Costs&Costs of Stay'!C:C,B35,'2-3. Travel Costs&Costs of Stay'!B:B,$G$25)+SUMIFS('4. Equipment Costs'!H:H,'4. Equipment Costs'!C:C,B35,'4. Equipment Costs'!B:B,$G$25)+SUMIFS('5. Subcontracting Costs'!H:H,'5. Subcontracting Costs'!C:C,B35,'5. Subcontracting Costs'!B:B,$G$25) -> 0 | H35: =SUMIF('B. Special Mob Strand - Student'!B:B,B35,'B. Special Mob Strand - Student'!N:N)+SUMIF('B. Special Mob Strand - Staff'!B:B,B35,'B. Special Mob Strand - Staff'!N:N) -> 0 | I35: 0
B36: P11 | C36: =SUMIFS('1. Staff costs'!W:W,'1. Staff costs'!C:C,B36,'1. Staff costs'!B:B,$C$25)+SUMIFS('2-3. Travel Costs&Costs of Stay'!N:N,'2-3. Travel Costs&Costs of Stay'!C:C,B36,'2-3. Travel Costs&Costs of Stay'!B:B,$C$25)+SUMIFS('4. Equipment Costs'!H:H,'4. Equipment Costs'!C:C,B36,'4. Equipment Costs'!B:B,$C$25)+SUMIFS('5. Subcontracting Costs'!H:H,'5. Subcontracting Costs'!C:C,B36,'5. Subcontracting Costs'!B:B,$C$25) -> 0 | D36: =SUMIFS('1. Staff costs'!W:W,'1. Staff costs'!C:C,B36,'1. Staff costs'!B:B,$D$25)+SUMIFS('2-3. Travel Costs&Costs of Stay'!N:N,'2-3. Travel Costs&Costs of Stay'!C:C,B36,'2-3. Travel Costs&Costs of Stay'!B:B,$D$25)+SUMIFS('4. Equipment Costs'!H:H,'4. Equipment Costs'!C:C,B36,'4. Equipment Costs'!B:B,$D$25)+SUMIFS('5. Subcontracting Costs'!H:H,'5. Subcontracting Costs'!C:C,B36,'5. Subcontracting Costs'!B:B,$D$25) -> 0 | E36: =SUMIFS('1. Staff costs'!W:W,'1. Staff costs'!C:C,B36,'1. Staff costs'!B:B,$E$25)+SUMIFS('2-3. Travel Costs&Costs of Stay'!N:N,'2-3. Travel Costs&Costs of Stay'!C:C,B36,'2-3. Travel Costs&Costs of Stay'!B:B,$E$25)+SUMIFS('4. Equipment Costs'!H:H,'4. Equipment Costs'!C:C,B36,'4. Equipment Costs'!B:B,$E$25)+SUMIFS('5. Subcontracting Costs'!H:H,'5. Subcontracting Costs'!C:C,B36,'5. Subcontracting Costs'!B:B,$E$25) -> 0 | F36: =SUMIFS('1. Staff costs'!W:W,'1. Staff costs'!C:C,B36,'1. Staff costs'!B:B,$B$8)+SUMIFS('2-3. Travel Costs&Costs of Stay'!N:N,'2-3. Travel Costs&Costs of Stay'!C:C,B36,'2-3. Travel Costs&Costs of Stay'!B:B,$B$8)+SUMIFS('4. Equipment Costs'!H:H,'4. Equipment Costs'!C:C,B36,'4. Equipment Costs'!B:B,$B$8)+SUMIFS('5. Subcontracting Costs'!H:H,'5. Subcontracting Costs'!C:C,B36,'5. Subcontracting Costs'!B:B,$B$8) -> 0 | G36: =SUMIFS('1. Staff costs'!W:W,'1. Staff costs'!C:C,B36,'1. Staff costs'!B:B,$G$25)+SUMIFS('2-3. Travel Costs&Costs of Stay'!N:N,'2-3. Travel Costs&Costs of Stay'!C:C,B36,'2-3. Travel Costs&Costs of Stay'!B:B,$G$25)+SUMIFS('4. Equipment Costs'!H:H,'4. Equipment Costs'!C:C,B36,'4. Equipment Costs'!B:B,$G$25)+SUMIFS('5. Subcontracting Costs'!H:H,'5. Subcontracting Costs'!C:C,B36,'5. Subcontracting Costs'!B:B,$G$25) -> 0 | H36: =SUMIF('B. Special Mob Strand - Student'!B:B,B36,'B. Special Mob Strand - Student'!N:N)+SUMIF('B. Special Mob Strand - Staff'!B:B,B36,'B. Special Mob Strand - Staff'!N:N) -> 0 | I36: 0
B37: P12 | C37: =SUMIFS('1. Staff costs'!W:W,'1. Staff costs'!C:C,B37,'1. Staff costs'!B:B,$C$25)+SUMIFS('2-3. Travel Costs&Costs of Stay'!N:N,'2-3. Travel Costs&Costs of Stay'!C:C,B37,'2-3. Travel Costs&Costs of Stay'!B:B,$C$25)+SUMIFS('4. Equipment Costs'!H:H,'4. Equipment Costs'!C:C,B37,'4. Equipment Costs'!B:B,$C$25)+SUMIFS('5. Subcontracting Costs'!H:H,'5. Subcontracting Costs'!C:C,B37,'5. Subcontracting Costs'!B:B,$C$25) -> 0 | D37: =SUMIFS('1. Staff costs'!W:W,'1. Staff costs'!C:C,B37,'1. Staff costs'!B:B,$D$25)+SUMIFS('2-3. Travel Costs&Costs of Stay'!N:N,'2-3. Travel Costs&Costs of Stay'!C:C,B37,'2-3. Travel Costs&Costs of Stay'!B:B,$D$25)+SUMIFS('4. Equipment Costs'!H:H,'4. Equipment Costs'!C:C,B37,'4. Equipment Costs'!B:B,$D$25)+SUMIFS('5. Subcontracting Costs'!H:H,'5. Subcontracting Costs'!C:C,B37,'5. Subcontracting Costs'!B:B,$D$25) -> 0 | E37: =SUMIFS('1. Staff costs'!W:W,'1. Staff costs'!C:C,B37,'1. Staff costs'!B:B,$E$25)+SUMIFS('2-3. Travel Costs&Costs of Stay'!N:N,'2-3. Travel Costs&Costs of Stay'!C:C,B37,'2-3. Travel Costs&Costs of Stay'!B:B,$E$25)+SUMIFS('4. Equipment Costs'!H:H,'4. Equipment Costs'!C:C,B37,'4. Equipment Costs'!B:B,$E$25)+SUMIFS('5. Subcontracting Costs'!H:H,'5. Subcontracting Costs'!C:C,B37,'5. Subcontracting Costs'!B:B,$E$25) -> 0 | F37: =SUMIFS('1. Staff costs'!W:W,'1. Staff costs'!C:C,B37,'1. Staff costs'!B:B,$B$8)+SUMIFS('2-3. Travel Costs&Costs of Stay'!N:N,'2-3. Travel Costs&Costs of Stay'!C:C,B37,'2-3. Travel Costs&Costs of Stay'!B:B,$B$8)+SUMIFS('4. Equipment Costs'!H:H,'4. Equipment Costs'!C:C,B37,'4. Equipment Costs'!B:B,$B$8)+SUMIFS('5. Subcontracting Costs'!H:H,'5. Subcontracting Costs'!C:C,B37,'5. Subcontracting Costs'!B:B,$B$8) -> 0 | G37: =SUMIFS('1. Staff costs'!W:W,'1. Staff costs'!C:C,B37,'1. Staff costs'!B:B,$G$25)+SUMIFS('2-3. Travel Costs&Costs of Stay'!N:N,'2-3. Travel Costs&Costs of Stay'!C:C,B37,'2-3. Travel Costs&Costs of Stay'!B:B,$G$25)+SUMIFS('4. Equipment Costs'!H:H,'4. Equipment Costs'!C:C,B37,'4. Equipment Costs'!B:B,$G$25)+SUMIFS('5. Subcontracting Costs'!H:H,'5. Subcontracting Costs'!C:C,B37,'5. Subcontracting Costs'!B:B,$G$25) -> 0 | H37: =SUMIF('B. Special Mob Strand - Student'!B:B,B37,'B. Special Mob Strand - Student'!N:N)+SUMIF('B. Special Mob Strand - Staff'!B:B,B37,'B. Special Mob Strand - Staff'!N:N) -> 0 | I37: 0
B38: P13 | C38: =SUMIFS('1. Staff costs'!W:W,'1. Staff costs'!C:C,B38,'1. Staff costs'!B:B,$C$25)+SUMIFS('2-3. Travel Costs&Costs of Stay'!N:N,'2-3. Travel Costs&Costs of Stay'!C:C,B38,'2-3. Travel Costs&Costs of Stay'!B:B,$C$25)+SUMIFS('4. Equipment Costs'!H:H,'4. Equipment Costs'!C:C,B38,'4. Equipment Costs'!B:B,$C$25)+SUMIFS('5. Subcontracting Costs'!H:H,'5. Subcontracting Costs'!C:C,B38,'5. Subcontracting Costs'!B:B,$C$25) -> 0 | D38: =SUMIFS('1. Staff costs'!W:W,'1. Staff costs'!C:C,B38,'1. Staff costs'!B:B,$D$25)+SUMIFS('2-3. Travel Costs&Costs of Stay'!N:N,'2-3. Travel Costs&Costs of Stay'!C:C,B38,'2-3. Travel Costs&Costs of Stay'!B:B,$D$25)+SUMIFS('4. Equipment Costs'!H:H,'4. Equipment Costs'!C:C,B38,'4. Equipment Costs'!B:B,$D$25)+SUMIFS('5. Subcontracting Costs'!H:H,'5. Subcontracting Costs'!C:C,B38,'5. Subcontracting Costs'!B:B,$D$25) -> 0 | E38: =SUMIFS('1. Staff costs'!W:W,'1. Staff costs'!C:C,B38,'1. Staff costs'!B:B,$E$25)+SUMIFS('2-3. Travel Costs&Costs of Stay'!N:N,'2-3. Travel Costs&Costs of Stay'!C:C,B38,'2-3. Travel Costs&Costs of Stay'!B:B,$E$25)+SUMIFS('4. Equipment Costs'!H:H,'4. Equipment Costs'!C:C,B38,'4. Equipment Costs'!B:B,$E$25)+SUMIFS('5. Subcontracting Costs'!H:H,'5. Subcontracting Costs'!C:C,B38,'5. Subcontracting Costs'!B:B,$E$25) -> 0 | F38: =SUMIFS('1. Staff costs'!W:W,'1. Staff costs'!C:C,B38,'1. Staff costs'!B:B,$B$8)+SUMIFS('2-3. Travel Costs&Costs of Stay'!N:N,'2-3. Travel Costs&Costs of Stay'!C:C,B38,'2-3. Travel Costs&Costs of Stay'!B:B,$B$8)+SUMIFS('4. Equipment Costs'!H:H,'4. Equipment Costs'!C:C,B38,'4. Equipment Costs'!B:B,$B$8)+SUMIFS('5. Subcontracting Costs'!H:H,'5. Subcontracting Costs'!C:C,B38,'5. Subcontracting Costs'!B:B,$B$8) -> 0 | G38: =SUMIFS('1. Staff costs'!W:W,'1. Staff costs'!C:C,B38,'1. Staff costs'!B:B,$G$25)+SUMIFS('2-3. Travel Costs&Costs of Stay'!N:N,'2-3. Travel Costs&Costs of Stay'!C:C,B38,'2-3. Travel Costs&Costs of Stay'!B:B,$G$25)+SUMIFS('4. Equipment Costs'!H:H,'4. Equipment Costs'!C:C,B38,'4. Equipment Costs'!B:B,$G$25)+SUMIFS('5. Subcontracting Costs'!H:H,'5. Subcontracting Costs'!C:C,B38,'5. Subcontracting Costs'!B:B,$G$25) -> 0 | H38: =SUMIF('B. Special Mob Strand - Student'!B:B,B38,'B. Special Mob Strand - Student'!N:N)+SUMIF('B. Special Mob Strand - Staff'!B:B,B38,'B. Special Mob Strand - Staff'!N:N) -> 0 | I38: 0
B39: P14 | C39: =SUMIFS('1. Staff costs'!W:W,'1. Staff costs'!C:C,B39,'1. Staff costs'!B:B,$C$25)+SUMIFS('2-3. Travel Costs&Costs of Stay'!N:N,'2-3. Travel Costs&Costs of Stay'!C:C,B39,'2-3. Travel Costs&Costs of Stay'!B:B,$C$25)+SUMIFS('4. Equipment Costs'!H:H,'4. Equipment Costs'!C:C,B39,'4. Equipment Costs'!B:B,$C$25)+SUMIFS('5. Subcontracting Costs'!H:H,'5. Subcontracting Costs'!C:C,B39,'5. Subcontracting Costs'!B:B,$C$25) -> 0 | D39: =SUMIFS('1. Staff costs'!W:W,'1. Staff costs'!C:C,B39,'1. Staff costs'!B:B,$D$25)+SUMIFS('2-3. Travel Costs&Costs of Stay'!N:N,'2-3. Travel Costs&Costs of Stay'!C:C,B39,'2-3. Travel Costs&Costs of Stay'!B:B,$D$25)+SUMIFS('4. Equipment Costs'!H:H,'4. Equipment Costs'!C:C,B39,'4. Equipment Costs'!B:B,$D$25)+SUMIFS('5. Subcontracting Costs'!H:H,'5. Subcontracting Costs'!C:C,B39,'5. Subcontracting Costs'!B:B,$D$25) -> 0 | E39: =SUMIFS('1. Staff costs'!W:W,'1. Staff costs'!C:C,B39,'1. Staff costs'!B:B,$E$25)+SUMIFS('2-3. Travel Costs&Costs of Stay'!N:N,'2-3. Travel Costs&Costs of Stay'!C:C,B39,'2-3. Travel Costs&Costs of Stay'!B:B,$E$25)+SUMIFS('4. Equipment Costs'!H:H,'4. Equipment Costs'!C:C,B39,'4. Equipment Costs'!B:B,$E$25)+SUMIFS('5. Subcontracting Costs'!H:H,'5. Subcontracting Costs'!C:C,B39,'5. Subcontracting Costs'!B:B,$E$25) -> 0 | F39: =SUMIFS('1. Staff costs'!W:W,'1. Staff costs'!C:C,B39,'1. Staff costs'!B:B,$B$8)+SUMIFS('2-3. Travel Costs&Costs of Stay'!N:N,'2-3. Travel Costs&Costs of Stay'!C:C,B39,'2-3. Travel Costs&Costs of Stay'!B:B,$B$8)+SUMIFS('4. Equipment Costs'!H:H,'4. Equipment Costs'!C:C,B39,'4. Equipment Costs'!B:B,$B$8)+SUMIFS('5. Subcontracting Costs'!H:H,'5. Subcontracting Costs'!C:C,B39,'5. Subcontracting Costs'!B:B,$B$8) -> 0 | G39: =SUMIFS('1. Staff costs'!W:W,'1. Staff costs'!C:C,B39,'1. Staff costs'!B:B,$G$25)+SUMIFS('2-3. Travel Costs&Costs of Stay'!N:N,'2-3. Travel Costs&Costs of Stay'!C:C,B39,'2-3. Travel Costs&Costs of Stay'!B:B,$G$25)+SUMIFS('4. Equipment Costs'!H:H,'4. Equipment Costs'!C:C,B39,'4. Equipment Costs'!B:B,$G$25)+SUMIFS('5. Subcontracting Costs'!H:H,'5. Subcontracting Costs'!C:C,B39,'5. Subcontracting Costs'!B:B,$G$25) -> 0 | H39: =SUMIF('B. Special Mob Strand - Student'!B:B,B39,'B. Special Mob Strand - Student'!N:N)+SUMIF('B. Special Mob Strand - Staff'!B:B,B39,'B. Special Mob Strand - Staff'!N:N) -> 0 | I39: 0
B40: P15 | C40: =SUMIFS('1. Staff costs'!W:W,'1. Staff costs'!C:C,B40,'1. Staff costs'!B:B,$C$25)+SUMIFS('2-3. Travel Costs&Costs of Stay'!N:N,'2-3. Travel Costs&Costs of Stay'!C:C,B40,'2-3. Travel Costs&Costs of Stay'!B:B,$C$25)+SUMIFS('4. Equipment Costs'!H:H,'4. Equipment Costs'!C:C,B40,'4. Equipment Costs'!B:B,$C$25)+SUMIFS('5. Subcontracting Costs'!H:H,'5. Subcontracting Costs'!C:C,B40,'5. Subcontracting Costs'!B:B,$C$25) -> 0 | D40: =SUMIFS('1. Staff costs'!W:W,'1. Staff costs'!C:C,B40,'1. Staff costs'!B:B,$D$25)+SUMIFS('2-3. Travel Costs&Costs of Stay'!N:N,'2-3. Travel Costs&Costs of Stay'!C:C,B40,'2-3. Travel Costs&Costs of Stay'!B:B,$D$25)+SUMIFS('4. Equipment Costs'!H:H,'4. Equipment Costs'!C:C,B40,'4. Equipment Costs'!B:B,$D$25)+SUMIFS('5. Subcontracting Costs'!H:H,'5. Subcontracting Costs'!C:C,B40,'5. Subcontracting Costs'!B:B,$D$25) -> 0 | E40: =SUMIFS('1. Staff costs'!W:W,'1. Staff costs'!C:C,B40,'1. Staff costs'!B:B,$E$25)+SUMIFS('2-3. Travel Costs&Costs of Stay'!N:N,'2-3. Travel Costs&Costs of Stay'!C:C,B40,'2-3. Travel Costs&Costs of Stay'!B:B,$E$25)+SUMIFS('4. Equipment Costs'!H:H,'4. Equipment Costs'!C:C,B40,'4. Equipment Costs'!B:B,$E$25)+SUMIFS('5. Subcontracting Costs'!H:H,'5. Subcontracting Costs'!C:C,B40,'5. Subcontracting Costs'!B:B,$E$25) -> 0 | F40: =SUMIFS('1. Staff costs'!W:W,'1. Staff costs'!C:C,B40,'1. Staff costs'!B:B,$B$8)+SUMIFS('2-3. Travel Costs&Costs of Stay'!N:N,'2-3. Travel Costs&Costs of Stay'!C:C,B40,'2-3. Travel Costs&Costs of Stay'!B:B,$B$8)+SUMIFS('4. Equipment Costs'!H:H,'4. Equipment Costs'!C:C,B40,'4. Equipment Costs'!B:B,$B$8)+SUMIFS('5. Subcontracting Costs'!H:H,'5. Subcontracting Costs'!C:C,B40,'5. Subcontracting Costs'!B:B,$B$8) -> 0 | G40: =SUMIFS('1. Staff costs'!W:W,'1. Staff costs'!C:C,B40,'1. Staff costs'!B:B,$G$25)+SUMIFS('2-3. Travel Costs&Costs of Stay'!N:N,'2-3. Travel Costs&Costs of Stay'!C:C,B40,'2-3. Travel Costs&Costs of Stay'!B:B,$G$25)+SUMIFS('4. Equipment Costs'!H:H,'4. Equipment Costs'!C:C,B40,'4. Equipment Costs'!B:B,$G$25)+SUMIFS('5. Subcontracting Costs'!H:H,'5. Subcontracting Costs'!C:C,B40,'5. Subcontracting Costs'!B:B,$G$25) -> 0 | H40: =SUMIF('B. Special Mob Strand - Student'!B:B,B40,'B. Special Mob Strand - Student'!N:N)+SUMIF('B. Special Mob Strand - Staff'!B:B,B40,'B. Special Mob Strand - Staff'!N:N) -> 0 | I40: 0
B41: P16 | C41: =SUMIFS('1. Staff costs'!W:W,'1. Staff costs'!C:C,B41,'1. Staff costs'!B:B,$C$25)+SUMIFS('2-3. Travel Costs&Costs of Stay'!N:N,'2-3. Travel Costs&Costs of Stay'!C:C,B41,'2-3. Travel Costs&Costs of Stay'!B:B,$C$25)+SUMIFS('4. Equipment Costs'!H:H,'4. Equipment Costs'!C:C,B41,'4. Equipment Costs'!B:B,$C$25)+SUMIFS('5. Subcontracting Costs'!H:H,'5. Subcontracting Costs'!C:C,B41,'5. Subcontracting Costs'!B:B,$C$25) -> 0 | D41: =SUMIFS('1. Staff costs'!W:W,'1. Staff costs'!C:C,B41,'1. Staff costs'!B:B,$D$25)+SUMIFS('2-3. Travel Costs&Costs of Stay'!N:N,'2-3. Travel Costs&Costs of Stay'!C:C,B41,'2-3. Travel Costs&Costs of Stay'!B:B,$D$25)+SUMIFS('4. Equipment Costs'!H:H,'4. Equipment Costs'!C:C,B41,'4. Equipment Costs'!B:B,$D$25)+SUMIFS('5. Subcontracting Costs'!H:H,'5. Subcontracting Costs'!C:C,B41,'5. Subcontracting Costs'!B:B,$D$25) -> 0 | E41: =SUMIFS('1. Staff costs'!W:W,'1. Staff costs'!C:C,B41,'1. Staff costs'!B:B,$E$25)+SUMIFS('2-3. Travel Costs&Costs of Stay'!N:N,'2-3. Travel Costs&Costs of Stay'!C:C,B41,'2-3. Travel Costs&Costs of Stay'!B:B,$E$25)+SUMIFS('4. Equipment Costs'!H:H,'4. Equipment Costs'!C:C,B41,'4. Equipment Costs'!B:B,$E$25)+SUMIFS('5. Subcontracting Costs'!H:H,'5. Subcontracting Costs'!C:C,B41,'5. Subcontracting Costs'!B:B,$E$25) -> 0 | F41: =SUMIFS('1. Staff costs'!W:W,'1. Staff costs'!C:C,B41,'1. Staff costs'!B:B,$B$8)+SUMIFS('2-3. Travel Costs&Costs of Stay'!N:N,'2-3. Travel Costs&Costs of Stay'!C:C,B41,'2-3. Travel Costs&Costs of Stay'!B:B,$B$8)+SUMIFS('4. Equipment Costs'!H:H,'4. Equipment Costs'!C:C,B41,'4. Equipment Costs'!B:B,$B$8)+SUMIFS('5. Subcontracting Costs'!H:H,'5. Subcontracting Costs'!C:C,B41,'5. Subcontracting Costs'!B:B,$B$8) -> 0 | G41: =SUMIFS('1. Staff costs'!W:W,'1. Staff costs'!C:C,B41,'1. Staff costs'!B:B,$G$25)+SUMIFS('2-3. Travel Costs&Costs of Stay'!N:N,'2-3. Travel Costs&Costs of Stay'!C:C,B41,'2-3. Travel Costs&Costs of Stay'!B:B,$G$25)+SUMIFS('4. Equipment Costs'!H:H,'4. Equipment Costs'!C:C,B41,'4. Equipment Costs'!B:B,$G$25)+SUMIFS('5. Subcontracting Costs'!H:H,'5. Subcontracting Costs'!C:C,B41,'5. Subcontracting Costs'!B:B,$G$25) -> 0 | H41: =SUMIF('B. Special Mob Strand - Student'!B:B,B41,'B. Special Mob Strand - Student'!N:N)+SUMIF('B. Special Mob Strand - Staff'!B:B,B41,'B. Special Mob Strand - Staff'!N:N) -> 0 | I41: 0
B42: P17 | C42: =SUMIFS('1. Staff costs'!W:W,'1. Staff costs'!C:C,B42,'1. Staff costs'!B:B,$C$25)+SUMIFS('2-3. Travel Costs&Costs of Stay'!N:N,'2-3. Travel Costs&Costs of Stay'!C:C,B42,'2-3. Travel Costs&Costs of Stay'!B:B,$C$25)+SUMIFS('4. Equipment Costs'!H:H,'4. Equipment Costs'!C:C,B42,'4. Equipment Costs'!B:B,$C$25)+SUMIFS('5. Subcontracting Costs'!H:H,'5. Subcontracting Costs'!C:C,B42,'5. Subcontracting Costs'!B:B,$C$25) -> 0 | D42: =SUMIFS('1. Staff costs'!W:W,'1. Staff costs'!C:C,B42,'1. Staff costs'!B:B,$D$25)+SUMIFS('2-3. Travel Costs&Costs of Stay'!N:N,'2-3. Travel Costs&Costs of Stay'!C:C,B42,'2-3. Travel Costs&Costs of Stay'!B:B,$D$25)+SUMIFS('4. Equipment Costs'!H:H,'4. Equipment Costs'!C:C,B42,'4. Equipment Costs'!B:B,$D$25)+SUMIFS('5. Subcontracting Costs'!H:H,'5. Subcontracting Costs'!C:C,B42,'5. Subcontracting Costs'!B:B,$D$25) -> 0 | E42: =SUMIFS('1. Staff costs'!W:W,'1. Staff costs'!C:C,B42,'1. Staff costs'!B:B,$E$25)+SUMIFS('2-3. Travel Costs&Costs of Stay'!N:N,'2-3. Travel Costs&Costs of Stay'!C:C,B42,'2-3. Travel Costs&Costs of Stay'!B:B,$E$25)+SUMIFS('4. Equipment Costs'!H:H,'4. Equipment Costs'!C:C,B42,'4. Equipment Costs'!B:B,$E$25)+SUMIFS('5. Subcontracting Costs'!H:H,'5. Subcontracting Costs'!C:C,B42,'5. Subcontracting Costs'!B:B,$E$25) -> 0 | F42: =SUMIFS('1. Staff costs'!W:W,'1. Staff costs'!C:C,B42,'1. Staff costs'!B:B,$B$8)+SUMIFS('2-3. Travel Costs&Costs of Stay'!N:N,'2-3. Travel Costs&Costs of Stay'!C:C,B42,'2-3. Travel Costs&Costs of Stay'!B:B,$B$8)+SUMIFS('4. Equipment Costs'!H:H,'4. Equipment Costs'!C:C,B42,'4. Equipment Costs'!B:B,$B$8)+SUMIFS('5. Subcontracting Costs'!H:H,'5. Subcontracting Costs'!C:C,B42,'5. Subcontracting Costs'!B:B,$B$8) -> 0 | G42: =SUMIFS('1. Staff costs'!W:W,'1. Staff costs'!C:C,B42,'1. Staff costs'!B:B,$G$25)+SUMIFS('2-3. Travel Costs&Costs of Stay'!N:N,'2-3. Travel Costs&Costs of Stay'!C:C,B42,'2-3. Travel Costs&Costs of Stay'!B:B,$G$25)+SUMIFS('4. Equipment Costs'!H:H,'4. Equipment Costs'!C:C,B42,'4. Equipment Costs'!B:B,$G$25)+SUMIFS('5. Subcontracting Costs'!H:H,'5. Subcontracting Costs'!C:C,B42,'5. Subcontracting Costs'!B:B,$G$25) -> 0 | H42: =SUMIF('B. Special Mob Strand - Student'!B:B,B42,'B. Special Mob Strand - Student'!N:N)+SUMIF('B. Special Mob Strand - Staff'!B:B,B42,'B. Special Mob Strand - Staff'!N:N) -> 0 | I42: 0
B43: P18 | C43: =SUMIFS('1. Staff costs'!W:W,'1. Staff costs'!C:C,B43,'1. Staff costs'!B:B,$C$25)+SUMIFS('2-3. Travel Costs&Costs of Stay'!N:N,'2-3. Travel Costs&Costs of Stay'!C:C,B43,'2-3. Travel Costs&Costs of Stay'!B:B,$C$25)+SUMIFS('4. Equipment Costs'!H:H,'4. Equipment Costs'!C:C,B43,'4. Equipment Costs'!B:B,$C$25)+SUMIFS('5. Subcontracting Costs'!H:H,'5. Subcontracting Costs'!C:C,B43,'5. Subcontracting Costs'!B:B,$C$25) -> 0 | D43: =SUMIFS('1. Staff costs'!W:W,'1. Staff costs'!C:C,B43,'1. Staff costs'!B:B,$D$25)+SUMIFS('2-3. Travel Costs&Costs of Stay'!N:N,'2-3. Travel Costs&Costs of Stay'!C:C,B43,'2-3. Travel Costs&Costs of Stay'!B:B,$D$25)+SUMIFS('4. Equipment Costs'!H:H,'4. Equipment Costs'!C:C,B43,'4. Equipment Costs'!B:B,$D$25)+SUMIFS('5. Subcontracting Costs'!H:H,'5. Subcontracting Costs'!C:C,B43,'5. Subcontracting Costs'!B:B,$D$25) -> 0 | E43: =SUMIFS('1. Staff costs'!W:W,'1. Staff costs'!C:C,B43,'1. Staff costs'!B:B,$E$25)+SUMIFS('2-3. Travel Costs&Costs of Stay'!N:N,'2-3. Travel Costs&Costs of Stay'!C:C,B43,'2-3. Travel Costs&Costs of Stay'!B:B,$E$25)+SUMIFS('4. Equipment Costs'!H:H,'4. Equipment Costs'!C:C,B43,'4. Equipment Costs'!B:B,$E$25)+SUMIFS('5. Subcontracting Costs'!H:H,'5. Subcontracting Costs'!C:C,B43,'5. Subcontracting Costs'!B:B,$E$25) -> 0 | F43: =SUMIFS('1. Staff costs'!W:W,'1. Staff costs'!C:C,B43,'1. Staff costs'!B:B,$B$8)+SUMIFS('2-3. Travel Costs&Costs of Stay'!N:N,'2-3. Travel Costs&Costs of Stay'!C:C,B43,'2-3. Travel Costs&Costs of Stay'!B:B,$B$8)+SUMIFS('4. Equipment Costs'!H:H,'4. Equipment Costs'!C:C,B43,'4. Equipment Costs'!B:B,$B$8)+SUMIFS('5. Subcontracting Costs'!H:H,'5. Subcontracting Costs'!C:C,B43,'5. Subcontracting Costs'!B:B,$B$8) -> 0 | G43: =SUMIFS('1. Staff costs'!W:W,'1. Staff costs'!C:C,B43,'1. Staff costs'!B:B,$G$25)+SUMIFS('2-3. Travel Costs&Costs of Stay'!N:N,'2-3. Travel Costs&Costs of Stay'!C:C,B43,'2-3. Travel Costs&Costs of Stay'!B:B,$G$25)+SUMIFS('4. Equipment Costs'!H:H,'4. Equipment Costs'!C:C,B43,'4. Equipment Costs'!B:B,$G$25)+SUMIFS('5. Subcontracting Costs'!H:H,'5. Subcontracting Costs'!C:C,B43,'5. Subcontracting Costs'!B:B,$G$25) -> 0 | H43: =SUMIF('B. Special Mob Strand - Student'!B:B,B43,'B. Special Mob Strand - Student'!N:N)+SUMIF('B. Special Mob Strand - Staff'!B:B,B43,'B. Special Mob Strand - Staff'!N:N) -> 0 | I43: 0
B44: P19 | C44: =SUMIFS('1. Staff costs'!W:W,'1. Staff costs'!C:C,B44,'1. Staff costs'!B:B,$C$25)+SUMIFS('2-3. Travel Costs&Costs of Stay'!N:N,'2-3. Travel Costs&Costs of Stay'!C:C,B44,'2-3. Travel Costs&Costs of Stay'!B:B,$C$25)+SUMIFS('4. Equipment Costs'!H:H,'4. Equipment Costs'!C:C,B44,'4. Equipment Costs'!B:B,$C$25)+SUMIFS('5. Subcontracting Costs'!H:H,'5. Subcontracting Costs'!C:C,B44,'5. Subcontracting Costs'!B:B,$C$25) -> 0 | D44: =SUMIFS('1. Staff costs'!W:W,'1. Staff costs'!C:C,B44,'1. Staff costs'!B:B,$D$25)+SUMIFS('2-3. Travel Costs&Costs of Stay'!N:N,'2-3. Travel Costs&Costs of Stay'!C:C,B44,'2-3. Travel Costs&Costs of Stay'!B:B,$D$25)+SUMIFS('4. Equipment Costs'!H:H,'4. Equipment Costs'!C:C,B44,'4. Equipment Costs'!B:B,$D$25)+SUMIFS('5. Subcontracting Costs'!H:H,'5. Subcontracting Costs'!C:C,B44,'5. Subcontracting Costs'!B:B,$D$25) -> 0 | E44: =SUMIFS('1. Staff costs'!W:W,'1. Staff costs'!C:C,B44,'1. Staff costs'!B:B,$E$25)+SUMIFS('2-3. Travel Costs&Costs of Stay'!N:N,'2-3. Travel Costs&Costs of Stay'!C:C,B44,'2-3. Travel Costs&Costs of Stay'!B:B,$E$25)+SUMIFS('4. Equipment Costs'!H:H,'4. Equipment Costs'!C:C,B44,'4. Equipment Costs'!B:B,$E$25)+SUMIFS('5. Subcontracting Costs'!H:H,'5. Subcontracting Costs'!C:C,B44,'5. Subcontracting Costs'!B:B,$E$25) -> 0 | F44: =SUMIFS('1. Staff costs'!W:W,'1. Staff costs'!C:C,B44,'1. Staff costs'!B:B,$B$8)+SUMIFS('2-3. Travel Costs&Costs of Stay'!N:N,'2-3. Travel Costs&Costs of Stay'!C:C,B44,'2-3. Travel Costs&Costs of Stay'!B:B,$B$8)+SUMIFS('4. Equipment Costs'!H:H,'4. Equipment Costs'!C:C,B44,'4. Equipment Costs'!B:B,$B$8)+SUMIFS('5. Subcontracting Costs'!H:H,'5. Subcontracting Costs'!C:C,B44,'5. Subcontracting Costs'!B:B,$B$8) -> 0 | G44: =SUMIFS('1. Staff costs'!W:W,'1. Staff costs'!C:C,B44,'1. Staff costs'!B:B,$G$25)+SUMIFS('2-3. Travel Costs&Costs of Stay'!N:N,'2-3. Travel Costs&Costs of Stay'!C:C,B44,'2-3. Travel Costs&Costs of Stay'!B:B,$G$25)+SUMIFS('4. Equipment Costs'!H:H,'4. Equipment Costs'!C:C,B44,'4. Equipment Costs'!B:B,$G$25)+SUMIFS('5. Subcontracting Costs'!H:H,'5. Subcontracting Costs'!C:C,B44,'5. Subcontracting Costs'!B:B,$G$25) -> 0 | H44: =SUMIF('B. Special Mob Strand - Student'!B:B,B44,'B. Special Mob Strand - Student'!N:N)+SUMIF('B. Special Mob Strand - Staff'!B:B,B44,'B. Special Mob Strand - Staff'!N:N) -> 0 | I44: 0
B45: P20 | C45: =SUMIFS('1. Staff costs'!W:W,'1. Staff costs'!C:C,B45,'1. Staff costs'!B:B,$C$25)+SUMIFS('2-3. Travel Costs&Costs of Stay'!N:N,'2-3. Travel Costs&Costs of Stay'!C:C,B45,'2-3. Travel Costs&Costs of Stay'!B:B,$C$25)+SUMIFS('4. Equipment Costs'!H:H,'4. Equipment Costs'!C:C,B45,'4. Equipment Costs'!B:B,$C$25)+SUMIFS('5. Subcontracting Costs'!H:H,'5. Subcontracting Costs'!C:C,B45,'5. Subcontracting Costs'!B:B,$C$25) -> 0 | D45: =SUMIFS('1. Staff costs'!W:W,'1. Staff costs'!C:C,B45,'1. Staff costs'!B:B,$D$25)+SUMIFS('2-3. Travel Costs&Costs of Stay'!N:N,'2-3. Travel Costs&Costs of Stay'!C:C,B45,'2-3. Travel Costs&Costs of Stay'!B:B,$D$25)+SUMIFS('4. Equipment Costs'!H:H,'4. Equipment Costs'!C:C,B45,'4. Equipment Costs'!B:B,$D$25)+SUMIFS('5. Subcontracting Costs'!H:H,'5. Subcontracting Costs'!C:C,B45,'5. Subcontracting Costs'!B:B,$D$25) -> 0 | E45: =SUMIFS('1. Staff costs'!W:W,'1. Staff costs'!C:C,B45,'1. Staff costs'!B:B,$E$25)+SUMIFS('2-3. Travel Costs&Costs of Stay'!N:N,'2-3. Travel Costs&Costs of Stay'!C:C,B45,'2-3. Travel Costs&Costs of Stay'!B:B,$E$25)+SUMIFS('4. Equipment Costs'!H:H,'4. Equipment Costs'!C:C,B45,'4. Equipment Costs'!B:B,$E$25)+SUMIFS('5. Subcontracting Costs'!H:H,'5. Subcontracting Costs'!C:C,B45,'5. Subcontracting Costs'!B:B,$E$25) -> 0 | F45: =SUMIFS('1. Staff costs'!W:W,'1. Staff costs'!C:C,B45,'1. Staff costs'!B:B,$B$8)+SUMIFS('2-3. Travel Costs&Costs of Stay'!N:N,'2-3. Travel Costs&Costs of Stay'!C:C,B45,'2-3. Travel Costs&Costs of Stay'!B:B,$B$8)+SUMIFS('4. Equipment Costs'!H:H,'4. Equipment Costs'!C:C,B45,'4. Equipment Costs'!B:B,$B$8)+SUMIFS('5. Subcontracting Costs'!H:H,'5. Subcontracting Costs'!C:C,B45,'5. Subcontracting Costs'!B:B,$B$8) -> 0 | G45: =SUMIFS('1. Staff costs'!W:W,'1. Staff costs'!C:C,B45,'1. Staff costs'!B:B,$G$25)+SUMIFS('2-3. Travel Costs&Costs of Stay'!N:N,'2-3. Travel Costs&Costs of Stay'!C:C,B45,'2-3. Travel Costs&Costs of Stay'!B:B,$G$25)+SUMIFS('4. Equipment Costs'!H:H,'4. Equipment Costs'!C:C,B45,'4. Equipment Costs'!B:B,$G$25)+SUMIFS('5. Subcontracting Costs'!H:H,'5. Subcontracting Costs'!C:C,B45,'5. Subcontracting Costs'!B:B,$G$25) -> 0 | H45: =SUMIF('B. Special Mob Strand - Student'!B:B,B45,'B. Special Mob Strand - Student'!N:N)+SUMIF('B. Special Mob Strand - Staff'!B:B,B45,'B. Special Mob Strand - Staff'!N:N) -> 0 | I45: 0
B46: P21 | C46: =SUMIFS('1. Staff costs'!W:W,'1. Staff costs'!C:C,B46,'1. Staff costs'!B:B,$C$25)+SUMIFS('2-3. Travel Costs&Costs of Stay'!N:N,'2-3. Travel Costs&Costs of Stay'!C:C,B46,'2-3. Travel Costs&Costs of Stay'!B:B,$C$25)+SUMIFS('4. Equipment Costs'!H:H,'4. Equipment Costs'!C:C,B46,'4. Equipment Costs'!B:B,$C$25)+SUMIFS('5. Subcontracting Costs'!H:H,'5. Subcontracting Costs'!C:C,B46,'5. Subcontracting Costs'!B:B,$C$25) -> 0 | D46: =SUMIFS('1. Staff costs'!W:W,'1. Staff costs'!C:C,B46,'1. Staff costs'!B:B,$D$25)+SUMIFS('2-3. Travel Costs&Costs of Stay'!N:N,'2-3. Travel Costs&Costs of Stay'!C:C,B46,'2-3. Travel Costs&Costs of Stay'!B:B,$D$25)+SUMIFS('4. Equipment Costs'!H:H,'4. Equipment Costs'!C:C,B46,'4. Equipment Costs'!B:B,$D$25)+SUMIFS('5. Subcontracting Costs'!H:H,'5. Subcontracting Costs'!C:C,B46,'5. Subcontracting Costs'!B:B,$D$25) -> 0 | E46: =SUMIFS('1. Staff costs'!W:W,'1. Staff costs'!C:C,B46,'1. Staff costs'!B:B,$E$25)+SUMIFS('2-3. Travel Costs&Costs of Stay'!N:N,'2-3. Travel Costs&Costs of Stay'!C:C,B46,'2-3. Travel Costs&Costs of Stay'!B:B,$E$25)+SUMIFS('4. Equipment Costs'!H:H,'4. Equipment Costs'!C:C,B46,'4. Equipment Costs'!B:B,$E$25)+SUMIFS('5. Subcontracting Costs'!H:H,'5. Subcontracting Costs'!C:C,B46,'5. Subcontracting Costs'!B:B,$E$25) -> 0 | F46: =SUMIFS('1. Staff costs'!W:W,'1. Staff costs'!C:C,B46,'1. Staff costs'!B:B,$B$8)+SUMIFS('2-3. Travel Costs&Costs of Stay'!N:N,'2-3. Travel Costs&Costs of Stay'!C:C,B46,'2-3. Travel Costs&Costs of Stay'!B:B,$B$8)+SUMIFS('4. Equipment Costs'!H:H,'4. Equipment Costs'!C:C,B46,'4. Equipment Costs'!B:B,$B$8)+SUMIFS('5. Subcontracting Costs'!H:H,'5. Subcontracting Costs'!C:C,B46,'5. Subcontracting Costs'!B:B,$B$8) -> 0 | G46: =SUMIFS('1. Staff costs'!W:W,'1. Staff costs'!C:C,B46,'1. Staff costs'!B:B,$G$25)+SUMIFS('2-3. Travel Costs&Costs of Stay'!N:N,'2-3. Travel Costs&Costs of Stay'!C:C,B46,'2-3. Travel Costs&Costs of Stay'!B:B,$G$25)+SUMIFS('4. Equipment Costs'!H:H,'4. Equipment Costs'!C:C,B46,'4. Equipment Costs'!B:B,$G$25)+SUMIFS('5. Subcontracting Costs'!H:H,'5. Subcontracting Costs'!C:C,B46,'5. Subcontracting Costs'!B:B,$G$25) -> 0 | H46: =SUMIF('B. Special Mob Strand - Student'!B:B,B46,'B. Special Mob Strand - Student'!N:N)+SUMIF('B. Special Mob Strand - Staff'!B:B,B46,'B. Special Mob Strand - Staff'!N:N) -> 0 | I46: 0
B47: P22 | C47: =SUMIFS('1. Staff costs'!W:W,'1. Staff costs'!C:C,B47,'1. Staff costs'!B:B,$C$25)+SUMIFS('2-3. Travel Costs&Costs of Stay'!N:N,'2-3. Travel Costs&Costs of Stay'!C:C,B47,'2-3. Travel Costs&Costs of Stay'!B:B,$C$25)+SUMIFS('4. Equipment Costs'!H:H,'4. Equipment Costs'!C:C,B47,'4. Equipment Costs'!B:B,$C$25)+SUMIFS('5. Subcontracting Costs'!H:H,'5. Subcontracting Costs'!C:C,B47,'5. Subcontracting Costs'!B:B,$C$25) -> 0 | D47: =SUMIFS('1. Staff costs'!W:W,'1. Staff costs'!C:C,B47,'1. Staff costs'!B:B,$D$25)+SUMIFS('2-3. Travel Costs&Costs of Stay'!N:N,'2-3. Travel Costs&Costs of Stay'!C:C,B47,'2-3. Travel Costs&Costs of Stay'!B:B,$D$25)+SUMIFS('4. Equipment Costs'!H:H,'4. Equipment Costs'!C:C,B47,'4. Equipment Costs'!B:B,$D$25)+SUMIFS('5. Subcontracting Costs'!H:H,'5. Subcontracting Costs'!C:C,B47,'5. Subcontracting Costs'!B:B,$D$25) -> 0 | E47: =SUMIFS('1. Staff costs'!W:W,'1. Staff costs'!C:C,B47,'1. Staff costs'!B:B,$E$25)+SUMIFS('2-3. Travel Costs&Costs of Stay'!N:N,'2-3. Travel Costs&Costs of Stay'!C:C,B47,'2-3. Travel Costs&Costs of Stay'!B:B,$E$25)+SUMIFS('4. Equipment Costs'!H:H,'4. Equipment Costs'!C:C,B47,'4. Equipment Costs'!B:B,$E$25)+SUMIFS('5. Subcontracting Costs'!H:H,'5. Subcontracting Costs'!C:C,B47,'5. Subcontracting Costs'!B:B,$E$25) -> 0 | F47: =SUMIFS('1. Staff costs'!W:W,'1. Staff costs'!C:C,B47,'1. Staff costs'!B:B,$B$8)+SUMIFS('2-3. Travel Costs&Costs of Stay'!N:N,'2-3. Travel Costs&Costs of Stay'!C:C,B47,'2-3. Travel Costs&Costs of Stay'!B:B,$B$8)+SUMIFS('4. Equipment Costs'!H:H,'4. Equipment Costs'!C:C,B47,'4. Equipment Costs'!B:B,$B$8)+SUMIFS('5. Subcontracting Costs'!H:H,'5. Subcontracting Costs'!C:C,B47,'5. Subcontracting Costs'!B:B,$B$8) -> 0 | G47: =SUMIFS('1. Staff costs'!W:W,'1. Staff costs'!C:C,B47,'1. Staff costs'!B:B,$G$25)+SUMIFS('2-3. Travel Costs&Costs of Stay'!N:N,'2-3. Travel Costs&Costs of Stay'!C:C,B47,'2-3. Travel Costs&Costs of Stay'!B:B,$G$25)+SUMIFS('4. Equipment Costs'!H:H,'4. Equipment Costs'!C:C,B47,'4. Equipment Costs'!B:B,$G$25)+SUMIFS('5. Subcontracting Costs'!H:H,'5. Subcontracting Costs'!C:C,B47,'5. Subcontracting Costs'!B:B,$G$25) -> 0 | H47: =SUMIF('B. Special Mob Strand - Student'!B:B,B47,'B. Special Mob Strand - Student'!N:N)+SUMIF('B. Special Mob Strand - Staff'!B:B,B47,'B. Special Mob Strand - Staff'!N:N) -> 0 | I47: 0
B48: P23 | C48: =SUMIFS('1. Staff costs'!W:W,'1. Staff costs'!C:C,B48,'1. Staff costs'!B:B,$C$25)+SUMIFS('2-3. Travel Costs&Costs of Stay'!N:N,'2-3. Travel Costs&Costs of Stay'!C:C,B48,'2-3. Travel Costs&Costs of Stay'!B:B,$C$25)+SUMIFS('4. Equipment Costs'!H:H,'4. Equipment Costs'!C:C,B48,'4. Equipment Costs'!B:B,$C$25)+SUMIFS('5. Subcontracting Costs'!H:H,'5. Subcontracting Costs'!C:C,B48,'5. Subcontracting Costs'!B:B,$C$25) -> 0 | D48: =SUMIFS('1. Staff costs'!W:W,'1. Staff costs'!C:C,B48,'1. Staff costs'!B:B,$D$25)+SUMIFS('2-3. Travel Costs&Costs of Stay'!N:N,'2-3. Travel Costs&Costs of Stay'!C:C,B48,'2-3. Travel Costs&Costs of Stay'!B:B,$D$25)+SUMIFS('4. Equipment Costs'!H:H,'4. Equipment Costs'!C:C,B48,'4. Equipment Costs'!B:B,$D$25)+SUMIFS('5. Subcontracting Costs'!H:H,'5. Subcontracting Costs'!C:C,B48,'5. Subcontracting Costs'!B:B,$D$25) -> 0 | E48: =SUMIFS('1. Staff costs'!W:W,'1. Staff costs'!C:C,B48,'1. Staff costs'!B:B,$E$25)+SUMIFS('2-3. Travel Costs&Costs of Stay'!N:N,'2-3. Travel Costs&Costs of Stay'!C:C,B48,'2-3. Travel Costs&Costs of Stay'!B:B,$E$25)+SUMIFS('4. Equipment Costs'!H:H,'4. Equipment Costs'!C:C,B48,'4. Equipment Costs'!B:B,$E$25)+SUMIFS('5. Subcontracting Costs'!H:H,'5. Subcontracting Costs'!C:C,B48,'5. Subcontracting Costs'!B:B,$E$25) -> 0 | F48: =SUMIFS('1. Staff costs'!W:W,'1. Staff costs'!C:C,B48,'1. Staff costs'!B:B,$B$8)+SUMIFS('2-3. Travel Costs&Costs of Stay'!N:N,'2-3. Travel Costs&Costs of Stay'!C:C,B48,'2-3. Travel Costs&Costs of Stay'!B:B,$B$8)+SUMIFS('4. Equipment Costs'!H:H,'4. Equipment Costs'!C:C,B48,'4. Equipment Costs'!B:B,$B$8)+SUMIFS('5. Subcontracting Costs'!H:H,'5. Subcontracting Costs'!C:C,B48,'5. Subcontracting Costs'!B:B,$B$8) -> 0 | G48: =SUMIFS('1. Staff costs'!W:W,'1. Staff costs'!C:C,B48,'1. Staff costs'!B:B,$G$25)+SUMIFS('2-3. Travel Costs&Costs of Stay'!N:N,'2-3. Travel Costs&Costs of Stay'!C:C,B48,'2-3. Travel Costs&Costs of Stay'!B:B,$G$25)+SUMIFS('4. Equipment Costs'!H:H,'4. Equipment Costs'!C:C,B48,'4. Equipment Costs'!B:B,$G$25)+SUMIFS('5. Subcontracting Costs'!H:H,'5. Subcontracting Costs'!C:C,B48,'5. Subcontracting Costs'!B:B,$G$25) -> 0 | H48: =SUMIF('B. Special Mob Strand - Student'!B:B,B48,'B. Special Mob Strand - Student'!N:N)+SUMIF('B. Special Mob Strand - Staff'!B:B,B48,'B. Special Mob Strand - Staff'!N:N) -> 0 | I48: 0
B49: P24 | C49: =SUMIFS('1. Staff costs'!W:W,'1. Staff costs'!C:C,B49,'1. Staff costs'!B:B,$C$25)+SUMIFS('2-3. Travel Costs&Costs of Stay'!N:N,'2-3. Travel Costs&Costs of Stay'!C:C,B49,'2-3. Travel Costs&Costs of Stay'!B:B,$C$25)+SUMIFS('4. Equipment Costs'!H:H,'4. Equipment Costs'!C:C,B49,'4. Equipment Costs'!B:B,$C$25)+SUMIFS('5. Subcontracting Costs'!H:H,'5. Subcontracting Costs'!C:C,B49,'5. Subcontracting Costs'!B:B,$C$25) -> 0 | D49: =SUMIFS('1. Staff costs'!W:W,'1. Staff costs'!C:C,B49,'1. Staff costs'!B:B,$D$25)+SUMIFS('2-3. Travel Costs&Costs of Stay'!N:N,'2-3. Travel Costs&Costs of Stay'!C:C,B49,'2-3. Travel Costs&Costs of Stay'!B:B,$D$25)+SUMIFS('4. Equipment Costs'!H:H,'4. Equipment Costs'!C:C,B49,'4. Equipment Costs'!B:B,$D$25)+SUMIFS('5. Subcontracting Costs'!H:H,'5. Subcontracting Costs'!C:C,B49,'5. Subcontracting Costs'!B:B,$D$25) -> 0 | E49: =SUMIFS('1. Staff costs'!W:W,'1. Staff costs'!C:C,B49,'1. Staff costs'!B:B,$E$25)+SUMIFS('2-3. Travel Costs&Costs of Stay'!N:N,'2-3. Travel Costs&Costs of Stay'!C:C,B49,'2-3. Travel Costs&Costs of Stay'!B:B,$E$25)+SUMIFS('4. Equipment Costs'!H:H,'4. Equipment Costs'!C:C,B49,'4. Equipment Costs'!B:B,$E$25)+SUMIFS('5. Subcontracting Costs'!H:H,'5. Subcontracting Costs'!C:C,B49,'5. Subcontracting Costs'!B:B,$E$25) -> 0 | F49: =SUMIFS('1. Staff costs'!W:W,'1. Staff costs'!C:C,B49,'1. Staff costs'!B:B,$B$8)+SUMIFS('2-3. Travel Costs&Costs of Stay'!N:N,'2-3. Travel Costs&Costs of Stay'!C:C,B49,'2-3. Travel Costs&Costs of Stay'!B:B,$B$8)+SUMIFS('4. Equipment Costs'!H:H,'4. Equipment Costs'!C:C,B49,'4. Equipment Costs'!B:B,$B$8)+SUMIFS('5. Subcontracting Costs'!H:H,'5. Subcontracting Costs'!C:C,B49,'5. Subcontracting Costs'!B:B,$B$8) -> 0 | G49: =SUMIFS('1. Staff costs'!W:W,'1. Staff costs'!C:C,B49,'1. Staff costs'!B:B,$G$25)+SUMIFS('2-3. Travel Costs&Costs of Stay'!N:N,'2-3. Travel Costs&Costs of Stay'!C:C,B49,'2-3. Travel Costs&Costs of Stay'!B:B,$G$25)+SUMIFS('4. Equipment Costs'!H:H,'4. Equipment Costs'!C:C,B49,'4. Equipment Costs'!B:B,$G$25)+SUMIFS('5. Subcontracting Costs'!H:H,'5. Subcontracting Costs'!C:C,B49,'5. Subcontracting Costs'!B:B,$G$25) -> 0 | H49: =SUMIF('B. Special Mob Strand - Student'!B:B,B49,'B. Special Mob Strand - Student'!N:N)+SUMIF('B. Special Mob Strand - Staff'!B:B,B49,'B. Special Mob Strand - Staff'!N:N) -> 0 | I49: 0
B50: P25 | C50: =SUMIFS('1. Staff costs'!W:W,'1. Staff costs'!C:C,B50,'1. Staff costs'!B:B,$C$25)+SUMIFS('2-3. Travel Costs&Costs of Stay'!N:N,'2-3. Travel Costs&Costs of Stay'!C:C,B50,'2-3. Travel Costs&Costs of Stay'!B:B,$C$25)+SUMIFS('4. Equipment Costs'!H:H,'4. Equipment Costs'!C:C,B50,'4. Equipment Costs'!B:B,$C$25)+SUMIFS('5. Subcontracting Costs'!H:H,'5. Subcontracting Costs'!C:C,B50,'5. Subcontracting Costs'!B:B,$C$25) -> 0 | D50: =SUMIFS('1. Staff costs'!W:W,'1. Staff costs'!C:C,B50,'1. Staff costs'!B:B,$D$25)+SUMIFS('2-3. Travel Costs&Costs of Stay'!N:N,'2-3. Travel Costs&Costs of Stay'!C:C,B50,'2-3. Travel Costs&Costs of Stay'!B:B,$D$25)+SUMIFS('4. Equipment Costs'!H:H,'4. Equipment Costs'!C:C,B50,'4. Equipment Costs'!B:B,$D$25)+SUMIFS('5. Subcontracting Costs'!H:H,'5. Subcontracting Costs'!C:C,B50,'5. Subcontracting Costs'!B:B,$D$25) -> 0 | E50: =SUMIFS('1. Staff costs'!W:W,'1. Staff costs'!C:C,B50,'1. Staff costs'!B:B,$E$25)+SUMIFS('2-3. Travel Costs&Costs of Stay'!N:N,'2-3. Travel Costs&Costs of Stay'!C:C,B50,'2-3. Travel Costs&Costs of Stay'!B:B,$E$25)+SUMIFS('4. Equipment Costs'!H:H,'4. Equipment Costs'!C:C,B50,'4. Equipment Costs'!B:B,$E$25)+SUMIFS('5. Subcontracting Costs'!H:H,'5. Subcontracting Costs'!C:C,B50,'5. Subcontracting Costs'!B:B,$E$25) -> 0 | F50: =SUMIFS('1. Staff costs'!W:W,'1. Staff costs'!C:C,B50,'1. Staff costs'!B:B,$B$8)+SUMIFS('2-3. Travel Costs&Costs of Stay'!N:N,'2-3. Travel Costs&Costs of Stay'!C:C,B50,'2-3. Travel Costs&Costs of Stay'!B:B,$B$8)+SUMIFS('4. Equipment Costs'!H:H,'4. Equipment Costs'!C:C,B50,'4. Equipment Costs'!B:B,$B$8)+SUMIFS('5. Subcontracting Costs'!H:H,'5. Subcontracting Costs'!C:C,B50,'5. Subcontracting Costs'!B:B,$B$8) -> 0 | G50: =SUMIFS('1. Staff costs'!W:W,'1. Staff costs'!C:C,B50,'1. Staff costs'!B:B,$G$25)+SUMIFS('2-3. Travel Costs&Costs of Stay'!N:N,'2-3. Travel Costs&Costs of Stay'!C:C,B50,'2-3. Travel Costs&Costs of Stay'!B:B,$G$25)+SUMIFS('4. Equipment Costs'!H:H,'4. Equipment Costs'!C:C,B50,'4. Equipment Costs'!B:B,$G$25)+SUMIFS('5. Subcontracting Costs'!H:H,'5. Subcontracting Costs'!C:C,B50,'5. Subcontracting Costs'!B:B,$G$25) -> 0 | H50: =SUMIF('B. Special Mob Strand - Student'!B:B,B50,'B. Special Mob Strand - Student'!N:N)+SUMIF('B. Special Mob Strand - Staff'!B:B,B50,'B. Special Mob Strand - Staff'!N:N) -> 0 | I50: 0
B51: P26 | C51: =SUMIFS('1. Staff costs'!W:W,'1. Staff costs'!C:C,B51,'1. Staff costs'!B:B,$C$25)+SUMIFS('2-3. Travel Costs&Costs of Stay'!N:N,'2-3. Travel Costs&Costs of Stay'!C:C,B51,'2-3. Travel Costs&Costs of Stay'!B:B,$C$25)+SUMIFS('4. Equipment Costs'!H:H,'4. Equipment Costs'!C:C,B51,'4. Equipment Costs'!B:B,$C$25)+SUMIFS('5. Subcontracting Costs'!H:H,'5. Subcontracting Costs'!C:C,B51,'5. Subcontracting Costs'!B:B,$C$25) -> 0 | D51: =SUMIFS('1. Staff costs'!W:W,'1. Staff costs'!C:C,B51,'1. Staff costs'!B:B,$D$25)+SUMIFS('2-3. Travel Costs&Costs of Stay'!N:N,'2-3. Travel Costs&Costs of Stay'!C:C,B51,'2-3. Travel Costs&Costs of Stay'!B:B,$D$25)+SUMIFS('4. Equipment Costs'!H:H,'4. Equipment Costs'!C:C,B51,'4. Equipment Costs'!B:B,$D$25)+SUMIFS('5. Subcontracting Costs'!H:H,'5. Subcontracting Costs'!C:C,B51,'5. Subcontracting Costs'!B:B,$D$25) -> 0 | E51: =SUMIFS('1. Staff costs'!W:W,'1. Staff costs'!C:C,B51,'1. Staff costs'!B:B,$E$25)+SUMIFS('2-3. Travel Costs&Costs of Stay'!N:N,'2-3. Travel Costs&Costs of Stay'!C:C,B51,'2-3. Travel Costs&Costs of Stay'!B:B,$E$25)+SUMIFS('4. Equipment Costs'!H:H,'4. Equipment Costs'!C:C,B51,'4. Equipment Costs'!B:B,$E$25)+SUMIFS('5. Subcontracting Costs'!H:H,'5. Subcontracting Costs'!C:C,B51,'5. Subcontracting Costs'!B:B,$E$25) -> 0 | F51: =SUMIFS('1. Staff costs'!W:W,'1. Staff costs'!C:C,B51,'1. Staff costs'!B:B,$B$8)+SUMIFS('2-3. Travel Costs&Costs of Stay'!N:N,'2-3. Travel Costs&Costs of Stay'!C:C,B51,'2-3. Travel Costs&Costs of Stay'!B:B,$B$8)+SUMIFS('4. Equipment Costs'!H:H,'4. Equipment Costs'!C:C,B51,'4. Equipment Costs'!B:B,$B$8)+SUMIFS('5. Subcontracting Costs'!H:H,'5. Subcontracting Costs'!C:C,B51,'5. Subcontracting Costs'!B:B,$B$8) -> 0 | G51: =SUMIFS('1. Staff costs'!W:W,'1. Staff costs'!C:C,B51,'1. Staff costs'!B:B,$G$25)+SUMIFS('2-3. Travel Costs&Costs of Stay'!N:N,'2-3. Travel Costs&Costs of Stay'!C:C,B51,'2-3. Travel Costs&Costs of Stay'!B:B,$G$25)+SUMIFS('4. Equipment Costs'!H:H,'4. Equipment Costs'!C:C,B51,'4. Equipment Costs'!B:B,$G$25)+SUMIFS('5. Subcontracting Costs'!H:H,'5. Subcontracting Costs'!C:C,B51,'5. Subcontracting Costs'!B:B,$G$25) -> 0 | H51: =SUMIF('B. Special Mob Strand - Student'!B:B,B51,'B. Special Mob Strand - Student'!N:N)+SUMIF('B. Special Mob Strand - Staff'!B:B,B51,'B. Special Mob Strand - Staff'!N:N) -> 0 | I51: 0
B52: P27 | C52: =SUMIFS('1. Staff costs'!W:W,'1. Staff costs'!C:C,B52,'1. Staff costs'!B:B,$C$25)+SUMIFS('2-3. Travel Costs&Costs of Stay'!N:N,'2-3. Travel Costs&Costs of Stay'!C:C,B52,'2-3. Travel Costs&Costs of Stay'!B:B,$C$25)+SUMIFS('4. Equipment Costs'!H:H,'4. Equipment Costs'!C:C,B52,'4. Equipment Costs'!B:B,$C$25)+SUMIFS('5. Subcontracting Costs'!H:H,'5. Subcontracting Costs'!C:C,B52,'5. Subcontracting Costs'!B:B,$C$25) -> 0 | D52: =SUMIFS('1. Staff costs'!W:W,'1. Staff costs'!C:C,B52,'1. Staff costs'!B:B,$D$25)+SUMIFS('2-3. Travel Costs&Costs of Stay'!N:N,'2-3. Travel Costs&Costs of Stay'!C:C,B52,'2-3. Travel Costs&Costs of Stay'!B:B,$D$25)+SUMIFS('4. Equipment Costs'!H:H,'4. Equipment Costs'!C:C,B52,'4. Equipment Costs'!B:B,$D$25)+SUMIFS('5. Subcontracting Costs'!H:H,'5. Subcontracting Costs'!C:C,B52,'5. Subcontracting Costs'!B:B,$D$25) -> 0 | E52: =SUMIFS('1. Staff costs'!W:W,'1. Staff costs'!C:C,B52,'1. Staff costs'!B:B,$E$25)+SUMIFS('2-3. Travel Costs&Costs of Stay'!N:N,'2-3. Travel Costs&Costs of Stay'!C:C,B52,'2-3. Travel Costs&Costs of Stay'!B:B,$E$25)+SUMIFS('4. Equipment Costs'!H:H,'4. Equipment Costs'!C:C,B52,'4. Equipment Costs'!B:B,$E$25)+SUMIFS('5. Subcontracting Costs'!H:H,'5. Subcontracting Costs'!C:C,B52,'5. Subcontracting Costs'!B:B,$E$25) -> 0 | F52: =SUMIFS('1. Staff costs'!W:W,'1. Staff costs'!C:C,B52,'1. Staff costs'!B:B,$B$8)+SUMIFS('2-3. Travel Costs&Costs of Stay'!N:N,'2-3. Travel Costs&Costs of Stay'!C:C,B52,'2-3. Travel Costs&Costs of Stay'!B:B,$B$8)+SUMIFS('4. Equipment Costs'!H:H,'4. Equipment Costs'!C:C,B52,'4. Equipment Costs'!B:B,$B$8)+SUMIFS('5. Subcontracting Costs'!H:H,'5. Subcontracting Costs'!C:C,B52,'5. Subcontracting Costs'!B:B,$B$8) -> 0 | G52: =SUMIFS('1. Staff costs'!W:W,'1. Staff costs'!C:C,B52,'1. Staff costs'!B:B,$G$25)+SUMIFS('2-3. Travel Costs&Costs of Stay'!N:N,'2-3. Travel Costs&Costs of Stay'!C:C,B52,'2-3. Travel Costs&Costs of Stay'!B:B,$G$25)+SUMIFS('4. Equipment Costs'!H:H,'4. Equipment Costs'!C:C,B52,'4. Equipment Costs'!B:B,$G$25)+SUMIFS('5. Subcontracting Costs'!H:H,'5. Subcontracting Costs'!C:C,B52,'5. Subcontracting Costs'!B:B,$G$25) -> 0 | H52: =SUMIF('B. Special Mob Strand - Student'!B:B,B52,'B. Special Mob Strand - Student'!N:N)+SUMIF('B. Special Mob Strand - Staff'!B:B,B52,'B. Special Mob Strand - Staff'!N:N) -> 0 | I52: 0
B53: P28 | C53: =SUMIFS('1. Staff costs'!W:W,'1. Staff costs'!C:C,B53,'1. Staff costs'!B:B,$C$25)+SUMIFS('2-3. Travel Costs&Costs of Stay'!N:N,'2-3. Travel Costs&Costs of Stay'!C:C,B53,'2-3. Travel Costs&Costs of Stay'!B:B,$C$25)+SUMIFS('4. Equipment Costs'!H:H,'4. Equipment Costs'!C:C,B53,'4. Equipment Costs'!B:B,$C$25)+SUMIFS('5. Subcontracting Costs'!H:H,'5. Subcontracting Costs'!C:C,B53,'5. Subcontracting Costs'!B:B,$C$25) -> 0 | D53: =SUMIFS('1. Staff costs'!W:W,'1. Staff costs'!C:C,B53,'1. Staff costs'!B:B,$D$25)+SUMIFS('2-3. Travel Costs&Costs of Stay'!N:N,'2-3. Travel Costs&Costs of Stay'!C:C,B53,'2-3. Travel Costs&Costs of Stay'!B:B,$D$25)+SUMIFS('4. Equipment Costs'!H:H,'4. Equipment Costs'!C:C,B53,'4. Equipment Costs'!B:B,$D$25)+SUMIFS('5. Subcontracting Costs'!H:H,'5. Subcontracting Costs'!C:C,B53,'5. Subcontracting Costs'!B:B,$D$25) -> 0 | E53: =SUMIFS('1. Staff costs'!W:W,'1. Staff costs'!C:C,B53,'1. Staff costs'!B:B,$E$25)+SUMIFS('2-3. Travel Costs&Costs of Stay'!N:N,'2-3. Travel Costs&Costs of Stay'!C:C,B53,'2-3. Travel Costs&Costs of Stay'!B:B,$E$25)+SUMIFS('4. Equipment Costs'!H:H,'4. Equipment Costs'!C:C,B53,'4. Equipment Costs'!B:B,$E$25)+SUMIFS('5. Subcontracting Costs'!H:H,'5. Subcontracting Costs'!C:C,B53,'5. Subcontracting Costs'!B:B,$E$25) -> 0 | F53: =SUMIFS('1. Staff costs'!W:W,'1. Staff costs'!C:C,B53,'1. Staff costs'!B:B,$B$8)+SUMIFS('2-3. Travel Costs&Costs of Stay'!N:N,'2-3. Travel Costs&Costs of Stay'!C:C,B53,'2-3. Travel Costs&Costs of Stay'!B:B,$B$8)+SUMIFS('4. Equipment Costs'!H:H,'4. Equipment Costs'!C:C,B53,'4. Equipment Costs'!B:B,$B$8)+SUMIFS('5. Subcontracting Costs'!H:H,'5. Subcontracting Costs'!C:C,B53,'5. Subcontracting Costs'!B:B,$B$8) -> 0 | G53: =SUMIFS('1. Staff costs'!W:W,'1. Staff costs'!C:C,B53,'1. Staff costs'!B:B,$G$25)+SUMIFS('2-3. Travel Costs&Costs of Stay'!N:N,'2-3. Travel Costs&Costs of Stay'!C:C,B53,'2-3. Travel Costs&Costs of Stay'!B:B,$G$25)+SUMIFS('4. Equipment Costs'!H:H,'4. Equipment Costs'!C:C,B53,'4. Equipment Costs'!B:B,$G$25)+SUMIFS('5. Subcontracting Costs'!H:H,'5. Subcontracting Costs'!C:C,B53,'5. Subcontracting Costs'!B:B,$G$25) -> 0 | H53: =SUMIF('B. Special Mob Strand - Student'!B:B,B53,'B. Special Mob Strand - Student'!N:N)+SUMIF('B. Special Mob Strand - Staff'!B:B,B53,'B. Special Mob Strand - Staff'!N:N) -> 0 | I53: 0
B54: P29 | C54: =SUMIFS('1. Staff costs'!W:W,'1. Staff costs'!C:C,B54,'1. Staff costs'!B:B,$C$25)+SUMIFS('2-3. Travel Costs&Costs of Stay'!N:N,'2-3. Travel Costs&Costs of Stay'!C:C,B54,'2-3. Travel Costs&Costs of Stay'!B:B,$C$25)+SUMIFS('4. Equipment Costs'!H:H,'4. Equipment Costs'!C:C,B54,'4. Equipment Costs'!B:B,$C$25)+SUMIFS('5. Subcontracting Costs'!H:H,'5. Subcontracting Costs'!C:C,B54,'5. Subcontracting Costs'!B:B,$C$25) -> 0 | D54: =SUMIFS('1. Staff costs'!W:W,'1. Staff costs'!C:C,B54,'1. Staff costs'!B:B,$D$25)+SUMIFS('2-3. Travel Costs&Costs of Stay'!N:N,'2-3. Travel Costs&Costs of Stay'!C:C,B54,'2-3. Travel Costs&Costs of Stay'!B:B,$D$25)+SUMIFS('4. Equipment Costs'!H:H,'4. Equipment Costs'!C:C,B54,'4. Equipment Costs'!B:B,$D$25)+SUMIFS('5. Subcontracting Costs'!H:H,'5. Subcontracting Costs'!C:C,B54,'5. Subcontracting Costs'!B:B,$D$25) -> 0 | E54: =SUMIFS('1. Staff costs'!W:W,'1. Staff costs'!C:C,B54,'1. Staff costs'!B:B,$E$25)+SUMIFS('2-3. Travel Costs&Costs of Stay'!N:N,'2-3. Travel Costs&Costs of Stay'!C:C,B54,'2-3. Travel Costs&Costs of Stay'!B:B,$E$25)+SUMIFS('4. Equipment Costs'!H:H,'4. Equipment Costs'!C:C,B54,'4. Equipment Costs'!B:B,$E$25)+SUMIFS('5. Subcontracting Costs'!H:H,'5. Subcontracting Costs'!C:C,B54,'5. Subcontracting Costs'!B:B,$E$25) -> 0 | F54: =SUMIFS('1. Staff costs'!W:W,'1. Staff costs'!C:C,B54,'1. Staff costs'!B:B,$B$8)+SUMIFS('2-3. Travel Costs&Costs of Stay'!N:N,'2-3. Travel Costs&Costs of Stay'!C:C,B54,'2-3. Travel Costs&Costs of Stay'!B:B,$B$8)+SUMIFS('4. Equipment Costs'!H:H,'4. Equipment Costs'!C:C,B54,'4. Equipment Costs'!B:B,$B$8)+SUMIFS('5. Subcontracting Costs'!H:H,'5. Subcontracting Costs'!C:C,B54,'5. Subcontracting Costs'!B:B,$B$8) -> 0 | G54: =SUMIFS('1. Staff costs'!W:W,'1. Staff costs'!C:C,B54,'1. Staff costs'!B:B,$G$25)+SUMIFS('2-3. Travel Costs&Costs of Stay'!N:N,'2-3. Travel Costs&Costs of Stay'!C:C,B54,'2-3. Travel Costs&Costs of Stay'!B:B,$G$25)+SUMIFS('4. Equipment Costs'!H:H,'4. Equipment Costs'!C:C,B54,'4. Equipment Costs'!B:B,$G$25)+SUMIFS('5. Subcontracting Costs'!H:H,'5. Subcontracting Costs'!C:C,B54,'5. Subcontracting Costs'!B:B,$G$25) -> 0 | H54: =SUMIF('B. Special Mob Strand - Student'!B:B,B54,'B. Special Mob Strand - Student'!N:N)+SUMIF('B. Special Mob Strand - Staff'!B:B,B54,'B. Special Mob Strand - Staff'!N:N) -> 0 | I54: 0
B55: P30 | C55: =SUMIFS('1. Staff costs'!W:W,'1. Staff costs'!C:C,B55,'1. Staff costs'!B:B,$C$25)+SUMIFS('2-3. Travel Costs&Costs of Stay'!N:N,'2-3. Travel Costs&Costs of Stay'!C:C,B55,'2-3. Travel Costs&Costs of Stay'!B:B,$C$25)+SUMIFS('4. Equipment Costs'!H:H,'4. Equipment Costs'!C:C,B55,'4. Equipment Costs'!B:B,$C$25)+SUMIFS('5. Subcontracting Costs'!H:H,'5. Subcontracting Costs'!C:C,B55,'5. Subcontracting Costs'!B:B,$C$25) -> 0 | D55: =SUMIFS('1. Staff costs'!W:W,'1. Staff costs'!C:C,B55,'1. Staff costs'!B:B,$D$25)+SUMIFS('2-3. Travel Costs&Costs of Stay'!N:N,'2-3. Travel Costs&Costs of Stay'!C:C,B55,'2-3. Travel Costs&Costs of Stay'!B:B,$D$25)+SUMIFS('4. Equipment Costs'!H:H,'4. Equipment Costs'!C:C,B55,'4. Equipment Costs'!B:B,$D$25)+SUMIFS('5. Subcontracting Costs'!H:H,'5. Subcontracting Costs'!C:C,B55,'5. Subcontracting Costs'!B:B,$D$25) -> 0 | E55: =SUMIFS('1. Staff costs'!W:W,'1. Staff costs'!C:C,B55,'1. Staff costs'!B:B,$E$25)+SUMIFS('2-3. Travel Costs&Costs of Stay'!N:N,'2-3. Travel Costs&Costs of Stay'!C:C,B55,'2-3. Travel Costs&Costs of Stay'!B:B,$E$25)+SUMIFS('4. Equipment Costs'!H:H,'4. Equipment Costs'!C:C,B55,'4. Equipment Costs'!B:B,$E$25)+SUMIFS('5. Subcontracting Costs'!H:H,'5. Subcontracting Costs'!C:C,B55,'5. Subcontracting Costs'!B:B,$E$25) -> 0 | F55: =SUMIFS('1. Staff costs'!W:W,'1. Staff costs'!C:C,B55,'1. Staff costs'!B:B,$B$8)+SUMIFS('2-3. Travel Costs&Costs of Stay'!N:N,'2-3. Travel Costs&Costs of Stay'!C:C,B55,'2-3. Travel Costs&Costs of Stay'!B:B,$B$8)+SUMIFS('4. Equipment Costs'!H:H,'4. Equipment Costs'!C:C,B55,'4. Equipment Costs'!B:B,$B$8)+SUMIFS('5. Subcontracting Costs'!H:H,'5. Subcontracting Costs'!C:C,B55,'5. Subcontracting Costs'!B:B,$B$8) -> 0 | G55: =SUMIFS('1. Staff costs'!W:W,'1. Staff costs'!C:C,B55,'1. Staff costs'!B:B,$G$25)+SUMIFS('2-3. Travel Costs&Costs of Stay'!N:N,'2-3. Travel Costs&Costs of Stay'!C:C,B55,'2-3. Travel Costs&Costs of Stay'!B:B,$G$25)+SUMIFS('4. Equipment Costs'!H:H,'4. Equipment Costs'!C:C,B55,'4. Equipment Costs'!B:B,$G$25)+SUMIFS('5. Subcontracting Costs'!H:H,'5. Subcontracting Costs'!C:C,B55,'5. Subcontracting Costs'!B:B,$G$25) -> 0 | H55: =SUMIF('B. Special Mob Strand - Student'!B:B,B55,'B. Special Mob Strand - Student'!N:N)+SUMIF('B. Special Mob Strand - Staff'!B:B,B55,'B. Special Mob Strand - Staff'!N:N) -> 0 | I55: 0
B56: P31 | C56: =SUMIFS('1. Staff costs'!W:W,'1. Staff costs'!C:C,B56,'1. Staff costs'!B:B,$C$25)+SUMIFS('2-3. Travel Costs&Costs of Stay'!N:N,'2-3. Travel Costs&Costs of Stay'!C:C,B56,'2-3. Travel Costs&Costs of Stay'!B:B,$C$25)+SUMIFS('4. Equipment Costs'!H:H,'4. Equipment Costs'!C:C,B56,'4. Equipment Costs'!B:B,$C$25)+SUMIFS('5. Subcontracting Costs'!H:H,'5. Subcontracting Costs'!C:C,B56,'5. Subcontracting Costs'!B:B,$C$25) -> 0 | D56: =SUMIFS('1. Staff costs'!W:W,'1. Staff costs'!C:C,B56,'1. Staff costs'!B:B,$D$25)+SUMIFS('2-3. Travel Costs&Costs of Stay'!N:N,'2-3. Travel Costs&Costs of Stay'!C:C,B56,'2-3. Travel Costs&Costs of Stay'!B:B,$D$25)+SUMIFS('4. Equipment Costs'!H:H,'4. Equipment Costs'!C:C,B56,'4. Equipment Costs'!B:B,$D$25)+SUMIFS('5. Subcontracting Costs'!H:H,'5. Subcontracting Costs'!C:C,B56,'5. Subcontracting Costs'!B:B,$D$25) -> 0 | E56: =SUMIFS('1. Staff costs'!W:W,'1. Staff costs'!C:C,B56,'1. Staff costs'!B:B,$E$25)+SUMIFS('2-3. Travel Costs&Costs of Stay'!N:N,'2-3. Travel Costs&Costs of Stay'!C:C,B56,'2-3. Travel Costs&Costs of Stay'!B:B,$E$25)+SUMIFS('4. Equipment Costs'!H:H,'4. Equipment Costs'!C:C,B56,'4. Equipment Costs'!B:B,$E$25)+SUMIFS('5. Subcontracting Costs'!H:H,'5. Subcontracting Costs'!C:C,B56,'5. Subcontracting Costs'!B:B,$E$25) -> 0 | F56: =SUMIFS('1. Staff costs'!W:W,'1. Staff costs'!C:C,B56,'1. Staff costs'!B:B,$B$8)+SUMIFS('2-3. Travel Costs&Costs of Stay'!N:N,'2-3. Travel Costs&Costs of Stay'!C:C,B56,'2-3. Travel Costs&Costs of Stay'!B:B,$B$8)+SUMIFS('4. Equipment Costs'!H:H,'4. Equipment Costs'!C:C,B56,'4. Equipment Costs'!B:B,$B$8)+SUMIFS('5. Subcontracting Costs'!H:H,'5. Subcontracting Costs'!C:C,B56,'5. Subcontracting Costs'!B:B,$B$8) -> 0 | G56: =SUMIFS('1. Staff costs'!W:W,'1. Staff costs'!C:C,B56,'1. Staff costs'!B:B,$G$25)+SUMIFS('2-3. Travel Costs&Costs of Stay'!N:N,'2-3. Travel Costs&Costs of Stay'!C:C,B56,'2-3. Travel Costs&Costs of Stay'!B:B,$G$25)+SUMIFS('4. Equipment Costs'!H:H,'4. Equipment Costs'!C:C,B56,'4. Equipment Costs'!B:B,$G$25)+SUMIFS('5. Subcontracting Costs'!H:H,'5. Subcontracting Costs'!C:C,B56,'5. Subcontracting Costs'!B:B,$G$25) -> 0 | H56: =SUMIF('B. Special Mob Strand - Student'!B:B,B56,'B. Special Mob Strand - Student'!N:N)+SUMIF('B. Special Mob Strand - Staff'!B:B,B56,'B. Special Mob Strand - Staff'!N:N) -> 0 | I56: 0
B57: P32 | C57: =SUMIFS('1. Staff costs'!W:W,'1. Staff costs'!C:C,B57,'1. Staff costs'!B:B,$C$25)+SUMIFS('2-3. Travel Costs&Costs of Stay'!N:N,'2-3. Travel Costs&Costs of Stay'!C:C,B57,'2-3. Travel Costs&Costs of Stay'!B:B,$C$25)+SUMIFS('4. Equipment Costs'!H:H,'4. Equipment Costs'!C:C,B57,'4. Equipment Costs'!B:B,$C$25)+SUMIFS('5. Subcontracting Costs'!H:H,'5. Subcontracting Costs'!C:C,B57,'5. Subcontracting Costs'!B:B,$C$25) -> 0 | D57: =SUMIFS('1. Staff costs'!W:W,'1. Staff costs'!C:C,B57,'1. Staff costs'!B:B,$D$25)+SUMIFS('2-3. Travel Costs&Costs of Stay'!N:N,'2-3. Travel Costs&Costs of Stay'!C:C,B57,'2-3. Travel Costs&Costs of Stay'!B:B,$D$25)+SUMIFS('4. Equipment Costs'!H:H,'4. Equipment Costs'!C:C,B57,'4. Equipment Costs'!B:B,$D$25)+SUMIFS('5. Subcontracting Costs'!H:H,'5. Subcontracting Costs'!C:C,B57,'5. Subcontracting Costs'!B:B,$D$25) -> 0 | E57: =SUMIFS('1. Staff costs'!W:W,'1. Staff costs'!C:C,B57,'1. Staff costs'!B:B,$E$25)+SUMIFS('2-3. Travel Costs&Costs of Stay'!N:N,'2-3. Travel Costs&Costs of Stay'!C:C,B57,'2-3. Travel Costs&Costs of Stay'!B:B,$E$25)+SUMIFS('4. Equipment Costs'!H:H,'4. Equipment Costs'!C:C,B57,'4. Equipment Costs'!B:B,$E$25)+SUMIFS('5. Subcontracting Costs'!H:H,'5. Subcontracting Costs'!C:C,B57,'5. Subcontracting Costs'!B:B,$E$25) -> 0 | F57: =SUMIFS('1. Staff costs'!W:W,'1. Staff costs'!C:C,B57,'1. Staff costs'!B:B,$B$8)+SUMIFS('2-3. Travel Costs&Costs of Stay'!N:N,'2-3. Travel Costs&Costs of Stay'!C:C,B57,'2-3. Travel Costs&Costs of Stay'!B:B,$B$8)+SUMIFS('4. Equipment Costs'!H:H,'4. Equipment Costs'!C:C,B57,'4. Equipment Costs'!B:B,$B$8)+SUMIFS('5. Subcontracting Costs'!H:H,'5. Subcontracting Costs'!C:C,B57,'5. Subcontracting Costs'!B:B,$B$8) -> 0 | G57: =SUMIFS('1. Staff costs'!W:W,'1. Staff costs'!C:C,B57,'1. Staff costs'!B:B,$G$25)+SUMIFS('2-3. Travel Costs&Costs of Stay'!N:N,'2-3. Travel Costs&Costs of Stay'!C:C,B57,'2-3. Travel Costs&Costs of Stay'!B:B,$G$25)+SUMIFS('4. Equipment Costs'!H:H,'4. Equipment Costs'!C:C,B57,'4. Equipment Costs'!B:B,$G$25)+SUMIFS('5. Subcontracting Costs'!H:H,'5. Subcontracting Costs'!C:C,B57,'5. Subcontracting Costs'!B:B,$G$25) -> 0 | H57: =SUMIF('B. Special Mob Strand - Student'!B:B,B57,'B. Special Mob Strand - Student'!N:N)+SUMIF('B. Special Mob Strand - Staff'!B:B,B57,'B. Special Mob Strand - Staff'!N:N) -> 0 | I57: 0
B58: P33 | C58: =SUMIFS('1. Staff costs'!W:W,'1. Staff costs'!C:C,B58,'1. Staff costs'!B:B,$C$25)+SUMIFS('2-3. Travel Costs&Costs of Stay'!N:N,'2-3. Travel Costs&Costs of Stay'!C:C,B58,'2-3. Travel Costs&Costs of Stay'!B:B,$C$25)+SUMIFS('4. Equipment Costs'!H:H,'4. Equipment Costs'!C:C,B58,'4. Equipment Costs'!B:B,$C$25)+SUMIFS('5. Subcontracting Costs'!H:H,'5. Subcontracting Costs'!C:C,B58,'5. Subcontracting Costs'!B:B,$C$25) -> 0 | D58: =SUMIFS('1. Staff costs'!W:W,'1. Staff costs'!C:C,B58,'1. Staff costs'!B:B,$D$25)+SUMIFS('2-3. Travel Costs&Costs of Stay'!N:N,'2-3. Travel Costs&Costs of Stay'!C:C,B58,'2-3. Travel Costs&Costs of Stay'!B:B,$D$25)+SUMIFS('4. Equipment Costs'!H:H,'4. Equipment Costs'!C:C,B58,'4. Equipment Costs'!B:B,$D$25)+SUMIFS('5. Subcontracting Costs'!H:H,'5. Subcontracting Costs'!C:C,B58,'5. Subcontracting Costs'!B:B,$D$25) -> 0 | E58: =SUMIFS('1. Staff costs'!W:W,'1. Staff costs'!C:C,B58,'1. Staff costs'!B:B,$E$25)+SUMIFS('2-3. Travel Costs&Costs of Stay'!N:N,'2-3. Travel Costs&Costs of Stay'!C:C,B58,'2-3. Travel Costs&Costs of Stay'!B:B,$E$25)+SUMIFS('4. Equipment Costs'!H:H,'4. Equipment Costs'!C:C,B58,'4. Equipment Costs'!B:B,$E$25)+SUMIFS('5. Subcontracting Costs'!H:H,'5. Subcontracting Costs'!C:C,B58,'5. Subcontracting Costs'!B:B,$E$25) -> 0 | F58: =SUMIFS('1. Staff costs'!W:W,'1. Staff costs'!C:C,B58,'1. Staff costs'!B:B,$B$8)+SUMIFS('2-3. Travel Costs&Costs of Stay'!N:N,'2-3. Travel Costs&Costs of Stay'!C:C,B58,'2-3. Travel Costs&Costs of Stay'!B:B,$B$8)+SUMIFS('4. Equipment Costs'!H:H,'4. Equipment Costs'!C:C,B58,'4. Equipment Costs'!B:B,$B$8)+SUMIFS('5. Subcontracting Costs'!H:H,'5. Subcontracting Costs'!C:C,B58,'5. Subcontracting Costs'!B:B,$B$8) -> 0 | G58: =SUMIFS('1. Staff costs'!W:W,'1. Staff costs'!C:C,B58,'1. Staff costs'!B:B,$G$25)+SUMIFS('2-3. Travel Costs&Costs of Stay'!N:N,'2-3. Travel Costs&Costs of Stay'!C:C,B58,'2-3. Travel Costs&Costs of Stay'!B:B,$G$25)+SUMIFS('4. Equipment Costs'!H:H,'4. Equipment Costs'!C:C,B58,'4. Equipment Costs'!B:B,$G$25)+SUMIFS('5. Subcontracting Costs'!H:H,'5. Subcontracting Costs'!C:C,B58,'5. Subcontracting Costs'!B:B,$G$25) -> 0 | H58: =SUMIF('B. Special Mob Strand - Student'!B:B,B58,'B. Special Mob Strand - Student'!N:N)+SUMIF('B. Special Mob Strand - Staff'!B:B,B58,'B. Special Mob Strand - Staff'!N:N) -> 0 | I58: 0
B59: P34 | C59: =SUMIFS('1. Staff costs'!W:W,'1. Staff costs'!C:C,B59,'1. Staff costs'!B:B,$C$25)+SUMIFS('2-3. Travel Costs&Costs of Stay'!N:N,'2-3. Travel Costs&Costs of Stay'!C:C,B59,'2-3. Travel Costs&Costs of Stay'!B:B,$C$25)+SUMIFS('4. Equipment Costs'!H:H,'4. Equipment Costs'!C:C,B59,'4. Equipment Costs'!B:B,$C$25)+SUMIFS('5. Subcontracting Costs'!H:H,'5. Subcontracting Costs'!C:C,B59,'5. Subcontracting Costs'!B:B,$C$25) -> 0 | D59: =SUMIFS('1. Staff costs'!W:W,'1. Staff costs'!C:C,B59,'1. Staff costs'!B:B,$D$25)+SUMIFS('2-3. Travel Costs&Costs of Stay'!N:N,'2-3. Travel Costs&Costs of Stay'!C:C,B59,'2-3. Travel Costs&Costs of Stay'!B:B,$D$25)+SUMIFS('4. Equipment Costs'!H:H,'4. Equipment Costs'!C:C,B59,'4. Equipment Costs'!B:B,$D$25)+SUMIFS('5. Subcontracting Costs'!H:H,'5. Subcontracting Costs'!C:C,B59,'5. Subcontracting Costs'!B:B,$D$25) -> 0 | E59: =SUMIFS('1. Staff costs'!W:W,'1. Staff costs'!C:C,B59,'1. Staff costs'!B:B,$E$25)+SUMIFS('2-3. Travel Costs&Costs of Stay'!N:N,'2-3. Travel Costs&Costs of Stay'!C:C,B59,'2-3. Travel Costs&Costs of Stay'!B:B,$E$25)+SUMIFS('4. Equipment Costs'!H:H,'4. Equipment Costs'!C:C,B59,'4. Equipment Costs'!B:B,$E$25)+SUMIFS('5. Subcontracting Costs'!H:H,'5. Subcontracting Costs'!C:C,B59,'5. Subcontracting Costs'!B:B,$E$25) -> 0 | F59: =SUMIFS('1. Staff costs'!W:W,'1. Staff costs'!C:C,B59,'1. Staff costs'!B:B,$B$8)+SUMIFS('2-3. Travel Costs&Costs of Stay'!N:N,'2-3. Travel Costs&Costs of Stay'!C:C,B59,'2-3. Travel Costs&Costs of Stay'!B:B,$B$8)+SUMIFS('4. Equipment Costs'!H:H,'4. Equipment Costs'!C:C,B59,'4. Equipment Costs'!B:B,$B$8)+SUMIFS('5. Subcontracting Costs'!H:H,'5. Subcontracting Costs'!C:C,B59,'5. Subcontracting Costs'!B:B,$B$8) -> 0 | G59: =SUMIFS('1. Staff costs'!W:W,'1. Staff costs'!C:C,B59,'1. Staff costs'!B:B,$G$25)+SUMIFS('2-3. Travel Costs&Costs of Stay'!N:N,'2-3. Travel Costs&Costs of Stay'!C:C,B59,'2-3. Travel Costs&Costs of Stay'!B:B,$G$25)+SUMIFS('4. Equipment Costs'!H:H,'4. Equipment Costs'!C:C,B59,'4. Equipment Costs'!B:B,$G$25)+SUMIFS('5. Subcontracting Costs'!H:H,'5. Subcontracting Costs'!C:C,B59,'5. Subcontracting Costs'!B:B,$G$25) -> 0 | H59: =SUMIF('B. Special Mob Strand - Student'!B:B,B59,'B. Special Mob Strand - Student'!N:N)+SUMIF('B. Special Mob Strand - Staff'!B:B,B59,'B. Special Mob Strand - Staff'!N:N) -> 0 | I59: 0
B60: P35 | C60: =SUMIFS('1. Staff costs'!W:W,'1. Staff costs'!C:C,B60,'1. Staff costs'!B:B,$C$25)+SUMIFS('2-3. Travel Costs&Costs of Stay'!N:N,'2-3. Travel Costs&Costs of Stay'!C:C,B60,'2-3. Travel Costs&Costs of Stay'!B:B,$C$25)+SUMIFS('4. Equipment Costs'!H:H,'4. Equipment Costs'!C:C,B60,'4. Equipment Costs'!B:B,$C$25)+SUMIFS('5. Subcontracting Costs'!H:H,'5. Subcontracting Costs'!C:C,B60,'5. Subcontracting Costs'!B:B,$C$25) -> 0 | D60: =SUMIFS('1. Staff costs'!W:W,'1. Staff costs'!C:C,B60,'1. Staff costs'!B:B,$D$25)+SUMIFS('2-3. Travel Costs&Costs of Stay'!N:N,'2-3. Travel Costs&Costs of Stay'!C:C,B60,'2-3. Travel Costs&Costs of Stay'!B:B,$D$25)+SUMIFS('4. Equipment Costs'!H:H,'4. Equipment Costs'!C:C,B60,'4. Equipment Costs'!B:B,$D$25)+SUMIFS('5. Subcontracting Costs'!H:H,'5. Subcontracting Costs'!C:C,B60,'5. Subcontracting Costs'!B:B,$D$25) -> 0 | E60: =SUMIFS('1. Staff costs'!W:W,'1. Staff costs'!C:C,B60,'1. Staff costs'!B:B,$E$25)+SUMIFS('2-3. Travel Costs&Costs of Stay'!N:N,'2-3. Travel Costs&Costs of Stay'!C:C,B60,'2-3. Travel Costs&Costs of Stay'!B:B,$E$25)+SUMIFS('4. Equipment Costs'!H:H,'4. Equipment Costs'!C:C,B60,'4. Equipment Costs'!B:B,$E$25)+SUMIFS('5. Subcontracting Costs'!H:H,'5. Subcontracting Costs'!C:C,B60,'5. Subcontracting Costs'!B:B,$E$25) -> 0 | F60: =SUMIFS('1. Staff costs'!W:W,'1. Staff costs'!C:C,B60,'1. Staff costs'!B:B,$B$8)+SUMIFS('2-3. Travel Costs&Costs of Stay'!N:N,'2-3. Travel Costs&Costs of Stay'!C:C,B60,'2-3. Travel Costs&Costs of Stay'!B:B,$B$8)+SUMIFS('4. Equipment Costs'!H:H,'4. Equipment Costs'!C:C,B60,'4. Equipment Costs'!B:B,$B$8)+SUMIFS('5. Subcontracting Costs'!H:H,'5. Subcontracting Costs'!C:C,B60,'5. Subcontracting Costs'!B:B,$B$8) -> 0 | G60: =SUMIFS('1. Staff costs'!W:W,'1. Staff costs'!C:C,B60,'1. Staff costs'!B:B,$G$25)+SUMIFS('2-3. Travel Costs&Costs of Stay'!N:N,'2-3. Travel Costs&Costs of Stay'!C:C,B60,'2-3. Travel Costs&Costs of Stay'!B:B,$G$25)+SUMIFS('4. Equipment Costs'!H:H,'4. Equipment Costs'!C:C,B60,'4. Equipment Costs'!B:B,$G$25)+SUMIFS('5. Subcontracting Costs'!H:H,'5. Subcontracting Costs'!C:C,B60,'5. Subcontracting Costs'!B:B,$G$25) -> 0 | H60: =SUMIF('B. Special Mob Strand - Student'!B:B,B60,'B. Special Mob Strand - Student'!N:N)+SUMIF('B. Special Mob Strand - Staff'!B:B,B60,'B. Special Mob Strand - Staff'!N:N) -> 0 | I60: 0
B61: P36 | C61: =SUMIFS('1. Staff costs'!W:W,'1. Staff costs'!C:C,B61,'1. Staff costs'!B:B,$C$25)+SUMIFS('2-3. Travel Costs&Costs of Stay'!N:N,'2-3. Travel Costs&Costs of Stay'!C:C,B61,'2-3. Travel Costs&Costs of Stay'!B:B,$C$25)+SUMIFS('4. Equipment Costs'!H:H,'4. Equipment Costs'!C:C,B61,'4. Equipment Costs'!B:B,$C$25)+SUMIFS('5. Subcontracting Costs'!H:H,'5. Subcontracting Costs'!C:C,B61,'5. Subcontracting Costs'!B:B,$C$25) -> 0 | D61: =SUMIFS('1. Staff costs'!W:W,'1. Staff costs'!C:C,B61,'1. Staff costs'!B:B,$D$25)+SUMIFS('2-3. Travel Costs&Costs of Stay'!N:N,'2-3. Travel Costs&Costs of Stay'!C:C,B61,'2-3. Travel Costs&Costs of Stay'!B:B,$D$25)+SUMIFS('4. Equipment Costs'!H:H,'4. Equipment Costs'!C:C,B61,'4. Equipment Costs'!B:B,$D$25)+SUMIFS('5. Subcontracting Costs'!H:H,'5. Subcontracting Costs'!C:C,B61,'5. Subcontracting Costs'!B:B,$D$25) -> 0 | E61: =SUMIFS('1. Staff costs'!W:W,'1. Staff costs'!C:C,B61,'1. Staff costs'!B:B,$E$25)+SUMIFS('2-3. Travel Costs&Costs of Stay'!N:N,'2-3. Travel Costs&Costs of Stay'!C:C,B61,'2-3. Travel Costs&Costs of Stay'!B:B,$E$25)+SUMIFS('4. Equipment Costs'!H:H,'4. Equipment Costs'!C:C,B61,'4. Equipment Costs'!B:B,$E$25)+SUMIFS('5. Subcontracting Costs'!H:H,'5. Subcontracting Costs'!C:C,B61,'5. Subcontracting Costs'!B:B,$E$25) -> 0 | F61: =SUMIFS('1. Staff costs'!W:W,'1. Staff costs'!C:C,B61,'1. Staff costs'!B:B,$B$8)+SUMIFS('2-3. Travel Costs&Costs of Stay'!N:N,'2-3. Travel Costs&Costs of Stay'!C:C,B61,'2-3. Travel Costs&Costs of Stay'!B:B,$B$8)+SUMIFS('4. Equipment Costs'!H:H,'4. Equipment Costs'!C:C,B61,'4. Equipment Costs'!B:B,$B$8)+SUMIFS('5. Subcontracting Costs'!H:H,'5. Subcontracting Costs'!C:C,B61,'5. Subcontracting Costs'!B:B,$B$8) -> 0 | G61: =SUMIFS('1. Staff costs'!W:W,'1. Staff costs'!C:C,B61,'1. Staff costs'!B:B,$G$25)+SUMIFS('2-3. Travel Costs&Costs of Stay'!N:N,'2-3. Travel Costs&Costs of Stay'!C:C,B61,'2-3. Travel Costs&Costs of Stay'!B:B,$G$25)+SUMIFS('4. Equipment Costs'!H:H,'4. Equipment Costs'!C:C,B61,'4. Equipment Costs'!B:B,$G$25)+SUMIFS('5. Subcontracting Costs'!H:H,'5. Subcontracting Costs'!C:C,B61,'5. Subcontracting Costs'!B:B,$G$25) -> 0 | H61: =SUMIF('B. Special Mob Strand - Student'!B:B,B61,'B. Special Mob Strand - Student'!N:N)+SUMIF('B. Special Mob Strand - Staff'!B:B,B61,'B. Special Mob Strand - Staff'!N:N) -> 0 | I61: 0
B62: P37 | C62: =SUMIFS('1. Staff costs'!W:W,'1. Staff costs'!C:C,B62,'1. Staff costs'!B:B,$C$25)+SUMIFS('2-3. Travel Costs&Costs of Stay'!N:N,'2-3. Travel Costs&Costs of Stay'!C:C,B62,'2-3. Travel Costs&Costs of Stay'!B:B,$C$25)+SUMIFS('4. Equipment Costs'!H:H,'4. Equipment Costs'!C:C,B62,'4. Equipment Costs'!B:B,$C$25)+SUMIFS('5. Subcontracting Costs'!H:H,'5. Subcontracting Costs'!C:C,B62,'5. Subcontracting Costs'!B:B,$C$25) -> 0 | D62: =SUMIFS('1. Staff costs'!W:W,'1. Staff costs'!C:C,B62,'1. Staff costs'!B:B,$D$25)+SUMIFS('2-3. Travel Costs&Costs of Stay'!N:N,'2-3. Travel Costs&Costs of Stay'!C:C,B62,'2-3. Travel Costs&Costs of Stay'!B:B,$D$25)+SUMIFS('4. Equipment Costs'!H:H,'4. Equipment Costs'!C:C,B62,'4. Equipment Costs'!B:B,$D$25)+SUMIFS('5. Subcontracting Costs'!H:H,'5. Subcontracting Costs'!C:C,B62,'5. Subcontracting Costs'!B:B,$D$25) -> 0 | E62: =SUMIFS('1. Staff costs'!W:W,'1. Staff costs'!C:C,B62,'1. Staff costs'!B:B,$E$25)+SUMIFS('2-3. Travel Costs&Costs of Stay'!N:N,'2-3. Travel Costs&Costs of Stay'!C:C,B62,'2-3. Travel Costs&Costs of Stay'!B:B,$E$25)+SUMIFS('4. Equipment Costs'!H:H,'4. Equipment Costs'!C:C,B62,'4. Equipment Costs'!B:B,$E$25)+SUMIFS('5. Subcontracting Costs'!H:H,'5. Subcontracting Costs'!C:C,B62,'5. Subcontracting Costs'!B:B,$E$25) -> 0 | F62: =SUMIFS('1. Staff costs'!W:W,'1. Staff costs'!C:C,B62,'1. Staff costs'!B:B,$B$8)+SUMIFS('2-3. Travel Costs&Costs of Stay'!N:N,'2-3. Travel Costs&Costs of Stay'!C:C,B62,'2-3. Travel Costs&Costs of Stay'!B:B,$B$8)+SUMIFS('4. Equipment Costs'!H:H,'4. Equipment Costs'!C:C,B62,'4. Equipment Costs'!B:B,$B$8)+SUMIFS('5. Subcontracting Costs'!H:H,'5. Subcontracting Costs'!C:C,B62,'5. Subcontracting Costs'!B:B,$B$8) -> 0 | G62: =SUMIFS('1. Staff costs'!W:W,'1. Staff costs'!C:C,B62,'1. Staff costs'!B:B,$G$25)+SUMIFS('2-3. Travel Costs&Costs of Stay'!N:N,'2-3. Travel Costs&Costs of Stay'!C:C,B62,'2-3. Travel Costs&Costs of Stay'!B:B,$G$25)+SUMIFS('4. Equipment Costs'!H:H,'4. Equipment Costs'!C:C,B62,'4. Equipment Costs'!B:B,$G$25)+SUMIFS('5. Subcontracting Costs'!H:H,'5. Subcontracting Costs'!C:C,B62,'5. Subcontracting Costs'!B:B,$G$25) -> 0 | H62: =SUMIF('B. Special Mob Strand - Student'!B:B,B62,'B. Special Mob Strand - Student'!N:N)+SUMIF('B. Special Mob Strand - Staff'!B:B,B62,'B. Special Mob Strand - Staff'!N:N) -> 0 | I62: 0
B63: P38 | C63: =SUMIFS('1. Staff costs'!W:W,'1. Staff costs'!C:C,B63,'1. Staff costs'!B:B,$C$25)+SUMIFS('2-3. Travel Costs&Costs of Stay'!N:N,'2-3. Travel Costs&Costs of Stay'!C:C,B63,'2-3. Travel Costs&Costs of Stay'!B:B,$C$25)+SUMIFS('4. Equipment Costs'!H:H,'4. Equipment Costs'!C:C,B63,'4. Equipment Costs'!B:B,$C$25)+SUMIFS('5. Subcontracting Costs'!H:H,'5. Subcontracting Costs'!C:C,B63,'5. Subcontracting Costs'!B:B,$C$25) -> 0 | D63: =SUMIFS('1. Staff costs'!W:W,'1. Staff costs'!C:C,B63,'1. Staff costs'!B:B,$D$25)+SUMIFS('2-3. Travel Costs&Costs of Stay'!N:N,'2-3. Travel Costs&Costs of Stay'!C:C,B63,'2-3. Travel Costs&Costs of Stay'!B:B,$D$25)+SUMIFS('4. Equipment Costs'!H:H,'4. Equipment Costs'!C:C,B63,'4. Equipment Costs'!B:B,$D$25)+SUMIFS('5. Subcontracting Costs'!H:H,'5. Subcontracting Costs'!C:C,B63,'5. Subcontracting Costs'!B:B,$D$25) -> 0 | E63: =SUMIFS('1. Staff costs'!W:W,'1. Staff costs'!C:C,B63,'1. Staff costs'!B:B,$E$25)+SUMIFS('2-3. Travel Costs&Costs of Stay'!N:N,'2-3. Travel Costs&Costs of Stay'!C:C,B63,'2-3. Travel Costs&Costs of Stay'!B:B,$E$25)+SUMIFS('4. Equipment Costs'!H:H,'4. Equipment Costs'!C:C,B63,'4. Equipment Costs'!B:B,$E$25)+SUMIFS('5. Subcontracting Costs'!H:H,'5. Subcontracting Costs'!C:C,B63,'5. Subcontracting Costs'!B:B,$E$25) -> 0 | F63: =SUMIFS('1. Staff costs'!W:W,'1. Staff costs'!C:C,B63,'1. Staff costs'!B:B,$B$8)+SUMIFS('2-3. Travel Costs&Costs of Stay'!N:N,'2-3. Travel Costs&Costs of Stay'!C:C,B63,'2-3. Travel Costs&Costs of Stay'!B:B,$B$8)+SUMIFS('4. Equipment Costs'!H:H,'4. Equipment Costs'!C:C,B63,'4. Equipment Costs'!B:B,$B$8)+SUMIFS('5. Subcontracting Costs'!H:H,'5. Subcontracting Costs'!C:C,B63,'5. Subcontracting Costs'!B:B,$B$8) -> 0 | G63: =SUMIFS('1. Staff costs'!W:W,'1. Staff costs'!C:C,B63,'1. Staff costs'!B:B,$G$25)+SUMIFS('2-3. Travel Costs&Costs of Stay'!N:N,'2-3. Travel Costs&Costs of Stay'!C:C,B63,'2-3. Travel Costs&Costs of Stay'!B:B,$G$25)+SUMIFS('4. Equipment Costs'!H:H,'4. Equipment Costs'!C:C,B63,'4. Equipment Costs'!B:B,$G$25)+SUMIFS('5. Subcontracting Costs'!H:H,'5. Subcontracting Costs'!C:C,B63,'5. Subcontracting Costs'!B:B,$G$25) -> 0 | H63: =SUMIF('B. Special Mob Strand - Student'!B:B,B63,'B. Special Mob Strand - Student'!N:N)+SUMIF('B. Special Mob Strand - Staff'!B:B,B63,'B. Special Mob Strand - Staff'!N:N) -> 0 | I63: 0
B64: P39 | C64: =SUMIFS('1. Staff costs'!W:W,'1. Staff costs'!C:C,B64,'1. Staff costs'!B:B,$C$25)+SUMIFS('2-3. Travel Costs&Costs of Stay'!N:N,'2-3. Travel Costs&Costs of Stay'!C:C,B64,'2-3. Travel Costs&Costs of Stay'!B:B,$C$25)+SUMIFS('4. Equipment Costs'!H:H,'4. Equipment Costs'!C:C,B64,'4. Equipment Costs'!B:B,$C$25)+SUMIFS('5. Subcontracting Costs'!H:H,'5. Subcontracting Costs'!C:C,B64,'5. Subcontracting Costs'!B:B,$C$25) -> 0 | D64: =SUMIFS('1. Staff costs'!W:W,'1. Staff costs'!C:C,B64,'1. Staff costs'!B:B,$D$25)+SUMIFS('2-3. Travel Costs&Costs of Stay'!N:N,'2-3. Travel Costs&Costs of Stay'!C:C,B64,'2-3. Travel Costs&Costs of Stay'!B:B,$D$25)+SUMIFS('4. Equipment Costs'!H:H,'4. Equipment Costs'!C:C,B64,'4. Equipment Costs'!B:B,$D$25)+SUMIFS('5. Subcontracting Costs'!H:H,'5. Subcontracting Costs'!C:C,B64,'5. Subcontracting Costs'!B:B,$D$25) -> 0 | E64: =SUMIFS('1. Staff costs'!W:W,'1. Staff costs'!C:C,B64,'1. Staff costs'!B:B,$E$25)+SUMIFS('2-3. Travel Costs&Costs of Stay'!N:N,'2-3. Travel Costs&Costs of Stay'!C:C,B64,'2-3. Travel Costs&Costs of Stay'!B:B,$E$25)+SUMIFS('4. Equipment Costs'!H:H,'4. Equipment Costs'!C:C,B64,'4. Equipment Costs'!B:B,$E$25)+SUMIFS('5. Subcontracting Costs'!H:H,'5. Subcontracting Costs'!C:C,B64,'5. Subcontracting Costs'!B:B,$E$25) -> 0 | F64: =SUMIFS('1. Staff costs'!W:W,'1. Staff costs'!C:C,B64,'1. Staff costs'!B:B,$B$8)+SUMIFS('2-3. Travel Costs&Costs of Stay'!N:N,'2-3. Travel Costs&Costs of Stay'!C:C,B64,'2-3. Travel Costs&Costs of Stay'!B:B,$B$8)+SUMIFS('4. Equipment Costs'!H:H,'4. Equipment Costs'!C:C,B64,'4. Equipment Costs'!B:B,$B$8)+SUMIFS('5. Subcontracting Costs'!H:H,'5. Subcontracting Costs'!C:C,B64,'5. Subcontracting Costs'!B:B,$B$8) -> 0 | G64: =SUMIFS('1. Staff costs'!W:W,'1. Staff costs'!C:C,B64,'1. Staff costs'!B:B,$G$25)+SUMIFS('2-3. Travel Costs&Costs of Stay'!N:N,'2-3. Travel Costs&Costs of Stay'!C:C,B64,'2-3. Travel Costs&Costs of Stay'!B:B,$G$25)+SUMIFS('4. Equipment Costs'!H:H,'4. Equipment Costs'!C:C,B64,'4. Equipment Costs'!B:B,$G$25)+SUMIFS('5. Subcontracting Costs'!H:H,'5. Subcontracting Costs'!C:C,B64,'5. Subcontracting Costs'!B:B,$G$25) -> 0 | H64: =SUMIF('B. Special Mob Strand - Student'!B:B,B64,'B. Special Mob Strand - Student'!N:N)+SUMIF('B. Special Mob Strand - Staff'!B:B,B64,'B. Special Mob Strand - Staff'!N:N) -> 0 | I64: 0
B65: P40 | C65: =SUMIFS('1. Staff costs'!W:W,'1. Staff costs'!C:C,B65,'1. Staff costs'!B:B,$C$25)+SUMIFS('2-3. Travel Costs&Costs of Stay'!N:N,'2-3. Travel Costs&Costs of Stay'!C:C,B65,'2-3. Travel Costs&Costs of Stay'!B:B,$C$25)+SUMIFS('4. Equipment Costs'!H:H,'4. Equipment Costs'!C:C,B65,'4. Equipment Costs'!B:B,$C$25)+SUMIFS('5. Subcontracting Costs'!H:H,'5. Subcontracting Costs'!C:C,B65,'5. Subcontracting Costs'!B:B,$C$25) -> 0 | D65: =SUMIFS('1. Staff costs'!W:W,'1. Staff costs'!C:C,B65,'1. Staff costs'!B:B,$D$25)+SUMIFS('2-3. Travel Costs&Costs of Stay'!N:N,'2-3. Travel Costs&Costs of Stay'!C:C,B65,'2-3. Travel Costs&Costs of Stay'!B:B,$D$25)+SUMIFS('4. Equipment Costs'!H:H,'4. Equipment Costs'!C:C,B65,'4. Equipment Costs'!B:B,$D$25)+SUMIFS('5. Subcontracting Costs'!H:H,'5. Subcontracting Costs'!C:C,B65,'5. Subcontracting Costs'!B:B,$D$25) -> 0 | E65: =SUMIFS('1. Staff costs'!W:W,'1. Staff costs'!C:C,B65,'1. Staff costs'!B:B,$E$25)+SUMIFS('2-3. Travel Costs&Costs of Stay'!N:N,'2-3. Travel Costs&Costs of Stay'!C:C,B65,'2-3. Travel Costs&Costs of Stay'!B:B,$E$25)+SUMIFS('4. Equipment Costs'!H:H,'4. Equipment Costs'!C:C,B65,'4. Equipment Costs'!B:B,$E$25)+SUMIFS('5. Subcontracting Costs'!H:H,'5. Subcontracting Costs'!C:C,B65,'5. Subcontracting Costs'!B:B,$E$25) -> 0 | F65: =SUMIFS('1. Staff costs'!W:W,'1. Staff costs'!C:C,B65,'1. Staff costs'!B:B,$B$8)+SUMIFS('2-3. Travel Costs&Costs of Stay'!N:N,'2-3. Travel Costs&Costs of Stay'!C:C,B65,'2-3. Travel Costs&Costs of Stay'!B:B,$B$8)+SUMIFS('4. Equipment Costs'!H:H,'4. Equipment Costs'!C:C,B65,'4. Equipment Costs'!B:B,$B$8)+SUMIFS('5. Subcontracting Costs'!H:H,'5. Subcontracting Costs'!C:C,B65,'5. Subcontracting Costs'!B:B,$B$8) -> 0 | G65: =SUMIFS('1. Staff costs'!W:W,'1. Staff costs'!C:C,B65,'1. Staff costs'!B:B,$G$25)+SUMIFS('2-3. Travel Costs&Costs of Stay'!N:N,'2-3. Travel Costs&Costs of Stay'!C:C,B65,'2-3. Travel Costs&Costs of Stay'!B:B,$G$25)+SUMIFS('4. Equipment Costs'!H:H,'4. Equipment Costs'!C:C,B65,'4. Equipment Costs'!B:B,$G$25)+SUMIFS('5. Subcontracting Costs'!H:H,'5. Subcontracting Costs'!C:C,B65,'5. Subcontracting Costs'!B:B,$G$25) -> 0 | H65: =SUMIF('B. Special Mob Strand - Student'!B:B,B65,'B. Special Mob Strand - Student'!N:N)+SUMIF('B. Special Mob Strand - Staff'!B:B,B65,'B. Special Mob Strand - Staff'!N:N) -> 0 | I65: 0
B66: P41 | C66: =SUMIFS('1. Staff costs'!W:W,'1. Staff costs'!C:C,B66,'1. Staff costs'!B:B,$C$25)+SUMIFS('2-3. Travel Costs&Costs of Stay'!N:N,'2-3. Travel Costs&Costs of Stay'!C:C,B66,'2-3. Travel Costs&Costs of Stay'!B:B,$C$25)+SUMIFS('4. Equipment Costs'!H:H,'4. Equipment Costs'!C:C,B66,'4. Equipment Costs'!B:B,$C$25)+SUMIFS('5. Subcontracting Costs'!H:H,'5. Subcontracting Costs'!C:C,B66,'5. Subcontracting Costs'!B:B,$C$25) -> 0 | D66: =SUMIFS('1. Staff costs'!W:W,'1. Staff costs'!C:C,B66,'1. Staff costs'!B:B,$D$25)+SUMIFS('2-3. Travel Costs&Costs of Stay'!N:N,'2-3. Travel Costs&Costs of Stay'!C:C,B66,'2-3. Travel Costs&Costs of Stay'!B:B,$D$25)+SUMIFS('4. Equipment Costs'!H:H,'4. Equipment Costs'!C:C,B66,'4. Equipment Costs'!B:B,$D$25)+SUMIFS('5. Subcontracting Costs'!H:H,'5. Subcontracting Costs'!C:C,B66,'5. Subcontracting Costs'!B:B,$D$25) -> 0 | E66: =SUMIFS('1. Staff costs'!W:W,'1. Staff costs'!C:C,B66,'1. Staff costs'!B:B,$E$25)+SUMIFS('2-3. Travel Costs&Costs of Stay'!N:N,'2-3. Travel Costs&Costs of Stay'!C:C,B66,'2-3. Travel Costs&Costs of Stay'!B:B,$E$25)+SUMIFS('4. Equipment Costs'!H:H,'4. Equipment Costs'!C:C,B66,'4. Equipment Costs'!B:B,$E$25)+SUMIFS('5. Subcontracting Costs'!H:H,'5. Subcontracting Costs'!C:C,B66,'5. Subcontracting Costs'!B:B,$E$25) -> 0 | F66: =SUMIFS('1. Staff costs'!W:W,'1. Staff costs'!C:C,B66,'1. Staff costs'!B:B,$B$8)+SUMIFS('2-3. Travel Costs&Costs of Stay'!N:N,'2-3. Travel Costs&Costs of Stay'!C:C,B66,'2-3. Travel Costs&Costs of Stay'!B:B,$B$8)+SUMIFS('4. Equipment Costs'!H:H,'4. Equipment Costs'!C:C,B66,'4. Equipment Costs'!B:B,$B$8)+SUMIFS('5. Subcontracting Costs'!H:H,'5. Subcontracting Costs'!C:C,B66,'5. Subcontracting Costs'!B:B,$B$8) -> 0 | G66: =SUMIFS('1. Staff costs'!W:W,'1. Staff costs'!C:C,B66,'1. Staff costs'!B:B,$G$25)+SUMIFS('2-3. Travel Costs&Costs of Stay'!N:N,'2-3. Travel Costs&Costs of Stay'!C:C,B66,'2-3. Travel Costs&Costs of Stay'!B:B,$G$25)+SUMIFS('4. Equipment Costs'!H:H,'4. Equipment Costs'!C:C,B66,'4. Equipment Costs'!B:B,$G$25)+SUMIFS('5. Subcontracting Costs'!H:H,'5. Subcontracting Costs'!C:C,B66,'5. Subcontracting Costs'!B:B,$G$25) -> 0 | H66: =SUMIF('B. Special Mob Strand - Student'!B:B,B66,'B. Special Mob Strand - Student'!N:N)+SUMIF('B. Special Mob Strand - Staff'!B:B,B66,'B. Special Mob Strand - Staff'!N:N) -> 0 | I66: 0
B67: P42 | C67: =SUMIFS('1. Staff costs'!W:W,'1. Staff costs'!C:C,B67,'1. Staff costs'!B:B,$C$25)+SUMIFS('2-3. Travel Costs&Costs of Stay'!N:N,'2-3. Travel Costs&Costs of Stay'!C:C,B67,'2-3. Travel Costs&Costs of Stay'!B:B,$C$25)+SUMIFS('4. Equipment Costs'!H:H,'4. Equipment Costs'!C:C,B67,'4. Equipment Costs'!B:B,$C$25)+SUMIFS('5. Subcontracting Costs'!H:H,'5. Subcontracting Costs'!C:C,B67,'5. Subcontracting Costs'!B:B,$C$25) -> 0 | D67: =SUMIFS('1. Staff costs'!W:W,'1. Staff costs'!C:C,B67,'1. Staff costs'!B:B,$D$25)+SUMIFS('2-3. Travel Costs&Costs of Stay'!N:N,'2-3. Travel Costs&Costs of Stay'!C:C,B67,'2-3. Travel Costs&Costs of Stay'!B:B,$D$25)+SUMIFS('4. Equipment Costs'!H:H,'4. Equipment Costs'!C:C,B67,'4. Equipment Costs'!B:B,$D$25)+SUMIFS('5. Subcontracting Costs'!H:H,'5. Subcontracting Costs'!C:C,B67,'5. Subcontracting Costs'!B:B,$D$25) -> 0 | E67: =SUMIFS('1. Staff costs'!W:W,'1. Staff costs'!C:C,B67,'1. Staff costs'!B:B,$E$25)+SUMIFS('2-3. Travel Costs&Costs of Stay'!N:N,'2-3. Travel Costs&Costs of Stay'!C:C,B67,'2-3. Travel Costs&Costs of Stay'!B:B,$E$25)+SUMIFS('4. Equipment Costs'!H:H,'4. Equipment Costs'!C:C,B67,'4. Equipment Costs'!B:B,$E$25)+SUMIFS('5. Subcontracting Costs'!H:H,'5. Subcontracting Costs'!C:C,B67,'5. Subcontracting Costs'!B:B,$E$25) -> 0 | F67: =SUMIFS('1. Staff costs'!W:W,'1. Staff costs'!C:C,B67,'1. Staff costs'!B:B,$B$8)+SUMIFS('2-3. Travel Costs&Costs of Stay'!N:N,'2-3. Travel Costs&Costs of Stay'!C:C,B67,'2-3. Travel Costs&Costs of Stay'!B:B,$B$8)+SUMIFS('4. Equipment Costs'!H:H,'4. Equipment Costs'!C:C,B67,'4. Equipment Costs'!B:B,$B$8)+SUMIFS('5. Subcontracting Costs'!H:H,'5. Subcontracting Costs'!C:C,B67,'5. Subcontracting Costs'!B:B,$B$8) -> 0 | G67: =SUMIFS('1. Staff costs'!W:W,'1. Staff costs'!C:C,B67,'1. Staff costs'!B:B,$G$25)+SUMIFS('2-3. Travel Costs&Costs of Stay'!N:N,'2-3. Travel Costs&Costs of Stay'!C:C,B67,'2-3. Travel Costs&Costs of Stay'!B:B,$G$25)+SUMIFS('4. Equipment Costs'!H:H,'4. Equipment Costs'!C:C,B67,'4. Equipment Costs'!B:B,$G$25)+SUMIFS('5. Subcontracting Costs'!H:H,'5. Subcontracting Costs'!C:C,B67,'5. Subcontracting Costs'!B:B,$G$25) -> 0 | H67: =SUMIF('B. Special Mob Strand - Student'!B:B,B67,'B. Special Mob Strand - Student'!N:N)+SUMIF('B. Special Mob Strand - Staff'!B:B,B67,'B. Special Mob Strand - Staff'!N:N) -> 0 | I67: 0
B68: P43 | C68: =SUMIFS('1. Staff costs'!W:W,'1. Staff costs'!C:C,B68,'1. Staff costs'!B:B,$C$25)+SUMIFS('2-3. Travel Costs&Costs of Stay'!N:N,'2-3. Travel Costs&Costs of Stay'!C:C,B68,'2-3. Travel Costs&Costs of Stay'!B:B,$C$25)+SUMIFS('4. Equipment Costs'!H:H,'4. Equipment Costs'!C:C,B68,'4. Equipment Costs'!B:B,$C$25)+SUMIFS('5. Subcontracting Costs'!H:H,'5. Subcontracting Costs'!C:C,B68,'5. Subcontracting Costs'!B:B,$C$25) -> 0 | D68: =SUMIFS('1. Staff costs'!W:W,'1. Staff costs'!C:C,B68,'1. Staff costs'!B:B,$D$25)+SUMIFS('2-3. Travel Costs&Costs of Stay'!N:N,'2-3. Travel Costs&Costs of Stay'!C:C,B68,'2-3. Travel Costs&Costs of Stay'!B:B,$D$25)+SUMIFS('4. Equipment Costs'!H:H,'4. Equipment Costs'!C:C,B68,'4. Equipment Costs'!B:B,$D$25)+SUMIFS('5. Subcontracting Costs'!H:H,'5. Subcontracting Costs'!C:C,B68,'5. Subcontracting Costs'!B:B,$D$25) -> 0 | E68: =SUMIFS('1. Staff costs'!W:W,'1. Staff costs'!C:C,B68,'1. Staff costs'!B:B,$E$25)+SUMIFS('2-3. Travel Costs&Costs of Stay'!N:N,'2-3. Travel Costs&Costs of Stay'!C:C,B68,'2-3. Travel Costs&Costs of Stay'!B:B,$E$25)+SUMIFS('4. Equipment Costs'!H:H,'4. Equipment Costs'!C:C,B68,'4. Equipment Costs'!B:B,$E$25)+SUMIFS('5. Subcontracting Costs'!H:H,'5. Subcontracting Costs'!C:C,B68,'5. Subcontracting Costs'!B:B,$E$25) -> 0 | F68: =SUMIFS('1. Staff costs'!W:W,'1. Staff costs'!C:C,B68,'1. Staff costs'!B:B,$B$8)+SUMIFS('2-3. Travel Costs&Costs of Stay'!N:N,'2-3. Travel Costs&Costs of Stay'!C:C,B68,'2-3. Travel Costs&Costs of Stay'!B:B,$B$8)+SUMIFS('4. Equipment Costs'!H:H,'4. Equipment Costs'!C:C,B68,'4. Equipment Costs'!B:B,$B$8)+SUMIFS('5. Subcontracting Costs'!H:H,'5. Subcontracting Costs'!C:C,B68,'5. Subcontracting Costs'!B:B,$B$8) -> 0 | G68: =SUMIFS('1. Staff costs'!W:W,'1. Staff costs'!C:C,B68,'1. Staff costs'!B:B,$G$25)+SUMIFS('2-3. Travel Costs&Costs of Stay'!N:N,'2-3. Travel Costs&Costs of Stay'!C:C,B68,'2-3. Travel Costs&Costs of Stay'!B:B,$G$25)+SUMIFS('4. Equipment Costs'!H:H,'4. Equipment Costs'!C:C,B68,'4. Equipment Costs'!B:B,$G$25)+SUMIFS('5. Subcontracting Costs'!H:H,'5. Subcontracting Costs'!C:C,B68,'5. Subcontracting Costs'!B:B,$G$25) -> 0 | H68: =SUMIF('B. Special Mob Strand - Student'!B:B,B68,'B. Special Mob Strand - Student'!N:N)+SUMIF('B. Special Mob Strand - Staff'!B:B,B68,'B. Special Mob Strand - Staff'!N:N) -> 0 | I68: 0
B69: P44 | C69: =SUMIFS('1. Staff costs'!W:W,'1. Staff costs'!C:C,B69,'1. Staff costs'!B:B,$C$25)+SUMIFS('2-3. Travel Costs&Costs of Stay'!N:N,'2-3. Travel Costs&Costs of Stay'!C:C,B69,'2-3. Travel Costs&Costs of Stay'!B:B,$C$25)+SUMIFS('4. Equipment Costs'!H:H,'4. Equipment Costs'!C:C,B69,'4. Equipment Costs'!B:B,$C$25)+SUMIFS('5. Subcontracting Costs'!H:H,'5. Subcontracting Costs'!C:C,B69,'5. Subcontracting Costs'!B:B,$C$25) -> 0 | D69: =SUMIFS('1. Staff costs'!W:W,'1. Staff costs'!C:C,B69,'1. Staff costs'!B:B,$D$25)+SUMIFS('2-3. Travel Costs&Costs of Stay'!N:N,'2-3. Travel Costs&Costs of Stay'!C:C,B69,'2-3. Travel Costs&Costs of Stay'!B:B,$D$25)+SUMIFS('4. Equipment Costs'!H:H,'4. Equipment Costs'!C:C,B69,'4. Equipment Costs'!B:B,$D$25)+SUMIFS('5. Subcontracting Costs'!H:H,'5. Subcontracting Costs'!C:C,B69,'5. Subcontracting Costs'!B:B,$D$25) -> 0 | E69: =SUMIFS('1. Staff costs'!W:W,'1. Staff costs'!C:C,B69,'1. Staff costs'!B:B,$E$25)+SUMIFS('2-3. Travel Costs&Costs of Stay'!N:N,'2-3. Travel Costs&Costs of Stay'!C:C,B69,'2-3. Travel Costs&Costs of Stay'!B:B,$E$25)+SUMIFS('4. Equipment Costs'!H:H,'4. Equipment Costs'!C:C,B69,'4. Equipment Costs'!B:B,$E$25)+SUMIFS('5. Subcontracting Costs'!H:H,'5. Subcontracting Costs'!C:C,B69,'5. Subcontracting Costs'!B:B,$E$25) -> 0 | F69: =SUMIFS('1. Staff costs'!W:W,'1. Staff costs'!C:C,B69,'1. Staff costs'!B:B,$B$8)+SUMIFS('2-3. Travel Costs&Costs of Stay'!N:N,'2-3. Travel Costs&Costs of Stay'!C:C,B69,'2-3. Travel Costs&Costs of Stay'!B:B,$B$8)+SUMIFS('4. Equipment Costs'!H:H,'4. Equipment Costs'!C:C,B69,'4. Equipment Costs'!B:B,$B$8)+SUMIFS('5. Subcontracting Costs'!H:H,'5. Subcontracting Costs'!C:C,B69,'5. Subcontracting Costs'!B:B,$B$8) -> 0 | G69: =SUMIFS('1. Staff costs'!W:W,'1. Staff costs'!C:C,B69,'1. Staff costs'!B:B,$G$25)+SUMIFS('2-3. Travel Costs&Costs of Stay'!N:N,'2-3. Travel Costs&Costs of Stay'!C:C,B69,'2-3. Travel Costs&Costs of Stay'!B:B,$G$25)+SUMIFS('4. Equipment Costs'!H:H,'4. Equipment Costs'!C:C,B69,'4. Equipment Costs'!B:B,$G$25)+SUMIFS('5. Subcontracting Costs'!H:H,'5. Subcontracting Costs'!C:C,B69,'5. Subcontracting Costs'!B:B,$G$25) -> 0 | H69: =SUMIF('B. Special Mob Strand - Student'!B:B,B69,'B. Special Mob Strand - Student'!N:N)+SUMIF('B. Special Mob Strand - Staff'!B:B,B69,'B. Special Mob Strand - Staff'!N:N) -> 0 | I69: 0
B70: P45 | C70: =SUMIFS('1. Staff costs'!W:W,'1. Staff costs'!C:C,B70,'1. Staff costs'!B:B,$C$25)+SUMIFS('2-3. Travel Costs&Costs of Stay'!N:N,'2-3. Travel Costs&Costs of Stay'!C:C,B70,'2-3. Travel Costs&Costs of Stay'!B:B,$C$25)+SUMIFS('4. Equipment Costs'!H:H,'4. Equipment Costs'!C:C,B70,'4. Equipment Costs'!B:B,$C$25)+SUMIFS('5. Subcontracting Costs'!H:H,'5. Subcontracting Costs'!C:C,B70,'5. Subcontracting Costs'!B:B,$C$25) -> 0 | D70: =SUMIFS('1. Staff costs'!W:W,'1. Staff costs'!C:C,B70,'1. Staff costs'!B:B,$D$25)+SUMIFS('2-3. Travel Costs&Costs of Stay'!N:N,'2-3. Travel Costs&Costs of Stay'!C:C,B70,'2-3. Travel Costs&Costs of Stay'!B:B,$D$25)+SUMIFS('4. Equipment Costs'!H:H,'4. Equipment Costs'!C:C,B70,'4. Equipment Costs'!B:B,$D$25)+SUMIFS('5. Subcontracting Costs'!H:H,'5. Subcontracting Costs'!C:C,B70,'5. Subcontracting Costs'!B:B,$D$25) -> 0 | E70: =SUMIFS('1. Staff costs'!W:W,'1. Staff costs'!C:C,B70,'1. Staff costs'!B:B,$E$25)+SUMIFS('2-3. Travel Costs&Costs of Stay'!N:N,'2-3. Travel Costs&Costs of Stay'!C:C,B70,'2-3. Travel Costs&Costs of Stay'!B:B,$E$25)+SUMIFS('4. Equipment Costs'!H:H,'4. Equipment Costs'!C:C,B70,'4. Equipment Costs'!B:B,$E$25)+SUMIFS('5. Subcontracting Costs'!H:H,'5. Subcontracting Costs'!C:C,B70,'5. Subcontracting Costs'!B:B,$E$25) -> 0 | F70: =SUMIFS('1. Staff costs'!W:W,'1. Staff costs'!C:C,B70,'1. Staff costs'!B:B,$B$8)+SUMIFS('2-3. Travel Costs&Costs of Stay'!N:N,'2-3. Travel Costs&Costs of Stay'!C:C,B70,'2-3. Travel Costs&Costs of Stay'!B:B,$B$8)+SUMIFS('4. Equipment Costs'!H:H,'4. Equipment Costs'!C:C,B70,'4. Equipment Costs'!B:B,$B$8)+SUMIFS('5. Subcontracting Costs'!H:H,'5. Subcontracting Costs'!C:C,B70,'5. Subcontracting Costs'!B:B,$B$8) -> 0 | G70: =SUMIFS('1. Staff costs'!W:W,'1. Staff costs'!C:C,B70,'1. Staff costs'!B:B,$G$25)+SUMIFS('2-3. Travel Costs&Costs of Stay'!N:N,'2-3. Travel Costs&Costs of Stay'!C:C,B70,'2-3. Travel Costs&Costs of Stay'!B:B,$G$25)+SUMIFS('4. Equipment Costs'!H:H,'4. Equipment Costs'!C:C,B70,'4. Equipment Costs'!B:B,$G$25)+SUMIFS('5. Subcontracting Costs'!H:H,'5. Subcontracting Costs'!C:C,B70,'5. Subcontracting Costs'!B:B,$G$25) -> 0 | H70: =SUMIF('B. Special Mob Strand - Student'!B:B,B70,'B. Special Mob Strand - Student'!N:N)+SUMIF('B. Special Mob Strand - Staff'!B:B,B70,'B. Special Mob Strand - Staff'!N:N) -> 0 | I70: 0
B71: P46 | C71: =SUMIFS('1. Staff costs'!W:W,'1. Staff costs'!C:C,B71,'1. Staff costs'!B:B,$C$25)+SUMIFS('2-3. Travel Costs&Costs of Stay'!N:N,'2-3. Travel Costs&Costs of Stay'!C:C,B71,'2-3. Travel Costs&Costs of Stay'!B:B,$C$25)+SUMIFS('4. Equipment Costs'!H:H,'4. Equipment Costs'!C:C,B71,'4. Equipment Costs'!B:B,$C$25)+SUMIFS('5. Subcontracting Costs'!H:H,'5. Subcontracting Costs'!C:C,B71,'5. Subcontracting Costs'!B:B,$C$25) -> 0 | D71: =SUMIFS('1. Staff costs'!W:W,'1. Staff costs'!C:C,B71,'1. Staff costs'!B:B,$D$25)+SUMIFS('2-3. Travel Costs&Costs of Stay'!N:N,'2-3. Travel Costs&Costs of Stay'!C:C,B71,'2-3. Travel Costs&Costs of Stay'!B:B,$D$25)+SUMIFS('4. Equipment Costs'!H:H,'4. Equipment Costs'!C:C,B71,'4. Equipment Costs'!B:B,$D$25)+SUMIFS('5. Subcontracting Costs'!H:H,'5. Subcontracting Costs'!C:C,B71,'5. Subcontracting Costs'!B:B,$D$25) -> 0 | E71: =SUMIFS('1. Staff costs'!W:W,'1. Staff costs'!C:C,B71,'1. Staff costs'!B:B,$E$25)+SUMIFS('2-3. Travel Costs&Costs of Stay'!N:N,'2-3. Travel Costs&Costs of Stay'!C:C,B71,'2-3. Travel Costs&Costs of Stay'!B:B,$E$25)+SUMIFS('4. Equipment Costs'!H:H,'4. Equipment Costs'!C:C,B71,'4. Equipment Costs'!B:B,$E$25)+SUMIFS('5. Subcontracting Costs'!H:H,'5. Subcontracting Costs'!C:C,B71,'5. Subcontracting Costs'!B:B,$E$25) -> 0 | F71: =SUMIFS('1. Staff costs'!W:W,'1. Staff costs'!C:C,B71,'1. Staff costs'!B:B,$B$8)+SUMIFS('2-3. Travel Costs&Costs of Stay'!N:N,'2-3. Travel Costs&Costs of Stay'!C:C,B71,'2-3. Travel Costs&Costs of Stay'!B:B,$B$8)+SUMIFS('4. Equipment Costs'!H:H,'4. Equipment Costs'!C:C,B71,'4. Equipment Costs'!B:B,$B$8)+SUMIFS('5. Subcontracting Costs'!H:H,'5. Subcontracting Costs'!C:C,B71,'5. Subcontracting Costs'!B:B,$B$8) -> 0 | G71: =SUMIFS('1. Staff costs'!W:W,'1. Staff costs'!C:C,B71,'1. Staff costs'!B:B,$G$25)+SUMIFS('2-3. Travel Costs&Costs of Stay'!N:N,'2-3. Travel Costs&Costs of Stay'!C:C,B71,'2-3. Travel Costs&Costs of Stay'!B:B,$G$25)+SUMIFS('4. Equipment Costs'!H:H,'4. Equipment Costs'!C:C,B71,'4. Equipment Costs'!B:B,$G$25)+SUMIFS('5. Subcontracting Costs'!H:H,'5. Subcontracting Costs'!C:C,B71,'5. Subcontracting Costs'!B:B,$G$25) -> 0 | H71: =SUMIF('B. Special Mob Strand - Student'!B:B,B71,'B. Special Mob Strand - Student'!N:N)+SUMIF('B. Special Mob Strand - Staff'!B:B,B71,'B. Special Mob Strand - Staff'!N:N) -> 0 | I71: 0
B72: P47 | C72: =SUMIFS('1. Staff costs'!W:W,'1. Staff costs'!C:C,B72,'1. Staff costs'!B:B,$C$25)+SUMIFS('2-3. Travel Costs&Costs of Stay'!N:N,'2-3. Travel Costs&Costs of Stay'!C:C,B72,'2-3. Travel Costs&Costs of Stay'!B:B,$C$25)+SUMIFS('4. Equipment Costs'!H:H,'4. Equipment Costs'!C:C,B72,'4. Equipment Costs'!B:B,$C$25)+SUMIFS('5. Subcontracting Costs'!H:H,'5. Subcontracting Costs'!C:C,B72,'5. Subcontracting Costs'!B:B,$C$25) -> 0 | D72: =SUMIFS('1. Staff costs'!W:W,'1. Staff costs'!C:C,B72,'1. Staff costs'!B:B,$D$25)+SUMIFS('2-3. Travel Costs&Costs of Stay'!N:N,'2-3. Travel Costs&Costs of Stay'!C:C,B72,'2-3. Travel Costs&Costs of Stay'!B:B,$D$25)+SUMIFS('4. Equipment Costs'!H:H,'4. Equipment Costs'!C:C,B72,'4. Equipment Costs'!B:B,$D$25)+SUMIFS('5. Subcontracting Costs'!H:H,'5. Subcontracting Costs'!C:C,B72,'5. Subcontracting Costs'!B:B,$D$25) -> 0 | E72: =SUMIFS('1. Staff costs'!W:W,'1. Staff costs'!C:C,B72,'1. Staff costs'!B:B,$E$25)+SUMIFS('2-3. Travel Costs&Costs of Stay'!N:N,'2-3. Travel Costs&Costs of Stay'!C:C,B72,'2-3. Travel Costs&Costs of Stay'!B:B,$E$25)+SUMIFS('4. Equipment Costs'!H:H,'4. Equipment Costs'!C:C,B72,'4. Equipment Costs'!B:B,$E$25)+SUMIFS('5. Subcontracting Costs'!H:H,'5. Subcontracting Costs'!C:C,B72,'5. Subcontracting Costs'!B:B,$E$25) -> 0 | F72: =SUMIFS('1. Staff costs'!W:W,'1. Staff costs'!C:C,B72,'1. Staff costs'!B:B,$B$8)+SUMIFS('2-3. Travel Costs&Costs of Stay'!N:N,'2-3. Travel Costs&Costs of Stay'!C:C,B72,'2-3. Travel Costs&Costs of Stay'!B:B,$B$8)+SUMIFS('4. Equipment Costs'!H:H,'4. Equipment Costs'!C:C,B72,'4. Equipment Costs'!B:B,$B$8)+SUMIFS('5. Subcontracting Costs'!H:H,'5. Subcontracting Costs'!C:C,B72,'5. Subcontracting Costs'!B:B,$B$8) -> 0 | G72: =SUMIFS('1. Staff costs'!W:W,'1. Staff costs'!C:C,B72,'1. Staff costs'!B:B,$G$25)+SUMIFS('2-3. Travel Costs&Costs of Stay'!N:N,'2-3. Travel Costs&Costs of Stay'!C:C,B72,'2-3. Travel Costs&Costs of Stay'!B:B,$G$25)+SUMIFS('4. Equipment Costs'!H:H,'4. Equipment Costs'!C:C,B72,'4. Equipment Costs'!B:B,$G$25)+SUMIFS('5. Subcontracting Costs'!H:H,'5. Subcontracting Costs'!C:C,B72,'5. Subcontracting Costs'!B:B,$G$25) -> 0 | H72: =SUMIF('B. Special Mob Strand - Student'!B:B,B72,'B. Special Mob Strand - Student'!N:N)+SUMIF('B. Special Mob Strand - Staff'!B:B,B72,'B. Special Mob Strand - Staff'!N:N) -> 0 | I72: 0
B73: P48 | C73: =SUMIFS('1. Staff costs'!W:W,'1. Staff costs'!C:C,B73,'1. Staff costs'!B:B,$C$25)+SUMIFS('2-3. Travel Costs&Costs of Stay'!N:N,'2-3. Travel Costs&Costs of Stay'!C:C,B73,'2-3. Travel Costs&Costs of Stay'!B:B,$C$25)+SUMIFS('4. Equipment Costs'!H:H,'4. Equipment Costs'!C:C,B73,'4. Equipment Costs'!B:B,$C$25)+SUMIFS('5. Subcontracting Costs'!H:H,'5. Subcontracting Costs'!C:C,B73,'5. Subcontracting Costs'!B:B,$C$25) -> 0 | D73: =SUMIFS('1. Staff costs'!W:W,'1. Staff costs'!C:C,B73,'1. Staff costs'!B:B,$D$25)+SUMIFS('2-3. Travel Costs&Costs of Stay'!N:N,'2-3. Travel Costs&Costs of Stay'!C:C,B73,'2-3. Travel Costs&Costs of Stay'!B:B,$D$25)+SUMIFS('4. Equipment Costs'!H:H,'4. Equipment Costs'!C:C,B73,'4. Equipment Costs'!B:B,$D$25)+SUMIFS('5. Subcontracting Costs'!H:H,'5. Subcontracting Costs'!C:C,B73,'5. Subcontracting Costs'!B:B,$D$25) -> 0 | E73: =SUMIFS('1. Staff costs'!W:W,'1. Staff costs'!C:C,B73,'1. Staff costs'!B:B,$E$25)+SUMIFS('2-3. Travel Costs&Costs of Stay'!N:N,'2-3. Travel Costs&Costs of Stay'!C:C,B73,'2-3. Travel Costs&Costs of Stay'!B:B,$E$25)+SUMIFS('4. Equipment Costs'!H:H,'4. Equipment Costs'!C:C,B73,'4. Equipment Costs'!B:B,$E$25)+SUMIFS('5. Subcontracting Costs'!H:H,'5. Subcontracting Costs'!C:C,B73,'5. Subcontracting Costs'!B:B,$E$25) -> 0 | F73: =SUMIFS('1. Staff costs'!W:W,'1. Staff costs'!C:C,B73,'1. Staff costs'!B:B,$B$8)+SUMIFS('2-3. Travel Costs&Costs of Stay'!N:N,'2-3. Travel Costs&Costs of Stay'!C:C,B73,'2-3. Travel Costs&Costs of Stay'!B:B,$B$8)+SUMIFS('4. Equipment Costs'!H:H,'4. Equipment Costs'!C:C,B73,'4. Equipment Costs'!B:B,$B$8)+SUMIFS('5. Subcontracting Costs'!H:H,'5. Subcontracting Costs'!C:C,B73,'5. Subcontracting Costs'!B:B,$B$8) -> 0 | G73: =SUMIFS('1. Staff costs'!W:W,'1. Staff costs'!C:C,B73,'1. Staff costs'!B:B,$G$25)+SUMIFS('2-3. Travel Costs&Costs of Stay'!N:N,'2-3. Travel Costs&Costs of Stay'!C:C,B73,'2-3. Travel Costs&Costs of Stay'!B:B,$G$25)+SUMIFS('4. Equipment Costs'!H:H,'4. Equipment Costs'!C:C,B73,'4. Equipment Costs'!B:B,$G$25)+SUMIFS('5. Subcontracting Costs'!H:H,'5. Subcontracting Costs'!C:C,B73,'5. Subcontracting Costs'!B:B,$G$25) -> 0 | H73: =SUMIF('B. Special Mob Strand - Student'!B:B,B73,'B. Special Mob Strand - Student'!N:N)+SUMIF('B. Special Mob Strand - Staff'!B:B,B73,'B. Special Mob Strand - Staff'!N:N) -> 0 | I73: 0
B74: P49 | C74: =SUMIFS('1. Staff costs'!W:W,'1. Staff costs'!C:C,B74,'1. Staff costs'!B:B,$C$25)+SUMIFS('2-3. Travel Costs&Costs of Stay'!N:N,'2-3. Travel Costs&Costs of Stay'!C:C,B74,'2-3. Travel Costs&Costs of Stay'!B:B,$C$25)+SUMIFS('4. Equipment Costs'!H:H,'4. Equipment Costs'!C:C,B74,'4. Equipment Costs'!B:B,$C$25)+SUMIFS('5. Subcontracting Costs'!H:H,'5. Subcontracting Costs'!C:C,B74,'5. Subcontracting Costs'!B:B,$C$25) -> 0 | D74: =SUMIFS('1. Staff costs'!W:W,'1. Staff costs'!C:C,B74,'1. Staff costs'!B:B,$D$25)+SUMIFS('2-3. Travel Costs&Costs of Stay'!N:N,'2-3. Travel Costs&Costs of Stay'!C:C,B74,'2-3. Travel Costs&Costs of Stay'!B:B,$D$25)+SUMIFS('4. Equipment Costs'!H:H,'4. Equipment Costs'!C:C,B74,'4. Equipment Costs'!B:B,$D$25)+SUMIFS('5. Subcontracting Costs'!H:H,'5. Subcontracting Costs'!C:C,B74,'5. Subcontracting Costs'!B:B,$D$25) -> 0 | E74: =SUMIFS('1. Staff costs'!W:W,'1. Staff costs'!C:C,B74,'1. Staff costs'!B:B,$E$25)+SUMIFS('2-3. Travel Costs&Costs of Stay'!N:N,'2-3. Travel Costs&Costs of Stay'!C:C,B74,'2-3. Travel Costs&Costs of Stay'!B:B,$E$25)+SUMIFS('4. Equipment Costs'!H:H,'4. Equipment Costs'!C:C,B74,'4. Equipment Costs'!B:B,$E$25)+SUMIFS('5. Subcontracting Costs'!H:H,'5. Subcontracting Costs'!C:C,B74,'5. Subcontracting Costs'!B:B,$E$25) -> 0 | F74: =SUMIFS('1. Staff costs'!W:W,'1. Staff costs'!C:C,B74,'1. Staff costs'!B:B,$B$8)+SUMIFS('2-3. Travel Costs&Costs of Stay'!N:N,'2-3. Travel Costs&Costs of Stay'!C:C,B74,'2-3. Travel Costs&Costs of Stay'!B:B,$B$8)+SUMIFS('4. Equipment Costs'!H:H,'4. Equipment Costs'!C:C,B74,'4. Equipment Costs'!B:B,$B$8)+SUMIFS('5. Subcontracting Costs'!H:H,'5. Subcontracting Costs'!C:C,B74,'5. Subcontracting Costs'!B:B,$B$8) -> 0 | G74: =SUMIFS('1. Staff costs'!W:W,'1. Staff costs'!C:C,B74,'1. Staff costs'!B:B,$G$25)+SUMIFS('2-3. Travel Costs&Costs of Stay'!N:N,'2-3. Travel Costs&Costs of Stay'!C:C,B74,'2-3. Travel Costs&Costs of Stay'!B:B,$G$25)+SUMIFS('4. Equipment Costs'!H:H,'4. Equipment Costs'!C:C,B74,'4. Equipment Costs'!B:B,$G$25)+SUMIFS('5. Subcontracting Costs'!H:H,'5. Subcontracting Costs'!C:C,B74,'5. Subcontracting Costs'!B:B,$G$25) -> 0 | H74: =SUMIF('B. Special Mob Strand - Student'!B:B,B74,'B. Special Mob Strand - Student'!N:N)+SUMIF('B. Special Mob Strand - Staff'!B:B,B74,'B. Special Mob Strand - Staff'!N:N) -> 0 | I74: 0
B75: P50 | C75: =SUMIFS('1. Staff costs'!W:W,'1. Staff costs'!C:C,B75,'1. Staff costs'!B:B,$C$25)+SUMIFS('2-3. Travel Costs&Costs of Stay'!N:N,'2-3. Travel Costs&Costs of Stay'!C:C,B75,'2-3. Travel Costs&Costs of Stay'!B:B,$C$25)+SUMIFS('4. Equipment Costs'!H:H,'4. Equipment Costs'!C:C,B75,'4. Equipment Costs'!B:B,$C$25)+SUMIFS('5. Subcontracting Costs'!H:H,'5. Subcontracting Costs'!C:C,B75,'5. Subcontracting Costs'!B:B,$C$25) -> 0 | D75: =SUMIFS('1. Staff costs'!W:W,'1. Staff costs'!C:C,B75,'1. Staff costs'!B:B,$D$25)+SUMIFS('2-3. Travel Costs&Costs of Stay'!N:N,'2-3. Travel Costs&Costs of Stay'!C:C,B75,'2-3. Travel Costs&Costs of Stay'!B:B,$D$25)+SUMIFS('4. Equipment Costs'!H:H,'4. Equipment Costs'!C:C,B75,'4. Equipment Costs'!B:B,$D$25)+SUMIFS('5. Subcontracting Costs'!H:H,'5. Subcontracting Costs'!C:C,B75,'5. Subcontracting Costs'!B:B,$D$25) -> 0 | E75: =SUMIFS('1. Staff costs'!W:W,'1. Staff costs'!C:C,B75,'1. Staff costs'!B:B,$E$25)+SUMIFS('2-3. Travel Costs&Costs of Stay'!N:N,'2-3. Travel Costs&Costs of Stay'!C:C,B75,'2-3. Travel Costs&Costs of Stay'!B:B,$E$25)+SUMIFS('4. Equipment Costs'!H:H,'4. Equipment Costs'!C:C,B75,'4. Equipment Costs'!B:B,$E$25)+SUMIFS('5. Subcontracting Costs'!H:H,'5. Subcontracting Costs'!C:C,B75,'5. Subcontracting Costs'!B:B,$E$25) -> 0 | F75: =SUMIFS('1. Staff costs'!W:W,'1. Staff costs'!C:C,B75,'1. Staff costs'!B:B,$B$8)+SUMIFS('2-3. Travel Costs&Costs of Stay'!N:N,'2-3. Travel Costs&Costs of Stay'!C:C,B75,'2-3. Travel Costs&Costs of Stay'!B:B,$B$8)+SUMIFS('4. Equipment Costs'!H:H,'4. Equipment Costs'!C:C,B75,'4. Equipment Costs'!B:B,$B$8)+SUMIFS('5. Subcontracting Costs'!H:H,'5. Subcontracting Costs'!C:C,B75,'5. Subcontracting Costs'!B:B,$B$8) -> 0 | G75: =SUMIFS('1. Staff costs'!W:W,'1. Staff costs'!C:C,B75,'1. Staff costs'!B:B,$G$25)+SUMIFS('2-3. Travel Costs&Costs of Stay'!N:N,'2-3. Travel Costs&Costs of Stay'!C:C,B75,'2-3. Travel Costs&Costs of Stay'!B:B,$G$25)+SUMIFS('4. Equipment Costs'!H:H,'4. Equipment Costs'!C:C,B75,'4. Equipment Costs'!B:B,$G$25)+SUMIFS('5. Subcontracting Costs'!H:H,'5. Subcontracting Costs'!C:C,B75,'5. Subcontracting Costs'!B:B,$G$25) -> 0 | H75: =SUMIF('B. Special Mob Strand - Student'!B:B,B75,'B. Special Mob Strand - Student'!N:N)+SUMIF('B. Special Mob Strand - Staff'!B:B,B75,'B. Special Mob Strand - Staff'!N:N) -> 0 | I75: 0
B76: P51 | C76: =SUMIFS('1. Staff costs'!W:W,'1. Staff costs'!C:C,B76,'1. Staff costs'!B:B,$C$25)+SUMIFS('2-3. Travel Costs&Costs of Stay'!N:N,'2-3. Travel Costs&Costs of Stay'!C:C,B76,'2-3. Travel Costs&Costs of Stay'!B:B,$C$25)+SUMIFS('4. Equipment Costs'!H:H,'4. Equipment Costs'!C:C,B76,'4. Equipment Costs'!B:B,$C$25)+SUMIFS('5. Subcontracting Costs'!H:H,'5. Subcontracting Costs'!C:C,B76,'5. Subcontracting Costs'!B:B,$C$25) -> 0 | D76: =SUMIFS('1. Staff costs'!W:W,'1. Staff costs'!C:C,B76,'1. Staff costs'!B:B,$D$25)+SUMIFS('2-3. Travel Costs&Costs of Stay'!N:N,'2-3. Travel Costs&Costs of Stay'!C:C,B76,'2-3. Travel Costs&Costs of Stay'!B:B,$D$25)+SUMIFS('4. Equipment Costs'!H:H,'4. Equipment Costs'!C:C,B76,'4. Equipment Costs'!B:B,$D$25)+SUMIFS('5. Subcontracting Costs'!H:H,'5. Subcontracting Costs'!C:C,B76,'5. Subcontracting Costs'!B:B,$D$25) -> 0 | E76: =SUMIFS('1. Staff costs'!W:W,'1. Staff costs'!C:C,B76,'1. Staff costs'!B:B,$E$25)+SUMIFS('2-3. Travel Costs&Costs of Stay'!N:N,'2-3. Travel Costs&Costs of Stay'!C:C,B76,'2-3. Travel Costs&Costs of Stay'!B:B,$E$25)+SUMIFS('4. Equipment Costs'!H:H,'4. Equipment Costs'!C:C,B76,'4. Equipment Costs'!B:B,$E$25)+SUMIFS('5. Subcontracting Costs'!H:H,'5. Subcontracting Costs'!C:C,B76,'5. Subcontracting Costs'!B:B,$E$25) -> 0 | F76: =SUMIFS('1. Staff costs'!W:W,'1. Staff costs'!C:C,B76,'1. Staff costs'!B:B,$B$8)+SUMIFS('2-3. Travel Costs&Costs of Stay'!N:N,'2-3. Travel Costs&Costs of Stay'!C:C,B76,'2-3. Travel Costs&Costs of Stay'!B:B,$B$8)+SUMIFS('4. Equipment Costs'!H:H,'4. Equipment Costs'!C:C,B76,'4. Equipment Costs'!B:B,$B$8)+SUMIFS('5. Subcontracting Costs'!H:H,'5. Subcontracting Costs'!C:C,B76,'5. Subcontracting Costs'!B:B,$B$8) -> 0 | G76: =SUMIFS('1. Staff costs'!W:W,'1. Staff costs'!C:C,B76,'1. Staff costs'!B:B,$G$25)+SUMIFS('2-3. Travel Costs&Costs of Stay'!N:N,'2-3. Travel Costs&Costs of Stay'!C:C,B76,'2-3. Travel Costs&Costs of Stay'!B:B,$G$25)+SUMIFS('4. Equipment Costs'!H:H,'4. Equipment Costs'!C:C,B76,'4. Equipment Costs'!B:B,$G$25)+SUMIFS('5. Subcontracting Costs'!H:H,'5. Subcontracting Costs'!C:C,B76,'5. Subcontracting Costs'!B:B,$G$25) -> 0 | H76: =SUMIF('B. Special Mob Strand - Student'!B:B,B76,'B. Special Mob Strand - Student'!N:N)+SUMIF('B. Special Mob Strand - Staff'!B:B,B76,'B. Special Mob Strand - Staff'!N:N) -> 0 | I76: 0
B77: P52 | C77: =SUMIFS('1. Staff costs'!W:W,'1. Staff costs'!C:C,B77,'1. Staff costs'!B:B,$C$25)+SUMIFS('2-3. Travel Costs&Costs of Stay'!N:N,'2-3. Travel Costs&Costs of Stay'!C:C,B77,'2-3. Travel Costs&Costs of Stay'!B:B,$C$25)+SUMIFS('4. Equipment Costs'!H:H,'4. Equipment Costs'!C:C,B77,'4. Equipment Costs'!B:B,$C$25)+SUMIFS('5. Subcontracting Costs'!H:H,'5. Subcontracting Costs'!C:C,B77,'5. Subcontracting Costs'!B:B,$C$25) -> 0 | D77: =SUMIFS('1. Staff costs'!W:W,'1. Staff costs'!C:C,B77,'1. Staff costs'!B:B,$D$25)+SUMIFS('2-3. Travel Costs&Costs of Stay'!N:N,'2-3. Travel Costs&Costs of Stay'!C:C,B77,'2-3. Travel Costs&Costs of Stay'!B:B,$D$25)+SUMIFS('4. Equipment Costs'!H:H,'4. Equipment Costs'!C:C,B77,'4. Equipment Costs'!B:B,$D$25)+SUMIFS('5. Subcontracting Costs'!H:H,'5. Subcontracting Costs'!C:C,B77,'5. Subcontracting Costs'!B:B,$D$25) -> 0 | E77: =SUMIFS('1. Staff costs'!W:W,'1. Staff costs'!C:C,B77,'1. Staff costs'!B:B,$E$25)+SUMIFS('2-3. Travel Costs&Costs of Stay'!N:N,'2-3. Travel Costs&Costs of Stay'!C:C,B77,'2-3. Travel Costs&Costs of Stay'!B:B,$E$25)+SUMIFS('4. Equipment Costs'!H:H,'4. Equipment Costs'!C:C,B77,'4. Equipment Costs'!B:B,$E$25)+SUMIFS('5. Subcontracting Costs'!H:H,'5. Subcontracting Costs'!C:C,B77,'5. Subcontracting Costs'!B:B,$E$25) -> 0 | F77: =SUMIFS('1. Staff costs'!W:W,'1. Staff costs'!C:C,B77,'1. Staff costs'!B:B,$B$8)+SUMIFS('2-3. Travel Costs&Costs of Stay'!N:N,'2-3. Travel Costs&Costs of Stay'!C:C,B77,'2-3. Travel Costs&Costs of Stay'!B:B,$B$8)+SUMIFS('4. Equipment Costs'!H:H,'4. Equipment Costs'!C:C,B77,'4. Equipment Costs'!B:B,$B$8)+SUMIFS('5. Subcontracting Costs'!H:H,'5. Subcontracting Costs'!C:C,B77,'5. Subcontracting Costs'!B:B,$B$8) -> 0 | G77: =SUMIFS('1. Staff costs'!W:W,'1. Staff costs'!C:C,B77,'1. Staff costs'!B:B,$G$25)+SUMIFS('2-3. Travel Costs&Costs of Stay'!N:N,'2-3. Travel Costs&Costs of Stay'!C:C,B77,'2-3. Travel Costs&Costs of Stay'!B:B,$G$25)+SUMIFS('4. Equipment Costs'!H:H,'4. Equipment Costs'!C:C,B77,'4. Equipment Costs'!B:B,$G$25)+SUMIFS('5. Subcontracting Costs'!H:H,'5. Subcontracting Costs'!C:C,B77,'5. Subcontracting Costs'!B:B,$G$25) -> 0 | H77: =SUMIF('B. Special Mob Strand - Student'!B:B,B77,'B. Special Mob Strand - Student'!N:N)+SUMIF('B. Special Mob Strand - Staff'!B:B,B77,'B. Special Mob Strand - Staff'!N:N) -> 0 | I77: 0
B78: P53 | C78: =SUMIFS('1. Staff costs'!W:W,'1. Staff costs'!C:C,B78,'1. Staff costs'!B:B,$C$25)+SUMIFS('2-3. Travel Costs&Costs of Stay'!N:N,'2-3. Travel Costs&Costs of Stay'!C:C,B78,'2-3. Travel Costs&Costs of Stay'!B:B,$C$25)+SUMIFS('4. Equipment Costs'!H:H,'4. Equipment Costs'!C:C,B78,'4. Equipment Costs'!B:B,$C$25)+SUMIFS('5. Subcontracting Costs'!H:H,'5. Subcontracting Costs'!C:C,B78,'5. Subcontracting Costs'!B:B,$C$25) -> 0 | D78: =SUMIFS('1. Staff costs'!W:W,'1. Staff costs'!C:C,B78,'1. Staff costs'!B:B,$D$25)+SUMIFS('2-3. Travel Costs&Costs of Stay'!N:N,'2-3. Travel Costs&Costs of Stay'!C:C,B78,'2-3. Travel Costs&Costs of Stay'!B:B,$D$25)+SUMIFS('4. Equipment Costs'!H:H,'4. Equipment Costs'!C:C,B78,'4. Equipment Costs'!B:B,$D$25)+SUMIFS('5. Subcontracting Costs'!H:H,'5. Subcontracting Costs'!C:C,B78,'5. Subcontracting Costs'!B:B,$D$25) -> 0 | E78: =SUMIFS('1. Staff costs'!W:W,'1. Staff costs'!C:C,B78,'1. Staff costs'!B:B,$E$25)+SUMIFS('2-3. Travel Costs&Costs of Stay'!N:N,'2-3. Travel Costs&Costs of Stay'!C:C,B78,'2-3. Travel Costs&Costs of Stay'!B:B,$E$25)+SUMIFS('4. Equipment Costs'!H:H,'4. Equipment Costs'!C:C,B78,'4. Equipment Costs'!B:B,$E$25)+SUMIFS('5. Subcontracting Costs'!H:H,'5. Subcontracting Costs'!C:C,B78,'5. Subcontracting Costs'!B:B,$E$25) -> 0 | F78: =SUMIFS('1. Staff costs'!W:W,'1. Staff costs'!C:C,B78,'1. Staff costs'!B:B,$B$8)+SUMIFS('2-3. Travel Costs&Costs of Stay'!N:N,'2-3. Travel Costs&Costs of Stay'!C:C,B78,'2-3. Travel Costs&Costs of Stay'!B:B,$B$8)+SUMIFS('4. Equipment Costs'!H:H,'4. Equipment Costs'!C:C,B78,'4. Equipment Costs'!B:B,$B$8)+SUMIFS('5. Subcontracting Costs'!H:H,'5. Subcontracting Costs'!C:C,B78,'5. Subcontracting Costs'!B:B,$B$8) -> 0 | G78: =SUMIFS('1. Staff costs'!W:W,'1. Staff costs'!C:C,B78,'1. Staff costs'!B:B,$G$25)+SUMIFS('2-3. Travel Costs&Costs of Stay'!N:N,'2-3. Travel Costs&Costs of Stay'!C:C,B78,'2-3. Travel Costs&Costs of Stay'!B:B,$G$25)+SUMIFS('4. Equipment Costs'!H:H,'4. Equipment Costs'!C:C,B78,'4. Equipment Costs'!B:B,$G$25)+SUMIFS('5. Subcontracting Costs'!H:H,'5. Subcontracting Costs'!C:C,B78,'5. Subcontracting Costs'!B:B,$G$25) -> 0 | H78: =SUMIF('B. Special Mob Strand - Student'!B:B,B78,'B. Special Mob Strand - Student'!N:N)+SUMIF('B. Special Mob Strand - Staff'!B:B,B78,'B. Special Mob Strand - Staff'!N:N) -> 0 | I78: 0
B79: P54 | C79: =SUMIFS('1. Staff costs'!W:W,'1. Staff costs'!C:C,B79,'1. Staff costs'!B:B,$C$25)+SUMIFS('2-3. Travel Costs&Costs of Stay'!N:N,'2-3. Travel Costs&Costs of Stay'!C:C,B79,'2-3. Travel Costs&Costs of Stay'!B:B,$C$25)+SUMIFS('4. Equipment Costs'!H:H,'4. Equipment Costs'!C:C,B79,'4. Equipment Costs'!B:B,$C$25)+SUMIFS('5. Subcontracting Costs'!H:H,'5. Subcontracting Costs'!C:C,B79,'5. Subcontracting Costs'!B:B,$C$25) -> 0 | D79: =SUMIFS('1. Staff costs'!W:W,'1. Staff costs'!C:C,B79,'1. Staff costs'!B:B,$D$25)+SUMIFS('2-3. Travel Costs&Costs of Stay'!N:N,'2-3. Travel Costs&Costs of Stay'!C:C,B79,'2-3. Travel Costs&Costs of Stay'!B:B,$D$25)+SUMIFS('4. Equipment Costs'!H:H,'4. Equipment Costs'!C:C,B79,'4. Equipment Costs'!B:B,$D$25)+SUMIFS('5. Subcontracting Costs'!H:H,'5. Subcontracting Costs'!C:C,B79,'5. Subcontracting Costs'!B:B,$D$25) -> 0 | E79: =SUMIFS('1. Staff costs'!W:W,'1. Staff costs'!C:C,B79,'1. Staff costs'!B:B,$E$25)+SUMIFS('2-3. Travel Costs&Costs of Stay'!N:N,'2-3. Travel Costs&Costs of Stay'!C:C,B79,'2-3. Travel Costs&Costs of Stay'!B:B,$E$25)+SUMIFS('4. Equipment Costs'!H:H,'4. Equipment Costs'!C:C,B79,'4. Equipment Costs'!B:B,$E$25)+SUMIFS('5. Subcontracting Costs'!H:H,'5. Subcontracting Costs'!C:C,B79,'5. Subcontracting Costs'!B:B,$E$25) -> 0 | F79: =SUMIFS('1. Staff costs'!W:W,'1. Staff costs'!C:C,B79,'1. Staff costs'!B:B,$B$8)+SUMIFS('2-3. Travel Costs&Costs of Stay'!N:N,'2-3. Travel Costs&Costs of Stay'!C:C,B79,'2-3. Travel Costs&Costs of Stay'!B:B,$B$8)+SUMIFS('4. Equipment Costs'!H:H,'4. Equipment Costs'!C:C,B79,'4. Equipment Costs'!B:B,$B$8)+SUMIFS('5. Subcontracting Costs'!H:H,'5. Subcontracting Costs'!C:C,B79,'5. Subcontracting Costs'!B:B,$B$8) -> 0 | G79: =SUMIFS('1. Staff costs'!W:W,'1. Staff costs'!C:C,B79,'1. Staff costs'!B:B,$G$25)+SUMIFS('2-3. Travel Costs&Costs of Stay'!N:N,'2-3. Travel Costs&Costs of Stay'!C:C,B79,'2-3. Travel Costs&Costs of Stay'!B:B,$G$25)+SUMIFS('4. Equipment Costs'!H:H,'4. Equipment Costs'!C:C,B79,'4. Equipment Costs'!B:B,$G$25)+SUMIFS('5. Subcontracting Costs'!H:H,'5. Subcontracting Costs'!C:C,B79,'5. Subcontracting Costs'!B:B,$G$25) -> 0 | H79: =SUMIF('B. Special Mob Strand - Student'!B:B,B79,'B. Special Mob Strand - Student'!N:N)+SUMIF('B. Special Mob Strand - Staff'!B:B,B79,'B. Special Mob Strand - Staff'!N:N) -> 0 | I79: 0
B80: P55 | C80: =SUMIFS('1. Staff costs'!W:W,'1. Staff costs'!C:C,B80,'1. Staff costs'!B:B,$C$25)+SUMIFS('2-3. Travel Costs&Costs of Stay'!N:N,'2-3. Travel Costs&Costs of Stay'!C:C,B80,'2-3. Travel Costs&Costs of Stay'!B:B,$C$25)+SUMIFS('4. Equipment Costs'!H:H,'4. Equipment Costs'!C:C,B80,'4. Equipment Costs'!B:B,$C$25)+SUMIFS('5. Subcontracting Costs'!H:H,'5. Subcontracting Costs'!C:C,B80,'5. Subcontracting Costs'!B:B,$C$25) -> 0 | D80: =SUMIFS('1. Staff costs'!W:W,'1. Staff costs'!C:C,B80,'1. Staff costs'!B:B,$D$25)+SUMIFS('2-3. Travel Costs&Costs of Stay'!N:N,'2-3. Travel Costs&Costs of Stay'!C:C,B80,'2-3. Travel Costs&Costs of Stay'!B:B,$D$25)+SUMIFS('4. Equipment Costs'!H:H,'4. Equipment Costs'!C:C,B80,'4. Equipment Costs'!B:B,$D$25)+SUMIFS('5. Subcontracting Costs'!H:H,'5. Subcontracting Costs'!C:C,B80,'5. Subcontracting Costs'!B:B,$D$25) -> 0 | E80: =SUMIFS('1. Staff costs'!W:W,'1. Staff costs'!C:C,B80,'1. Staff costs'!B:B,$E$25)+SUMIFS('2-3. Travel Costs&Costs of Stay'!N:N,'2-3. Travel Costs&Costs of Stay'!C:C,B80,'2-3. Travel Costs&Costs of Stay'!B:B,$E$25)+SUMIFS('4. Equipment Costs'!H:H,'4. Equipment Costs'!C:C,B80,'4. Equipment Costs'!B:B,$E$25)+SUMIFS('5. Subcontracting Costs'!H:H,'5. Subcontracting Costs'!C:C,B80,'5. Subcontracting Costs'!B:B,$E$25) -> 0 | F80: =SUMIFS('1. Staff costs'!W:W,'1. Staff costs'!C:C,B80,'1. Staff costs'!B:B,$B$8)+SUMIFS('2-3. Travel Costs&Costs of Stay'!N:N,'2-3. Travel Costs&Costs of Stay'!C:C,B80,'2-3. Travel Costs&Costs of Stay'!B:B,$B$8)+SUMIFS('4. Equipment Costs'!H:H,'4. Equipment Costs'!C:C,B80,'4. Equipment Costs'!B:B,$B$8)+SUMIFS('5. Subcontracting Costs'!H:H,'5. Subcontracting Costs'!C:C,B80,'5. Subcontracting Costs'!B:B,$B$8) -> 0 | G80: =SUMIFS('1. Staff costs'!W:W,'1. Staff costs'!C:C,B80,'1. Staff costs'!B:B,$G$25)+SUMIFS('2-3. Travel Costs&Costs of Stay'!N:N,'2-3. Travel Costs&Costs of Stay'!C:C,B80,'2-3. Travel Costs&Costs of Stay'!B:B,$G$25)+SUMIFS('4. Equipment Costs'!H:H,'4. Equipment Costs'!C:C,B80,'4. Equipment Costs'!B:B,$G$25)+SUMIFS('5. Subcontracting Costs'!H:H,'5. Subcontracting Costs'!C:C,B80,'5. Subcontracting Costs'!B:B,$G$25) -> 0 | H80: =SUMIF('B. Special Mob Strand - Student'!B:B,B80,'B. Special Mob Strand - Student'!N:N)+SUMIF('B. Special Mob Strand - Staff'!B:B,B80,'B. Special Mob Strand - Staff'!N:N) -> 0 | I80: 0
B81: TOTAL | C81: =SUM(C26:C80) -> 0 | D81: =SUM(D26:D80) -> 0 | E81: 0 | F81: 0 | G81: 0 | H81: 0 | I81: =SUM(C81:H81) -> 0

Sheet Rates (hidden)
B2: Staff Costs | J2: Travel Costs | M2: Subsistence Mobility Strand | U2: Costs of Stay
B4: Country | C4: Iso Code | D4: PR/PA | E4: Manager | F4: Teacher/Trainer/Researcher | G4: Technician | H4: Administrative | J4: Distance | K4: Travel Costs (EUR) | M4: Country | N4: Iso Code | O4: PR/PA | P4: Students from Partner Countries | Q4: Students from Programme Countries | R4: Staff from Partner Countries | S4: Staff from Programme Countries | U4: Number of Days | V4: Staff | W4: Student | Y4: Staff | Z4: Student
B5: Austria | C5: AT | D5: Programme Countries | E5: 294 | F5: 241 | G5: 190 | H5: 157 | J5: 100 KM and 499 KM | K5: 180 | M5: Austria | N5: AT | O5: Programme Countries | P5: 850 | Q5: 0 | R5: 140 | S5: 0 | U5: 1 | V5: =120*U5 -> 120 | W5: =55*U5 -> 55 | Y5: 1 | Z5: 1
B6: Belgium | C6: BE | D6: Programme Countries | E6: 280 | F6: 214 | G6: 162 | H6: 131 | J6: 500 KM and 1999 KM | K6: 275 | M6: Belgium | N6: BE | O6: Programme Countries | P6: 800 | Q6: 0 | R6: 140 | S6: 0 | U6: 2 | V6: =120*U6 -> 240 | W6: =55*U6 -> 110 | Y6: 2 | Z6: 2
B7: Bulgaria | C7: BG | D7: Programme Countries | E7: 88 | F7: 74 | G7: 55 | H7: 39 | J7: 2000 KM and 2999 KM | K7: 360 | M7: Bulgaria | N7: BG | O7: Programme Countries | P7: 750 | Q7: 0 | R7: 140 | S7: 0 | U7: 3 | V7: 360 | W7: 165 | Y7: 3 | Z7: 3
B8: Croatia | C8: HR | D8: Programme Countries | E8: 88 | F8: 74 | G8: 55 | H8: 39 | J8: 3000 KM and 3999 KM | K8: 530 | M8: Croatia | N8: HR | O8: Programme Countries | P8: 800 | Q8: 0 | R8: 100 | S8: 0 | U8: 4 | V8: 480 | W8: 220 | Y8: 4 | Z8: 4
B9: Cyprus | C9: CY | D9: Programme Countries | E9: 164 | F9: 137 | G9: 102 | H9: 78 | J9: 4000 KM and 7999 KM | K9: 820 | M9: Cyprus | N9: CY | O9: Programme Countries | P9: 800 | Q9: 0 | R9: 140 | S9: 0 | U9: 5 | V9: 600 | W9: 275 | Y9: 5 | Z9: 5
B10: Czech Republic | C10: CZ | D10: Programme Countries | E10: 164 | F10: 137 | G10: 102 | H10: 78 | J10: 8000 KM or more | K10: 1100 | M10: Czech Republic | N10: CZ | O10: Programme Countries | P10: 800 | Q10: 0 | R10: 140 | S10: 0 | U10: 6 | V10: 720 | W10: 330 | Y10: 6 | Z10: 6
B11: Denmark | C11: DK | D11: Programme Countries | E11: 294 | F11: 241 | G11: 190 | H11: 157 | M11: Denmark | N11: DK | O11: Programme Countries | P11: 850 | Q11: 0 | R11: 160 | S11: 0 | U11: 7 | V11: 840 | W11: 385 | Y11: 7 | Z11: 7
B12: Estonia | C12: EE | D12: Programme Countries | E12: 88 | F12: 74 | G12: 55 | H12: 39 | J12: Travel Costs | M12: Estonia | N12: EE | O12: Programme Countries | P12: 750 | Q12: 0 | R12: 100 | S12: 0 | U12: 8 | V12: 960 | W12: 440 | Y12: 8 | Z12: 8
B13: Finland | C13: FI | D13: Programme Countries | E13: 280 | F13: 214 | G13: 162 | H13: 131 | J13: Preparation | M13: Finland | N13: FI | O13: Programme Countries | P13: 850 | Q13: 0 | R13: 140 | S13: 0 | U13: 9 | V13: 1080 | W13: 495 | Y13: 9 | Z13: 9
B14: Former Yugoslav Republic of Macedonia | C14: MK | D14: Programme Countries | E14: 88 | F14: 74 | G14: 55 | H14: 39 | J14: Development | M14: France | N14: FR | O14: Programme Countries | P14: 850 | Q14: 0 | R14: 140 | S14: 0 | U14: 10 | V14: 1200 | W14: 550 | Y14: 10 | Z14: 10
B15: France | C15: FR | D15: Programme Countries | E15: 280 | F15: 214 | G15: 162 | H15: 131 | J15: Quality | M15: Germany | N15: DE | O15: Programme Countries | P15: 800 | Q15: 0 | R15: 120 | S15: 0 | U15: 11 | V15: 1320 | W15: 605 | Y15: 11 | Z15: 11
B16: Germany | C16: DE | D16: Programme Countries | E16: 280 | F16: 214 | G16: 162 | H16: 131 | J16: Dissemination/Exploitation | M16: Greece | N16: EL | O16: Programme Countries | P16: 800 | Q16: 0 | R16: 140 | S16: 0 | U16: 12 | V16: 1440 | W16: 660 | Y16: 12 | Z16: 12
B17: Greece | C17: EL | D17: Programme Countries | E17: 164 | F17: 137 | G17: 102 | H17: 78 | J17: Management | M17: Hungary | N17: HU | O17: Programme Countries | P17: 750 | Q17: 0 | R17: 140 | S17: 0 | U17: 13 | V17: 1560 | W17: 715 | Y17: 13 | Z17: 13
B18: Hungary | C18: HU | D18: Programme Countries | E18: 88 | F18: 74 | G18: 55 | H18: 39 | M18: Ireland | N18: IE | O18: Programme Countries | P18: 850 | Q18: 0 | R18: 160 | S18: 0 | U18: 14 | V18: 1680 | W18: 770 | Y18: 14 | Z18: 14
B19: Iceland | C19: IS | D19: Programme Countries | E19: 280 | F19: 214 | G19: 162 | H19: 131 | M19: Italy | N19: IT | O19: Programme Countries | P19: 850 | Q19: 0 | R19: 140 | S19: 0 | U19: 15 | V19: =((U19-$U$18)*70)+$V$18 -> 1750 | W19: =((U19-$U$18)*40)+$W$18 -> 810 | Y19: 15 | Z19: 15
B20: Ireland | C20: IE | D20: Programme Countries | E20: 294 | F20: 241 | G20: 190 | H20: 157 | M20: Latvia | N20: LV | O20: Programme Countries | P20: 750 | Q20: 0 | R20: 120 | S20: 0 | U20: 16 | V20: =((U20-$U$18)*70)+$V$18 -> 1820 | W20: 850 | Y20: 16 | Z20: 16
B21: Italy | C21: IT | D21: Programme Countries | E21: 280 | F21: 214 | G21: 162 | H21: 131 | M21: Lithuania | N21: LT | O21: Programme Countries | P21: 750 | Q21: 0 | R21: 100 | S21: 0 | U21: 17 | V21: 1890 | W21: 890 | Y21: 17 | Z21: 17
B22: Latvia | C22: LV | D22: Programme Countries | E22: 88 | F22: 74 | G22: 55 | H22: 39 | M22: Luxembourg | N22: LU | O22: Programme Countries | P22: 800 | Q22: 0 | R22: 140 | S22: 0 | U22: 18 | V22: 1960 | W22: 930 | Y22: 18 | Z22: 18
B23: Liechtenstein | C23: LI | D23: Programme Countries | E23: 294 | F23: 241 | G23: 190 | H23: 157 | M23: Malta | N23: MT | O23: Programme Countries | P23: 750 | Q23: 0 | R23: 120 | S23: 0 | U23: 19 | V23: 2030 | W23: 970 | Y23: 19 | Z23: 19
B24: Lithuania | C24: LT | D24: Programme Countries | E24: 88 | F24: 74 | G24: 55 | H24: 39 | M24: Netherlands | N24: NL | O24: Programme Countries | P24: 800 | Q24: 0 | R24: 160 | S24: 0 | U24: 20 | V24: 2100 | W24: 1010 | Y24: 20 | Z24: 20
B25: Luxembourg | C25: LU | D25: Programme Countries | E25: 294 | F25: 241 | G25: 190 | H25: 157 | M25: Poland | N25: PL | O25: Programme Countries | P25: 750 | Q25: 0 | R25: 140 | S25: 0 | U25: 21 | V25: 2170 | W25: 1050 | Y25: 21 | Z25: 21
B26: Malta | C26: MT | D26: Programme Countries | E26: 164 | F26: 137 | G26: 102 | H26: 78 | M26: Portugal | N26: PT | O26: Programme Countries | P26: 800 | Q26: 0 | R26: 120 | S26: 0 | U26: 22 | V26: 2240 | W26: 1090 | Y26: 22 | Z26: 22
B27: Netherlands | C27: NL | D27: Programme Countries | E27: 294 | F27: 241 | G27: 190 | H27: 157 | M27: Romania | N27: RO | O27: Programme Countries | P27: 750 | Q27: 0 | R27: 140 | S27: 0 | U27: 23 | V27: 2310 | W27: 1130 | Y27: 23 | Z27: 23
B28: Norway | C28: NO | D28: Programme Countries | E28: 294 | F28: 241 | G28: 190 | H28: 157 | M28: Slovakia | N28: SK | O28: Programme Countries | P28: 750 | Q28: 0 | R28: 120 | S28: 0 | U28: 24 | V28: 2380 | W28: 1170 | Y28: 24 | Z28: 24
B29: Poland | C29: PL | D29: Programme Countries | E29: 88 | F29: 74 | G29: 55 | H29: 39 | M29: Slovenia | N29: SI | O29: Programme Countries | P29: 800 | Q29: 0 | R29: 100 | S29: 0 | U29: 25 | V29: 2450 | W29: 1210 | Y29: 25 | Z29: 25
B30: Portugal | C30: PT | D30: Programme Countries | E30: 164 | F30: 137 | G30: 102 | H30: 78 | M30: Spain | N30: ES | O30: Programme Countries | P30: 800 | Q30: 0 | R30: 120 | S30: 0 | U30: 26 | V30: 2520 | W30: 1250 | Y30: 26 | Z30: 26
B31: Romania | C31: RO | D31: Programme Countries | E31: 88 | F31: 74 | G31: 55 | H31: 39 | M31: Sweden | N31: SE | O31: Programme Countries | P31: 850 | Q31: 0 | R31: 160 | S31: 0 | U31: 27 | V31: 2590 | W31: 1290 | Y31: 27 | Z31: 27
B32: Slovakia | C32: SK | D32: Programme Countries | E32: 88 | F32: 74 | G32: 55 | H32: 39 | M32: United Kingdom | N32: UK | O32: Programme Countries | P32: 850 | Q32: 0 | R32: 160 | S32: 0 | U32: 28 | V32: 2660 | W32: 1330 | Y32: 28 | Z32: 28
B33: Slovenia | C33: SI | D33: Programme Countries | E33: 164 | F33: 137 | G33: 102 | H33: 78 | M33: Former Yugoslav Republic of Macedonia | N33: MK | O33: Programme Countries | P33: 750 | Q33: 0 | R33: 120 | S33: 0 | U33: 29 | V33: 2730 | W33: 1370 | Y33: 29 | Z33: 29
B34: Spain | C34: ES | D34: Programme Countries | E34: 164 | F34: 137 | G34: 102 | H34: 78 | M34: Iceland | N34: IS | O34: Programme Countries | P34: 800 | Q34: 0 | R34: 140 | S34: 0 | U34: 30 | V34: 2800 | W34: 1410 | Y34: 30 | Z34: 30
B35: Sweden | C35: SE | D35: Programme Countries | E35: 294 | F35: 241 | G35: 190 | H35: 157 | M35: Liechtenstein | N35: LI | O35: Programme Countries | P35: 850 | Q35: 0 | R35: 140 | S35: 0 | U35: 31 | V35: 2870 | W35: 1450 | Y35: 31 | Z35: 31
B36: United Kingdom | C36: UK | D36: Programme Countries | E36: 280 | F36: 214 | G36: 162 | H36: 131 | M36: Norway | N36: NO | O36: Programme Countries | P36: 850 | Q36: 0 | R36: 140 | S36: 0 | U36: 32 | V36: 2940 | W36: 1490 | Y36: 32 | Z36: 32
B37: Turkey | C37: TR | D37: Programme Countries | E37: 88 | F37: 74 | G37: 55 | H37: 39 | M37: Turkey | N37: TR | O37: Programme Countries | P37: 800 | Q37: 0 | R37: 140 | S37: 0 | U37: 33 | V37: 3010 | W37: 1530 | Y37: 33 | Z37: 33
B38: Afghanistan | C38: AF | D38: Partner Countries | E38: 77 | F38: 57 | G38: 40 | H38: 32 | M38: Albania | N38: AL | O38: Partner Countries | P38: 750 | Q38: 650 | R38: 100 | S38: 160 | U38: 34 | V38: 3080 | W38: 1570 | Y38: 34 | Z38: 34
B39: Albania | C39: AL | D39: Partner Countries | E39: 108 | F39: 80 | G39: 57 | H39: 45 | M39: Algeria | N39: DZ | O39: Partner Countries | P39: 750 | Q39: 650 | R39: 100 | S39: 160 | U39: 35 | V39: 3150 | W39: 1610 | Y39: 35 | Z39: 35
B40: Algeria | C40: DZ | D40: Partner Countries | E40: 47 | F40: 33 | G40: 22 | H40: 17 | M40: Armenia | N40: AM | O40: Partner Countries | P40: 750 | Q40: 650 | R40: 100 | S40: 160 | U40: 36 | V40: 3220 | W40: 1650 | Y40: 36 | Z40: 36
B41: Argentina | C41: AR | D41: Partner Countries | E41: 108 | F41: 80 | G41: 57 | H41: 45 | M41: Azerbaijan | N41: AZ | O41: Partner Countries | P41: 750 | Q41: 650 | R41: 100 | S41: 160 | U41: 37 | V41: 3290 | W41: 1690 | Y41: 37 | Z41: 37
B42: Armenia | C42: AM | D42: Partner Countries | E42: 47 | F42: 33 | G42: 22 | H42: 17 | M42: Belarus | N42: BY | O42: Partner Countries | P42: 750 | Q42: 650 | R42: 100 | S42: 160 | U42: 38 | V42: 3360 | W42: 1730 | Y42: 38 | Z42: 38
B43: Azerbaijan | C43: AZ | D43: Partner Countries | E43: 77 | F43: 57 | G43: 40 | H43: 32 | M43: Bosnia and Herzegovina | N43: BA | O43: Partner Countries | P43: 750 | Q43: 650 | R43: 100 | S43: 160 | U43: 39 | V43: 3430 | W43: 1770 | Y43: 39 | Z43: 39
B44: Bangladesh | C44: BD | D44: Partner Countries | E44: 47 | F44: 33 | G44: 22 | H44: 17 | M44: Egypt | N44: EG | O44: Partner Countries | P44: 750 | Q44: 650 | R44: 100 | S44: 160 | U44: 40 | V44: 3500 | W44: 1810 | Y44: 40 | Z44: 40
B45: Belarus | C45: BY | D45: Partner Countries | E45: 47 | F45: 33 | G45: 22 | H45: 17 | M45: Georgia | N45: GE | O45: Partner Countries | P45: 750 | Q45: 650 | R45: 100 | S45: 160 | U45: 41 | V45: 3570 | W45: 1850 | Y45: 41 | Z45: 41
B46: Bhutan | C46: BT | D46: Partner Countries | E46: 47 | F46: 33 | G46: 22 | H46: 17 | M46: Israel | N46: IL | O46: Partner Countries | P46: 750 | Q46: 650 | R46: 100 | S46: 160 | U46: 42 | V46: 3640 | W46: 1890 | Y46: 42 | Z46: 42
B47: Bolivia | C47: BO | D47: Partner Countries | E47: 77 | F47: 57 | G47: 40 | H47: 32 | M47: Jordan | N47: JO | O47: Partner Countries | P47: 750 | Q47: 650 | R47: 100 | S47: 160 | U47: 43 | V47: 3710 | W47: 1930 | Y47: 43 | Z47: 43
B48: Bosnia and Herzegovina | C48: BA | D48: Partner Countries | E48: 108 | F48: 80 | G48: 57 | H48: 45 | M48: Kosovo | N48: XK | O48: Partner Countries | P48: 750 | Q48: 650 | R48: 100 | S48: 160 | U48: 44 | V48: 3780 | W48: 1970 | Y48: 44 | Z48: 44
B49: Brazil | C49: BR | D49: Partner Countries | E49: 108 | F49: 80 | G49: 57 | H49: 45 | M49: Lebanon | N49: LB | O49: Partner Countries | P49: 750 | Q49: 650 | R49: 100 | S49: 160 | U49: 45 | V49: 3850 | W49: 2010 | Y49: 45 | Z49: 45
B50: Cambodia | C50: KH | D50: Partner Countries | E50: 47 | F50: 33 | G50: 22 | H50: 17 | M50: Libya | N50: LY | O50: Partner Countries | P50: 750 | Q50: 650 | R50: 100 | S50: 160 | U50: 46 | V50: 3920 | W50: 2050 | Y50: 46 | Z50: 46
B51: Chile | C51: CL | D51: Partner Countries | E51: 108 | F51: 80 | G51: 57 | H51: 45 | M51: Moldova | N51: MD | O51: Partner Countries | P51: 750 | Q51: 650 | R51: 100 | S51: 160 | U51: 47 | V51: 3990 | W51: 2090 | Y51: 47 | Z51: 47
B52: China | C52: CN | D52: Partner Countries | E52: 77 | F52: 57 | G52: 40 | H52: 32 | M52: Montenegro | N52: ME | O52: Partner Countries | P52: 750 | Q52: 650 | R52: 100 | S52: 160 | U52: 48 | V52: 4060 | W52: 2130 | Y52: 48 | Z52: 48
B53: Colombia | C53: CO | D53: Partner Countries | E53: 108 | F53: 80 | G53: 57 | H53: 45 | M53: Morocco | N53: MA | O53: Partner Countries | P53: 750 | Q53: 650 | R53: 100 | S53: 160 | U53: 49 | V53: 4130 | W53: 2170 | Y53: 49 | Z53: 49
B54: Costa Rica | C54: CR | D54: Partner Countries | E54: 77 | F54: 57 | G54: 40 | H54: 32 | M54: Palestine | N54: PS | O54: Partner Countries | P54: 750 | Q54: 650 | R54: 100 | S54: 160 | U54: 50 | V54: 4200 | W54: 2210 | Y54: 50 | Z54: 50
B55: Cuba | C55: CU | D55: Partner Countries | E55: 47 | F55: 33 | G55: 22 | H55: 17 | M55: Serbia | N55: RS | O55: Partner Countries | P55: 750 | Q55: 650 | R55: 100 | S55: 160 | U55: 51 | V55: 4270 | W55: 2250 | Y55: 51 | Z55: 51
B56: Ecuador | C56: EC | D56: Partner Countries | E56: 77 | F56: 57 | G56: 40 | H56: 32 | M56: Syria | N56: SY | O56: Partner Countries | P56: 750 | Q56: 650 | R56: 100 | S56: 160 | U56: 52 | V56: 4340 | W56: 2290 | Y56: 52 | Z56: 52
B57: Egypt | C57: EG | D57: Partner Countries | E57: 47 | F57: 33 | G57: 22 | H57: 17 | M57: Tunisia | N57: TN | O57: Partner Countries | P57: 750 | Q57: 650 | R57: 100 | S57: 160 | U57: 53 | V57: 4410 | W57: 2330 | Y57: 53 | Z57: 53
B58: El Salvador | C58: SV | D58: Partner Countries | E58: 77 | F58: 57 | G58: 40 | H58: 32 | M58: Ukraine | N58: UA | O58: Partner Countries | P58: 750 | Q58: 650 | R58: 100 | S58: 160 | U58: 54 | V58: 4480 | W58: 2370 | Y58: 54 | Z58: 54
B59: Georgia | C59: GE | D59: Partner Countries | E59: 77 | F59: 57 | G59: 40 | H59: 32 | U59: 55 | V59: 4550 | W59: 2410 | Y59: 55 | Z59: 55
B60: Guatemala | C60: GT | D60: Partner Countries | E60: 77 | F60: 57 | G60: 40 | H60: 32 | U60: 56 | V60: 4620 | W60: 2450 | Y60: 56 | Z60: 56
B61: Honduras | C61: HN | D61: Partner Countries | E61: 47 | F61: 33 | G61: 22 | H61: 17 | U61: 57 | V61: 4690 | W61: 2490 | Y61: 57 | Z61: 57
B62: India | C62: IN | D62: Partner Countries | E62: 47 | F62: 33 | G62: 22 | H62: 17 | U62: 58 | V62: 4760 | W62: 2530 | Y62: 58 | Z62: 58
B63: Indonesia | C63: ID | D63: Partner Countries | E63: 47 | F63: 33 | G63: 22 | H63: 17 | U63: 59 | V63: 4830 | W63: 2570 | Y63: 59 | Z63: 59
B64: Iran | C64: IR | D64: Partner Countries | E64: 77 | F64: 57 | G64: 40 | H64: 32 | U64: 60 | V64: 4900 | W64: 2610 | Y64: 60 | Z64: 60
B65: Iraq | C65: IQ | D65: Partner Countries | E65: 77 | F65: 57 | G65: 40 | H65: 32 | U65: 61 | V65: =((U65-$U$64)*50)+$V$64 -> 4950 | Y65: 61
B66: Israel | C66: IL | D66: Partner Countries | E66: 166 | F66: 132 | G66: 102 | H66: 92 | U66: 62 | V66: =((U66-$U$64)*50)+$V$64 -> 5000 | Y66: 62
B67: Jordan | C67: JO | D67: Partner Countries | E67: 77 | F67: 57 | G67: 40 | H67: 32 | U67: 63 | V67: 5050 | Y67: 63
B68: Kazakhstan | C68: KZ | D68: Partner Countries | E68: 77 | F68: 57 | G68: 40 | H68: 32 | U68: 64 | V68: 5100 | Y68: 64
B69: DPR Korea | C69: KP | D69: Partner Countries | E69: 47 | F69: 33 | G69: 22 | H69: 17 | U69: 65 | V69: 5150 | Y69: 65
B70: Kosovo | C70: XK | D70: Partner Countries | E70: 108 | F70: 80 | G70: 57 | H70: 45 | U70: 66 | V70: 5200 | Y70: 66
B71: Kyrgyzstan | C71: KG | D71: Partner Countries | E71: 47 | F71: 33 | G71: 22 | H71: 17 | U71: 67 | V71: 5250 | Y71: 67
B72: Laos | C72: LA | D72: Partner Countries | E72: 47 | F72: 33 | G72: 22 | H72: 17 | U72: 68 | V72: 5300 | Y72: 68
B73: Lebanon | C73: LB | D73: Partner Countries | E73: 108 | F73: 80 | G73: 57 | H73: 45 | U73: 69 | V73: 5350 | Y73: 69
B74: Libya | C74: LY | D74: Partner Countries | E74: 108 | F74: 80 | G74: 57 | H74: 45 | U74: 70 | V74: 5400 | Y74: 70
B75: Malaysia | C75: MY | D75: Partner Countries | E75: 47 | F75: 33 | G75: 22 | H75: 17 | U75: 71 | V75: 5450 | Y75: 71
B76: Maldives | C76: MV | D76: Partner Countries | E76: 47 | F76: 33 | G76: 22 | H76: 17 | U76: 72 | V76: 5500 | Y76: 72
B77: Mexico | C77: MX | D77: Partner Countries | E77: 108 | F77: 80 | G77: 57 | H77: 45 | U77: 73 | V77: 5550 | Y77: 73
B78: Moldova | C78: MD | D78: Partner Countries | E78: 47 | F78: 33 | G78: 22 | H78: 17 | U78: 74 | V78: 5600 | Y78: 74
B79: Mongolia | C79: MN | D79: Partner Countries | E79: 47 | F79: 33 | G79: 22 | H79: 17 | U79: 75 | V79: 5650 | Y79: 75
B80: Montenegro | C80: ME | D80: Partner Countries | E80: 108 | F80: 80 | G80: 57 | H80: 45 | U80: 76 | V80: 5700 | Y80: 76
B81: Morocco | C81: MA | D81: Partner Countries | E81: 77 | F81: 57 | G81: 40 | H81: 32 | U81: 77 | V81: 5750 | Y81: 77
B82: Burma/Myanmar | C82: MM | D82: Partner Countries | E82: 47 | F82: 33 | G82: 22 | H82: 17 | U82: 78 | V82: 5800 | Y82: 78
B83: Nepal | C83: NP | D83: Partner Countries | E83: 47 | F83: 33 | G83: 22 | H83: 17 | U83: 79 | V83: 5850 | Y83: 79
B84: Nicaragua | C84: NI | D84: Partner Countries | E84: 47 | F84: 33 | G84: 22 | H84: 17 | U84: 80 | V84: 5900 | Y84: 80
B85: Pakistan | C85: PK | D85: Partner Countries | E85: 47 | F85: 33 | G85: 22 | H85: 17 | U85: 81 | V85: 5950 | Y85: 81
B86: Palestine | C86: PS | D86: Partner Countries | E86: 77 | F86: 57 | G86: 40 | H86: 32 | U86: 82 | V86: 6000 | Y86: 82
B87: Panama | C87: PA | D87: Partner Countries | E87: 77 | F87: 57 | G87: 40 | H87: 32 | U87: 83 | V87: 6050 | Y87: 83
B88: Paraguay | C88: PY | D88: Partner Countries | E88: 77 | F88: 57 | G88: 40 | H88: 32 | U88: 84 | V88: 6100 | Y88: 84
B89: Peru | C89: PE | D89: Partner Countries | E89: 108 | F89: 80 | G89: 57 | H89: 45 | U89: 85 | V89: 6150 | Y89: 85
B90: Philippines | C90: PH | D90: Partner Countries | E90: 47 | F90: 33 | G90: 22 | H90: 17 | U90: 86 | V90: 6200 | Y90: 86
B91: Russia | C91: RU | D91: Partner Countries | E91: 77 | F91: 57 | G91: 40 | H91: 32 | U91: 87 | V91: 6250 | Y91: 87
B92: Serbia | C92: RS | D92: Partner Countries | E92: 108 | F92: 80 | G92: 57 | H92: 45 | U92: 88 | V92: 6300 | Y92: 88
B93: South Africa | C93: ZA | D93: Partner Countries | E93: 77 | F93: 57 | G93: 40 | H93: 32 | U93: 89 | V93: 6350 | Y93: 89
B94: Sri Lanka | C94: LK | D94: Partner Countries | E94: 47 | F94: 33 | G94: 22 | H94: 17 | U94: 90 | V94: 6400 | Y94: 90
B95: Syria | C95: SY | D95: Partner Countries | E95: 47 | F95: 33 | G95: 22 | H95: 17 | U95: 91 | V95: 6450 | Y95: 91
B96: Tajikistan | C96: TJ | D96: Partner Countries | E96: 47 | F96: 33 | G96: 22 | H96: 17 | U96: 92 | V96: 6500 | Y96: 92
B97: Thailand | C97: TH | D97: Partner Countries | E97: 108 | F97: 80 | G97: 57 | H97: 45 | U97: 93 | V97: 6550 | Y97: 93
B98: Tunisia | C98: TN | D98: Partner Countries | E98: 47 | F98: 33 | G98: 22 | H98: 17 | U98: 94 | V98: 6600 | Y98: 94
B99: Turkmenistan | C99: TM | D99: Partner Countries | E99: 47 | F99: 33 | G99: 22 | H99: 17 | U99: 95 | V99: 6650 | Y99: 95
B100: Ukraine | C100: UA | D100: Partner Countries | E100: 108 | F100: 80 | G100: 57 | H100: 45 | U100: 96 | V100: 6700 | Y100: 96
B101: Uruguay | C101: UY | D101: Partner Countries | E101: 108 | F101: 80 | G101: 57 | H101: 45 | U101: 97 | V101: 6750 | Y101: 97
B102: Uzbekistan | C102: UZ | D102: Partner Countries | E102: 47 | F102: 33 | G102: 22 | H102: 17 | U102: 98 | V102: 6800 | Y102: 98
B103: Venezuela | C103: VE | D103: Partner Countries | E103: 108 | F103: 80 | G103: 57 | H103: 45 | U103: 99 | V103: 6850 | Y103: 99
B104: Vietnam | C104: VN | D104: Partner Countries | E104: 47 | F104: 33 | G104: 22 | H104: 17 | U104: 100 | V104: 6900 | Y104: 100
B105: Yemen | C105: YE | D105: Partner Countries | E105: 47 | F105: 33 | G105: 22 | H105: 17 | U105: 101 | V105: 6950 | Y105: 101
U106: 102 | V106: 7000 | Y106: 102
U107: 103 | V107: 7050 | Y107: 103
U108: 104 | V108: 7100 | Y108: 104
U109: 105 | V109: 7150 | Y109: 105
U110: 106 | V110: 7200 | Y110: 106
U111: 107 | V111: 7250 | Y111: 107
U112: 108 | V112: 7300 | Y112: 108
U113: 109 | V113: 7350 | Y113: 109
U114: 110 | V114: 7400 | Y114: 110
U115: 111 | V115: 7450 | Y115: 111
U116: 112 | V116: 7500 | Y116: 112
U117: 113 | V117: 7550 | Y117: 113
U118: 114 | V118: 7600 | Y118: 114
U119: 115 | V119: 7650 | Y119: 115
U120: 116 | V120: 7700 | Y120: 116
U121: 117 | V121: 7750 | Y121: 117
U122: 118 | V122: 7800 | Y122: 118
U123: 119 | V123: 7850 | Y123: 119
U124: 120 | V124: 7900 | Y124: 120
U125: 121 | V125: 7950 | Y125: 121
U126: 122 | V126: 8000 | Y126: 122
U127: 123 | V127: 8050 | Y127: 123
U128: 124 | V128: 8100 | Y128: 124
U129: 125 | V129: 8150 | Y129: 125
U130: 126 | V130: =((U130-$U$64)*50)+$V$64 -> 8200 | Y130: 126
U131: 127 | V131: 8250 | Y131: 127
U132: 128 | V132: 8300 | Y132: 128
U133: 129 | V133: 8350 | Y133: 129
U134: 130 | V134: 8400 | Y134: 130
U135: 131 | V135: 8450 | Y135: 131
U136: 132 | V136: 8500 | Y136: 132
U137: 133 | V137: 8550 | Y137: 133
U138: 134 | V138: 8600 | Y138: 134
U139: 135 | V139: 8650 | Y139: 135
U140: 136 | V140: 8700 | Y140: 136
U141: 137 | V141: 8750 | Y141: 137
U142: 138 | V142: 8800 | Y142: 138
U143: 139 | V143: 8850 | Y143: 139
U144: 140 | V144: 8900 | Y144: 140
U145: 141 | V145: 8950 | Y145: 141
U146: 142 | V146: 9000 | Y146: 142
U147: 143 | V147: 9050 | Y147: 143
U148: 144 | V148: 9100 | Y148: 144
U149: 145 | V149: 9150 | Y149: 145
U150: 146 | V150: 9200 | Y150: 146
U151: 147 | V151: 9250 | Y151: 147
U152: 148 | V152: 9300 | Y152: 148
U153: 149 | V153: 9350 | Y153: 149
U154: 150 | V154: 9400 | Y154: 150
U155: 151 | V155: 9450 | Y155: 151
U156: 152 | V156: 9500 | Y156: 152
U157: 153 | V157: 9550 | Y157: 153
U158: 154 | V158: 9600 | Y158: 154
U159: 155 | V159: 9650 | Y159: 155
U160: 156 | V160: 9700 | Y160: 156
U161: 157 | V161: 9750 | Y161: 157
U162: 158 | V162: 9800 | Y162: 158
U163: 159 | V163: 9850 | Y163: 159
U164: 160 | V164: 9900 | Y164: 160
U165: 161 | V165: 9950 | Y165: 161
U166: 162 | V166: 10000 | Y166: 162
U167: 163 | V167: 10050 | Y167: 163
U168: 164 | V168: 10100 | Y168: 164
U169: 165 | V169: 10150 | Y169: 165
U170: 166 | V170: 10200 | Y170: 166
U171: 167 | V171: 10250 | Y171: 167
U172: 168 | V172: 10300 | Y172: 168
U173: 169 | V173: 10350 | Y173: 169
U174: 170 | V174: 10400 | Y174: 170
U175: 171 | V175: 10450 | Y175: 171
U176: 172 | V176: 10500 | Y176: 172
U177: 173 | V177: 10550 | Y177: 173
U178: 174 | V178: 10600 | Y178: 174
U179: 175 | V179: 10650 | Y179: 175
U180: 176 | V180: 10700 | Y180: 176
U181: 177 | V181: 10750 | Y181: 177
U182: 178 | V182: 10800 | Y182: 178
U183: 179 | V183: 10850 | Y183: 179
U184: 180 | V184: 10900 | Y184: 180
U185: 181 | V185: 10950 | Y185: 181
U186: 182 | V186: 11000 | Y186: 182
U187: 183 | V187: 11050 | Y187: 183
U188: 184 | V188: 11100 | Y188: 184
U189: 185 | V189: 11150 | Y189: 185
U190: 186 | V190: 11200 | Y190: 186
U191: 187 | V191: 11250 | Y191: 187
U192: 188 | V192: 11300 | Y192: 188
U193: 189 | V193: 11350 | Y193: 189
U194: 190 | V194: =((U194-$U$64)*50)+$V$64 -> 11400 | Y194: 190
U195: 191 | V195: 11450 | Y195: 191
U196: 192 | V196: 11500 | Y196: 192
U197: 193 | V197: 11550 | Y197: 193
U198: 194 | V198: 11600 | Y198: 194
U199: 195 | V199: 11650 | Y199: 195
U200: 196 | V200: 11700 | Y200: 196
U201: 197 | V201: 11750 | Y201: 197
U202: 198 | V202: 11800 | Y202: 198
... 167 more rows

Sheet UNIT COSTS & FUNDING RULES
A1: UNIT COSTS AND SUMMARY OF THE FUNDING RULES FOR JOINT AND STRUCTURAL CAPACITY BUILDING PROJECTS You can find below the unit costs values used in this file for the calculation of the grant. Please refer to the Erasmus+ Programme guide 2015* for a complete overview of the funding rules applying to the Joint and Structural Capacity Building Projects ( i.e. in Part B from page 157 to page 165, and Annex 1 from page 287 to page 294).
A2: * Link to Erasmus+ Programme guide 2015: | B2: http://ec.europa.eu/programmes/erasmus-plus/documents/erasmus-plus-programme-guide_en.pdf
A3: * Link to CBHE Call for proposal, forms, annexes and guidelines: | B3: https://eacea.ec.europa.eu/erasmus-plus/funding/key-action-2-capacity-building-in-field-higher-education-2015_en
A4: A.1 Staff Costs | I4: A.2 & B Travel Costs | L4: A. 3 Costs of Stay | P4: A.4 Equipment | S4: A.5 Subcontracting | W4: B - Special Mobility Strand
A5: Unit costs Contribution to the costs of staff performing tasks which are directly necessary to the achievements of the objectives of the project . Conditional: applicants will have to justify the type and volume of resources needed in relation to the implementation of the proposed activities and outputs. The contribution is provided on the condition that the salary for the same tasks is compensated only once. | I5: Unit costs based on the travel distance per participant. Travel distances must be calculated using the distance calculator supported by the European Commission . The applicant must indicate the distance of a one-way travel to calculate the amount of the EU grant that will support the round trip | L5: Costs for subsistence, accommodation, local and public transport such as bus and taxi, personal or optional health insurance. Unit costs based on the duration of the stay of the participants: Staff: 120 EUR / day from day 1 to day 14 + 70 EUR/ day from day 15 to day 60 + 50 EUR / day between day 61 and up to 12 months. Student: 55 EUR / day from day 1 to day 14 + 40 EUR/ day from day 15 to day 60. | P5: Contribution for the purchase of equipment necessary for the implementation of the project. Support is provided only for equipment purchased by HEIs in Partner Countries Conditional: the request for financial support to cover these costs must be motivated in the application form | S5: Support for sub-contracting costs that are necessary to the implementation of the project, including, in particular, costs for the compulsory financial audits (audit certificate) and for any external quality assurance procedure. Sub-contracting for project-management-related tasks is not eligible. Sub-contracting to external bodies should be very occasional. The specific competences and particular expertise needed to reach the project objectives should be found in the consortium and should determine its composition. | W5: Travel costs (students and staff): Unit costs (please refer to unit costs in table A2). Contribution to the travel costs of students and staff involved in theMobilitu project, from their place of origin to the venue of the activity and return (including visa fee and related obligatory insurance, travel insurance and cancellation costs if justified). Activities and related travels must be carried out in the countries involved in the project. Any exception to this rule must be authorised by the Agency.For the detailed list of eligible activities, see Annex I of this Guide. Subsistence costs: Unit costs based on the duration of the stay of the participants. Costs for subsistence, accommodation, local and public transport such as bus and taxi, personal or optional health insurance. Based on the duration of the stay per participant.
W6: Subsistence costs for Special Mobility Strand
A7: Country | B7: Iso Code | C7: PR/PA | D7: Manager | E7: Teacher/Trainer/Researcher | F7: Technician | G7: Administrative | I7: Distance | J7: Travel Costs (EUR) | L7: Number of Days | M7: Staff | N7: Student | P7: Real costs Max. 30% of the total grant | S7: Real costs Max. 10% of the total grant | W7: Country | X7: Iso Code | Y7: PR/PA | Z7: Students from Partner Countries | AA7: Students from Programme Countries | AB7: Staff from Partner Countries | AC7: Staff from Programme Countries
A8: Austria | B8: AT | C8: Programme Countries | D8: 294 | E8: 241 | F8: 190 | G8: 157 | I8: 100 KM and 499 KM | J8: 180 | L8: 1 | M8: 120 | N8: 55 | W8: Austria | X8: AT | Y8: Programme Countries | Z8: 850 | AA8: 0 | AB8: 140 | AC8: 0
A9: Belgium | B9: BE | C9: Programme Countries | D9: 280 | E9: 214 | F9: 162 | G9: 131 | I9: 500 KM and 1999 KM | J9: 275 | L9: 2 | M9: 240 | N9: 110 | W9: Belgium | X9: BE | Y9: Programme Countries | Z9: 800 | AA9: 0 | AB9: 140 | AC9: 0
A10: Bulgaria | B10: BG | C10: Programme Countries | D10: 88 | E10: 74 | F10: 55 | G10: 39 | I10: 2000 KM and 2999 KM | J10: 360 | L10: 3 | M10: 360 | N10: 165 | W10: Bulgaria | X10: BG | Y10: Programme Countries | Z10: 750 | AA10: 0 | AB10: 140 | AC10: 0
A11: Croatia | B11: HR | C11: Programme Countries | D11: 88 | E11: 74 | F11: 55 | G11: 39 | I11: 3000 KM and 3999 KM | J11: 530 | L11: 4 | M11: 480 | N11: 220 | W11: Croatia | X11: HR | Y11: Programme Countries | Z11: 800 | AA11: 0 | AB11: 100 | AC11: 0
A12: Cyprus | B12: CY | C12: Programme Countries | D12: 164 | E12: 137 | F12: 102 | G12: 78 | I12: 4000 KM and 7999 KM | J12: 820 | L12: 5 | M12: 600 | N12: 275 | W12: Cyprus | X12: CY | Y12: Programme Countries | Z12: 800 | AA12: 0 | AB12: 140 | AC12: 0
A13: Czech Republic | B13: CZ | C13: Programme Countries | D13: 164 | E13: 137 | F13: 102 | G13: 78 | I13: 8000 KM or more | J13: 1100 | L13: 6 | M13: 720 | N13: 330 | W13: Czech Republic | X13: CZ | Y13: Programme Countries | Z13: 800 | AA13: 0 | AB13: 140 | AC13: 0
A14: Denmark | B14: DK | C14: Programme Countries | D14: 294 | E14: 241 | F14: 190 | G14: 157 | L14: 7 | M14: 840 | N14: 385 | W14: Denmark | X14: DK | Y14: Programme Countries | Z14: 850 | AA14: 0 | AB14: 160 | AC14: 0
A15: Estonia | B15: EE | C15: Programme Countries | D15: 88 | E15: 74 | F15: 55 | G15: 39 | L15: 8 | M15: 960 | N15: 440 | W15: Estonia | X15: EE | Y15: Programme Countries | Z15: 750 | AA15: 0 | AB15: 100 | AC15: 0
A16: Finland | B16: FI | C16: Programme Countries | D16: 280 | E16: 214 | F16: 162 | G16: 131 | L16: 9 | M16: 1080 | N16: 495 | W16: Finland | X16: FI | Y16: Programme Countries | Z16: 850 | AA16: 0 | AB16: 140 | AC16: 0
A17: Former Yugoslav Republic of Macedonia | B17: MK | C17: Programme Countries | D17: 88 | E17: 74 | F17: 55 | G17: 39 | L17: 10 | M17: 1200 | N17: 550 | W17: France | X17: FR | Y17: Programme Countries | Z17: 850 | AA17: 0 | AB17: 140 | AC17: 0
A18: France | B18: FR | C18: Programme Countries | D18: 280 | E18: 214 | F18: 162 | G18: 131 | L18: 11 | M18: 1320 | N18: 605 | W18: Germany | X18: DE | Y18: Programme Countries | Z18: 800 | AA18: 0 | AB18: 120 | AC18: 0
A19: Germany | B19: DE | C19: Programme Countries | D19: 280 | E19: 214 | F19: 162 | G19: 131 | L19: 12 | M19: 1440 | N19: 660 | W19: Greece | X19: EL | Y19: Programme Countries | Z19: 800 | AA19: 0 | AB19: 140 | AC19: 0
A20: Greece | B20: EL | C20: Programme Countries | D20: 164 | E20: 137 | F20: 102 | G20: 78 | L20: 13 | M20: 1560 | N20: 715 | W20: Hungary | X20: HU | Y20: Programme Countries | Z20: 750 | AA20: 0 | AB20: 140 | AC20: 0
A21: Hungary | B21: HU | C21: Programme Countries | D21: 88 | E21: 74 | F21: 55 | G21: 39 | L21: 14 | M21: 1680 | N21: 770 | W21: Ireland | X21: IE | Y21: Programme Countries | Z21: 850 | AA21: 0 | AB21: 160 | AC21: 0
A22: Iceland | B22: IS | C22: Programme Countries | D22: 280 | E22: 214 | F22: 162 | G22: 131 | L22: 15 | M22: 1750 | N22: 810 | W22: Italy | X22: IT | Y22: Programme Countries | Z22: 850 | AA22: 0 | AB22: 140 | AC22: 0
A23: Ireland | B23: IE | C23: Programme Countries | D23: 294 | E23: 241 | F23: 190 | G23: 157 | L23: 16 | M23: 1820 | N23: 850 | W23: Latvia | X23: LV | Y23: Programme Countries | Z23: 750 | AA23: 0 | AB23: 120 | AC23: 0
A24: Italy | B24: IT | C24: Programme Countries | D24: 280 | E24: 214 | F24: 162 | G24: 131 | L24: 17 | M24: 1890 | N24: 890 | W24: Lithuania | X24: LT | Y24: Programme Countries | Z24: 750 | AA24: 0 | AB24: 100 | AC24: 0
A25: Latvia | B25: LV | C25: Programme Countries | D25: 88 | E25: 74 | F25: 55 | G25: 39 | L25: 18 | M25: 1960 | N25: 930 | W25: Luxembourg | X25: LU | Y25: Programme Countries | Z25: 800 | AA25: 0 | AB25: 140 | AC25: 0
A26: Liechtenstein | B26: LI | C26: Programme Countries | D26: 294 | E26: 241 | F26: 190 | G26: 157 | L26: 19 | M26: 2030 | N26: 970 | W26: Malta | X26: MT | Y26: Programme Countries | Z26: 750 | AA26: 0 | AB26: 120 | AC26: 0
A27: Lithuania | B27: LT | C27: Programme Countries | D27: 88 | E27: 74 | F27: 55 | G27: 39 | L27: 20 | M27: 2100 | N27: 1010 | W27: Netherlands | X27: NL | Y27: Programme Countries | Z27: 800 | AA27: 0 | AB27: 160 | AC27: 0
A28: Luxembourg | B28: LU | C28: Programme Countries | D28: 294 | E28: 241 | F28: 190 | G28: 157 | L28: 21 | M28: 2170 | N28: 1050 | W28: Poland | X28: PL | Y28: Programme Countries | Z28: 750 | AA28: 0 | AB28: 140 | AC28: 0
A29: Malta | B29: MT | C29: Programme Countries | D29: 164 | E29: 137 | F29: 102 | G29: 78 | L29: 22 | M29: 2240 | N29: 1090 | W29: Portugal | X29: PT | Y29: Programme Countries | Z29: 800 | AA29: 0 | AB29: 120 | AC29: 0
A30: Netherlands | B30: NL | C30: Programme Countries | D30: 294 | E30: 241 | F30: 190 | G30: 157 | L30: 23 | M30: 2310 | N30: 1130 | W30: Romania | X30: RO | Y30: Programme Countries | Z30: 750 | AA30: 0 | AB30: 140 | AC30: 0
A31: Norway | B31: NO | C31: Programme Countries | D31: 294 | E31: 241 | F31: 190 | G31: 157 | L31: 24 | M31: 2380 | N31: 1170 | W31: Slovakia | X31: SK | Y31: Programme Countries | Z31: 750 | AA31: 0 | AB31: 120 | AC31: 0
A32: Poland | B32: PL | C32: Programme Countries | D32: 88 | E32: 74 | F32: 55 | G32: 39 | L32: 25 | M32: 2450 | N32: 1210 | W32: Slovenia | X32: SI | Y32: Programme Countries | Z32: 800 | AA32: 0 | AB32: 100 | AC32: 0
A33: Portugal | B33: PT | C33: Programme Countries | D33: 164 | E33: 137 | F33: 102 | G33: 78 | L33: 26 | M33: 2520 | N33: 1250 | W33: Spain | X33: ES | Y33: Programme Countries | Z33: 800 | AA33: 0 | AB33: 120 | AC33: 0
A34: Romania | B34: RO | C34: Programme Countries | D34: 88 | E34: 74 | F34: 55 | G34: 39 | L34: 27 | M34: 2590 | N34: 1290 | W34: Sweden | X34: SE | Y34: Programme Countries | Z34: 850 | AA34: 0 | AB34: 160 | AC34: 0
A35: Slovakia | B35: SK | C35: Programme Countries | D35: 88 | E35: 74 | F35: 55 | G35: 39 | L35: 28 | M35: 2660 | N35: 1330 | W35: United Kingdom | X35: UK | Y35: Programme Countries | Z35: 850 | AA35: 0 | AB35: 160 | AC35: 0
A36: Slovenia | B36: SI | C36: Programme Countries | D36: 164 | E36: 137 | F36: 102 | G36: 78 | L36: 29 | M36: 2730 | N36: 1370 | W36: Former Yugoslav Republic of Macedonia | X36: MK | Y36: Programme Countries | Z36: 750 | AA36: 0 | AB36: 120 | AC36: 0
A37: Spain | B37: ES | C37: Programme Countries | D37: 164 | E37: 137 | F37: 102 | G37: 78 | L37: 30 | M37: 2800 | N37: 1410 | W37: Iceland | X37: IS | Y37: Programme Countries | Z37: 800 | AA37: 0 | AB37: 140 | AC37: 0
A38: Sweden | B38: SE | C38: Programme Countries | D38: 294 | E38: 241 | F38: 190 | G38: 157 | L38: 31 | M38: 2870 | N38: 1450 | W38: Liechtenstein | X38: LI | Y38: Programme Countries | Z38: 850 | AA38: 0 | AB38: 140 | AC38: 0
A39: United Kingdom | B39: UK | C39: Programme Countries | D39: 280 | E39: 214 | F39: 162 | G39: 131 | L39: 32 | M39: 2940 | N39: 1490 | W39: Norway | X39: NO | Y39: Programme Countries | Z39: 850 | AA39: 0 | AB39: 140 | AC39: 0
A40: Turkey | B40: TR | C40: Programme Countries | D40: 88 | E40: 74 | F40: 55 | G40: 39 | L40: 33 | M40: 3010 | N40: 1530 | W40: Turkey | X40: TR | Y40: Programme Countries | Z40: 800 | AA40: 0 | AB40: 140 | AC40: 0
A41: Afghanistan | B41: AF | C41: Partner Countries | D41: 77 | E41: 57 | F41: 40 | G41: 32 | L41: 34 | M41: 3080 | N41: 1570 | W41: Albania | X41: AL | Y41: Partner Countries | Z41: 750 | AA41: 650 | AB41: 100 | AC41: 160
A42: Albania | B42: AL | C42: Partner Countries | D42: 108 | E42: 80 | F42: 57 | G42: 45 | L42: 35 | M42: 3150 | N42: 1610 | W42: Algeria | X42: DZ | Y42: Partner Countries | Z42: 750 | AA42: 650 | AB42: 100 | AC42: 160
A43: Algeria | B43: DZ | C43: Partner Countries | D43: 47 | E43: 33 | F43: 22 | G43: 17 | L43: 36 | M43: 3220 | N43: 1650 | W43: Armenia | X43: AM | Y43: Partner Countries | Z43: 750 | AA43: 650 | AB43: 100 | AC43: 160
A44: Argentina | B44: AR | C44: Partner Countries | D44: 108 | E44: 80 | F44: 57 | G44: 45 | L44: 37 | M44: 3290 | N44: 1690 | W44: Azerbaijan | X44: AZ | Y44: Partner Countries | Z44: 750 | AA44: 650 | AB44: 100 | AC44: 160
A45: Armenia | B45: AM | C45: Partner Countries | D45: 47 | E45: 33 | F45: 22 | G45: 17 | L45: 38 | M45: 3360 | N45: 1730 | W45: Belarus | X45: BY | Y45: Partner Countries | Z45: 750 | AA45: 650 | AB45: 100 | AC45: 160
A46: Azerbaijan | B46: AZ | C46: Partner Countries | D46: 77 | E46: 57 | F46: 40 | G46: 32 | L46: 39 | M46: 3430 | N46: 1770 | W46: Bosnia and Herzegovina | X46: BA | Y46: Partner Countries | Z46: 750 | AA46: 650 | AB46: 100 | AC46: 160
A47: Bangladesh | B47: BD | C47: Partner Countries | D47: 47 | E47: 33 | F47: 22 | G47: 17 | L47: 40 | M47: 3500 | N47: 1810 | W47: Egypt | X47: EG | Y47: Partner Countries | Z47: 750 | AA47: 650 | AB47: 100 | AC47: 160
A48: Belarus | B48: BY | C48: Partner Countries | D48: 47 | E48: 33 | F48: 22 | G48: 17 | L48: 41 | M48: 3570 | N48: 1850 | W48: Georgia | X48: GE | Y48: Partner Countries | Z48: 750 | AA48: 650 | AB48: 100 | AC48: 160
A49: Bhutan | B49: BT | C49: Partner Countries | D49: 47 | E49: 33 | F49: 22 | G49: 17 | L49: 42 | M49: 3640 | N49: 1890 | W49: Israel | X49: IL | Y49: Partner Countries | Z49: 750 | AA49: 650 | AB49: 100 | AC49: 160
A50: Bolivia | B50: BO | C50: Partner Countries | D50: 77 | E50: 57 | F50: 40 | G50: 32 | L50: 43 | M50: 3710 | N50: 1930 | W50: Jordan | X50: JO | Y50: Partner Countries | Z50: 750 | AA50: 650 | AB50: 100 | AC50: 160
A51: Bosnia and Herzegovina | B51: BA | C51: Partner Countries | D51: 108 | E51: 80 | F51: 57 | G51: 45 | L51: 44 | M51: 3780 | N51: 1970 | W51: Kosovo | X51: XK | Y51: Partner Countries | Z51: 750 | AA51: 650 | AB51: 100 | AC51: 160
A52: Brazil | B52: BR | C52: Partner Countries | D52: 108 | E52: 80 | F52: 57 | G52: 45 | L52: 45 | M52: 3850 | N52: 2010 | W52: Lebanon | X52: LB | Y52: Partner Countries | Z52: 750 | AA52: 650 | AB52: 100 | AC52: 160
A53: Cambodia | B53: KH | C53: Partner Countries | D53: 47 | E53: 33 | F53: 22 | G53: 17 | L53: 46 | M53: 3920 | N53: 2050 | W53: Libya | X53: LY | Y53: Partner Countries | Z53: 750 | AA53: 650 | AB53: 100 | AC53: 160
A54: Chile | B54: CL | C54: Partner Countries | D54: 108 | E54: 80 | F54: 57 | G54: 45 | L54: 47 | M54: 3990 | N54: 2090 | W54: Moldova | X54: MD | Y54: Partner Countries | Z54: 750 | AA54: 650 | AB54: 100 | AC54: 160
A55: China | B55: CN | C55: Partner Countries | D55: 77 | E55: 57 | F55: 40 | G55: 32 | L55: 48 | M55: 4060 | N55: 2130 | W55: Montenegro | X55: ME | Y55: Partner Countries | Z55: 750 | AA55: 650 | AB55: 100 | AC55: 160
A56: Colombia | B56: CO | C56: Partner Countries | D56: 108 | E56: 80 | F56: 57 | G56: 45 | L56: 49 | M56: 4130 | N56: 2170 | W56: Morocco | X56: MA | Y56: Partner Countries | Z56: 750 | AA56: 650 | AB56: 100 | AC56: 160
A57: Costa Rica | B57: CR | C57: Partner Countries | D57: 77 | E57: 57 | F57: 40 | G57: 32 | L57: 50 | M57: 4200 | N57: 2210 | W57: Palestine | X57: PS | Y57: Partner Countries | Z57: 750 | AA57: 650 | AB57: 100 | AC57: 160
A58: Cuba | B58: CU | C58: Partner Countries | D58: 47 | E58: 33 | F58: 22 | G58: 17 | L58: 51 | M58: 4270 | N58: 2250 | W58: Serbia | X58: RS | Y58: Partner Countries | Z58: 750 | AA58: 650 | AB58: 100 | AC58: 160
A59: Ecuador | B59: EC | C59: Partner Countries | D59: 77 | E59: 57 | F59: 40 | G59: 32 | L59: 52 | M59: 4340 | N59: 2290 | W59: Syria | X59: SY | Y59: Partner Countries | Z59: 750 | AA59: 650 | AB59: 100 | AC59: 160
A60: Egypt | B60: EG | C60: Partner Countries | D60: 47 | E60: 33 | F60: 22 | G60: 17 | L60: 53 | M60: 4410 | N60: 2330 | W60: Tunisia | X60: TN | Y60: Partner Countries | Z60: 750 | AA60: 650 | AB60: 100 | AC60: 160
A61: El Salvador | B61: SV | C61: Partner Countries | D61: 77 | E61: 57 | F61: 40 | G61: 32 | L61: 54 | M61: 4480 | N61: 2370 | W61: Ukraine | X61: UA | Y61: Partner Countries | Z61: 750 | AA61: 650 | AB61: 100 | AC61: 160
A62: Georgia | B62: GE | C62: Partner Countries | D62: 77 | E62: 57 | F62: 40 | G62: 32 | L62: 55 | M62: 4550 | N62: 2410
A63: Guatemala | B63: GT | C63: Partner Countries | D63: 77 | E63: 57 | F63: 40 | G63: 32 | L63: 56 | M63: 4620 | N63: 2450
A64: Honduras | B64: HN | C64: Partner Countries | D64: 47 | E64: 33 | F64: 22 | G64: 17 | L64: 57 | M64: 4690 | N64: 2490
A65: India | B65: IN | C65: Partner Countries | D65: 47 | E65: 33 | F65: 22 | G65: 17 | L65: 58 | M65: 4760 | N65: 2530
A66: Indonesia | B66: ID | C66: Partner Countries | D66: 47 | E66: 33 | F66: 22 | G66: 17 | L66: 59 | M66: 4830 | N66: 2570
A67: Iran | B67: IR | C67: Partner Countries | D67: 77 | E67: 57 | F67: 40 | G67: 32 | L67: 60 | M67: 4900 | N67: 2610
A68: Iraq | B68: IQ | C68: Partner Countries | D68: 77 | E68: 57 | F68: 40 | G68: 32 | L68: 61 | M68: 4950 | N68: NA
A69: Israel | B69: IL | C69: Partner Countries | D69: 166 | E69: 132 | F69: 102 | G69: 92 | L69: 62 | M69: 5000 | N69: NA
A70: Jordan | B70: JO | C70: Partner Countries | D70: 77 | E70: 57 | F70: 40 | G70: 32 | L70: 63 | M70: 5050 | N70: NA
A71: Kazakhstan | B71: KZ | C71: Partner Countries | D71: 77 | E71: 57 | F71: 40 | G71: 32 | L71: 64 | M71: 5100 | N71: NA
A72: DPR Korea | B72: KP | C72: Partner Countries | D72: 47 | E72: 33 | F72: 22 | G72: 17 | L72: 65 | M72: 5150 | N72: NA
A73: Kosovo | B73: XK | C73: Partner Countries | D73: 108 | E73: 80 | F73: 57 | G73: 45 | L73: 66 | M73: 5200 | N73: NA
A74: Kyrgyzstan | B74: KG | C74: Partner Countries | D74: 47 | E74: 33 | F74: 22 | G74: 17 | L74: 67 | M74: 5250 | N74: NA
A75: Laos | B75: LA | C75: Partner Countries | D75: 47 | E75: 33 | F75: 22 | G75: 17 | L75: 68 | M75: 5300 | N75: NA
A76: Lebanon | B76: LB | C76: Partner Countries | D76: 108 | E76: 80 | F76: 57 | G76: 45 | L76: 69 | M76: 5350 | N76: NA
A77: Libya | B77: LY | C77: Partner Countries | D77: 108 | E77: 80 | F77: 57 | G77: 45 | L77: 70 | M77: 5400 | N77: NA
A78: Malaysia | B78: MY | C78: Partner Countries | D78: 47 | E78: 33 | F78: 22 | G78: 17 | L78: 71 | M78: 5450 | N78: NA
A79: Maldives | B79: MV | C79: Partner Countries | D79: 47 | E79: 33 | F79: 22 | G79: 17 | L79: 72 | M79: 5500 | N79: NA
A80: Mexico | B80: MX | C80: Partner Countries | D80: 108 | E80: 80 | F80: 57 | G80: 45 | L80: 73 | M80: 5550 | N80: NA
A81: Moldova | B81: MD | C81: Partner Countries | D81: 47 | E81: 33 | F81: 22 | G81: 17 | L81: 74 | M81: 5600 | N81: NA
A82: Mongolia | B82: MN | C82: Partner Countries | D82: 47 | E82: 33 | F82: 22 | G82: 17 | L82: 75 | M82: 5650 | N82: NA
A83: Montenegro | B83: ME | C83: Partner Countries | D83: 108 | E83: 80 | F83: 57 | G83: 45 | L83: 76 | M83: 5700 | N83: NA
A84: Morocco | B84: MA | C84: Partner Countries | D84: 77 | E84: 57 | F84: 40 | G84: 32 | L84: 77 | M84: 5750 | N84: NA
A85: Burma/Myanmar | B85: MM | C85: Partner Countries | D85: 47 | E85: 33 | F85: 22 | G85: 17 | L85: 78 | M85: 5800 | N85: NA
A86: Nepal | B86: NP | C86: Partner Countries | D86: 47 | E86: 33 | F86: 22 | G86: 17 | L86: 79 | M86: 5850 | N86: NA
A87: Nicaragua | B87: NI | C87: Partner Countries | D87: 47 | E87: 33 | F87: 22 | G87: 17 | L87: 80 | M87: 5900 | N87: NA
A88: Pakistan | B88: PK | C88: Partner Countries | D88: 47 | E88: 33 | F88: 22 | G88: 17 | L88: 81 | M88: 5950 | N88: NA
A89: Palestine | B89: PS | C89: Partner Countries | D89: 77 | E89: 57 | F89: 40 | G89: 32 | L89: 82 | M89: 6000 | N89: NA
A90: Panama | B90: PA | C90: Partner Countries | D90: 77 | E90: 57 | F90: 40 | G90: 32 | L90: 83 | M90: 6050 | N90: NA
A91: Paraguay | B91: PY | C91: Partner Countries | D91: 77 | E91: 57 | F91: 40 | G91: 32 | L91: 84 | M91: 6100 | N91: NA
A92: Peru | B92: PE | C92: Partner Countries | D92: 108 | E92: 80 | F92: 57 | G92: 45 | L92: 85 | M92: 6150 | N92: NA
A93: Philippines | B93: PH | C93: Partner Countries | D93: 47 | E93: 33 | F93: 22 | G93: 17 | L93: 86 | M93: 6200 | N93: NA
A94: Russia | B94: RU | C94: Partner Countries | D94: 77 | E94: 57 | F94: 40 | G94: 32 | L94: 87 | M94: 6250 | N94: NA
A95: Serbia | B95: RS | C95: Partner Countries | D95: 108 | E95: 80 | F95: 57 | G95: 45 | L95: 88 | M95: 6300 | N95: NA
A96: South Africa | B96: ZA | C96: Partner Countries | D96: 77 | E96: 57 | F96: 40 | G96: 32 | L96: 89 | M96: 6350 | N96: NA
A97: Sri Lanka | B97: LK | C97: Partner Countries | D97: 47 | E97: 33 | F97: 22 | G97: 17 | L97: 90 | M97: 6400 | N97: NA
A98: Syria | B98: SY | C98: Partner Countries | D98: 47 | E98: 33 | F98: 22 | G98: 17 | L98: 91 | M98: 6450 | N98: NA
A99: Tajikistan | B99: TJ | C99: Partner Countries | D99: 47 | E99: 33 | F99: 22 | G99: 17 | L99: 92 | M99: 6500 | N99: NA
A100: Thailand | B100: TH | C100: Partner Countries | D100: 108 | E100: 80 | F100: 57 | G100: 45 | L100: 93 | M100: 6550 | N100: NA
A101: Tunisia | B101: TN | C101: Partner Countries | D101: 47 | E101: 33 | F101: 22 | G101: 17 | L101: 94 | M101: 6600 | N101: NA
A102: Turkmenistan | B102: TM | C102: Partner Countries | D102: 47 | E102: 33 | F102: 22 | G102: 17 | L102: 95 | M102: 6650 | N102: NA
A103: Ukraine | B103: UA | C103: Partner Countries | D103: 108 | E103: 80 | F103: 57 | G103: 45 | L103: 96 | M103: 6700 | N103: NA
A104: Uruguay | B104: UY | C104: Partner Countries | D104: 108 | E104: 80 | F104: 57 | G104: 45 | L104: 97 | M104: 6750 | N104: NA
A105: Uzbekistan | B105: UZ | C105: Partner Countries | D105: 47 | E105: 33 | F105: 22 | G105: 17 | L105: 98 | M105: 6800 | N105: NA
A106: Venezuela | B106: VE | C106: Partner Countries | D106: 108 | E106: 80 | F106: 57 | G106: 45 | L106: 99 | M106: 6850 | N106: NA
A107: Vietnam | B107: VN | C107: Partner Countries | D107: 47 | E107: 33 | F107: 22 | G107: 17 | L107: 100 | M107: 6900 | N107: NA
A108: Yemen | B108: YE | C108: Partner Countries | D108: 47 | E108: 33 | F108: 22 | G108: 17 | L108: 101 | M108: 6950 | N108: NA
L109: 102 | M109: 7000 | N109: NA
L110: 103 | M110: 7050 | N110: NA
L111: 104 | M111: 7100 | N111: NA
L112: 105 | M112: 7150 | N112: NA
L113: 106 | M113: 7200 | N113: NA
L114: 107 | M114: 7250 | N114: NA
L115: 108 | M115: 7300 | N115: NA
L116: 109 | M116: 7350 | N116: NA
L117: 110 | M117: 7400 | N117: NA
L118: 111 | M118: 7450 | N118: NA
L119: 112 | M119: 7500 | N119: NA
L120: 113 | M120: 7550 | N120: NA
L121: 114 | M121: 7600 | N121: NA
L122: 115 | M122: 7650 | N122: NA
L123: 116 | M123: 7700 | N123: NA
L124: 117 | M124: 7750 | N124: NA
L125: 118 | M125: 7800 | N125: NA
L126: 119 | M126: 7850 | N126: NA
L127: 120 | M127: 7900 | N127: NA
L128: 121 | M128: 7950 | N128: NA
L129: 122 | M129: 8000 | N129: NA
L130: 123 | M130: 8050 | N130: NA
L131: 124 | M131: 8100 | N131: NA
L132: 125 | M132: 8150 | N132: NA
L133: 126 | M133: 8200 | N133: NA
L134: 127 | M134: 8250 | N134: NA
L135: 128 | M135: 8300 | N135: NA
L136: 129 | M136: 8350 | N136: NA
L137: 130 | M137: 8400 | N137: NA
L138: 131 | M138: 8450 | N138: NA
L139: 132 | M139: 8500 | N139: NA
L140: 133 | M140: 8550 | N140: NA
L141: 134 | M141: 8600 | N141: NA
L142: 135 | M142: 8650 | N142: NA
L143: 136 | M143: 8700 | N143: NA
L144: 137 | M144: 8750 | N144: NA
L145: 138 | M145: 8800 | N145: NA
L146: 139 | M146: 8850 | N146: NA
L147: 140 | M147: 8900 | N147: NA
L148: 141 | M148: 8950 | N148: NA
L149: 142 | M149: 9000 | N149: NA
L150: 143 | M150: 9050 | N150: NA
L151: 144 | M151: 9100 | N151: NA
L152: 145 | M152: 9150 | N152: NA
L153: 146 | M153: 9200 | N153: NA
L154: 147 | M154: 9250 | N154: NA
L155: 148 | M155: 9300 | N155: NA
L156: 149 | M156: 9350 | N156: NA
L157: 150 | M157: 9400 | N157: NA
L158: 151 | M158: 9450 | N158: NA
L159: 152 | M159: 9500 | N159: NA
L160: 153 | M160: 9550 | N160: NA
L161: 154 | M161: 9600 | N161: NA
L162: 155 | M162: 9650 | N162: NA
L163: 156 | M163: 9700 | N163: NA
L164: 157 | M164: 9750 | N164: NA
L165: 158 | M165: 9800 | N165: NA
L166: 159 | M166: 9850 | N166: NA
L167: 160 | M167: 9900 | N167: NA
L168: 161 | M168: 9950 | N168: NA
L169: 162 | M169: 10000 | N169: NA
L170: 163 | M170: 10050 | N170: NA
L171: 164 | M171: 10100 | N171: NA
L172: 165 | M172: 10150 | N172: NA
L173: 166 | M173: 10200 | N173: NA
L174: 167 | M174: 10250 | N174: NA
L175: 168 | M175: 10300 | N175: NA
L176: 169 | M176: 10350 | N176: NA
L177: 170 | M177: 10400 | N177: NA
L178: 171 | M178: 10450 | N178: NA
L179: 172 | M179: 10500 | N179: NA
L180: 173 | M180: 10550 | N180: NA
L181: 174 | M181: 10600 | N181: NA
L182: 175 | M182: 10650 | N182: NA
L183: 176 | M183: 10700 | N183: NA
L184: 177 | M184: 10750 | N184: NA
L185: 178 | M185: 10800 | N185: NA
L186: 179 | M186: 10850 | N186: NA
L187: 180 | M187: 10900 | N187: NA
L188: 181 | M188: 10950 | N188: NA
L189: 182 | M189: 11000 | N189: NA
L190: 183 | M190: 11050 | N190: NA
L191: 184 | M191: 11100 | N191: NA
L192: 185 | M192: 11150 | N192: NA
L193: 186 | M193: 11200 | N193: NA
L194: 187 | M194: 11250 | N194: NA
L195: 188 | M195: 11300 | N195: NA
L196: 189 | M196: 11350 | N196: NA
L197: 190 | M197: 11400 | N197: NA
L198: 191 | M198: 11450 | N198: NA
L199: 192 | M199: 11500 | N199: NA
L200: 193 | M200: 11550 | N200: NA
... 172 more rows
